Workbook

Sheet ANNEX
A8: 2013 EBA
A9: Transparency Exercise Sample
B11: EBA Bankcode | C11: Bankname | D11: Country
B12: AT001 | C12: Erste Group Bank (EGB) | D12: =LEFT(B12,2) -> AT
B13: AT002 | C13: Raiffeisen Zentralbank Österreich (RZB) | D13: =LEFT(B13,2) -> AT
B14: BE005 | C14: KBC BANK | D14: BE
B15: CY007 | C15: BANK OF CYPRUS PUBLIC CO LTD | D15: =LEFT(B15,2) -> CY
B16: DE017 | C16: DEUTSCHE BANK AG | D16: DE
B17: DE018 | C17: COMMERZBANK AG | D17: DE
B18: DE019 | C18: Landesbank Baden-Württemberg | D18: DE
B19: DE020 | C19: DZ BANK AG Dt. Zentral-Genossenschaftsbank | D19: DE
B20: DE021 | C20: Bayerische Landesbank | D20: DE
B21: DE022 | C21: Norddeutsche Landesbank -GZ | D21: DE
B22: DE023 | C22: Hypo Real Estate Holding AG | D22: DE
B23: DE025 | C23: HSH Nordbank AG, Hamburg | D23: DE
B24: DE026 | C24: Landesbank Hessen-Thüringen GZ, Frankfurt | D24: DE
B25: DE027 | C25: Landesbank Berlin AG | D25: DE
B26: DE028 | C26: DekaBank Deutsche Girozentrale, Frankfurt | D26: DE
B27: DE029 | C27: WGZ BANK AG Westdt. Geno. Zentralbk, Ddf | D27: DE
B28: DK008 | C28: DANSKE BANK | D28: DK
B29: DK009 | C29: Jyske Bank | D29: DK
B30: DK010 | C30: Sydbank | D30: DK
B31: DK011 | C31: Nykredit | D31: DK
B32: ES059 | C32: BANCO SANTANDER S.A. | D32: ES
B33: ES060 | C33: BANCO BILBAO VIZCAYA ARGENTARIA S.A. (BBVA) | D33: ES
B34: ES062 | C34: CAJA DE AHORROS Y PENSIONES DE BARCELONA | D34: ES
B35: ES064 | C35: BANCO POPULAR ESPAÑOL, S.A. | D35: ES
B36: FI012 | C36: OP-Pohjola Group | D36: FI
B37: FR013 | C37: BNP PARIBAS | D37: FR
B38: FR014 | C38: CREDIT AGRICOLE | D38: FR
B39: FR015 | C39: BPCE | D39: FR
B40: FR016 | C40: SOCIETE GENERALE | D40: FR
B41: GB088 | C41: ROYAL BANK OF SCOTLAND GROUP plc | D41: GB
B42: GB089 | C42: HSBC HOLDINGS plc | D42: GB
B43: GB090 | C43: BARCLAYS plc | D43: GB
B44: GB091 | C44: LLOYDS BANKING GROUP plc | D44: GB
B45: GR030 | C45: EFG EUROBANK ERGASIAS S.A. | D45: =LEFT(B45,2) -> GR
B46: GR031 | C46: NATIONAL BANK OF GREECE | D46: GR
B47: GR032 | C47: ALPHA BANK | D47: GR
B48: GR033 | C48: PIRAEUS BANK GROUP | D48: GR
B49: HU036 | C49: OTP BANK NYRT. | D49: =LEFT(B49,2) -> HU
B50: IE037 | C50: ALLIED IRISH BANKS PLC | D50: IE
B51: IE038 | C51: BANK OF IRELAND | D51: IE
B52: IE039 | C52: PERMANENT TSB | D52: IE
B53: IT040 | C53: INTESA SANPAOLO S.p.A | D53: IT
B54: IT041 | C54: UNICREDIT S.p.A | D54: IT
B55: IT042 | C55: BANCA MONTE DEI PASCHI DI SIENA S.p.A | D55: IT
B56: IT043 | C56: BANCO POPOLARE - S.C. | D56: IT
B57: IT044 | C57: UNIONE DI BANCHE ITALIANE SCPA (UBI BANCA) | D57: IT
B58: LU045 | C58: BANQUE ET CAISSE D'EPARGNE DE L'ETAT | D58: LU
B59: MT046 | C59: BANK OF VALLETTA (BOV) | D59: MT
B60: NL047 | C60: ING BANK NV | D60: NL
B61: NL048 | C61: RABOBANK NEDERLAND | D61: NL
B62: NL049 | C62: ABN AMRO BANK NV | D62: NL
B63: NL050 | C63: SNS BANK NV | D63: NL
B64: NO051 | C64: DNB Bank ASA | D64: NO
B65: PL052 | C65: POWSZECHNA KASA OSZCZEDNOSCI BANK POLSKI S.A. (PKO BANK POLSKI) | D65: PL
B66: PT053 | C66: CAIXA GERAL DE DEPÓSITOS SA | D66: PT
B67: PT054 | C67: BANCO COMERCIAL PORTUGUES SA (BCP OR MILLENNIUM BCP) | D67: PT
B68: PT055 | C68: ESPÍRITO SANTO FINANCIAL GROUP SA (ESFG) | D68: PT
B69: PT056 | C69: Banco BPI, SA | D69: PT
B70: SE084 | C70: Nordea Bank AB (publ) | D70: SE
B71: SE085 | C71: Skandinaviska Enskilda Banken AB (publ) (SEB) | D71: SE
B72: SE086 | C72: Svenska Handelsbanken AB (publ) | D72: SE
B73: SE087 | C73: Swedbank AB (publ) | D73: SE
B74: SI057 | C74: NOVA LJUBLJANSKA BANKA D.D. (NLB d.d.) | D74: SI
B75: SI058 | C75: NOVA KREDITNA BANKA MARIBOR D.D. (NKBM d.d.) | D75: SI

Sheet Menu
G2: 1. Individual Bank Reports
A5: Banks | B5: =VLOOKUP(H15,Sheet1!D4:E25,2,FALSE) -> 64
G6: Bank
G7: Template
E8: 2013 EBA
E9: Transparency Exercise
G11: 2. Aggregated Data Reports1 | X11: Bankcode | Y11: BankName
X12: =IF(H15="[TO] TOTAL","",IF(H15="[AT] Austria","AT001",IF(H15="[BE] Belgium","BE005",IF(H15="[CY] Cyprus","CY007",IF(H15="[DE] Germany","DE017",IF(H15="[DK] Denmark","DK008",IF(H15="[ES] Spain","ES059",IF(H15="[FI] Finland","FI012",IF(H15="[FR] France","FR013",IF(H15="[GB] United Kingdom","GB088",IF(H15="[GR] Greece","GR030", IF(H15="[HU] Hungary","HU036",IF(H15="[IE] Ireland","IE037",IF(H15="[IT] Italy","IT040",IF(H15="[LU] Luxemburg","LU045",IF(H15="[MT] Malta","MT046",IF(H15="[NL] Netherlands","NL047",IF(H15="[NO] Norway","NO051",IF(H15="[PL] Poland","PL052",IF(H15="[PT] Portugal","PT053",IF(H15="[SE] Sweden","SE084",IF(H15="[SI] Slovenia","SI057")))))))))))))))))))))) ->  | Y12: =IF(H15="[TO] TOTAL","",IF(H15="[AT] Austria","Erste Group Bank (EGB)",IF(H15="[BE] Belgium","KBC BANK",IF(H15="[CY] Cyprus","BANK OF CYPRUS PUBLIC CO LTD",IF(H15="[DE] Germany","DEUTSCHE BANK AG",IF(H15="[DK] Denmark","DANSKE BANK",IF(H15="[ES] Spain","BANCO SANTANDER S.A.",IF(H15="[FI] Finland","OP-Pohjola Group",IF(H15="[FR] France","BNP PARIBAS",IF(H15="[GB] United Kingdom","ROYAL BANK OF SCOTLAND GROUP plc",IF(H15="[GR] Greece","EUROBANK ERGASIAS S.A.",IF(H15="[HU] Hungary","OTP BANK NYRT.",IF(H15="[IE] Ireland","ALLIED IRISH BANKS PLC",IF(H15="[IT] Italy","INTESA SANPAOLO S.p.A",IF(H15="[LU] Luxemburg","BANQUE ET CAISSE D'EPARGNE DE L'ETAT",IF(H15="[MT] Malta","BANK OF VALLETTA (BOV)",IF(H15="[NL] Netherlands","ING BANK NV",IF(H15="[NO] Norway","DNB Bank ASA",IF(H15="[PL] Poland","POWSZECHNA KASA OSZCZEDNOSCI BANK POLSKI S.A. (PKO BANK POLSKI)",IF(H15="[PT] Portugal","CAIXA GERAL DE DEPÓSITOS SA",IF(H15="[SE] Sweden","Nordea Bank AB (publ)",IF(H15="[SI] Slovenia","NOVA LJUBLJANSKA BANKA D.D. (NLB d.d.)")))))))))))))))))))))) -> 
X13: =IF(H15="[TO] TOTAL","",IF(H15="[AT] Austria","AT002",IF(H15="[BE] Belgium","",IF(H15="[CY] Cyprus","",IF(H15="[DE] Germany","DE018",IF(H15="[DK] Denmark","DK009",IF(H15="[ES] Spain","ES060",IF(H15="[FI] Finland","",IF(H15="[FR] France","FR014",IF(H15="[GB] United Kingdom","GB089", IF(H15="[GR] Greece","GR031", IF(H15="[HU] Hungary","",IF(H15="[IE] Ireland","IE038",IF(H15="[IT] Italy","IT041",IF(H15="[LU] Luxemburg","",IF(H15="[MT] Malta","",IF(H15="[NL] Netherlands","NL048",IF(H15="[NO] Norway","",IF(H15="[PL] Poland","",IF(H15="[PT] Portugal","PT054",IF(H15="[SE] Sweden","SE085",IF(H15="[SI] Slovenia","SI058")))))))))))))))))))))) ->  | Y13: =IF(H15="[TO] TOTAL","",IF(H15="[AT] Austria","Raiffeisen Zentralbank Österreich (RZB)",IF(H15="[BE] Belgium","",IF(H15="[CY] Cyprus","",IF(H15="[DE] Germany","COMMERZBANK AG",IF(H15="[DK] Denmark","Jyske Bank",IF(H15="[ES] Spain","BANCO BILBAO VIZCAYA ARGENTARIA S.A. (BBVA)",IF(H15="[FI] Finland","",IF(H15="[FR] France","CREDIT AGRICOLE",IF(H15="[GB] United Kingdom","HSBC HOLDINGS plc",IF(H15="[GR] Greece","NATIONAL BANK OF GREECE",IF(H15="[HU] Hungary","",IF(H15="[IE] Ireland","BANK OF IRELAND",IF(H15="[IT] Italy","UNICREDIT S.p.A",IF(H15="[LU] Luxemburg","",IF(H15="[MT] Malta","",IF(H15="[NL] Netherlands","RABOBANK NEDERLAND",IF(H15="[NO] Norway","",IF(H15="[PL] Poland","",IF(H15="[PT] Portugal","BANCO COMERCIAL PORTUGUES SA (BCP OR MILLENNIUM BCP)",IF(H15="[SE] Sweden","Skandinaviska Enskilda Banken AB (publ) (SEB)",IF(H15="[SI] Slovenia","NOVA KREDITNA BANKA MARIBOR D.D. (NKBM d.d.)")))))))))))))))))))))) -> 
X14: =IF(H15="[TO] TOTAL","",IF(H15="[AT] Austria","",IF(H15="[BE] Belgium","",IF(H15="[CY] Cyprus","",IF(H15="[DE] Germany","DE019",IF(H15="[DK] Denmark","DK010",IF(H15="[ES] Spain","ES062",IF(H15="[FI] Finland","",IF(H15="[FR] France","FR015",IF(H15="[GB] United Kingdom","GB090",IF(H15="[GR] Greece","GR032", IF(H15="[HU] Hungary","",IF(H15="[IE] Ireland","IE039",IF(H15="[IT] Italy","IT042",IF(H15="[LU] Luxemburg","",IF(H15="[MT] Malta","",IF(H15="[NL] Netherlands","NL049",IF(H15="[NO] Norway","",IF(H15="[PL] Poland","",IF(H15="[PT] Portugal","PT055",IF(H15="[SE] Sweden","SE086",IF(H15="[SI] Slovenia","")))))))))))))))))))))) ->  | Y14: =IF(H15="[TO] TOTAL","",IF(H15="[AT] Austria","",IF(H15="[BE] Belgium","",IF(H15="[CY] Cyprus","",IF(H15="[DE] Germany","Landesbank Baden-Württemberg",IF(H15="[DK] Denmark","Sydbank",IF(H15="[ES] Spain","CAJA DE AHORROS Y PENSIONES DE BARCELONA",IF(H15="[FI] Finland","",IF(H15="[FR] France","BPCE",IF(H15="[GB] United Kingdom","BARCLAYS plc",IF(H15="[GR] Greece","ALPHA BANK , S.A", IF(H15="[HU] Hungary","",IF(H15="[IE] Ireland","PERMANENT TSB",IF(H15="[IT] Italy","BANCA MONTE DEI PASCHI DI SIENA S.p.A",IF(H15="[LU] Luxemburg","",IF(H15="[MT] Malta","",IF(H15="[NL] Netherlands","ABN AMRO BANK NV",IF(H15="[NO] Norway","",IF(H15="[PL] Poland","",IF(H15="[PT] Portugal","ESPÍRITO SANTO FINANCIAL GROUP SA (ESFG)",IF(H15="[SE] Sweden","Svenska Handelsbanken AB (publ)",IF(H15="[SI] Slovenia","")))))))))))))))))))))) -> 
E15: TEMPLATES: | G15: Country | H15: [TO] TOTAL | X15: =IF(H15="[TO] TOTAL","",IF(H15="[AT] Austria","",IF(H15="[BE] Belgium","",IF(H15="[CY] Cyprus","",IF(H15="[DE] Germany","DE020",IF(H15="[DK] Denmark","DK011",IF(H15="[ES] Spain","ES064",IF(H15="[FI] Finland","",IF(H15="[FR] France","FR016",IF(H15="[GB] United Kingdom","GB091",IF(H15="[GR] Greece","GR033", IF(H15="[HU] Hungary","",IF(H15="[IE] Ireland","",IF(H15="[IT] Italy","IT043",IF(H15="[LU] Luxemburg","",IF(H15="[MT] Malta","",IF(H15="[NL] Netherlands","NL050",IF(H15="[NO] Norway","",IF(H15="[PL] Poland","",IF(H15="[PT] Portugal","PT056",IF(H15="[SE] Sweden","SE087",IF(H15="[SI] Slovenia","")))))))))))))))))))))) ->  | Y15: =IF(H15="[TO] TOTAL","",IF(H15="[AT] Austria","",IF(H15="[BE] Belgium","",IF(H15="[CY] Cyprus","",IF(H15="[DE] Germany","DZ BANK AG Dt. Zentral-Genossenschaftsbank",IF(H15="[DK] Denmark","Nykredit",IF(H15="[ES] Spain","BANCO POPULAR ESPAÑOL, S.A.",IF(H15="[FI] Finland","",IF(H15="[FR] France","SOCIETE GENERALE",IF(H15="[GB] United Kingdom","LLOYDS BANKING GROUP plc",IF(H15="[GR] Greece","PIRAEUS BANK GROUP",IF(H15="[HU] Hungary","",IF(H15="[IE] Ireland","",IF(H15="[IT] Italy","BANCO POPOLARE - S.C.",IF(H15="[LU] Luxemburg","",IF(H15="[MT] Malta","",IF(H15="[NL] Netherlands","SNS BANK NV",IF(H15="[NO] Norway","",IF(H15="[PL] Poland","",IF(H15="[PT] Portugal","Banco BPI, SA",IF(H15="[SE] Sweden","Swedbank AB (publ)",IF(H15="[SI] Slovenia","")))))))))))))))))))))) -> 
B16: =LEFT(H16,1) ->  | E16: 5. Sovereign Debt Exposures | G16: Template | X16: =IF(H15="[TO] TOTAL","",IF(H15="[AT] Austria","",IF(H15="[BE] Belgium","",IF(H15="[CY] Cyprus","",IF(H15="[DE] Germany","DE021",IF(H15="[DK] Denmark","",IF(H15="[ES] Spain","",IF(H15="[FI] Finland","",IF(H15="[FR] France","",IF(H15="[GB] United Kingdom","",IF(H15="[GR] Greece","",IF(H15="[HU] Hungary","",IF(H15="[IE] Ireland","",IF(H15="[IT] Italy","IT044",IF(H15="[LU] Luxemburg","",IF(H15="[MT] Malta","",IF(H15="[NL] Netherlands","",IF(H15="[NO] Norway","",IF(H15="[PL] Poland","",IF(H15="[PT] Portugal","",IF(H15="[SE] Sweden","",IF(H15="[SI] Slovenia","")))))))))))))))))))))) ->  | Y16: =IF(H15="[TO] TOTAL","",IF(H15="[AT] Austria","",IF(H15="[BE] Belgium","",IF(H15="[CY] Cyprus","",IF(H15="[DE] Germany","Bayerische Landesbank",IF(H15="[DK] Denmark","",IF(H15="[ES] Spain","",IF(H15="[FI] Finland","",IF(H15="[FR] France","",IF(H15="[GB] United Kingdom","",IF(H15="[GR] Greece","",IF(H15="[HU] Hungary","",IF(H15="[IE] Ireland","",IF(H15="[IT] Italy","UNIONE DI BANCHE ITALIANE SCPA (UBI BANCA)",IF(H15="[LU] Luxemburg","",IF(H15="[MT] Malta","",IF(H15="[NL] Netherlands","",IF(H15="[NO] Norway","",IF(H15="[PL] Poland","",IF(H15="[PT] Portugal","",IF(H15="[SE] Sweden","",IF(H15="[SI] Slovenia","")))))))))))))))))))))) -> 
B17: =IF(AND(B16<>"2",B16<>"4"),1,"") -> 1 | X17: =IF(H15="[TO] TOTAL","",IF(H15="[AT] Austria","",IF(H15="[BE] Belgium","",IF(H15="[CY] Cyprus","",IF(H15="[DE] Germany","DE022",IF(H15="[DK] Denmark","",IF(H15="[ES] Spain","",IF(H15="[FI] Finland","",IF(H15="[FR] France","",IF(H15="[GB] United Kingdom","",IF(H15="[GR] Greece","",IF(H15="[HU] Hungary","",IF(H15="[IE] Ireland","",IF(H15="[IT] Italy","",IF(H15="[LU] Luxemburg","",IF(H15="[MT] Malta","",IF(H15="[NL] Netherlands","",IF(H15="[NO] Norway","",IF(H15="[PL] Poland","",IF(H15="[PT] Portugal","",IF(H15="[SE] Sweden","",IF(H15="[SI] Slovenia","")))))))))))))))))))))) ->  | Y17: =IF(H15="[TO] TOTAL","",IF(H15="[AT] Austria","",IF(H15="[BE] Belgium","",IF(H15="[CY] Cyprus","",IF(H15="[DE] Germany","Norddeutsche Landesbank -GZ",IF(H15="[DK] Denmark","",IF(H15="[ES] Spain","",IF(H15="[FI] Finland","",IF(H15="[FR] France","",IF(H15="[GB] United Kingdom","",IF(H15="[GR] Greece","",IF(H15="[HU] Hungary","",IF(H15="[IE] Ireland","",IF(H15="[IT] Italy","",IF(H15="[LU] Luxemburg","",IF(H15="[MT] Malta","",IF(H15="[NL] Netherlands","",IF(H15="[NO] Norway","",IF(H15="[PL] Poland","",IF(H15="[PT] Portugal","",IF(H15="[SE] Sweden","",IF(H15="[SI] Slovenia","")))))))))))))))))))))) -> 
X18: =IF(H15="[TO] TOTAL","",IF(H15="[AT] Austria","",IF(H15="[BE] Belgium","",IF(H15="[CY] Cyprus","",IF(H15="[DE] Germany","DE023",IF(H15="[DK] Denmark","",IF(H15="[ES] Spain","",IF(H15="[FI] Finland","",IF(H15="[FR] France","",IF(H15="[GB] United Kingdom","",IF(H15="[GR] Greece","",IF(H15="[HU] Hungary","",IF(H15="[IE] Ireland","",IF(H15="[IT] Italy","",IF(H15="[LU] Luxemburg","",IF(H15="[MT] Malta","",IF(H15="[NL] Netherlands","",IF(H15="[NO] Norway","",IF(H15="[PL] Poland","",IF(H15="[PT] Portugal","",IF(H15="[SE] Sweden","",IF(H15="[SI] Slovenia","")))))))))))))))))))))) ->  | Y18: =IF(H15="[TO] TOTAL","",IF(H15="[AT] Austria","",IF(H15="[BE] Belgium","",IF(H15="[CY] Cyprus","",IF(H15="[DE] Germany","Hypo Real Estate Holding AG",IF(H15="[DK] Denmark","",IF(H15="[ES] Spain","",IF(H15="[FI] Finland","",IF(H15="[FR] France","",IF(H15="[GB] United Kingdom","",IF(H15="[GR] Greece","",IF(H15="[HU] Hungary","",IF(H15="[IE] Ireland","",IF(H15="[IT] Italy","",IF(H15="[LU] Luxemburg","",IF(H15="[MT] Malta","",IF(H15="[NL] Netherlands","",IF(H15="[NO] Norway","",IF(H15="[PL] Poland","",IF(H15="[PT] Portugal","",IF(H15="[SE] Sweden","",IF(H15="[SI] Slovenia","")))))))))))))))))))))) -> 
G19: Participating Banks: | H19: =B5 -> 64 | X19: =IF(H15="[TO] TOTAL","",IF(H15="[AT] Austria","",IF(H15="[BE] Belgium","",IF(H15="[CY] Cyprus","",IF(H15="[DE] Germany","DE025",IF(H15="[DK] Denmark","",IF(H15="[ES] Spain","",IF(H15="[FI] Finland","",IF(H15="[FR] France","",IF(H15="[GB] United Kingdom","",IF(H15="[GR] Greece","",IF(H15="[HU] Hungary","",IF(H15="[IE] Ireland","",IF(H15="[IT] Italy","",IF(H15="[LU] Luxemburg","",IF(H15="[MT] Malta","",IF(H15="[NL] Netherlands","",IF(H15="[NO] Norway","",IF(H15="[PL] Poland","",IF(H15="[PT] Portugal","",IF(H15="[SE] Sweden","",IF(H15="[SI] Slovenia","")))))))))))))))))))))) ->  | Y19: =IF(H15="[TO] TOTAL","",IF(H15="[AT] Austria","",IF(H15="[BE] Belgium","",IF(H15="[CY] Cyprus","",IF(H15="[DE] Germany","HSH Nordbank AG, Hamburg",IF(H15="[DK] Denmark","",IF(H15="[ES] Spain","",IF(H15="[FI] Finland","",IF(H15="[FR] France","",IF(H15="[GB] United Kingdom","",IF(H15="[GR] Greece","",IF(H15="[HU] Hungary","",IF(H15="[IE] Ireland","",IF(H15="[IT] Italy","",IF(H15="[LU] Luxemburg","",IF(H15="[MT] Malta","",IF(H15="[NL] Netherlands","",IF(H15="[NO] Norway","",IF(H15="[PL] Poland","",IF(H15="[PT] Portugal","",IF(H15="[SE] Sweden","",IF(H15="[SI] Slovenia","")))))))))))))))))))))) -> 
X20: =IF(H15="[TO] TOTAL","",IF(H15="[AT] Austria","",IF(H15="[BE] Belgium","",IF(H15="[CY] Cyprus","",IF(H15="[DE] Germany","DE026",IF(H15="[DK] Denmark","",IF(H15="[ES] Spain","",IF(H15="[FI] Finland","",IF(H15="[FR] France","",IF(H15="[GB] United Kingdom","",IF(H15="[GR] Greece","",IF(H15="[HU] Hungary","",IF(H15="[IE] Ireland","",IF(H15="[IT] Italy","",IF(H15="[LU] Luxemburg","",IF(H15="[MT] Malta","",IF(H15="[NL] Netherlands","",IF(H15="[NO] Norway","",IF(H15="[PL] Poland","",IF(H15="[PT] Portugal","",IF(H15="[SE] Sweden","",IF(H15="[SI] Slovenia","")))))))))))))))))))))) ->  | Y20: =IF(H15="[TO] TOTAL","",IF(H15="[AT] Austria","",IF(H15="[BE] Belgium","",IF(H15="[CY] Cyprus","",IF(H15="[DE] Germany","Landesbank Hessen-Thüringen GZ, Frankfurt",IF(H15="[DK] Denmark","",IF(H15="[ES] Spain","",IF(H15="[FI] Finland","",IF(H15="[FR] France","",IF(H15="[GB] United Kingdom","",IF(H15="[GR] Greece","",IF(H15="[HU] Hungary","",IF(H15="[IE] Ireland","",IF(H15="[IT] Italy","",IF(H15="[LU] Luxemburg","",IF(H15="[MT] Malta","",IF(H15="[NL] Netherlands","",IF(H15="[NO] Norway","",IF(H15="[PL] Poland","",IF(H15="[PT] Portugal","",IF(H15="[SE] Sweden","",IF(H15="[SI] Slovenia","")))))))))))))))))))))) -> 
X21: =IF(H15="[TO] TOTAL","",IF(H15="[AT] Austria","",IF(H15="[BE] Belgium","",IF(H15="[CY] Cyprus","",IF(H15="[DE] Germany","DE027",IF(H15="[DK] Denmark","",IF(H15="[ES] Spain","",IF(H15="[FI] Finland","",IF(H15="[FR] France","",IF(H15="[GB] United Kingdom","",IF(H15="[GR] Greece","",IF(H15="[HU] Hungary","",IF(H15="[IE] Ireland","",IF(H15="[IT] Italy","",IF(H15="[LU] Luxemburg","",IF(H15="[MT] Malta","",IF(H15="[NL] Netherlands","",IF(H15="[NO] Norway","",IF(H15="[PL] Poland","",IF(H15="[PT] Portugal","",IF(H15="[SE] Sweden","",IF(H15="[SI] Slovenia","")))))))))))))))))))))) ->  | Y21: =IF(H15="[TO] TOTAL","",IF(H15="[AT] Austria","",IF(H15="[BE] Belgium","",IF(H15="[CY] Cyprus","",IF(H15="[DE] Germany","Landesbank Berlin AG",IF(H15="[DK] Denmark","",IF(H15="[ES] Spain","",IF(H15="[FI] Finland","",IF(H15="[FR] France","",IF(H15="[GB] United Kingdom","",IF(H15="[GR] Greece","",IF(H15="[HU] Hungary","",IF(H15="[IE] Ireland","",IF(H15="[IT] Italy","",IF(H15="[LU] Luxemburg","",IF(H15="[MT] Malta","",IF(H15="[NL] Netherlands","",IF(H15="[NO] Norway","",IF(H15="[PL] Poland","",IF(H15="[PT] Portugal","",IF(H15="[SE] Sweden","",IF(H15="[SI] Slovenia","")))))))))))))))))))))) -> 
B22: =IF(H31<>"",1,0) -> 0 | X22: =IF(H15="[TO] TOTAL","",IF(H15="[AT] Austria","",IF(H15="[BE] Belgium","",IF(H15="[CY] Cyprus","",IF(H15="[DE] Germany","DE028",IF(H15="[DK] Denmark","",IF(H15="[ES] Spain","",IF(H15="[FI] Finland","",IF(H15="[FR] France","",IF(H15="[GB] United Kingdom","",IF(H15="[GR] Greece","",IF(H15="[HU] Hungary","",IF(H15="[IE] Ireland","",IF(H15="[IT] Italy","",IF(H15="[LU] Luxemburg","",IF(H15="[MT] Malta","",IF(H15="[NL] Netherlands","",IF(H15="[NO] Norway","",IF(H15="[PL] Poland","",IF(H15="[PT] Portugal","",IF(H15="[SE] Sweden","",IF(H15="[SI] Slovenia","")))))))))))))))))))))) ->  | Y22: =IF(H15="[TO] TOTAL","",IF(H15="[AT] Austria","",IF(H15="[BE] Belgium","",IF(H15="[CY] Cyprus","",IF(H15="[DE] Germany","DekaBank Deutsche Girozentrale, Frankfurt",IF(H15="[DK] Denmark","",IF(H15="[ES] Spain","",IF(H15="[FI] Finland","",IF(H15="[FR] France","",IF(H15="[GB] United Kingdom","",IF(H15="[GR] Greece","",IF(H15="[HU] Hungary","",IF(H15="[IE] Ireland","",IF(H15="[IT] Italy","",IF(H15="[LU] Luxemburg","",IF(H15="[MT] Malta","",IF(H15="[NL] Netherlands","",IF(H15="[NO] Norway","",IF(H15="[PL] Poland","",IF(H15="[PT] Portugal","",IF(H15="[SE] Sweden","",IF(H15="[SI] Slovenia","")))))))))))))))))))))) -> 
B23: =IF(H30<>"",1,IF(H32<>"",1,0)) -> 0 | G23: 1) Country aggregates refer only to those resident banks participating in the study. | X23: =IF(H15="[TO] TOTAL","",IF(H15="[AT] Austria","",IF(H15="[BE] Belgium","",IF(H15="[CY] Cyprus","",IF(H15="[DE] Germany","DE029",IF(H15="[DK] Denmark","",IF(H15="[ES] Spain","",IF(H15="[FI] Finland","",IF(H15="[FR] France","",IF(H15="[GB] United Kingdom","",IF(H15="[GR] Greece","",IF(H15="[HU] Hungary","",IF(H15="[IE] Ireland","",IF(H15="[IT] Italy","",IF(H15="[LU] Luxemburg","",IF(H15="[MT] Malta","",IF(H15="[NL] Netherlands","",IF(H15="[NO] Norway","",IF(H15="[PL] Poland","",IF(H15="[PT] Portugal","",IF(H15="[SE] Sweden","",IF(H15="[SI] Slovenia","")))))))))))))))))))))) ->  | Y23: =IF(H15="[TO] TOTAL","",IF(H15="[AT] Austria","",IF(H15="[BE] Belgium","",IF(H15="[CY] Cyprus","",IF(H15="[DE] Germany","WGZ BANK AG Westdt. Geno. Zentralbk, Ddf",IF(H15="[DK] Denmark","",IF(H15="[ES] Spain","",IF(H15="[FI] Finland","",IF(H15="[FR] France","",IF(H15="[GB] United Kingdom","",IF(H15="[GR] Greece","",IF(H15="[HU] Hungary","",IF(H15="[IE] Ireland","",IF(H15="[IT] Italy","",IF(H15="[LU] Luxemburg","",IF(H15="[MT] Malta","",IF(H15="[NL] Netherlands","",IF(H15="[NO] Norway","",IF(H15="[PL] Poland","",IF(H15="[PT] Portugal","",IF(H15="[SE] Sweden","",IF(H15="[SI] Slovenia","")))))))))))))))))))))) -> 
B25: =IF(H32<>"",1,0) -> 0 | G25: 3. User Defined Reports | U25: EXAMPLE OF OUTPUT TABLE
B26: =IF(H31<>"",1,IF(H32<>"",1,IF(H35<>"",1,0))) -> 0
B27: =LEFT(H28,1) ->  | U27: Variables across COLUMNS
B28: =CONCATENATE("Ref. Period: ",TEXT(H29,"dd/mm/yyyy")) -> Ref. Period: 00/01/1900 | G28: Template | V28: Variables across ROWS
G29: Reference Period | O29: 1 | P29: 2 | Q29: 3 | R29: 4 | S29: 5 | T29: 6 | Y29: =IF(B27="2",B33, "") -> 
B30: =IF(OR(B27="2", B27="4"),1,"") ->  | G30: Unit | O30: 1 | P30: 2 | Q30: 3 | R30: 4 | S30: 5 | T30: 6 | Y30: =IF(B27="5",B34,"") -> 
B31: =CONCATENATE("Counterpart country: ", H31) -> Counterpart country: | G31: Residual Maturity | P31: 2 | Y31: =IF(B27="5",B35,"") -> 
B32: =CONCATENATE("Approach: ",H32) -> Approach: | G32: Country / Region | P32: 2 | R32: 4 | Y32: =IF(H29<>"",B28,"") -> 
P33: 2 | X33: Banks | Y33: =IF(H30<>"",CONCATENATE("Unit: ",H30), "") -> 
B34: =CONCATENATE("Residual maturity: ",H31) -> Residual maturity: | S34: 5 | Y34: =IF(H36<>"",CONCATENATE("Credit Risk Value: ",H36), "") -> 
B35: =CONCATENATE("Country / Region: ",H32) -> Country / Region: | S35: 5 | Y35: =H28 -> 00:00:00
G43: 4. Data Maps
G51: 5. View Raw Data
G57: 4. Delete user defined reports
E63: DISCLAIMER
E64: This tool is provided for analytical purposes only and does not substitute the original disclosures made by the participating banks and re-published by
E65: the EBA which are considered to be the only official results.
E66: The underlying data are also provided in separate CSV files.
E67: Cut-off date for the data: 16 December 2013 – 10.00 a.m. CET, including few revisions that arrived later.
A74: TOTAL | B74: 61
A75: [AT] Austria | B75: 2
A76: [BE] Belgium | B76: 1
A77: [CY] Cyprus | B77: 2
A78: [DK] Denmark | B78: 4
A79: [DE] Germany | B79: 12
A80: [ES] Spain | B80: 4
A81: [FI] Finland | B81: 1
A82: [FR] France | B82: 4
A83: [GB] United Kingdom | B83: 4
A84: [HU] Hungary | B84: 1
A85: [IE] Ireland | B85: 3
A86: [IT] Italy | B86: 5
A87: [LU] Luxemburg | B87: 1
A88: [MT] Malta | B88: 1
A89: [NL] Netherlands | B89: 4
A90: [NO] Norway | B90: 1
A91: [PL] Poland | B91: 1
A92: [PT] Portugal | B92: 4
A93: [SE] Sweden | B93: 4
A94: [SI] Slovenia | B94: 2
A97: [AT] Austria | B97: AT001 | C97: Erste Group Bank (EGB)
B98: AT002 | C98: Raiffeisen Zentralbank Österreich (RZB)
A99: [BE] Belgium | B99: BE005 | C99: KBC BANK
A100: [CY] Cyprus | B100: CY006 | C100: MARFIN POPULAR BANK PUBLIC CO LTD
B101: CY007 | C101: BANK OF CYPRUS PUBLIC CO LTD
A102: [DE] Germany | B102: DE017 | C102: DEUTSCHE BANK AG
B103: DE018 | C103: COMMERZBANK AG
B104: DE019 | C104: Landesbank Baden-Württemberg
B105: DE020 | C105: DZ BANK AG Dt. Zentral-Genossenschaftsbank
B106: DE021 | C106: Bayerische Landesbank
B107: DE022 | C107: Norddeutsche Landesbank -GZ
B108: DE023 | C108: Hypo Real Estate Holding AG
B109: DE025 | C109: HSH Nordbank AG, Hamburg
B110: DE026 | C110: Landesbank Hessen-Thüringen GZ, Frankfurt
B111: DE027 | C111: Landesbank Berlin AG
B112: DE028 | C112: DekaBank Deutsche Girozentrale, Frankfurt
B113: DE029 | C113: WGZ BANK AG Westdt. Geno. Zentralbk, Ddf
A114: [DK] Denmark | B114: DK008 | C114: DANSKE BANK
B115: DK009 | C115: Jyske Bank
B116: DK010 | C116: Sydbank
B117: DK011 | C117: Nykredit
A118: [ES] Spain | B118: ES059 | C118: BANCO SANTANDER S.A.
B119: ES060 | C119: BANCO BILBAO VIZCAYA ARGENTARIA S.A. (BBVA)
B120: ES062 | C120: CAJA DE AHORROS Y PENSIONES DE BARCELONA
B121: ES064 | C121: BANCO POPULAR ESPAÑOL, S.A.
A122: [FI] Finland | B122: FI012 | C122: OP-Pohjola Group
A123: [FR] France | B123: FR013 | C123: BNP PARIBAS
B124: FR014 | C124: CREDIT AGRICOLE
B125: FR015 | C125: BPCE
B126: FR016 | C126: SOCIETE GENERALE
A127: [GB] United Kingdom | B127: GB088 | C127: ROYAL BANK OF SCOTLAND GROUP plc
B128: GB089 | C128: HSBC HOLDINGS plc
B129: GB090 | C129: BARCLAYS plc
B130: GB091 | C130: LLOYDS BANKING GROUP plc
A131: [HU] Hungary | B131: HU036 | C131: OTP BANK NYRT.
A132: [IE] Ireland | B132: IE037 | C132: ALLIED IRISH BANKS PLC
B133: IE038 | C133: BANK OF IRELAND
B134: IE039 | C134: IRISH LIFE AND PERMANENT
A135: [IT] Italy | B135: IT040 | C135: INTESA SANPAOLO S.p.A
B136: IT041 | C136: UNICREDIT S.p.A
B137: IT042 | C137: BANCA MONTE DEI PASCHI DI SIENA S.p.A
B138: IT043 | C138: BANCO POPOLARE - S.C.
B139: IT044 | C139: UNIONE DI BANCHE ITALIANE SCPA (UBI BANCA)
A140: [LU] Luxemburg | B140: LU045 | C140: BANQUE ET CAISSE D'EPARGNE DE L'ETAT
A141: [MT] Malta | B141: MT046 | C141: BANK OF VALLETTA (BOV)
A142: [NL] Netherlands | B142: NL047 | C142: ING BANK NV
B143: NL048 | C143: RABOBANK NEDERLAND
B144: NL049 | C144: ABN AMRO BANK NV
B145: NL050 | C145: SNS BANK NV
A146: [NO] Norway | B146: NO051 | C146: DnB NOR Bank ASA
A147: [PL] Poland | B147: PL052 | C147: POWSZECHNA KASA OSZCZEDNOSCI BANK POLSKI S.A. (PKO BANK POLSKI)
A148: [PT] Portugal | B148: PT053 | C148: CAIXA GERAL DE DEPÓSITOS SA
B149: PT054 | C149: BANCO COMERCIAL PORTUGUES SA (BCP OR MILLENNIUM BCP)
B150: PT055 | C150: ESPÍRITO SANTO FINANCIAL GROUP SA (ESFG)
B151: PT056 | C151: Banco BPI, SA
A152: [SE] Sweden | B152: SE084 | C152: Nordea Bank AB (publ)
B153: SE085 | C153: Skandinaviska Enskilda Banken AB (publ) (SEB)
B154: SE086 | C154: Svenska Handelsbanken AB (publ)
B155: SE087 | C155: Swedbank AB (publ)
A156: [SI] Slovenia | B156: SI057 | C156: NOVA LJUBLJANSKA BANKA D.D. (NLB d.d.)
B157: SI058 | C157: NOVA KREDITNA BANKA MARIBOR D.D. (NKBM d.d.)

Sheet TOT 1. Capital Composition_ (hidden)
D1: =RIGHT(LEFT(Menu!H15,3),2) -> TO | E1: OK | F1: 0 | G1: 0 | H1: 0
C2: 1. CAPITAL | D2: Period | E2: 0 | F2: 0 | G2: 0 | H2: 0
H4: =Menu!H15 -> [TO] TOTAL
A6: PERIOD | B6: ITEM
B9: =VLOOKUP(C9,'DATA MART_'!$Y$30:$Z$81,2,0) ->  | J9: 100100
B10: 100103 | J10: 100103
B11: =VLOOKUP(C11,'DATA MART_'!$Y$30:$Z$81,2,0) ->  | J11: 100200
B12: 100203 | J12: 100203
B13: =VLOOKUP(C13,'DATA MART_'!$Y$30:$Z$81,2,0) ->  | J13: 100300
B14: =VLOOKUP(C14,'DATA MART_'!$Y$30:$Z$81,2,0) ->  | J14: 100301
B15: =VLOOKUP(C15,'DATA MART_'!$Y$30:$Z$81,2,0) ->  | J15: 100400
B16: =VLOOKUP(C16,'DATA MART_'!$Y$30:$Z$81,2,0) ->  | J16: 100500
B17: =VLOOKUP(C17,'DATA MART_'!$Y$30:$Z$81,2,0) ->  | J17: 100600
B18: =VLOOKUP(C18,'DATA MART_'!$Y$30:$Z$81,2,0) ->  | J18: 100700
B19: 100800 | J19: 100800
B20: =VLOOKUP(C20,'DATA MART_'!$Y$30:$Z$81,2,0) ->  | J20: 100900
B22: =VLOOKUP(C22,'DATA MART_'!$Y$30:$Z$81,2,0) ->  | J22: 101001 | N22: The template has been pre-filled in with the figures published on the EBA web site. Please, double check them and, should it be needed, change them.
B23: =VLOOKUP(C23,'DATA MART_'!$Y$30:$Z$81,2,0) ->  | J23: 101002 | N23: The template has been pre-filled in with the figures published on the EBA web site. Please, double check them and, should it be needed, change them.
B24: =VLOOKUP(C24,'DATA MART_'!$Y$30:$Z$81,2,0) ->  | J24: 101000
B25: =VLOOKUP(C25,'DATA MART_'!$Y$30:$Z$81,2,0) ->  | J25: 101100
B26: 130500 | J26: 101200

Sheet TOT 5. Sov. Expos.Dec12_ (hidden)
A2: 5. EXPOSURES TO SOVEREIGNS (central, regional and local governments) | G2: =RIGHT(LEFT(Menu!H15,3),2) -> TO | H2: Item | I2: 0 | J2: 0 | K2: 0
A3: as of 31 December 2012 | G3: 2012-12-31 | H3: Country | I3: Maturity | J3: 0 | K3: 0
L5: =Menu!$H$15 -> [TO] TOTAL
C6: 300100 | D6: 300101 | E6: 300200 | F6: 300201 | G6: 300202 | H6: 300203 | J6: 300300 | L6: 300400
A7: (in million Euro) | C7: 300100 | D7: 300101 | E7: 300200 | F7: 300201 | G7: 300202 | H7: 300203 | J7: 300300 | L7: 300400
A8: Residual Maturity ↓ | B8: Country / Region | C8: GROSS DIRECT LONG EXPOSURES (accounting value gross of provisions) (1) | E8: NET DIRECT POSITIONS (gross exposures (long) net of cash short positions of sovereign debt to other counterparties only where there is a maturity matching) (1) | J8: DIRECT SOVEREIGN EXPOSURES IN DERIVATIVES (1) | L8: INDIRECT SOVEREIGN EXPOSURES (3) (on and off balance sheet)
D9: of which: loans and advances | F9: of which: AFS banking book | G9: of which: FVO (designated at fair value through profit&loss) banking book (FVO) | H9: of which: Financial assets held for trading(2) | J9: Net position at fair values (Derivatives with positive fair value + Derivatives with negative fair value) | L9: Net position at fair values (Derivatives with positive fair value + Derivatives with negative fair value)
A10: [ 0 - 3M ] | B10: Austria | C10: =IF($G$2="TO",SUMIFS('DATA MART_'!$Q:$Q,'DATA MART_'!$G:$G,$G$3,'DATA MART_'!$A:$A,CONCATENATE($G$3,"|",C$7,"|",$Q10,"|",$I$2,"|",$P10,"|",$J$2,"|",$J$3,"|",$K$2,"|",$K$3)),SUMIFS('DATA MART_'!$Q:$Q,'DATA MART_'!$G:$G,$G$3,'DATA MART_'!$A:$A,CONCATENATE($G$3,"|",C$7,"|",$Q10,"|",$I$2,"|",$P10,"|",$J$2,"|",$J$3,"|",$K$2,"|",$K$3),'DATA MART_'!$F:$F,$G$2)) -> 1622.874869 | D10: =IF($G$2="TO",SUMIFS('DATA MART_'!$Q:$Q,'DATA MART_'!$G:$G,$G$3,'DATA MART_'!$A:$A,CONCATENATE($G$3,"|",D$7,"|",$Q10,"|",$I$2,"|",$P10,"|",$J$2,"|",$J$3,"|",$K$2,"|",$K$3)),SUMIFS('DATA MART_'!$Q:$Q,'DATA MART_'!$G:$G,$G$3,'DATA MART_'!$A:$A,CONCATENATE($G$3,"|",D$7,"|",$Q10,"|",$I$2,"|",$P10,"|",$J$2,"|",$J$3,"|",$K$2,"|",$K$3),'DATA MART_'!$F:$F,$G$2)) -> 1556.660322 | E10: =IF($G$2="TO",SUMIFS('DATA MART_'!$Q:$Q,'DATA MART_'!$G:$G,$G$3,'DATA MART_'!$A:$A,CONCATENATE($G$3,"|",E$7,"|",$Q10,"|",$I$2,"|",$P10,"|",$J$2,"|",$J$3,"|",$K$2,"|",$K$3)),SUMIFS('DATA MART_'!$Q:$Q,'DATA MART_'!$G:$G,$G$3,'DATA MART_'!$A:$A,CONCATENATE($G$3,"|",E$7,"|",$Q10,"|",$I$2,"|",$P10,"|",$J$2,"|",$J$3,"|",$K$2,"|",$K$3),'DATA MART_'!$F:$F,$G$2)) -> 1606.574095 | F10: =IF($G$2="TO",SUMIFS('DATA MART_'!$Q:$Q,'DATA MART_'!$G:$G,$G$3,'DATA MART_'!$A:$A,CONCATENATE($G$3,"|",F$7,"|",$Q10,"|",$I$2,"|",$P10,"|",$J$2,"|",$J$3,"|",$K$2,"|",$K$3)),SUMIFS('DATA MART_'!$Q:$Q,'DATA MART_'!$G:$G,$G$3,'DATA MART_'!$A:$A,CONCATENATE($G$3,"|",F$7,"|",$Q10,"|",$I$2,"|",$P10,"|",$J$2,"|",$J$3,"|",$K$2,"|",$K$3),'DATA MART_'!$F:$F,$G$2)) -> 1.2872 | G10: =IF($G$2="TO",SUMIFS('DATA MART_'!$Q:$Q,'DATA MART_'!$G:$G,$G$3,'DATA MART_'!$A:$A,CONCATENATE($G$3,"|",G$7,"|",$Q10,"|",$I$2,"|",$P10,"|",$J$2,"|",$J$3,"|",$K$2,"|",$K$3)),SUMIFS('DATA MART_'!$Q:$Q,'DATA MART_'!$G:$G,$G$3,'DATA MART_'!$A:$A,CONCATENATE($G$3,"|",G$7,"|",$Q10,"|",$I$2,"|",$P10,"|",$J$2,"|",$J$3,"|",$K$2,"|",$K$3),'DATA MART_'!$F:$F,$G$2)) -> 0 | H10: =IF($G$2="TO",SUMIFS('DATA MART_'!$Q:$Q,'DATA MART_'!$G:$G,$G$3,'DATA MART_'!$A:$A,CONCATENATE($G$3,"|",H$7,"|",$Q10,"|",$I$2,"|",$P10,"|",$J$2,"|",$J$3,"|",$K$2,"|",$K$3)),SUMIFS('DATA MART_'!$Q:$Q,'DATA MART_'!$G:$G,$G$3,'DATA MART_'!$A:$A,CONCATENATE($G$3,"|",H$7,"|",$Q10,"|",$I$2,"|",$P10,"|",$J$2,"|",$J$3,"|",$K$2,"|",$K$3),'DATA MART_'!$F:$F,$G$2)) -> 21.61322018 | J10: =IF($G$2="TO",SUMIFS('DATA MART_'!$Q:$Q,'DATA MART_'!$G:$G,$G$3,'DATA MART_'!$A:$A,CONCATENATE($G$3,"|",J$7,"|",$Q10,"|",$I$2,"|",$P10,"|",$J$2,"|",$J$3,"|",$K$2,"|",$K$3)),SUMIFS('DATA MART_'!$Q:$Q,'DATA MART_'!$G:$G,$G$3,'DATA MART_'!$A:$A,CONCATENATE($G$3,"|",J$7,"|",$Q10,"|",$I$2,"|",$P10,"|",$J$2,"|",$J$3,"|",$K$2,"|",$K$3),'DATA MART_'!$F:$F,$G$2)) -> 6.946159162 | L10: =IF($G$2="TO",SUMIFS('DATA MART_'!$Q:$Q,'DATA MART_'!$G:$G,$G$3,'DATA MART_'!$A:$A,CONCATENATE($G$3,"|",L$7,"|",$Q10,"|",$I$2,"|",$P10,"|",$J$2,"|",$J$3,"|",$K$2,"|",$K$3)),SUMIFS('DATA MART_'!$Q:$Q,'DATA MART_'!$G:$G,$G$3,'DATA MART_'!$A:$A,CONCATENATE($G$3,"|",L$7,"|",$Q10,"|",$I$2,"|",$P10,"|",$J$2,"|",$J$3,"|",$K$2,"|",$K$3),'DATA MART_'!$F:$F,$G$2)) -> 110.9264952 | M10: 1 | N10: 1 | O10: =+$L$4&C$6&$M10&$N10 -> 30010011 | P10: 1 | Q10: =VLOOKUP(B10,'DATA MART_'!$AO$4:$AP$242,2,0) -> 1
A11: [ 3M - 1Y ] | C11: =IF($G$2="TO",SUMIFS('DATA MART_'!$Q:$Q,'DATA MART_'!$G:$G,$G$3,'DATA MART_'!$A:$A,CONCATENATE($G$3,"|",C$7,"|",$Q11,"|",$I$2,"|",$P11,"|",$J$2,"|",$J$3,"|",$K$2,"|",$K$3)),SUMIFS('DATA MART_'!$Q:$Q,'DATA MART_'!$G:$G,$G$3,'DATA MART_'!$A:$A,CONCATENATE($G$3,"|",C$7,"|",$Q11,"|",$I$2,"|",$P11,"|",$J$2,"|",$J$3,"|",$K$2,"|",$K$3),'DATA MART_'!$F:$F,$G$2)) -> 1436.11872 | D11: =IF($G$2="TO",SUMIFS('DATA MART_'!$Q:$Q,'DATA MART_'!$G:$G,$G$3,'DATA MART_'!$A:$A,CONCATENATE($G$3,"|",D$7,"|",$Q11,"|",$I$2,"|",$P11,"|",$J$2,"|",$J$3,"|",$K$2,"|",$K$3)),SUMIFS('DATA MART_'!$Q:$Q,'DATA MART_'!$G:$G,$G$3,'DATA MART_'!$A:$A,CONCATENATE($G$3,"|",D$7,"|",$Q11,"|",$I$2,"|",$P11,"|",$J$2,"|",$J$3,"|",$K$2,"|",$K$3),'DATA MART_'!$F:$F,$G$2)) -> 600.4278427 | E11: =IF($G$2="TO",SUMIFS('DATA MART_'!$Q:$Q,'DATA MART_'!$G:$G,$G$3,'DATA MART_'!$A:$A,CONCATENATE($G$3,"|",E$7,"|",$Q11,"|",$I$2,"|",$P11,"|",$J$2,"|",$J$3,"|",$K$2,"|",$K$3)),SUMIFS('DATA MART_'!$Q:$Q,'DATA MART_'!$G:$G,$G$3,'DATA MART_'!$A:$A,CONCATENATE($G$3,"|",E$7,"|",$Q11,"|",$I$2,"|",$P11,"|",$J$2,"|",$J$3,"|",$K$2,"|",$K$3),'DATA MART_'!$F:$F,$G$2)) -> 1405.842314 | F11: =IF($G$2="TO",SUMIFS('DATA MART_'!$Q:$Q,'DATA MART_'!$G:$G,$G$3,'DATA MART_'!$A:$A,CONCATENATE($G$3,"|",F$7,"|",$Q11,"|",$I$2,"|",$P11,"|",$J$2,"|",$J$3,"|",$K$2,"|",$K$3)),SUMIFS('DATA MART_'!$Q:$Q,'DATA MART_'!$G:$G,$G$3,'DATA MART_'!$A:$A,CONCATENATE($G$3,"|",F$7,"|",$Q11,"|",$I$2,"|",$P11,"|",$J$2,"|",$J$3,"|",$K$2,"|",$K$3),'DATA MART_'!$F:$F,$G$2)) -> 244.746157 | G11: =IF($G$2="TO",SUMIFS('DATA MART_'!$Q:$Q,'DATA MART_'!$G:$G,$G$3,'DATA MART_'!$A:$A,CONCATENATE($G$3,"|",G$7,"|",$Q11,"|",$I$2,"|",$P11,"|",$J$2,"|",$J$3,"|",$K$2,"|",$K$3)),SUMIFS('DATA MART_'!$Q:$Q,'DATA MART_'!$G:$G,$G$3,'DATA MART_'!$A:$A,CONCATENATE($G$3,"|",G$7,"|",$Q11,"|",$I$2,"|",$P11,"|",$J$2,"|",$J$3,"|",$K$2,"|",$K$3),'DATA MART_'!$F:$F,$G$2)) -> 60.09519454 | H11: =IF($G$2="TO",SUMIFS('DATA MART_'!$Q:$Q,'DATA MART_'!$G:$G,$G$3,'DATA MART_'!$A:$A,CONCATENATE($G$3,"|",H$7,"|",$Q11,"|",$I$2,"|",$P11,"|",$J$2,"|",$J$3,"|",$K$2,"|",$K$3)),SUMIFS('DATA MART_'!$Q:$Q,'DATA MART_'!$G:$G,$G$3,'DATA MART_'!$A:$A,CONCATENATE($G$3,"|",H$7,"|",$Q11,"|",$I$2,"|",$P11,"|",$J$2,"|",$J$3,"|",$K$2,"|",$K$3),'DATA MART_'!$F:$F,$G$2)) -> 202.0307961 | J11: =IF($G$2="TO",SUMIFS('DATA MART_'!$Q:$Q,'DATA MART_'!$G:$G,$G$3,'DATA MART_'!$A:$A,CONCATENATE($G$3,"|",J$7,"|",$Q11,"|",$I$2,"|",$P11,"|",$J$2,"|",$J$3,"|",$K$2,"|",$K$3)),SUMIFS('DATA MART_'!$Q:$Q,'DATA MART_'!$G:$G,$G$3,'DATA MART_'!$A:$A,CONCATENATE($G$3,"|",J$7,"|",$Q11,"|",$I$2,"|",$P11,"|",$J$2,"|",$J$3,"|",$K$2,"|",$K$3),'DATA MART_'!$F:$F,$G$2)) -> 48.44747301 | L11: =IF($G$2="TO",SUMIFS('DATA MART_'!$Q:$Q,'DATA MART_'!$G:$G,$G$3,'DATA MART_'!$A:$A,CONCATENATE($G$3,"|",L$7,"|",$Q11,"|",$I$2,"|",$P11,"|",$J$2,"|",$J$3,"|",$K$2,"|",$K$3)),SUMIFS('DATA MART_'!$Q:$Q,'DATA MART_'!$G:$G,$G$3,'DATA MART_'!$A:$A,CONCATENATE($G$3,"|",L$7,"|",$Q11,"|",$I$2,"|",$P11,"|",$J$2,"|",$J$3,"|",$K$2,"|",$K$3),'DATA MART_'!$F:$F,$G$2)) -> 24.05386143 | M11: 1 | N11: 2 | O11: 30010012 | P11: 2 | Q11: =VLOOKUP(B10,'DATA MART_'!$AO$4:$AP$242,2,0) -> 1
A12: [ 1Y - 2Y ] | C12: =IF($G$2="TO",SUMIFS('DATA MART_'!$Q:$Q,'DATA MART_'!$G:$G,$G$3,'DATA MART_'!$A:$A,CONCATENATE($G$3,"|",C$7,"|",$Q12,"|",$I$2,"|",$P12,"|",$J$2,"|",$J$3,"|",$K$2,"|",$K$3)),SUMIFS('DATA MART_'!$Q:$Q,'DATA MART_'!$G:$G,$G$3,'DATA MART_'!$A:$A,CONCATENATE($G$3,"|",C$7,"|",$Q12,"|",$I$2,"|",$P12,"|",$J$2,"|",$J$3,"|",$K$2,"|",$K$3),'DATA MART_'!$F:$F,$G$2)) -> 1960.773932 | D12: =IF($G$2="TO",SUMIFS('DATA MART_'!$Q:$Q,'DATA MART_'!$G:$G,$G$3,'DATA MART_'!$A:$A,CONCATENATE($G$3,"|",D$7,"|",$Q12,"|",$I$2,"|",$P12,"|",$J$2,"|",$J$3,"|",$K$2,"|",$K$3)),SUMIFS('DATA MART_'!$Q:$Q,'DATA MART_'!$G:$G,$G$3,'DATA MART_'!$A:$A,CONCATENATE($G$3,"|",D$7,"|",$Q12,"|",$I$2,"|",$P12,"|",$J$2,"|",$J$3,"|",$K$2,"|",$K$3),'DATA MART_'!$F:$F,$G$2)) -> 94.49953839 | E12: =IF($G$2="TO",SUMIFS('DATA MART_'!$Q:$Q,'DATA MART_'!$G:$G,$G$3,'DATA MART_'!$A:$A,CONCATENATE($G$3,"|",E$7,"|",$Q12,"|",$I$2,"|",$P12,"|",$J$2,"|",$J$3,"|",$K$2,"|",$K$3)),SUMIFS('DATA MART_'!$Q:$Q,'DATA MART_'!$G:$G,$G$3,'DATA MART_'!$A:$A,CONCATENATE($G$3,"|",E$7,"|",$Q12,"|",$I$2,"|",$P12,"|",$J$2,"|",$J$3,"|",$K$2,"|",$K$3),'DATA MART_'!$F:$F,$G$2)) -> 1700.504525 | F12: =IF($G$2="TO",SUMIFS('DATA MART_'!$Q:$Q,'DATA MART_'!$G:$G,$G$3,'DATA MART_'!$A:$A,CONCATENATE($G$3,"|",F$7,"|",$Q12,"|",$I$2,"|",$P12,"|",$J$2,"|",$J$3,"|",$K$2,"|",$K$3)),SUMIFS('DATA MART_'!$Q:$Q,'DATA MART_'!$G:$G,$G$3,'DATA MART_'!$A:$A,CONCATENATE($G$3,"|",F$7,"|",$Q12,"|",$I$2,"|",$P12,"|",$J$2,"|",$J$3,"|",$K$2,"|",$K$3),'DATA MART_'!$F:$F,$G$2)) -> 1084.628186 | G12: =IF($G$2="TO",SUMIFS('DATA MART_'!$Q:$Q,'DATA MART_'!$G:$G,$G$3,'DATA MART_'!$A:$A,CONCATENATE($G$3,"|",G$7,"|",$Q12,"|",$I$2,"|",$P12,"|",$J$2,"|",$J$3,"|",$K$2,"|",$K$3)),SUMIFS('DATA MART_'!$Q:$Q,'DATA MART_'!$G:$G,$G$3,'DATA MART_'!$A:$A,CONCATENATE($G$3,"|",G$7,"|",$Q12,"|",$I$2,"|",$P12,"|",$J$2,"|",$J$3,"|",$K$2,"|",$K$3),'DATA MART_'!$F:$F,$G$2)) -> 32.05031868 | H12: =IF($G$2="TO",SUMIFS('DATA MART_'!$Q:$Q,'DATA MART_'!$G:$G,$G$3,'DATA MART_'!$A:$A,CONCATENATE($G$3,"|",H$7,"|",$Q12,"|",$I$2,"|",$P12,"|",$J$2,"|",$J$3,"|",$K$2,"|",$K$3)),SUMIFS('DATA MART_'!$Q:$Q,'DATA MART_'!$G:$G,$G$3,'DATA MART_'!$A:$A,CONCATENATE($G$3,"|",H$7,"|",$Q12,"|",$I$2,"|",$P12,"|",$J$2,"|",$J$3,"|",$K$2,"|",$K$3),'DATA MART_'!$F:$F,$G$2)) -> 313.9677688 | J12: =IF($G$2="TO",SUMIFS('DATA MART_'!$Q:$Q,'DATA MART_'!$G:$G,$G$3,'DATA MART_'!$A:$A,CONCATENATE($G$3,"|",J$7,"|",$Q12,"|",$I$2,"|",$P12,"|",$J$2,"|",$J$3,"|",$K$2,"|",$K$3)),SUMIFS('DATA MART_'!$Q:$Q,'DATA MART_'!$G:$G,$G$3,'DATA MART_'!$A:$A,CONCATENATE($G$3,"|",J$7,"|",$Q12,"|",$I$2,"|",$P12,"|",$J$2,"|",$J$3,"|",$K$2,"|",$K$3),'DATA MART_'!$F:$F,$G$2)) -> 36.86602762 | L12: =IF($G$2="TO",SUMIFS('DATA MART_'!$Q:$Q,'DATA MART_'!$G:$G,$G$3,'DATA MART_'!$A:$A,CONCATENATE($G$3,"|",L$7,"|",$Q12,"|",$I$2,"|",$P12,"|",$J$2,"|",$J$3,"|",$K$2,"|",$K$3)),SUMIFS('DATA MART_'!$Q:$Q,'DATA MART_'!$G:$G,$G$3,'DATA MART_'!$A:$A,CONCATENATE($G$3,"|",L$7,"|",$Q12,"|",$I$2,"|",$P12,"|",$J$2,"|",$J$3,"|",$K$2,"|",$K$3),'DATA MART_'!$F:$F,$G$2)) -> -73.48036354 | M12: 1 | N12: 3 | O12: 30010013 | P12: 3 | Q12: =VLOOKUP(B10,'DATA MART_'!$AO$4:$AP$242,2,0) -> 1
A13: [ 2Y - 3Y ] | C13: =IF($G$2="TO",SUMIFS('DATA MART_'!$Q:$Q,'DATA MART_'!$G:$G,$G$3,'DATA MART_'!$A:$A,CONCATENATE($G$3,"|",C$7,"|",$Q13,"|",$I$2,"|",$P13,"|",$J$2,"|",$J$3,"|",$K$2,"|",$K$3)),SUMIFS('DATA MART_'!$Q:$Q,'DATA MART_'!$G:$G,$G$3,'DATA MART_'!$A:$A,CONCATENATE($G$3,"|",C$7,"|",$Q13,"|",$I$2,"|",$P13,"|",$J$2,"|",$J$3,"|",$K$2,"|",$K$3),'DATA MART_'!$F:$F,$G$2)) -> 2812.868633 | D13: =IF($G$2="TO",SUMIFS('DATA MART_'!$Q:$Q,'DATA MART_'!$G:$G,$G$3,'DATA MART_'!$A:$A,CONCATENATE($G$3,"|",D$7,"|",$Q13,"|",$I$2,"|",$P13,"|",$J$2,"|",$J$3,"|",$K$2,"|",$K$3)),SUMIFS('DATA MART_'!$Q:$Q,'DATA MART_'!$G:$G,$G$3,'DATA MART_'!$A:$A,CONCATENATE($G$3,"|",D$7,"|",$Q13,"|",$I$2,"|",$P13,"|",$J$2,"|",$J$3,"|",$K$2,"|",$K$3),'DATA MART_'!$F:$F,$G$2)) -> 174.6181318 | E13: =IF($G$2="TO",SUMIFS('DATA MART_'!$Q:$Q,'DATA MART_'!$G:$G,$G$3,'DATA MART_'!$A:$A,CONCATENATE($G$3,"|",E$7,"|",$Q13,"|",$I$2,"|",$P13,"|",$J$2,"|",$J$3,"|",$K$2,"|",$K$3)),SUMIFS('DATA MART_'!$Q:$Q,'DATA MART_'!$G:$G,$G$3,'DATA MART_'!$A:$A,CONCATENATE($G$3,"|",E$7,"|",$Q13,"|",$I$2,"|",$P13,"|",$J$2,"|",$J$3,"|",$K$2,"|",$K$3),'DATA MART_'!$F:$F,$G$2)) -> 2537.492555 | F13: =IF($G$2="TO",SUMIFS('DATA MART_'!$Q:$Q,'DATA MART_'!$G:$G,$G$3,'DATA MART_'!$A:$A,CONCATENATE($G$3,"|",F$7,"|",$Q13,"|",$I$2,"|",$P13,"|",$J$2,"|",$J$3,"|",$K$2,"|",$K$3)),SUMIFS('DATA MART_'!$Q:$Q,'DATA MART_'!$G:$G,$G$3,'DATA MART_'!$A:$A,CONCATENATE($G$3,"|",F$7,"|",$Q13,"|",$I$2,"|",$P13,"|",$J$2,"|",$J$3,"|",$K$2,"|",$K$3),'DATA MART_'!$F:$F,$G$2)) -> 1485.616215 | G13: =IF($G$2="TO",SUMIFS('DATA MART_'!$Q:$Q,'DATA MART_'!$G:$G,$G$3,'DATA MART_'!$A:$A,CONCATENATE($G$3,"|",G$7,"|",$Q13,"|",$I$2,"|",$P13,"|",$J$2,"|",$J$3,"|",$K$2,"|",$K$3)),SUMIFS('DATA MART_'!$Q:$Q,'DATA MART_'!$G:$G,$G$3,'DATA MART_'!$A:$A,CONCATENATE($G$3,"|",G$7,"|",$Q13,"|",$I$2,"|",$P13,"|",$J$2,"|",$J$3,"|",$K$2,"|",$K$3),'DATA MART_'!$F:$F,$G$2)) -> 78.01944951 | H13: =IF($G$2="TO",SUMIFS('DATA MART_'!$Q:$Q,'DATA MART_'!$G:$G,$G$3,'DATA MART_'!$A:$A,CONCATENATE($G$3,"|",H$7,"|",$Q13,"|",$I$2,"|",$P13,"|",$J$2,"|",$J$3,"|",$K$2,"|",$K$3)),SUMIFS('DATA MART_'!$Q:$Q,'DATA MART_'!$G:$G,$G$3,'DATA MART_'!$A:$A,CONCATENATE($G$3,"|",H$7,"|",$Q13,"|",$I$2,"|",$P13,"|",$J$2,"|",$J$3,"|",$K$2,"|",$K$3),'DATA MART_'!$F:$F,$G$2)) -> 522.9106648 | J13: =IF($G$2="TO",SUMIFS('DATA MART_'!$Q:$Q,'DATA MART_'!$G:$G,$G$3,'DATA MART_'!$A:$A,CONCATENATE($G$3,"|",J$7,"|",$Q13,"|",$I$2,"|",$P13,"|",$J$2,"|",$J$3,"|",$K$2,"|",$K$3)),SUMIFS('DATA MART_'!$Q:$Q,'DATA MART_'!$G:$G,$G$3,'DATA MART_'!$A:$A,CONCATENATE($G$3,"|",J$7,"|",$Q13,"|",$I$2,"|",$P13,"|",$J$2,"|",$J$3,"|",$K$2,"|",$K$3),'DATA MART_'!$F:$F,$G$2)) -> -31.2914387 | L13: =IF($G$2="TO",SUMIFS('DATA MART_'!$Q:$Q,'DATA MART_'!$G:$G,$G$3,'DATA MART_'!$A:$A,CONCATENATE($G$3,"|",L$7,"|",$Q13,"|",$I$2,"|",$P13,"|",$J$2,"|",$J$3,"|",$K$2,"|",$K$3)),SUMIFS('DATA MART_'!$Q:$Q,'DATA MART_'!$G:$G,$G$3,'DATA MART_'!$A:$A,CONCATENATE($G$3,"|",L$7,"|",$Q13,"|",$I$2,"|",$P13,"|",$J$2,"|",$J$3,"|",$K$2,"|",$K$3),'DATA MART_'!$F:$F,$G$2)) -> -5.264863575 | M13: 1 | N13: 4 | O13: 30010014 | P13: 4 | Q13: =VLOOKUP(B10,'DATA MART_'!$AO$4:$AP$242,2,0) -> 1
A14: [3Y - 5Y ] | C14: =IF($G$2="TO",SUMIFS('DATA MART_'!$Q:$Q,'DATA MART_'!$G:$G,$G$3,'DATA MART_'!$A:$A,CONCATENATE($G$3,"|",C$7,"|",$Q14,"|",$I$2,"|",$P14,"|",$J$2,"|",$J$3,"|",$K$2,"|",$K$3)),SUMIFS('DATA MART_'!$Q:$Q,'DATA MART_'!$G:$G,$G$3,'DATA MART_'!$A:$A,CONCATENATE($G$3,"|",C$7,"|",$Q14,"|",$I$2,"|",$P14,"|",$J$2,"|",$J$3,"|",$K$2,"|",$K$3),'DATA MART_'!$F:$F,$G$2)) -> 6958.131275 | D14: =IF($G$2="TO",SUMIFS('DATA MART_'!$Q:$Q,'DATA MART_'!$G:$G,$G$3,'DATA MART_'!$A:$A,CONCATENATE($G$3,"|",D$7,"|",$Q14,"|",$I$2,"|",$P14,"|",$J$2,"|",$J$3,"|",$K$2,"|",$K$3)),SUMIFS('DATA MART_'!$Q:$Q,'DATA MART_'!$G:$G,$G$3,'DATA MART_'!$A:$A,CONCATENATE($G$3,"|",D$7,"|",$Q14,"|",$I$2,"|",$P14,"|",$J$2,"|",$J$3,"|",$K$2,"|",$K$3),'DATA MART_'!$F:$F,$G$2)) -> 505.1718016 | E14: =IF($G$2="TO",SUMIFS('DATA MART_'!$Q:$Q,'DATA MART_'!$G:$G,$G$3,'DATA MART_'!$A:$A,CONCATENATE($G$3,"|",E$7,"|",$Q14,"|",$I$2,"|",$P14,"|",$J$2,"|",$J$3,"|",$K$2,"|",$K$3)),SUMIFS('DATA MART_'!$Q:$Q,'DATA MART_'!$G:$G,$G$3,'DATA MART_'!$A:$A,CONCATENATE($G$3,"|",E$7,"|",$Q14,"|",$I$2,"|",$P14,"|",$J$2,"|",$J$3,"|",$K$2,"|",$K$3),'DATA MART_'!$F:$F,$G$2)) -> 6438.898102 | F14: =IF($G$2="TO",SUMIFS('DATA MART_'!$Q:$Q,'DATA MART_'!$G:$G,$G$3,'DATA MART_'!$A:$A,CONCATENATE($G$3,"|",F$7,"|",$Q14,"|",$I$2,"|",$P14,"|",$J$2,"|",$J$3,"|",$K$2,"|",$K$3)),SUMIFS('DATA MART_'!$Q:$Q,'DATA MART_'!$G:$G,$G$3,'DATA MART_'!$A:$A,CONCATENATE($G$3,"|",F$7,"|",$Q14,"|",$I$2,"|",$P14,"|",$J$2,"|",$J$3,"|",$K$2,"|",$K$3),'DATA MART_'!$F:$F,$G$2)) -> 4459.322408 | G14: =IF($G$2="TO",SUMIFS('DATA MART_'!$Q:$Q,'DATA MART_'!$G:$G,$G$3,'DATA MART_'!$A:$A,CONCATENATE($G$3,"|",G$7,"|",$Q14,"|",$I$2,"|",$P14,"|",$J$2,"|",$J$3,"|",$K$2,"|",$K$3)),SUMIFS('DATA MART_'!$Q:$Q,'DATA MART_'!$G:$G,$G$3,'DATA MART_'!$A:$A,CONCATENATE($G$3,"|",G$7,"|",$Q14,"|",$I$2,"|",$P14,"|",$J$2,"|",$J$3,"|",$K$2,"|",$K$3),'DATA MART_'!$F:$F,$G$2)) -> 34.39806465 | H14: =IF($G$2="TO",SUMIFS('DATA MART_'!$Q:$Q,'DATA MART_'!$G:$G,$G$3,'DATA MART_'!$A:$A,CONCATENATE($G$3,"|",H$7,"|",$Q14,"|",$I$2,"|",$P14,"|",$J$2,"|",$J$3,"|",$K$2,"|",$K$3)),SUMIFS('DATA MART_'!$Q:$Q,'DATA MART_'!$G:$G,$G$3,'DATA MART_'!$A:$A,CONCATENATE($G$3,"|",H$7,"|",$Q14,"|",$I$2,"|",$P14,"|",$J$2,"|",$J$3,"|",$K$2,"|",$K$3),'DATA MART_'!$F:$F,$G$2)) -> 939.4502735 | J14: =IF($G$2="TO",SUMIFS('DATA MART_'!$Q:$Q,'DATA MART_'!$G:$G,$G$3,'DATA MART_'!$A:$A,CONCATENATE($G$3,"|",J$7,"|",$Q14,"|",$I$2,"|",$P14,"|",$J$2,"|",$J$3,"|",$K$2,"|",$K$3)),SUMIFS('DATA MART_'!$Q:$Q,'DATA MART_'!$G:$G,$G$3,'DATA MART_'!$A:$A,CONCATENATE($G$3,"|",J$7,"|",$Q14,"|",$I$2,"|",$P14,"|",$J$2,"|",$J$3,"|",$K$2,"|",$K$3),'DATA MART_'!$F:$F,$G$2)) -> 371.4492942 | L14: =IF($G$2="TO",SUMIFS('DATA MART_'!$Q:$Q,'DATA MART_'!$G:$G,$G$3,'DATA MART_'!$A:$A,CONCATENATE($G$3,"|",L$7,"|",$Q14,"|",$I$2,"|",$P14,"|",$J$2,"|",$J$3,"|",$K$2,"|",$K$3)),SUMIFS('DATA MART_'!$Q:$Q,'DATA MART_'!$G:$G,$G$3,'DATA MART_'!$A:$A,CONCATENATE($G$3,"|",L$7,"|",$Q14,"|",$I$2,"|",$P14,"|",$J$2,"|",$J$3,"|",$K$2,"|",$K$3),'DATA MART_'!$F:$F,$G$2)) -> -135.8809279 | M14: 1 | N14: 5 | O14: 30010015 | P14: 5 | Q14: =VLOOKUP(B10,'DATA MART_'!$AO$4:$AP$242,2,0) -> 1
A15: [5Y - 10Y ] | C15: =IF($G$2="TO",SUMIFS('DATA MART_'!$Q:$Q,'DATA MART_'!$G:$G,$G$3,'DATA MART_'!$A:$A,CONCATENATE($G$3,"|",C$7,"|",$Q15,"|",$I$2,"|",$P15,"|",$J$2,"|",$J$3,"|",$K$2,"|",$K$3)),SUMIFS('DATA MART_'!$Q:$Q,'DATA MART_'!$G:$G,$G$3,'DATA MART_'!$A:$A,CONCATENATE($G$3,"|",C$7,"|",$Q15,"|",$I$2,"|",$P15,"|",$J$2,"|",$J$3,"|",$K$2,"|",$K$3),'DATA MART_'!$F:$F,$G$2)) -> 15281.27625 | D15: =IF($G$2="TO",SUMIFS('DATA MART_'!$Q:$Q,'DATA MART_'!$G:$G,$G$3,'DATA MART_'!$A:$A,CONCATENATE($G$3,"|",D$7,"|",$Q15,"|",$I$2,"|",$P15,"|",$J$2,"|",$J$3,"|",$K$2,"|",$K$3)),SUMIFS('DATA MART_'!$Q:$Q,'DATA MART_'!$G:$G,$G$3,'DATA MART_'!$A:$A,CONCATENATE($G$3,"|",D$7,"|",$Q15,"|",$I$2,"|",$P15,"|",$J$2,"|",$J$3,"|",$K$2,"|",$K$3),'DATA MART_'!$F:$F,$G$2)) -> 2139.036531 | E15: =IF($G$2="TO",SUMIFS('DATA MART_'!$Q:$Q,'DATA MART_'!$G:$G,$G$3,'DATA MART_'!$A:$A,CONCATENATE($G$3,"|",E$7,"|",$Q15,"|",$I$2,"|",$P15,"|",$J$2,"|",$J$3,"|",$K$2,"|",$K$3)),SUMIFS('DATA MART_'!$Q:$Q,'DATA MART_'!$G:$G,$G$3,'DATA MART_'!$A:$A,CONCATENATE($G$3,"|",E$7,"|",$Q15,"|",$I$2,"|",$P15,"|",$J$2,"|",$J$3,"|",$K$2,"|",$K$3),'DATA MART_'!$F:$F,$G$2)) -> 13965.7238 | F15: =IF($G$2="TO",SUMIFS('DATA MART_'!$Q:$Q,'DATA MART_'!$G:$G,$G$3,'DATA MART_'!$A:$A,CONCATENATE($G$3,"|",F$7,"|",$Q15,"|",$I$2,"|",$P15,"|",$J$2,"|",$J$3,"|",$K$2,"|",$K$3)),SUMIFS('DATA MART_'!$Q:$Q,'DATA MART_'!$G:$G,$G$3,'DATA MART_'!$A:$A,CONCATENATE($G$3,"|",F$7,"|",$Q15,"|",$I$2,"|",$P15,"|",$J$2,"|",$J$3,"|",$K$2,"|",$K$3),'DATA MART_'!$F:$F,$G$2)) -> 8069.116791 | G15: =IF($G$2="TO",SUMIFS('DATA MART_'!$Q:$Q,'DATA MART_'!$G:$G,$G$3,'DATA MART_'!$A:$A,CONCATENATE($G$3,"|",G$7,"|",$Q15,"|",$I$2,"|",$P15,"|",$J$2,"|",$J$3,"|",$K$2,"|",$K$3)),SUMIFS('DATA MART_'!$Q:$Q,'DATA MART_'!$G:$G,$G$3,'DATA MART_'!$A:$A,CONCATENATE($G$3,"|",G$7,"|",$Q15,"|",$I$2,"|",$P15,"|",$J$2,"|",$J$3,"|",$K$2,"|",$K$3),'DATA MART_'!$F:$F,$G$2)) -> 6.60152084 | H15: =IF($G$2="TO",SUMIFS('DATA MART_'!$Q:$Q,'DATA MART_'!$G:$G,$G$3,'DATA MART_'!$A:$A,CONCATENATE($G$3,"|",H$7,"|",$Q15,"|",$I$2,"|",$P15,"|",$J$2,"|",$J$3,"|",$K$2,"|",$K$3)),SUMIFS('DATA MART_'!$Q:$Q,'DATA MART_'!$G:$G,$G$3,'DATA MART_'!$A:$A,CONCATENATE($G$3,"|",H$7,"|",$Q15,"|",$I$2,"|",$P15,"|",$J$2,"|",$J$3,"|",$K$2,"|",$K$3),'DATA MART_'!$F:$F,$G$2)) -> 1947.101649 | J15: =IF($G$2="TO",SUMIFS('DATA MART_'!$Q:$Q,'DATA MART_'!$G:$G,$G$3,'DATA MART_'!$A:$A,CONCATENATE($G$3,"|",J$7,"|",$Q15,"|",$I$2,"|",$P15,"|",$J$2,"|",$J$3,"|",$K$2,"|",$K$3)),SUMIFS('DATA MART_'!$Q:$Q,'DATA MART_'!$G:$G,$G$3,'DATA MART_'!$A:$A,CONCATENATE($G$3,"|",J$7,"|",$Q15,"|",$I$2,"|",$P15,"|",$J$2,"|",$J$3,"|",$K$2,"|",$K$3),'DATA MART_'!$F:$F,$G$2)) -> 75.39727217 | L15: =IF($G$2="TO",SUMIFS('DATA MART_'!$Q:$Q,'DATA MART_'!$G:$G,$G$3,'DATA MART_'!$A:$A,CONCATENATE($G$3,"|",L$7,"|",$Q15,"|",$I$2,"|",$P15,"|",$J$2,"|",$J$3,"|",$K$2,"|",$K$3)),SUMIFS('DATA MART_'!$Q:$Q,'DATA MART_'!$G:$G,$G$3,'DATA MART_'!$A:$A,CONCATENATE($G$3,"|",L$7,"|",$Q15,"|",$I$2,"|",$P15,"|",$J$2,"|",$J$3,"|",$K$2,"|",$K$3),'DATA MART_'!$F:$F,$G$2)) -> -47.48632966 | M15: 1 | N15: 6 | O15: 30010016 | P15: 6 | Q15: =VLOOKUP(B10,'DATA MART_'!$AO$4:$AP$242,2,0) -> 1
A16: [10Y - more ] | C16: =IF($G$2="TO",SUMIFS('DATA MART_'!$Q:$Q,'DATA MART_'!$G:$G,$G$3,'DATA MART_'!$A:$A,CONCATENATE($G$3,"|",C$7,"|",$Q16,"|",$I$2,"|",$P16,"|",$J$2,"|",$J$3,"|",$K$2,"|",$K$3)),SUMIFS('DATA MART_'!$Q:$Q,'DATA MART_'!$G:$G,$G$3,'DATA MART_'!$A:$A,CONCATENATE($G$3,"|",C$7,"|",$Q16,"|",$I$2,"|",$P16,"|",$J$2,"|",$J$3,"|",$K$2,"|",$K$3),'DATA MART_'!$F:$F,$G$2)) -> 17629.4957 | D16: =IF($G$2="TO",SUMIFS('DATA MART_'!$Q:$Q,'DATA MART_'!$G:$G,$G$3,'DATA MART_'!$A:$A,CONCATENATE($G$3,"|",D$7,"|",$Q16,"|",$I$2,"|",$P16,"|",$J$2,"|",$J$3,"|",$K$2,"|",$K$3)),SUMIFS('DATA MART_'!$Q:$Q,'DATA MART_'!$G:$G,$G$3,'DATA MART_'!$A:$A,CONCATENATE($G$3,"|",D$7,"|",$Q16,"|",$I$2,"|",$P16,"|",$J$2,"|",$J$3,"|",$K$2,"|",$K$3),'DATA MART_'!$F:$F,$G$2)) -> 10173.23184 | E16: =IF($G$2="TO",SUMIFS('DATA MART_'!$Q:$Q,'DATA MART_'!$G:$G,$G$3,'DATA MART_'!$A:$A,CONCATENATE($G$3,"|",E$7,"|",$Q16,"|",$I$2,"|",$P16,"|",$J$2,"|",$J$3,"|",$K$2,"|",$K$3)),SUMIFS('DATA MART_'!$Q:$Q,'DATA MART_'!$G:$G,$G$3,'DATA MART_'!$A:$A,CONCATENATE($G$3,"|",E$7,"|",$Q16,"|",$I$2,"|",$P16,"|",$J$2,"|",$J$3,"|",$K$2,"|",$K$3),'DATA MART_'!$F:$F,$G$2)) -> 16119.32272 | F16: =IF($G$2="TO",SUMIFS('DATA MART_'!$Q:$Q,'DATA MART_'!$G:$G,$G$3,'DATA MART_'!$A:$A,CONCATENATE($G$3,"|",F$7,"|",$Q16,"|",$I$2,"|",$P16,"|",$J$2,"|",$J$3,"|",$K$2,"|",$K$3)),SUMIFS('DATA MART_'!$Q:$Q,'DATA MART_'!$G:$G,$G$3,'DATA MART_'!$A:$A,CONCATENATE($G$3,"|",F$7,"|",$Q16,"|",$I$2,"|",$P16,"|",$J$2,"|",$J$3,"|",$K$2,"|",$K$3),'DATA MART_'!$F:$F,$G$2)) -> 3390.582741 | G16: =IF($G$2="TO",SUMIFS('DATA MART_'!$Q:$Q,'DATA MART_'!$G:$G,$G$3,'DATA MART_'!$A:$A,CONCATENATE($G$3,"|",G$7,"|",$Q16,"|",$I$2,"|",$P16,"|",$J$2,"|",$J$3,"|",$K$2,"|",$K$3)),SUMIFS('DATA MART_'!$Q:$Q,'DATA MART_'!$G:$G,$G$3,'DATA MART_'!$A:$A,CONCATENATE($G$3,"|",G$7,"|",$Q16,"|",$I$2,"|",$P16,"|",$J$2,"|",$J$3,"|",$K$2,"|",$K$3),'DATA MART_'!$F:$F,$G$2)) -> 1213.357031 | H16: =IF($G$2="TO",SUMIFS('DATA MART_'!$Q:$Q,'DATA MART_'!$G:$G,$G$3,'DATA MART_'!$A:$A,CONCATENATE($G$3,"|",H$7,"|",$Q16,"|",$I$2,"|",$P16,"|",$J$2,"|",$J$3,"|",$K$2,"|",$K$3)),SUMIFS('DATA MART_'!$Q:$Q,'DATA MART_'!$G:$G,$G$3,'DATA MART_'!$A:$A,CONCATENATE($G$3,"|",H$7,"|",$Q16,"|",$I$2,"|",$P16,"|",$J$2,"|",$J$3,"|",$K$2,"|",$K$3),'DATA MART_'!$F:$F,$G$2)) -> 246.4060087 | J16: =IF($G$2="TO",SUMIFS('DATA MART_'!$Q:$Q,'DATA MART_'!$G:$G,$G$3,'DATA MART_'!$A:$A,CONCATENATE($G$3,"|",J$7,"|",$Q16,"|",$I$2,"|",$P16,"|",$J$2,"|",$J$3,"|",$K$2,"|",$K$3)),SUMIFS('DATA MART_'!$Q:$Q,'DATA MART_'!$G:$G,$G$3,'DATA MART_'!$A:$A,CONCATENATE($G$3,"|",J$7,"|",$Q16,"|",$I$2,"|",$P16,"|",$J$2,"|",$J$3,"|",$K$2,"|",$K$3),'DATA MART_'!$F:$F,$G$2)) -> 59.59613426 | L16: =IF($G$2="TO",SUMIFS('DATA MART_'!$Q:$Q,'DATA MART_'!$G:$G,$G$3,'DATA MART_'!$A:$A,CONCATENATE($G$3,"|",L$7,"|",$Q16,"|",$I$2,"|",$P16,"|",$J$2,"|",$J$3,"|",$K$2,"|",$K$3)),SUMIFS('DATA MART_'!$Q:$Q,'DATA MART_'!$G:$G,$G$3,'DATA MART_'!$A:$A,CONCATENATE($G$3,"|",L$7,"|",$Q16,"|",$I$2,"|",$P16,"|",$J$2,"|",$J$3,"|",$K$2,"|",$K$3),'DATA MART_'!$F:$F,$G$2)) -> 0 | M16: 1 | N16: 7 | O16: 30010017 | P16: 7 | Q16: =VLOOKUP(B10,'DATA MART_'!$AO$4:$AP$242,2,0) -> 1
A17: Total | C17: =IF($G$2="TO",SUMIFS('DATA MART_'!$Q:$Q,'DATA MART_'!$G:$G,$G$3,'DATA MART_'!$A:$A,CONCATENATE($G$3,"|",C$7,"|",$Q17,"|",$I$2,"|",$P17,"|",$J$2,"|",$J$3,"|",$K$2,"|",$K$3)),SUMIFS('DATA MART_'!$Q:$Q,'DATA MART_'!$G:$G,$G$3,'DATA MART_'!$A:$A,CONCATENATE($G$3,"|",C$7,"|",$Q17,"|",$I$2,"|",$P17,"|",$J$2,"|",$J$3,"|",$K$2,"|",$K$3),'DATA MART_'!$F:$F,$G$2)) -> 47702.38764 | D17: =IF($G$2="TO",SUMIFS('DATA MART_'!$Q:$Q,'DATA MART_'!$G:$G,$G$3,'DATA MART_'!$A:$A,CONCATENATE($G$3,"|",D$7,"|",$Q17,"|",$I$2,"|",$P17,"|",$J$2,"|",$J$3,"|",$K$2,"|",$K$3)),SUMIFS('DATA MART_'!$Q:$Q,'DATA MART_'!$G:$G,$G$3,'DATA MART_'!$A:$A,CONCATENATE($G$3,"|",D$7,"|",$Q17,"|",$I$2,"|",$P17,"|",$J$2,"|",$J$3,"|",$K$2,"|",$K$3),'DATA MART_'!$F:$F,$G$2)) -> 15243.64601 | E17: =IF($G$2="TO",SUMIFS('DATA MART_'!$Q:$Q,'DATA MART_'!$G:$G,$G$3,'DATA MART_'!$A:$A,CONCATENATE($G$3,"|",E$7,"|",$Q17,"|",$I$2,"|",$P17,"|",$J$2,"|",$J$3,"|",$K$2,"|",$K$3)),SUMIFS('DATA MART_'!$Q:$Q,'DATA MART_'!$G:$G,$G$3,'DATA MART_'!$A:$A,CONCATENATE($G$3,"|",E$7,"|",$Q17,"|",$I$2,"|",$P17,"|",$J$2,"|",$J$3,"|",$K$2,"|",$K$3),'DATA MART_'!$F:$F,$G$2)) -> 43774.35811 | F17: =IF($G$2="TO",SUMIFS('DATA MART_'!$Q:$Q,'DATA MART_'!$G:$G,$G$3,'DATA MART_'!$A:$A,CONCATENATE($G$3,"|",F$7,"|",$Q17,"|",$I$2,"|",$P17,"|",$J$2,"|",$J$3,"|",$K$2,"|",$K$3)),SUMIFS('DATA MART_'!$Q:$Q,'DATA MART_'!$G:$G,$G$3,'DATA MART_'!$A:$A,CONCATENATE($G$3,"|",F$7,"|",$Q17,"|",$I$2,"|",$P17,"|",$J$2,"|",$J$3,"|",$K$2,"|",$K$3),'DATA MART_'!$F:$F,$G$2)) -> 18735.2997 | G17: =IF($G$2="TO",SUMIFS('DATA MART_'!$Q:$Q,'DATA MART_'!$G:$G,$G$3,'DATA MART_'!$A:$A,CONCATENATE($G$3,"|",G$7,"|",$Q17,"|",$I$2,"|",$P17,"|",$J$2,"|",$J$3,"|",$K$2,"|",$K$3)),SUMIFS('DATA MART_'!$Q:$Q,'DATA MART_'!$G:$G,$G$3,'DATA MART_'!$A:$A,CONCATENATE($G$3,"|",G$7,"|",$Q17,"|",$I$2,"|",$P17,"|",$J$2,"|",$J$3,"|",$K$2,"|",$K$3),'DATA MART_'!$F:$F,$G$2)) -> 1424.52158 | H17: =IF($G$2="TO",SUMIFS('DATA MART_'!$Q:$Q,'DATA MART_'!$G:$G,$G$3,'DATA MART_'!$A:$A,CONCATENATE($G$3,"|",H$7,"|",$Q17,"|",$I$2,"|",$P17,"|",$J$2,"|",$J$3,"|",$K$2,"|",$K$3)),SUMIFS('DATA MART_'!$Q:$Q,'DATA MART_'!$G:$G,$G$3,'DATA MART_'!$A:$A,CONCATENATE($G$3,"|",H$7,"|",$Q17,"|",$I$2,"|",$P17,"|",$J$2,"|",$J$3,"|",$K$2,"|",$K$3),'DATA MART_'!$F:$F,$G$2)) -> 4194.016957 | J17: =IF($G$2="TO",SUMIFS('DATA MART_'!$Q:$Q,'DATA MART_'!$G:$G,$G$3,'DATA MART_'!$A:$A,CONCATENATE($G$3,"|",J$7,"|",$Q17,"|",$I$2,"|",$P17,"|",$J$2,"|",$J$3,"|",$K$2,"|",$K$3)),SUMIFS('DATA MART_'!$Q:$Q,'DATA MART_'!$G:$G,$G$3,'DATA MART_'!$A:$A,CONCATENATE($G$3,"|",J$7,"|",$Q17,"|",$I$2,"|",$P17,"|",$J$2,"|",$J$3,"|",$K$2,"|",$K$3),'DATA MART_'!$F:$F,$G$2)) -> 567.4109217 | L17: =IF($G$2="TO",SUMIFS('DATA MART_'!$Q:$Q,'DATA MART_'!$G:$G,$G$3,'DATA MART_'!$A:$A,CONCATENATE($G$3,"|",L$7,"|",$Q17,"|",$I$2,"|",$P17,"|",$J$2,"|",$J$3,"|",$K$2,"|",$K$3)),SUMIFS('DATA MART_'!$Q:$Q,'DATA MART_'!$G:$G,$G$3,'DATA MART_'!$A:$A,CONCATENATE($G$3,"|",L$7,"|",$Q17,"|",$I$2,"|",$P17,"|",$J$2,"|",$J$3,"|",$K$2,"|",$K$3),'DATA MART_'!$F:$F,$G$2)) -> -125.6131622 | M17: 1 | N17: 8 | O17: 30010018 | P17: 8 | Q17: =VLOOKUP(B10,'DATA MART_'!$AO$4:$AP$242,2,0) -> 1
A18: [ 0 - 3M ] | B18: Belgium | C18: =IF($G$2="TO",SUMIFS('DATA MART_'!$Q:$Q,'DATA MART_'!$G:$G,$G$3,'DATA MART_'!$A:$A,CONCATENATE($G$3,"|",C$7,"|",$Q18,"|",$I$2,"|",$P18,"|",$J$2,"|",$J$3,"|",$K$2,"|",$K$3)),SUMIFS('DATA MART_'!$Q:$Q,'DATA MART_'!$G:$G,$G$3,'DATA MART_'!$A:$A,CONCATENATE($G$3,"|",C$7,"|",$Q18,"|",$I$2,"|",$P18,"|",$J$2,"|",$J$3,"|",$K$2,"|",$K$3),'DATA MART_'!$F:$F,$G$2)) -> 4898.219714 | D18: =IF($G$2="TO",SUMIFS('DATA MART_'!$Q:$Q,'DATA MART_'!$G:$G,$G$3,'DATA MART_'!$A:$A,CONCATENATE($G$3,"|",D$7,"|",$Q18,"|",$I$2,"|",$P18,"|",$J$2,"|",$J$3,"|",$K$2,"|",$K$3)),SUMIFS('DATA MART_'!$Q:$Q,'DATA MART_'!$G:$G,$G$3,'DATA MART_'!$A:$A,CONCATENATE($G$3,"|",D$7,"|",$Q18,"|",$I$2,"|",$P18,"|",$J$2,"|",$J$3,"|",$K$2,"|",$K$3),'DATA MART_'!$F:$F,$G$2)) -> 1434.25208 | E18: =IF($G$2="TO",SUMIFS('DATA MART_'!$Q:$Q,'DATA MART_'!$G:$G,$G$3,'DATA MART_'!$A:$A,CONCATENATE($G$3,"|",E$7,"|",$Q18,"|",$I$2,"|",$P18,"|",$J$2,"|",$J$3,"|",$K$2,"|",$K$3)),SUMIFS('DATA MART_'!$Q:$Q,'DATA MART_'!$G:$G,$G$3,'DATA MART_'!$A:$A,CONCATENATE($G$3,"|",E$7,"|",$Q18,"|",$I$2,"|",$P18,"|",$J$2,"|",$J$3,"|",$K$2,"|",$K$3),'DATA MART_'!$F:$F,$G$2)) -> 3606.215236 | F18: =IF($G$2="TO",SUMIFS('DATA MART_'!$Q:$Q,'DATA MART_'!$G:$G,$G$3,'DATA MART_'!$A:$A,CONCATENATE($G$3,"|",F$7,"|",$Q18,"|",$I$2,"|",$P18,"|",$J$2,"|",$J$3,"|",$K$2,"|",$K$3)),SUMIFS('DATA MART_'!$Q:$Q,'DATA MART_'!$G:$G,$G$3,'DATA MART_'!$A:$A,CONCATENATE($G$3,"|",F$7,"|",$Q18,"|",$I$2,"|",$P18,"|",$J$2,"|",$J$3,"|",$K$2,"|",$K$3),'DATA MART_'!$F:$F,$G$2)) -> 2129.613185 | G18: =IF($G$2="TO",SUMIFS('DATA MART_'!$Q:$Q,'DATA MART_'!$G:$G,$G$3,'DATA MART_'!$A:$A,CONCATENATE($G$3,"|",G$7,"|",$Q18,"|",$I$2,"|",$P18,"|",$J$2,"|",$J$3,"|",$K$2,"|",$K$3)),SUMIFS('DATA MART_'!$Q:$Q,'DATA MART_'!$G:$G,$G$3,'DATA MART_'!$A:$A,CONCATENATE($G$3,"|",G$7,"|",$Q18,"|",$I$2,"|",$P18,"|",$J$2,"|",$J$3,"|",$K$2,"|",$K$3),'DATA MART_'!$F:$F,$G$2)) -> 0 | H18: =IF($G$2="TO",SUMIFS('DATA MART_'!$Q:$Q,'DATA MART_'!$G:$G,$G$3,'DATA MART_'!$A:$A,CONCATENATE($G$3,"|",H$7,"|",$Q18,"|",$I$2,"|",$P18,"|",$J$2,"|",$J$3,"|",$K$2,"|",$K$3)),SUMIFS('DATA MART_'!$Q:$Q,'DATA MART_'!$G:$G,$G$3,'DATA MART_'!$A:$A,CONCATENATE($G$3,"|",H$7,"|",$Q18,"|",$I$2,"|",$P18,"|",$J$2,"|",$J$3,"|",$K$2,"|",$K$3),'DATA MART_'!$F:$F,$G$2)) -> 995.3151088 | J18: =IF($G$2="TO",SUMIFS('DATA MART_'!$Q:$Q,'DATA MART_'!$G:$G,$G$3,'DATA MART_'!$A:$A,CONCATENATE($G$3,"|",J$7,"|",$Q18,"|",$I$2,"|",$P18,"|",$J$2,"|",$J$3,"|",$K$2,"|",$K$3)),SUMIFS('DATA MART_'!$Q:$Q,'DATA MART_'!$G:$G,$G$3,'DATA MART_'!$A:$A,CONCATENATE($G$3,"|",J$7,"|",$Q18,"|",$I$2,"|",$P18,"|",$J$2,"|",$J$3,"|",$K$2,"|",$K$3),'DATA MART_'!$F:$F,$G$2)) -> 135.7792067 | L18: =IF($G$2="TO",SUMIFS('DATA MART_'!$Q:$Q,'DATA MART_'!$G:$G,$G$3,'DATA MART_'!$A:$A,CONCATENATE($G$3,"|",L$7,"|",$Q18,"|",$I$2,"|",$P18,"|",$J$2,"|",$J$3,"|",$K$2,"|",$K$3)),SUMIFS('DATA MART_'!$Q:$Q,'DATA MART_'!$G:$G,$G$3,'DATA MART_'!$A:$A,CONCATENATE($G$3,"|",L$7,"|",$Q18,"|",$I$2,"|",$P18,"|",$J$2,"|",$J$3,"|",$K$2,"|",$K$3),'DATA MART_'!$F:$F,$G$2)) -> 50.02276364 | M18: 2 | N18: 1 | O18: 30010021 | P18: 1 | Q18: =VLOOKUP(B18,'DATA MART_'!$AO$4:$AP$242,2,0) -> 2
A19: [ 3M - 1Y ] | C19: =IF($G$2="TO",SUMIFS('DATA MART_'!$Q:$Q,'DATA MART_'!$G:$G,$G$3,'DATA MART_'!$A:$A,CONCATENATE($G$3,"|",C$7,"|",$Q19,"|",$I$2,"|",$P19,"|",$J$2,"|",$J$3,"|",$K$2,"|",$K$3)),SUMIFS('DATA MART_'!$Q:$Q,'DATA MART_'!$G:$G,$G$3,'DATA MART_'!$A:$A,CONCATENATE($G$3,"|",C$7,"|",$Q19,"|",$I$2,"|",$P19,"|",$J$2,"|",$J$3,"|",$K$2,"|",$K$3),'DATA MART_'!$F:$F,$G$2)) -> 7978.872331 | D19: =IF($G$2="TO",SUMIFS('DATA MART_'!$Q:$Q,'DATA MART_'!$G:$G,$G$3,'DATA MART_'!$A:$A,CONCATENATE($G$3,"|",D$7,"|",$Q19,"|",$I$2,"|",$P19,"|",$J$2,"|",$J$3,"|",$K$2,"|",$K$3)),SUMIFS('DATA MART_'!$Q:$Q,'DATA MART_'!$G:$G,$G$3,'DATA MART_'!$A:$A,CONCATENATE($G$3,"|",D$7,"|",$Q19,"|",$I$2,"|",$P19,"|",$J$2,"|",$J$3,"|",$K$2,"|",$K$3),'DATA MART_'!$F:$F,$G$2)) -> 1456.298308 | E19: =IF($G$2="TO",SUMIFS('DATA MART_'!$Q:$Q,'DATA MART_'!$G:$G,$G$3,'DATA MART_'!$A:$A,CONCATENATE($G$3,"|",E$7,"|",$Q19,"|",$I$2,"|",$P19,"|",$J$2,"|",$J$3,"|",$K$2,"|",$K$3)),SUMIFS('DATA MART_'!$Q:$Q,'DATA MART_'!$G:$G,$G$3,'DATA MART_'!$A:$A,CONCATENATE($G$3,"|",E$7,"|",$Q19,"|",$I$2,"|",$P19,"|",$J$2,"|",$J$3,"|",$K$2,"|",$K$3),'DATA MART_'!$F:$F,$G$2)) -> 7299.941818 | F19: =IF($G$2="TO",SUMIFS('DATA MART_'!$Q:$Q,'DATA MART_'!$G:$G,$G$3,'DATA MART_'!$A:$A,CONCATENATE($G$3,"|",F$7,"|",$Q19,"|",$I$2,"|",$P19,"|",$J$2,"|",$J$3,"|",$K$2,"|",$K$3)),SUMIFS('DATA MART_'!$Q:$Q,'DATA MART_'!$G:$G,$G$3,'DATA MART_'!$A:$A,CONCATENATE($G$3,"|",F$7,"|",$Q19,"|",$I$2,"|",$P19,"|",$J$2,"|",$J$3,"|",$K$2,"|",$K$3),'DATA MART_'!$F:$F,$G$2)) -> 3089.286686 | G19: =IF($G$2="TO",SUMIFS('DATA MART_'!$Q:$Q,'DATA MART_'!$G:$G,$G$3,'DATA MART_'!$A:$A,CONCATENATE($G$3,"|",G$7,"|",$Q19,"|",$I$2,"|",$P19,"|",$J$2,"|",$J$3,"|",$K$2,"|",$K$3)),SUMIFS('DATA MART_'!$Q:$Q,'DATA MART_'!$G:$G,$G$3,'DATA MART_'!$A:$A,CONCATENATE($G$3,"|",G$7,"|",$Q19,"|",$I$2,"|",$P19,"|",$J$2,"|",$J$3,"|",$K$2,"|",$K$3),'DATA MART_'!$F:$F,$G$2)) -> 69.974 | H19: =IF($G$2="TO",SUMIFS('DATA MART_'!$Q:$Q,'DATA MART_'!$G:$G,$G$3,'DATA MART_'!$A:$A,CONCATENATE($G$3,"|",H$7,"|",$Q19,"|",$I$2,"|",$P19,"|",$J$2,"|",$J$3,"|",$K$2,"|",$K$3)),SUMIFS('DATA MART_'!$Q:$Q,'DATA MART_'!$G:$G,$G$3,'DATA MART_'!$A:$A,CONCATENATE($G$3,"|",H$7,"|",$Q19,"|",$I$2,"|",$P19,"|",$J$2,"|",$J$3,"|",$K$2,"|",$K$3),'DATA MART_'!$F:$F,$G$2)) -> 2514.367499 | J19: =IF($G$2="TO",SUMIFS('DATA MART_'!$Q:$Q,'DATA MART_'!$G:$G,$G$3,'DATA MART_'!$A:$A,CONCATENATE($G$3,"|",J$7,"|",$Q19,"|",$I$2,"|",$P19,"|",$J$2,"|",$J$3,"|",$K$2,"|",$K$3)),SUMIFS('DATA MART_'!$Q:$Q,'DATA MART_'!$G:$G,$G$3,'DATA MART_'!$A:$A,CONCATENATE($G$3,"|",J$7,"|",$Q19,"|",$I$2,"|",$P19,"|",$J$2,"|",$J$3,"|",$K$2,"|",$K$3),'DATA MART_'!$F:$F,$G$2)) -> -223.3359585 | L19: =IF($G$2="TO",SUMIFS('DATA MART_'!$Q:$Q,'DATA MART_'!$G:$G,$G$3,'DATA MART_'!$A:$A,CONCATENATE($G$3,"|",L$7,"|",$Q19,"|",$I$2,"|",$P19,"|",$J$2,"|",$J$3,"|",$K$2,"|",$K$3)),SUMIFS('DATA MART_'!$Q:$Q,'DATA MART_'!$G:$G,$G$3,'DATA MART_'!$A:$A,CONCATENATE($G$3,"|",L$7,"|",$Q19,"|",$I$2,"|",$P19,"|",$J$2,"|",$J$3,"|",$K$2,"|",$K$3),'DATA MART_'!$F:$F,$G$2)) -> 56.05271065 | M19: 2 | N19: 2 | O19: 30010022 | P19: 2 | Q19: =VLOOKUP(B18,'DATA MART_'!$AO$4:$AP$242,2,0) -> 2
A20: [ 1Y - 2Y ] | C20: =IF($G$2="TO",SUMIFS('DATA MART_'!$Q:$Q,'DATA MART_'!$G:$G,$G$3,'DATA MART_'!$A:$A,CONCATENATE($G$3,"|",C$7,"|",$Q20,"|",$I$2,"|",$P20,"|",$J$2,"|",$J$3,"|",$K$2,"|",$K$3)),SUMIFS('DATA MART_'!$Q:$Q,'DATA MART_'!$G:$G,$G$3,'DATA MART_'!$A:$A,CONCATENATE($G$3,"|",C$7,"|",$Q20,"|",$I$2,"|",$P20,"|",$J$2,"|",$J$3,"|",$K$2,"|",$K$3),'DATA MART_'!$F:$F,$G$2)) -> 8072.322753 | D20: =IF($G$2="TO",SUMIFS('DATA MART_'!$Q:$Q,'DATA MART_'!$G:$G,$G$3,'DATA MART_'!$A:$A,CONCATENATE($G$3,"|",D$7,"|",$Q20,"|",$I$2,"|",$P20,"|",$J$2,"|",$J$3,"|",$K$2,"|",$K$3)),SUMIFS('DATA MART_'!$Q:$Q,'DATA MART_'!$G:$G,$G$3,'DATA MART_'!$A:$A,CONCATENATE($G$3,"|",D$7,"|",$Q20,"|",$I$2,"|",$P20,"|",$J$2,"|",$J$3,"|",$K$2,"|",$K$3),'DATA MART_'!$F:$F,$G$2)) -> 121.2597129 | E20: =IF($G$2="TO",SUMIFS('DATA MART_'!$Q:$Q,'DATA MART_'!$G:$G,$G$3,'DATA MART_'!$A:$A,CONCATENATE($G$3,"|",E$7,"|",$Q20,"|",$I$2,"|",$P20,"|",$J$2,"|",$J$3,"|",$K$2,"|",$K$3)),SUMIFS('DATA MART_'!$Q:$Q,'DATA MART_'!$G:$G,$G$3,'DATA MART_'!$A:$A,CONCATENATE($G$3,"|",E$7,"|",$Q20,"|",$I$2,"|",$P20,"|",$J$2,"|",$J$3,"|",$K$2,"|",$K$3),'DATA MART_'!$F:$F,$G$2)) -> 7234.251682 | F20: =IF($G$2="TO",SUMIFS('DATA MART_'!$Q:$Q,'DATA MART_'!$G:$G,$G$3,'DATA MART_'!$A:$A,CONCATENATE($G$3,"|",F$7,"|",$Q20,"|",$I$2,"|",$P20,"|",$J$2,"|",$J$3,"|",$K$2,"|",$K$3)),SUMIFS('DATA MART_'!$Q:$Q,'DATA MART_'!$G:$G,$G$3,'DATA MART_'!$A:$A,CONCATENATE($G$3,"|",F$7,"|",$Q20,"|",$I$2,"|",$P20,"|",$J$2,"|",$J$3,"|",$K$2,"|",$K$3),'DATA MART_'!$F:$F,$G$2)) -> 5738.654251 | G20: =IF($G$2="TO",SUMIFS('DATA MART_'!$Q:$Q,'DATA MART_'!$G:$G,$G$3,'DATA MART_'!$A:$A,CONCATENATE($G$3,"|",G$7,"|",$Q20,"|",$I$2,"|",$P20,"|",$J$2,"|",$J$3,"|",$K$2,"|",$K$3)),SUMIFS('DATA MART_'!$Q:$Q,'DATA MART_'!$G:$G,$G$3,'DATA MART_'!$A:$A,CONCATENATE($G$3,"|",G$7,"|",$Q20,"|",$I$2,"|",$P20,"|",$J$2,"|",$J$3,"|",$K$2,"|",$K$3),'DATA MART_'!$F:$F,$G$2)) -> 116.8169078 | H20: =IF($G$2="TO",SUMIFS('DATA MART_'!$Q:$Q,'DATA MART_'!$G:$G,$G$3,'DATA MART_'!$A:$A,CONCATENATE($G$3,"|",H$7,"|",$Q20,"|",$I$2,"|",$P20,"|",$J$2,"|",$J$3,"|",$K$2,"|",$K$3)),SUMIFS('DATA MART_'!$Q:$Q,'DATA MART_'!$G:$G,$G$3,'DATA MART_'!$A:$A,CONCATENATE($G$3,"|",H$7,"|",$Q20,"|",$I$2,"|",$P20,"|",$J$2,"|",$J$3,"|",$K$2,"|",$K$3),'DATA MART_'!$F:$F,$G$2)) -> 897.6569205 | J20: =IF($G$2="TO",SUMIFS('DATA MART_'!$Q:$Q,'DATA MART_'!$G:$G,$G$3,'DATA MART_'!$A:$A,CONCATENATE($G$3,"|",J$7,"|",$Q20,"|",$I$2,"|",$P20,"|",$J$2,"|",$J$3,"|",$K$2,"|",$K$3)),SUMIFS('DATA MART_'!$Q:$Q,'DATA MART_'!$G:$G,$G$3,'DATA MART_'!$A:$A,CONCATENATE($G$3,"|",J$7,"|",$Q20,"|",$I$2,"|",$P20,"|",$J$2,"|",$J$3,"|",$K$2,"|",$K$3),'DATA MART_'!$F:$F,$G$2)) -> 10.71654814 | L20: =IF($G$2="TO",SUMIFS('DATA MART_'!$Q:$Q,'DATA MART_'!$G:$G,$G$3,'DATA MART_'!$A:$A,CONCATENATE($G$3,"|",L$7,"|",$Q20,"|",$I$2,"|",$P20,"|",$J$2,"|",$J$3,"|",$K$2,"|",$K$3)),SUMIFS('DATA MART_'!$Q:$Q,'DATA MART_'!$G:$G,$G$3,'DATA MART_'!$A:$A,CONCATENATE($G$3,"|",L$7,"|",$Q20,"|",$I$2,"|",$P20,"|",$J$2,"|",$J$3,"|",$K$2,"|",$K$3),'DATA MART_'!$F:$F,$G$2)) -> -121.2536859 | M20: 2 | N20: 3 | O20: 30010023 | P20: 3 | Q20: =VLOOKUP(B18,'DATA MART_'!$AO$4:$AP$242,2,0) -> 2
A21: [ 2Y - 3Y ] | C21: =IF($G$2="TO",SUMIFS('DATA MART_'!$Q:$Q,'DATA MART_'!$G:$G,$G$3,'DATA MART_'!$A:$A,CONCATENATE($G$3,"|",C$7,"|",$Q21,"|",$I$2,"|",$P21,"|",$J$2,"|",$J$3,"|",$K$2,"|",$K$3)),SUMIFS('DATA MART_'!$Q:$Q,'DATA MART_'!$G:$G,$G$3,'DATA MART_'!$A:$A,CONCATENATE($G$3,"|",C$7,"|",$Q21,"|",$I$2,"|",$P21,"|",$J$2,"|",$J$3,"|",$K$2,"|",$K$3),'DATA MART_'!$F:$F,$G$2)) -> 10061.88164 | D21: =IF($G$2="TO",SUMIFS('DATA MART_'!$Q:$Q,'DATA MART_'!$G:$G,$G$3,'DATA MART_'!$A:$A,CONCATENATE($G$3,"|",D$7,"|",$Q21,"|",$I$2,"|",$P21,"|",$J$2,"|",$J$3,"|",$K$2,"|",$K$3)),SUMIFS('DATA MART_'!$Q:$Q,'DATA MART_'!$G:$G,$G$3,'DATA MART_'!$A:$A,CONCATENATE($G$3,"|",D$7,"|",$Q21,"|",$I$2,"|",$P21,"|",$J$2,"|",$J$3,"|",$K$2,"|",$K$3),'DATA MART_'!$F:$F,$G$2)) -> 2145.344363 | E21: =IF($G$2="TO",SUMIFS('DATA MART_'!$Q:$Q,'DATA MART_'!$G:$G,$G$3,'DATA MART_'!$A:$A,CONCATENATE($G$3,"|",E$7,"|",$Q21,"|",$I$2,"|",$P21,"|",$J$2,"|",$J$3,"|",$K$2,"|",$K$3)),SUMIFS('DATA MART_'!$Q:$Q,'DATA MART_'!$G:$G,$G$3,'DATA MART_'!$A:$A,CONCATENATE($G$3,"|",E$7,"|",$Q21,"|",$I$2,"|",$P21,"|",$J$2,"|",$J$3,"|",$K$2,"|",$K$3),'DATA MART_'!$F:$F,$G$2)) -> 9124.580756 | F21: =IF($G$2="TO",SUMIFS('DATA MART_'!$Q:$Q,'DATA MART_'!$G:$G,$G$3,'DATA MART_'!$A:$A,CONCATENATE($G$3,"|",F$7,"|",$Q21,"|",$I$2,"|",$P21,"|",$J$2,"|",$J$3,"|",$K$2,"|",$K$3)),SUMIFS('DATA MART_'!$Q:$Q,'DATA MART_'!$G:$G,$G$3,'DATA MART_'!$A:$A,CONCATENATE($G$3,"|",F$7,"|",$Q21,"|",$I$2,"|",$P21,"|",$J$2,"|",$J$3,"|",$K$2,"|",$K$3),'DATA MART_'!$F:$F,$G$2)) -> 4464.44755 | G21: =IF($G$2="TO",SUMIFS('DATA MART_'!$Q:$Q,'DATA MART_'!$G:$G,$G$3,'DATA MART_'!$A:$A,CONCATENATE($G$3,"|",G$7,"|",$Q21,"|",$I$2,"|",$P21,"|",$J$2,"|",$J$3,"|",$K$2,"|",$K$3)),SUMIFS('DATA MART_'!$Q:$Q,'DATA MART_'!$G:$G,$G$3,'DATA MART_'!$A:$A,CONCATENATE($G$3,"|",G$7,"|",$Q21,"|",$I$2,"|",$P21,"|",$J$2,"|",$J$3,"|",$K$2,"|",$K$3),'DATA MART_'!$F:$F,$G$2)) -> 164.7024011 | H21: =IF($G$2="TO",SUMIFS('DATA MART_'!$Q:$Q,'DATA MART_'!$G:$G,$G$3,'DATA MART_'!$A:$A,CONCATENATE($G$3,"|",H$7,"|",$Q21,"|",$I$2,"|",$P21,"|",$J$2,"|",$J$3,"|",$K$2,"|",$K$3)),SUMIFS('DATA MART_'!$Q:$Q,'DATA MART_'!$G:$G,$G$3,'DATA MART_'!$A:$A,CONCATENATE($G$3,"|",H$7,"|",$Q21,"|",$I$2,"|",$P21,"|",$J$2,"|",$J$3,"|",$K$2,"|",$K$3),'DATA MART_'!$F:$F,$G$2)) -> -166.0044784 | J21: =IF($G$2="TO",SUMIFS('DATA MART_'!$Q:$Q,'DATA MART_'!$G:$G,$G$3,'DATA MART_'!$A:$A,CONCATENATE($G$3,"|",J$7,"|",$Q21,"|",$I$2,"|",$P21,"|",$J$2,"|",$J$3,"|",$K$2,"|",$K$3)),SUMIFS('DATA MART_'!$Q:$Q,'DATA MART_'!$G:$G,$G$3,'DATA MART_'!$A:$A,CONCATENATE($G$3,"|",J$7,"|",$Q21,"|",$I$2,"|",$P21,"|",$J$2,"|",$J$3,"|",$K$2,"|",$K$3),'DATA MART_'!$F:$F,$G$2)) -> 153.4200515 | L21: =IF($G$2="TO",SUMIFS('DATA MART_'!$Q:$Q,'DATA MART_'!$G:$G,$G$3,'DATA MART_'!$A:$A,CONCATENATE($G$3,"|",L$7,"|",$Q21,"|",$I$2,"|",$P21,"|",$J$2,"|",$J$3,"|",$K$2,"|",$K$3)),SUMIFS('DATA MART_'!$Q:$Q,'DATA MART_'!$G:$G,$G$3,'DATA MART_'!$A:$A,CONCATENATE($G$3,"|",L$7,"|",$Q21,"|",$I$2,"|",$P21,"|",$J$2,"|",$J$3,"|",$K$2,"|",$K$3),'DATA MART_'!$F:$F,$G$2)) -> -15.33004717 | M21: 2 | N21: 4 | O21: 30010024 | P21: 4 | Q21: =VLOOKUP(B18,'DATA MART_'!$AO$4:$AP$242,2,0) -> 2
A22: [3Y - 5Y ] | C22: =IF($G$2="TO",SUMIFS('DATA MART_'!$Q:$Q,'DATA MART_'!$G:$G,$G$3,'DATA MART_'!$A:$A,CONCATENATE($G$3,"|",C$7,"|",$Q22,"|",$I$2,"|",$P22,"|",$J$2,"|",$J$3,"|",$K$2,"|",$K$3)),SUMIFS('DATA MART_'!$Q:$Q,'DATA MART_'!$G:$G,$G$3,'DATA MART_'!$A:$A,CONCATENATE($G$3,"|",C$7,"|",$Q22,"|",$I$2,"|",$P22,"|",$J$2,"|",$J$3,"|",$K$2,"|",$K$3),'DATA MART_'!$F:$F,$G$2)) -> 22873.6547 | D22: =IF($G$2="TO",SUMIFS('DATA MART_'!$Q:$Q,'DATA MART_'!$G:$G,$G$3,'DATA MART_'!$A:$A,CONCATENATE($G$3,"|",D$7,"|",$Q22,"|",$I$2,"|",$P22,"|",$J$2,"|",$J$3,"|",$K$2,"|",$K$3)),SUMIFS('DATA MART_'!$Q:$Q,'DATA MART_'!$G:$G,$G$3,'DATA MART_'!$A:$A,CONCATENATE($G$3,"|",D$7,"|",$Q22,"|",$I$2,"|",$P22,"|",$J$2,"|",$J$3,"|",$K$2,"|",$K$3),'DATA MART_'!$F:$F,$G$2)) -> 421.9481335 | E22: =IF($G$2="TO",SUMIFS('DATA MART_'!$Q:$Q,'DATA MART_'!$G:$G,$G$3,'DATA MART_'!$A:$A,CONCATENATE($G$3,"|",E$7,"|",$Q22,"|",$I$2,"|",$P22,"|",$J$2,"|",$J$3,"|",$K$2,"|",$K$3)),SUMIFS('DATA MART_'!$Q:$Q,'DATA MART_'!$G:$G,$G$3,'DATA MART_'!$A:$A,CONCATENATE($G$3,"|",E$7,"|",$Q22,"|",$I$2,"|",$P22,"|",$J$2,"|",$J$3,"|",$K$2,"|",$K$3),'DATA MART_'!$F:$F,$G$2)) -> 20687.8693 | F22: =IF($G$2="TO",SUMIFS('DATA MART_'!$Q:$Q,'DATA MART_'!$G:$G,$G$3,'DATA MART_'!$A:$A,CONCATENATE($G$3,"|",F$7,"|",$Q22,"|",$I$2,"|",$P22,"|",$J$2,"|",$J$3,"|",$K$2,"|",$K$3)),SUMIFS('DATA MART_'!$Q:$Q,'DATA MART_'!$G:$G,$G$3,'DATA MART_'!$A:$A,CONCATENATE($G$3,"|",F$7,"|",$Q22,"|",$I$2,"|",$P22,"|",$J$2,"|",$J$3,"|",$K$2,"|",$K$3),'DATA MART_'!$F:$F,$G$2)) -> 13861.2265 | G22: =IF($G$2="TO",SUMIFS('DATA MART_'!$Q:$Q,'DATA MART_'!$G:$G,$G$3,'DATA MART_'!$A:$A,CONCATENATE($G$3,"|",G$7,"|",$Q22,"|",$I$2,"|",$P22,"|",$J$2,"|",$J$3,"|",$K$2,"|",$K$3)),SUMIFS('DATA MART_'!$Q:$Q,'DATA MART_'!$G:$G,$G$3,'DATA MART_'!$A:$A,CONCATENATE($G$3,"|",G$7,"|",$Q22,"|",$I$2,"|",$P22,"|",$J$2,"|",$J$3,"|",$K$2,"|",$K$3),'DATA MART_'!$F:$F,$G$2)) -> 129.8473677 | H22: =IF($G$2="TO",SUMIFS('DATA MART_'!$Q:$Q,'DATA MART_'!$G:$G,$G$3,'DATA MART_'!$A:$A,CONCATENATE($G$3,"|",H$7,"|",$Q22,"|",$I$2,"|",$P22,"|",$J$2,"|",$J$3,"|",$K$2,"|",$K$3)),SUMIFS('DATA MART_'!$Q:$Q,'DATA MART_'!$G:$G,$G$3,'DATA MART_'!$A:$A,CONCATENATE($G$3,"|",H$7,"|",$Q22,"|",$I$2,"|",$P22,"|",$J$2,"|",$J$3,"|",$K$2,"|",$K$3),'DATA MART_'!$F:$F,$G$2)) -> 1629.278248 | J22: =IF($G$2="TO",SUMIFS('DATA MART_'!$Q:$Q,'DATA MART_'!$G:$G,$G$3,'DATA MART_'!$A:$A,CONCATENATE($G$3,"|",J$7,"|",$Q22,"|",$I$2,"|",$P22,"|",$J$2,"|",$J$3,"|",$K$2,"|",$K$3)),SUMIFS('DATA MART_'!$Q:$Q,'DATA MART_'!$G:$G,$G$3,'DATA MART_'!$A:$A,CONCATENATE($G$3,"|",J$7,"|",$Q22,"|",$I$2,"|",$P22,"|",$J$2,"|",$J$3,"|",$K$2,"|",$K$3),'DATA MART_'!$F:$F,$G$2)) -> 500.3619453 | L22: =IF($G$2="TO",SUMIFS('DATA MART_'!$Q:$Q,'DATA MART_'!$G:$G,$G$3,'DATA MART_'!$A:$A,CONCATENATE($G$3,"|",L$7,"|",$Q22,"|",$I$2,"|",$P22,"|",$J$2,"|",$J$3,"|",$K$2,"|",$K$3)),SUMIFS('DATA MART_'!$Q:$Q,'DATA MART_'!$G:$G,$G$3,'DATA MART_'!$A:$A,CONCATENATE($G$3,"|",L$7,"|",$Q22,"|",$I$2,"|",$P22,"|",$J$2,"|",$J$3,"|",$K$2,"|",$K$3),'DATA MART_'!$F:$F,$G$2)) -> 36.79776673 | M22: 2 | N22: 5 | O22: 30010025 | P22: 5 | Q22: =VLOOKUP(B18,'DATA MART_'!$AO$4:$AP$242,2,0) -> 2
A23: [5Y - 10Y ] | C23: =IF($G$2="TO",SUMIFS('DATA MART_'!$Q:$Q,'DATA MART_'!$G:$G,$G$3,'DATA MART_'!$A:$A,CONCATENATE($G$3,"|",C$7,"|",$Q23,"|",$I$2,"|",$P23,"|",$J$2,"|",$J$3,"|",$K$2,"|",$K$3)),SUMIFS('DATA MART_'!$Q:$Q,'DATA MART_'!$G:$G,$G$3,'DATA MART_'!$A:$A,CONCATENATE($G$3,"|",C$7,"|",$Q23,"|",$I$2,"|",$P23,"|",$J$2,"|",$J$3,"|",$K$2,"|",$K$3),'DATA MART_'!$F:$F,$G$2)) -> 23389.3214 | D23: =IF($G$2="TO",SUMIFS('DATA MART_'!$Q:$Q,'DATA MART_'!$G:$G,$G$3,'DATA MART_'!$A:$A,CONCATENATE($G$3,"|",D$7,"|",$Q23,"|",$I$2,"|",$P23,"|",$J$2,"|",$J$3,"|",$K$2,"|",$K$3)),SUMIFS('DATA MART_'!$Q:$Q,'DATA MART_'!$G:$G,$G$3,'DATA MART_'!$A:$A,CONCATENATE($G$3,"|",D$7,"|",$Q23,"|",$I$2,"|",$P23,"|",$J$2,"|",$J$3,"|",$K$2,"|",$K$3),'DATA MART_'!$F:$F,$G$2)) -> 758.8804752 | E23: =IF($G$2="TO",SUMIFS('DATA MART_'!$Q:$Q,'DATA MART_'!$G:$G,$G$3,'DATA MART_'!$A:$A,CONCATENATE($G$3,"|",E$7,"|",$Q23,"|",$I$2,"|",$P23,"|",$J$2,"|",$J$3,"|",$K$2,"|",$K$3)),SUMIFS('DATA MART_'!$Q:$Q,'DATA MART_'!$G:$G,$G$3,'DATA MART_'!$A:$A,CONCATENATE($G$3,"|",E$7,"|",$Q23,"|",$I$2,"|",$P23,"|",$J$2,"|",$J$3,"|",$K$2,"|",$K$3),'DATA MART_'!$F:$F,$G$2)) -> 19048.97938 | F23: =IF($G$2="TO",SUMIFS('DATA MART_'!$Q:$Q,'DATA MART_'!$G:$G,$G$3,'DATA MART_'!$A:$A,CONCATENATE($G$3,"|",F$7,"|",$Q23,"|",$I$2,"|",$P23,"|",$J$2,"|",$J$3,"|",$K$2,"|",$K$3)),SUMIFS('DATA MART_'!$Q:$Q,'DATA MART_'!$G:$G,$G$3,'DATA MART_'!$A:$A,CONCATENATE($G$3,"|",F$7,"|",$Q23,"|",$I$2,"|",$P23,"|",$J$2,"|",$J$3,"|",$K$2,"|",$K$3),'DATA MART_'!$F:$F,$G$2)) -> 11360.47693 | G23: =IF($G$2="TO",SUMIFS('DATA MART_'!$Q:$Q,'DATA MART_'!$G:$G,$G$3,'DATA MART_'!$A:$A,CONCATENATE($G$3,"|",G$7,"|",$Q23,"|",$I$2,"|",$P23,"|",$J$2,"|",$J$3,"|",$K$2,"|",$K$3)),SUMIFS('DATA MART_'!$Q:$Q,'DATA MART_'!$G:$G,$G$3,'DATA MART_'!$A:$A,CONCATENATE($G$3,"|",G$7,"|",$Q23,"|",$I$2,"|",$P23,"|",$J$2,"|",$J$3,"|",$K$2,"|",$K$3),'DATA MART_'!$F:$F,$G$2)) -> 348.7770873 | H23: =IF($G$2="TO",SUMIFS('DATA MART_'!$Q:$Q,'DATA MART_'!$G:$G,$G$3,'DATA MART_'!$A:$A,CONCATENATE($G$3,"|",H$7,"|",$Q23,"|",$I$2,"|",$P23,"|",$J$2,"|",$J$3,"|",$K$2,"|",$K$3)),SUMIFS('DATA MART_'!$Q:$Q,'DATA MART_'!$G:$G,$G$3,'DATA MART_'!$A:$A,CONCATENATE($G$3,"|",H$7,"|",$Q23,"|",$I$2,"|",$P23,"|",$J$2,"|",$J$3,"|",$K$2,"|",$K$3),'DATA MART_'!$F:$F,$G$2)) -> -697.2258109 | J23: =IF($G$2="TO",SUMIFS('DATA MART_'!$Q:$Q,'DATA MART_'!$G:$G,$G$3,'DATA MART_'!$A:$A,CONCATENATE($G$3,"|",J$7,"|",$Q23,"|",$I$2,"|",$P23,"|",$J$2,"|",$J$3,"|",$K$2,"|",$K$3)),SUMIFS('DATA MART_'!$Q:$Q,'DATA MART_'!$G:$G,$G$3,'DATA MART_'!$A:$A,CONCATENATE($G$3,"|",J$7,"|",$Q23,"|",$I$2,"|",$P23,"|",$J$2,"|",$J$3,"|",$K$2,"|",$K$3),'DATA MART_'!$F:$F,$G$2)) -> 268.2042848 | L23: =IF($G$2="TO",SUMIFS('DATA MART_'!$Q:$Q,'DATA MART_'!$G:$G,$G$3,'DATA MART_'!$A:$A,CONCATENATE($G$3,"|",L$7,"|",$Q23,"|",$I$2,"|",$P23,"|",$J$2,"|",$J$3,"|",$K$2,"|",$K$3)),SUMIFS('DATA MART_'!$Q:$Q,'DATA MART_'!$G:$G,$G$3,'DATA MART_'!$A:$A,CONCATENATE($G$3,"|",L$7,"|",$Q23,"|",$I$2,"|",$P23,"|",$J$2,"|",$J$3,"|",$K$2,"|",$K$3),'DATA MART_'!$F:$F,$G$2)) -> -17.59548249 | M23: 2 | N23: 6 | O23: 30010026 | P23: 6 | Q23: =VLOOKUP(B18,'DATA MART_'!$AO$4:$AP$242,2,0) -> 2
A24: [10Y - more ] | C24: =IF($G$2="TO",SUMIFS('DATA MART_'!$Q:$Q,'DATA MART_'!$G:$G,$G$3,'DATA MART_'!$A:$A,CONCATENATE($G$3,"|",C$7,"|",$Q24,"|",$I$2,"|",$P24,"|",$J$2,"|",$J$3,"|",$K$2,"|",$K$3)),SUMIFS('DATA MART_'!$Q:$Q,'DATA MART_'!$G:$G,$G$3,'DATA MART_'!$A:$A,CONCATENATE($G$3,"|",C$7,"|",$Q24,"|",$I$2,"|",$P24,"|",$J$2,"|",$J$3,"|",$K$2,"|",$K$3),'DATA MART_'!$F:$F,$G$2)) -> 10809.78542 | D24: =IF($G$2="TO",SUMIFS('DATA MART_'!$Q:$Q,'DATA MART_'!$G:$G,$G$3,'DATA MART_'!$A:$A,CONCATENATE($G$3,"|",D$7,"|",$Q24,"|",$I$2,"|",$P24,"|",$J$2,"|",$J$3,"|",$K$2,"|",$K$3)),SUMIFS('DATA MART_'!$Q:$Q,'DATA MART_'!$G:$G,$G$3,'DATA MART_'!$A:$A,CONCATENATE($G$3,"|",D$7,"|",$Q24,"|",$I$2,"|",$P24,"|",$J$2,"|",$J$3,"|",$K$2,"|",$K$3),'DATA MART_'!$F:$F,$G$2)) -> 4193.424061 | E24: =IF($G$2="TO",SUMIFS('DATA MART_'!$Q:$Q,'DATA MART_'!$G:$G,$G$3,'DATA MART_'!$A:$A,CONCATENATE($G$3,"|",E$7,"|",$Q24,"|",$I$2,"|",$P24,"|",$J$2,"|",$J$3,"|",$K$2,"|",$K$3)),SUMIFS('DATA MART_'!$Q:$Q,'DATA MART_'!$G:$G,$G$3,'DATA MART_'!$A:$A,CONCATENATE($G$3,"|",E$7,"|",$Q24,"|",$I$2,"|",$P24,"|",$J$2,"|",$J$3,"|",$K$2,"|",$K$3),'DATA MART_'!$F:$F,$G$2)) -> 5868.044045 | F24: =IF($G$2="TO",SUMIFS('DATA MART_'!$Q:$Q,'DATA MART_'!$G:$G,$G$3,'DATA MART_'!$A:$A,CONCATENATE($G$3,"|",F$7,"|",$Q24,"|",$I$2,"|",$P24,"|",$J$2,"|",$J$3,"|",$K$2,"|",$K$3)),SUMIFS('DATA MART_'!$Q:$Q,'DATA MART_'!$G:$G,$G$3,'DATA MART_'!$A:$A,CONCATENATE($G$3,"|",F$7,"|",$Q24,"|",$I$2,"|",$P24,"|",$J$2,"|",$J$3,"|",$K$2,"|",$K$3),'DATA MART_'!$F:$F,$G$2)) -> 2576.294276 | G24: =IF($G$2="TO",SUMIFS('DATA MART_'!$Q:$Q,'DATA MART_'!$G:$G,$G$3,'DATA MART_'!$A:$A,CONCATENATE($G$3,"|",G$7,"|",$Q24,"|",$I$2,"|",$P24,"|",$J$2,"|",$J$3,"|",$K$2,"|",$K$3)),SUMIFS('DATA MART_'!$Q:$Q,'DATA MART_'!$G:$G,$G$3,'DATA MART_'!$A:$A,CONCATENATE($G$3,"|",G$7,"|",$Q24,"|",$I$2,"|",$P24,"|",$J$2,"|",$J$3,"|",$K$2,"|",$K$3),'DATA MART_'!$F:$F,$G$2)) -> 299.1782053 | H24: =IF($G$2="TO",SUMIFS('DATA MART_'!$Q:$Q,'DATA MART_'!$G:$G,$G$3,'DATA MART_'!$A:$A,CONCATENATE($G$3,"|",H$7,"|",$Q24,"|",$I$2,"|",$P24,"|",$J$2,"|",$J$3,"|",$K$2,"|",$K$3)),SUMIFS('DATA MART_'!$Q:$Q,'DATA MART_'!$G:$G,$G$3,'DATA MART_'!$A:$A,CONCATENATE($G$3,"|",H$7,"|",$Q24,"|",$I$2,"|",$P24,"|",$J$2,"|",$J$3,"|",$K$2,"|",$K$3),'DATA MART_'!$F:$F,$G$2)) -> -734.7504451 | J24: =IF($G$2="TO",SUMIFS('DATA MART_'!$Q:$Q,'DATA MART_'!$G:$G,$G$3,'DATA MART_'!$A:$A,CONCATENATE($G$3,"|",J$7,"|",$Q24,"|",$I$2,"|",$P24,"|",$J$2,"|",$J$3,"|",$K$2,"|",$K$3)),SUMIFS('DATA MART_'!$Q:$Q,'DATA MART_'!$G:$G,$G$3,'DATA MART_'!$A:$A,CONCATENATE($G$3,"|",J$7,"|",$Q24,"|",$I$2,"|",$P24,"|",$J$2,"|",$J$3,"|",$K$2,"|",$K$3),'DATA MART_'!$F:$F,$G$2)) -> 288.969192 | L24: =IF($G$2="TO",SUMIFS('DATA MART_'!$Q:$Q,'DATA MART_'!$G:$G,$G$3,'DATA MART_'!$A:$A,CONCATENATE($G$3,"|",L$7,"|",$Q24,"|",$I$2,"|",$P24,"|",$J$2,"|",$J$3,"|",$K$2,"|",$K$3)),SUMIFS('DATA MART_'!$Q:$Q,'DATA MART_'!$G:$G,$G$3,'DATA MART_'!$A:$A,CONCATENATE($G$3,"|",L$7,"|",$Q24,"|",$I$2,"|",$P24,"|",$J$2,"|",$J$3,"|",$K$2,"|",$K$3),'DATA MART_'!$F:$F,$G$2)) -> -0.2632117439 | M24: 2 | N24: 7 | O24: 30010027 | P24: 7 | Q24: =VLOOKUP(B18,'DATA MART_'!$AO$4:$AP$242,2,0) -> 2
A25: Total | C25: =IF($G$2="TO",SUMIFS('DATA MART_'!$Q:$Q,'DATA MART_'!$G:$G,$G$3,'DATA MART_'!$A:$A,CONCATENATE($G$3,"|",C$7,"|",$Q25,"|",$I$2,"|",$P25,"|",$J$2,"|",$J$3,"|",$K$2,"|",$K$3)),SUMIFS('DATA MART_'!$Q:$Q,'DATA MART_'!$G:$G,$G$3,'DATA MART_'!$A:$A,CONCATENATE($G$3,"|",C$7,"|",$Q25,"|",$I$2,"|",$P25,"|",$J$2,"|",$J$3,"|",$K$2,"|",$K$3),'DATA MART_'!$F:$F,$G$2)) -> 88083.09729 | D25: =IF($G$2="TO",SUMIFS('DATA MART_'!$Q:$Q,'DATA MART_'!$G:$G,$G$3,'DATA MART_'!$A:$A,CONCATENATE($G$3,"|",D$7,"|",$Q25,"|",$I$2,"|",$P25,"|",$J$2,"|",$J$3,"|",$K$2,"|",$K$3)),SUMIFS('DATA MART_'!$Q:$Q,'DATA MART_'!$G:$G,$G$3,'DATA MART_'!$A:$A,CONCATENATE($G$3,"|",D$7,"|",$Q25,"|",$I$2,"|",$P25,"|",$J$2,"|",$J$3,"|",$K$2,"|",$K$3),'DATA MART_'!$F:$F,$G$2)) -> 10531.40713 | E25: =IF($G$2="TO",SUMIFS('DATA MART_'!$Q:$Q,'DATA MART_'!$G:$G,$G$3,'DATA MART_'!$A:$A,CONCATENATE($G$3,"|",E$7,"|",$Q25,"|",$I$2,"|",$P25,"|",$J$2,"|",$J$3,"|",$K$2,"|",$K$3)),SUMIFS('DATA MART_'!$Q:$Q,'DATA MART_'!$G:$G,$G$3,'DATA MART_'!$A:$A,CONCATENATE($G$3,"|",E$7,"|",$Q25,"|",$I$2,"|",$P25,"|",$J$2,"|",$J$3,"|",$K$2,"|",$K$3),'DATA MART_'!$F:$F,$G$2)) -> 72870.64855 | F25: =IF($G$2="TO",SUMIFS('DATA MART_'!$Q:$Q,'DATA MART_'!$G:$G,$G$3,'DATA MART_'!$A:$A,CONCATENATE($G$3,"|",F$7,"|",$Q25,"|",$I$2,"|",$P25,"|",$J$2,"|",$J$3,"|",$K$2,"|",$K$3)),SUMIFS('DATA MART_'!$Q:$Q,'DATA MART_'!$G:$G,$G$3,'DATA MART_'!$A:$A,CONCATENATE($G$3,"|",F$7,"|",$Q25,"|",$I$2,"|",$P25,"|",$J$2,"|",$J$3,"|",$K$2,"|",$K$3),'DATA MART_'!$F:$F,$G$2)) -> 43219.99937 | G25: =IF($G$2="TO",SUMIFS('DATA MART_'!$Q:$Q,'DATA MART_'!$G:$G,$G$3,'DATA MART_'!$A:$A,CONCATENATE($G$3,"|",G$7,"|",$Q25,"|",$I$2,"|",$P25,"|",$J$2,"|",$J$3,"|",$K$2,"|",$K$3)),SUMIFS('DATA MART_'!$Q:$Q,'DATA MART_'!$G:$G,$G$3,'DATA MART_'!$A:$A,CONCATENATE($G$3,"|",G$7,"|",$Q25,"|",$I$2,"|",$P25,"|",$J$2,"|",$J$3,"|",$K$2,"|",$K$3),'DATA MART_'!$F:$F,$G$2)) -> 1129.295969 | H25: =IF($G$2="TO",SUMIFS('DATA MART_'!$Q:$Q,'DATA MART_'!$G:$G,$G$3,'DATA MART_'!$A:$A,CONCATENATE($G$3,"|",H$7,"|",$Q25,"|",$I$2,"|",$P25,"|",$J$2,"|",$J$3,"|",$K$2,"|",$K$3)),SUMIFS('DATA MART_'!$Q:$Q,'DATA MART_'!$G:$G,$G$3,'DATA MART_'!$A:$A,CONCATENATE($G$3,"|",H$7,"|",$Q25,"|",$I$2,"|",$P25,"|",$J$2,"|",$J$3,"|",$K$2,"|",$K$3),'DATA MART_'!$F:$F,$G$2)) -> 4438.637042 | J25: =IF($G$2="TO",SUMIFS('DATA MART_'!$Q:$Q,'DATA MART_'!$G:$G,$G$3,'DATA MART_'!$A:$A,CONCATENATE($G$3,"|",J$7,"|",$Q25,"|",$I$2,"|",$P25,"|",$J$2,"|",$J$3,"|",$K$2,"|",$K$3)),SUMIFS('DATA MART_'!$Q:$Q,'DATA MART_'!$G:$G,$G$3,'DATA MART_'!$A:$A,CONCATENATE($G$3,"|",J$7,"|",$Q25,"|",$I$2,"|",$P25,"|",$J$2,"|",$J$3,"|",$K$2,"|",$K$3),'DATA MART_'!$F:$F,$G$2)) -> 1133.254105 | L25: =IF($G$2="TO",SUMIFS('DATA MART_'!$Q:$Q,'DATA MART_'!$G:$G,$G$3,'DATA MART_'!$A:$A,CONCATENATE($G$3,"|",L$7,"|",$Q25,"|",$I$2,"|",$P25,"|",$J$2,"|",$J$3,"|",$K$2,"|",$K$3)),SUMIFS('DATA MART_'!$Q:$Q,'DATA MART_'!$G:$G,$G$3,'DATA MART_'!$A:$A,CONCATENATE($G$3,"|",L$7,"|",$Q25,"|",$I$2,"|",$P25,"|",$J$2,"|",$J$3,"|",$K$2,"|",$K$3),'DATA MART_'!$F:$F,$G$2)) -> -11.01366471 | M25: 2 | N25: 8 | O25: 30010028 | P25: 8 | Q25: =VLOOKUP(B18,'DATA MART_'!$AO$4:$AP$242,2,0) -> 2
A26: [ 0 - 3M ] | B26: Bulgaria | C26: =IF($G$2="TO",SUMIFS('DATA MART_'!$Q:$Q,'DATA MART_'!$G:$G,$G$3,'DATA MART_'!$A:$A,CONCATENATE($G$3,"|",C$7,"|",$Q26,"|",$I$2,"|",$P26,"|",$J$2,"|",$J$3,"|",$K$2,"|",$K$3)),SUMIFS('DATA MART_'!$Q:$Q,'DATA MART_'!$G:$G,$G$3,'DATA MART_'!$A:$A,CONCATENATE($G$3,"|",C$7,"|",$Q26,"|",$I$2,"|",$P26,"|",$J$2,"|",$J$3,"|",$K$2,"|",$K$3),'DATA MART_'!$F:$F,$G$2)) -> 397.3723692 | D26: =IF($G$2="TO",SUMIFS('DATA MART_'!$Q:$Q,'DATA MART_'!$G:$G,$G$3,'DATA MART_'!$A:$A,CONCATENATE($G$3,"|",D$7,"|",$Q26,"|",$I$2,"|",$P26,"|",$J$2,"|",$J$3,"|",$K$2,"|",$K$3)),SUMIFS('DATA MART_'!$Q:$Q,'DATA MART_'!$G:$G,$G$3,'DATA MART_'!$A:$A,CONCATENATE($G$3,"|",D$7,"|",$Q26,"|",$I$2,"|",$P26,"|",$J$2,"|",$J$3,"|",$K$2,"|",$K$3),'DATA MART_'!$F:$F,$G$2)) -> 1.387765548 | E26: =IF($G$2="TO",SUMIFS('DATA MART_'!$Q:$Q,'DATA MART_'!$G:$G,$G$3,'DATA MART_'!$A:$A,CONCATENATE($G$3,"|",E$7,"|",$Q26,"|",$I$2,"|",$P26,"|",$J$2,"|",$J$3,"|",$K$2,"|",$K$3)),SUMIFS('DATA MART_'!$Q:$Q,'DATA MART_'!$G:$G,$G$3,'DATA MART_'!$A:$A,CONCATENATE($G$3,"|",E$7,"|",$Q26,"|",$I$2,"|",$P26,"|",$J$2,"|",$J$3,"|",$K$2,"|",$K$3),'DATA MART_'!$F:$F,$G$2)) -> 396.6079878 | F26: =IF($G$2="TO",SUMIFS('DATA MART_'!$Q:$Q,'DATA MART_'!$G:$G,$G$3,'DATA MART_'!$A:$A,CONCATENATE($G$3,"|",F$7,"|",$Q26,"|",$I$2,"|",$P26,"|",$J$2,"|",$J$3,"|",$K$2,"|",$K$3)),SUMIFS('DATA MART_'!$Q:$Q,'DATA MART_'!$G:$G,$G$3,'DATA MART_'!$A:$A,CONCATENATE($G$3,"|",F$7,"|",$Q26,"|",$I$2,"|",$P26,"|",$J$2,"|",$J$3,"|",$K$2,"|",$K$3),'DATA MART_'!$F:$F,$G$2)) -> 174.7240015 | G26: =IF($G$2="TO",SUMIFS('DATA MART_'!$Q:$Q,'DATA MART_'!$G:$G,$G$3,'DATA MART_'!$A:$A,CONCATENATE($G$3,"|",G$7,"|",$Q26,"|",$I$2,"|",$P26,"|",$J$2,"|",$J$3,"|",$K$2,"|",$K$3)),SUMIFS('DATA MART_'!$Q:$Q,'DATA MART_'!$G:$G,$G$3,'DATA MART_'!$A:$A,CONCATENATE($G$3,"|",G$7,"|",$Q26,"|",$I$2,"|",$P26,"|",$J$2,"|",$J$3,"|",$K$2,"|",$K$3),'DATA MART_'!$F:$F,$G$2)) -> 0.05720079365 | H26: =IF($G$2="TO",SUMIFS('DATA MART_'!$Q:$Q,'DATA MART_'!$G:$G,$G$3,'DATA MART_'!$A:$A,CONCATENATE($G$3,"|",H$7,"|",$Q26,"|",$I$2,"|",$P26,"|",$J$2,"|",$J$3,"|",$K$2,"|",$K$3)),SUMIFS('DATA MART_'!$Q:$Q,'DATA MART_'!$G:$G,$G$3,'DATA MART_'!$A:$A,CONCATENATE($G$3,"|",H$7,"|",$Q26,"|",$I$2,"|",$P26,"|",$J$2,"|",$J$3,"|",$K$2,"|",$K$3),'DATA MART_'!$F:$F,$G$2)) -> 27.2719304 | J26: =IF($G$2="TO",SUMIFS('DATA MART_'!$Q:$Q,'DATA MART_'!$G:$G,$G$3,'DATA MART_'!$A:$A,CONCATENATE($G$3,"|",J$7,"|",$Q26,"|",$I$2,"|",$P26,"|",$J$2,"|",$J$3,"|",$K$2,"|",$K$3)),SUMIFS('DATA MART_'!$Q:$Q,'DATA MART_'!$G:$G,$G$3,'DATA MART_'!$A:$A,CONCATENATE($G$3,"|",J$7,"|",$Q26,"|",$I$2,"|",$P26,"|",$J$2,"|",$J$3,"|",$K$2,"|",$K$3),'DATA MART_'!$F:$F,$G$2)) -> 0.2489360569 | L26: =IF($G$2="TO",SUMIFS('DATA MART_'!$Q:$Q,'DATA MART_'!$G:$G,$G$3,'DATA MART_'!$A:$A,CONCATENATE($G$3,"|",L$7,"|",$Q26,"|",$I$2,"|",$P26,"|",$J$2,"|",$J$3,"|",$K$2,"|",$K$3)),SUMIFS('DATA MART_'!$Q:$Q,'DATA MART_'!$G:$G,$G$3,'DATA MART_'!$A:$A,CONCATENATE($G$3,"|",L$7,"|",$Q26,"|",$I$2,"|",$P26,"|",$J$2,"|",$J$3,"|",$K$2,"|",$K$3),'DATA MART_'!$F:$F,$G$2)) -> 11.69540765 | M26: 3 | N26: 1 | O26: 30010031 | P26: 1 | Q26: =VLOOKUP(B26,'DATA MART_'!$AO$4:$AP$242,2,0) -> 3
A27: [ 3M - 1Y ] | C27: =IF($G$2="TO",SUMIFS('DATA MART_'!$Q:$Q,'DATA MART_'!$G:$G,$G$3,'DATA MART_'!$A:$A,CONCATENATE($G$3,"|",C$7,"|",$Q27,"|",$I$2,"|",$P27,"|",$J$2,"|",$J$3,"|",$K$2,"|",$K$3)),SUMIFS('DATA MART_'!$Q:$Q,'DATA MART_'!$G:$G,$G$3,'DATA MART_'!$A:$A,CONCATENATE($G$3,"|",C$7,"|",$Q27,"|",$I$2,"|",$P27,"|",$J$2,"|",$J$3,"|",$K$2,"|",$K$3),'DATA MART_'!$F:$F,$G$2)) -> 9.001568653 | D27: =IF($G$2="TO",SUMIFS('DATA MART_'!$Q:$Q,'DATA MART_'!$G:$G,$G$3,'DATA MART_'!$A:$A,CONCATENATE($G$3,"|",D$7,"|",$Q27,"|",$I$2,"|",$P27,"|",$J$2,"|",$J$3,"|",$K$2,"|",$K$3)),SUMIFS('DATA MART_'!$Q:$Q,'DATA MART_'!$G:$G,$G$3,'DATA MART_'!$A:$A,CONCATENATE($G$3,"|",D$7,"|",$Q27,"|",$I$2,"|",$P27,"|",$J$2,"|",$J$3,"|",$K$2,"|",$K$3),'DATA MART_'!$F:$F,$G$2)) -> 1.900447758 | E27: =IF($G$2="TO",SUMIFS('DATA MART_'!$Q:$Q,'DATA MART_'!$G:$G,$G$3,'DATA MART_'!$A:$A,CONCATENATE($G$3,"|",E$7,"|",$Q27,"|",$I$2,"|",$P27,"|",$J$2,"|",$J$3,"|",$K$2,"|",$K$3)),SUMIFS('DATA MART_'!$Q:$Q,'DATA MART_'!$G:$G,$G$3,'DATA MART_'!$A:$A,CONCATENATE($G$3,"|",E$7,"|",$Q27,"|",$I$2,"|",$P27,"|",$J$2,"|",$J$3,"|",$K$2,"|",$K$3),'DATA MART_'!$F:$F,$G$2)) -> 7.928878287 | F27: =IF($G$2="TO",SUMIFS('DATA MART_'!$Q:$Q,'DATA MART_'!$G:$G,$G$3,'DATA MART_'!$A:$A,CONCATENATE($G$3,"|",F$7,"|",$Q27,"|",$I$2,"|",$P27,"|",$J$2,"|",$J$3,"|",$K$2,"|",$K$3)),SUMIFS('DATA MART_'!$Q:$Q,'DATA MART_'!$G:$G,$G$3,'DATA MART_'!$A:$A,CONCATENATE($G$3,"|",F$7,"|",$Q27,"|",$I$2,"|",$P27,"|",$J$2,"|",$J$3,"|",$K$2,"|",$K$3),'DATA MART_'!$F:$F,$G$2)) -> 2.171043471 | G27: =IF($G$2="TO",SUMIFS('DATA MART_'!$Q:$Q,'DATA MART_'!$G:$G,$G$3,'DATA MART_'!$A:$A,CONCATENATE($G$3,"|",G$7,"|",$Q27,"|",$I$2,"|",$P27,"|",$J$2,"|",$J$3,"|",$K$2,"|",$K$3)),SUMIFS('DATA MART_'!$Q:$Q,'DATA MART_'!$G:$G,$G$3,'DATA MART_'!$A:$A,CONCATENATE($G$3,"|",G$7,"|",$Q27,"|",$I$2,"|",$P27,"|",$J$2,"|",$J$3,"|",$K$2,"|",$K$3),'DATA MART_'!$F:$F,$G$2)) -> 0 | H27: =IF($G$2="TO",SUMIFS('DATA MART_'!$Q:$Q,'DATA MART_'!$G:$G,$G$3,'DATA MART_'!$A:$A,CONCATENATE($G$3,"|",H$7,"|",$Q27,"|",$I$2,"|",$P27,"|",$J$2,"|",$J$3,"|",$K$2,"|",$K$3)),SUMIFS('DATA MART_'!$Q:$Q,'DATA MART_'!$G:$G,$G$3,'DATA MART_'!$A:$A,CONCATENATE($G$3,"|",H$7,"|",$Q27,"|",$I$2,"|",$P27,"|",$J$2,"|",$J$3,"|",$K$2,"|",$K$3),'DATA MART_'!$F:$F,$G$2)) -> 3.058128334 | J27: =IF($G$2="TO",SUMIFS('DATA MART_'!$Q:$Q,'DATA MART_'!$G:$G,$G$3,'DATA MART_'!$A:$A,CONCATENATE($G$3,"|",J$7,"|",$Q27,"|",$I$2,"|",$P27,"|",$J$2,"|",$J$3,"|",$K$2,"|",$K$3)),SUMIFS('DATA MART_'!$Q:$Q,'DATA MART_'!$G:$G,$G$3,'DATA MART_'!$A:$A,CONCATENATE($G$3,"|",J$7,"|",$Q27,"|",$I$2,"|",$P27,"|",$J$2,"|",$J$3,"|",$K$2,"|",$K$3),'DATA MART_'!$F:$F,$G$2)) -> 0 | L27: =IF($G$2="TO",SUMIFS('DATA MART_'!$Q:$Q,'DATA MART_'!$G:$G,$G$3,'DATA MART_'!$A:$A,CONCATENATE($G$3,"|",L$7,"|",$Q27,"|",$I$2,"|",$P27,"|",$J$2,"|",$J$3,"|",$K$2,"|",$K$3)),SUMIFS('DATA MART_'!$Q:$Q,'DATA MART_'!$G:$G,$G$3,'DATA MART_'!$A:$A,CONCATENATE($G$3,"|",L$7,"|",$Q27,"|",$I$2,"|",$P27,"|",$J$2,"|",$J$3,"|",$K$2,"|",$K$3),'DATA MART_'!$F:$F,$G$2)) -> -0.5209391537 | M27: 3 | N27: 2 | O27: 30010032 | P27: 2 | Q27: =VLOOKUP(B26,'DATA MART_'!$AO$4:$AP$242,2,0) -> 3
A28: [ 1Y - 2Y ] | C28: =IF($G$2="TO",SUMIFS('DATA MART_'!$Q:$Q,'DATA MART_'!$G:$G,$G$3,'DATA MART_'!$A:$A,CONCATENATE($G$3,"|",C$7,"|",$Q28,"|",$I$2,"|",$P28,"|",$J$2,"|",$J$3,"|",$K$2,"|",$K$3)),SUMIFS('DATA MART_'!$Q:$Q,'DATA MART_'!$G:$G,$G$3,'DATA MART_'!$A:$A,CONCATENATE($G$3,"|",C$7,"|",$Q28,"|",$I$2,"|",$P28,"|",$J$2,"|",$J$3,"|",$K$2,"|",$K$3),'DATA MART_'!$F:$F,$G$2)) -> 155.6451447 | D28: =IF($G$2="TO",SUMIFS('DATA MART_'!$Q:$Q,'DATA MART_'!$G:$G,$G$3,'DATA MART_'!$A:$A,CONCATENATE($G$3,"|",D$7,"|",$Q28,"|",$I$2,"|",$P28,"|",$J$2,"|",$J$3,"|",$K$2,"|",$K$3)),SUMIFS('DATA MART_'!$Q:$Q,'DATA MART_'!$G:$G,$G$3,'DATA MART_'!$A:$A,CONCATENATE($G$3,"|",D$7,"|",$Q28,"|",$I$2,"|",$P28,"|",$J$2,"|",$J$3,"|",$K$2,"|",$K$3),'DATA MART_'!$F:$F,$G$2)) -> 2.828343452 | E28: =IF($G$2="TO",SUMIFS('DATA MART_'!$Q:$Q,'DATA MART_'!$G:$G,$G$3,'DATA MART_'!$A:$A,CONCATENATE($G$3,"|",E$7,"|",$Q28,"|",$I$2,"|",$P28,"|",$J$2,"|",$J$3,"|",$K$2,"|",$K$3)),SUMIFS('DATA MART_'!$Q:$Q,'DATA MART_'!$G:$G,$G$3,'DATA MART_'!$A:$A,CONCATENATE($G$3,"|",E$7,"|",$Q28,"|",$I$2,"|",$P28,"|",$J$2,"|",$J$3,"|",$K$2,"|",$K$3),'DATA MART_'!$F:$F,$G$2)) -> 160.7018722 | F28: =IF($G$2="TO",SUMIFS('DATA MART_'!$Q:$Q,'DATA MART_'!$G:$G,$G$3,'DATA MART_'!$A:$A,CONCATENATE($G$3,"|",F$7,"|",$Q28,"|",$I$2,"|",$P28,"|",$J$2,"|",$J$3,"|",$K$2,"|",$K$3)),SUMIFS('DATA MART_'!$Q:$Q,'DATA MART_'!$G:$G,$G$3,'DATA MART_'!$A:$A,CONCATENATE($G$3,"|",F$7,"|",$Q28,"|",$I$2,"|",$P28,"|",$J$2,"|",$J$3,"|",$K$2,"|",$K$3),'DATA MART_'!$F:$F,$G$2)) -> 61.63304048 | G28: =IF($G$2="TO",SUMIFS('DATA MART_'!$Q:$Q,'DATA MART_'!$G:$G,$G$3,'DATA MART_'!$A:$A,CONCATENATE($G$3,"|",G$7,"|",$Q28,"|",$I$2,"|",$P28,"|",$J$2,"|",$J$3,"|",$K$2,"|",$K$3)),SUMIFS('DATA MART_'!$Q:$Q,'DATA MART_'!$G:$G,$G$3,'DATA MART_'!$A:$A,CONCATENATE($G$3,"|",G$7,"|",$Q28,"|",$I$2,"|",$P28,"|",$J$2,"|",$J$3,"|",$K$2,"|",$K$3),'DATA MART_'!$F:$F,$G$2)) -> 25.61196371 | H28: =IF($G$2="TO",SUMIFS('DATA MART_'!$Q:$Q,'DATA MART_'!$G:$G,$G$3,'DATA MART_'!$A:$A,CONCATENATE($G$3,"|",H$7,"|",$Q28,"|",$I$2,"|",$P28,"|",$J$2,"|",$J$3,"|",$K$2,"|",$K$3)),SUMIFS('DATA MART_'!$Q:$Q,'DATA MART_'!$G:$G,$G$3,'DATA MART_'!$A:$A,CONCATENATE($G$3,"|",H$7,"|",$Q28,"|",$I$2,"|",$P28,"|",$J$2,"|",$J$3,"|",$K$2,"|",$K$3),'DATA MART_'!$F:$F,$G$2)) -> 67.75492644 | J28: =IF($G$2="TO",SUMIFS('DATA MART_'!$Q:$Q,'DATA MART_'!$G:$G,$G$3,'DATA MART_'!$A:$A,CONCATENATE($G$3,"|",J$7,"|",$Q28,"|",$I$2,"|",$P28,"|",$J$2,"|",$J$3,"|",$K$2,"|",$K$3)),SUMIFS('DATA MART_'!$Q:$Q,'DATA MART_'!$G:$G,$G$3,'DATA MART_'!$A:$A,CONCATENATE($G$3,"|",J$7,"|",$Q28,"|",$I$2,"|",$P28,"|",$J$2,"|",$J$3,"|",$K$2,"|",$K$3),'DATA MART_'!$F:$F,$G$2)) -> 0 | L28: =IF($G$2="TO",SUMIFS('DATA MART_'!$Q:$Q,'DATA MART_'!$G:$G,$G$3,'DATA MART_'!$A:$A,CONCATENATE($G$3,"|",L$7,"|",$Q28,"|",$I$2,"|",$P28,"|",$J$2,"|",$J$3,"|",$K$2,"|",$K$3)),SUMIFS('DATA MART_'!$Q:$Q,'DATA MART_'!$G:$G,$G$3,'DATA MART_'!$A:$A,CONCATENATE($G$3,"|",L$7,"|",$Q28,"|",$I$2,"|",$P28,"|",$J$2,"|",$J$3,"|",$K$2,"|",$K$3),'DATA MART_'!$F:$F,$G$2)) -> 22.73038602 | M28: 3 | N28: 3 | O28: 30010033 | P28: 3 | Q28: =VLOOKUP(B26,'DATA MART_'!$AO$4:$AP$242,2,0) -> 3
A29: [ 2Y - 3Y ] | C29: =IF($G$2="TO",SUMIFS('DATA MART_'!$Q:$Q,'DATA MART_'!$G:$G,$G$3,'DATA MART_'!$A:$A,CONCATENATE($G$3,"|",C$7,"|",$Q29,"|",$I$2,"|",$P29,"|",$J$2,"|",$J$3,"|",$K$2,"|",$K$3)),SUMIFS('DATA MART_'!$Q:$Q,'DATA MART_'!$G:$G,$G$3,'DATA MART_'!$A:$A,CONCATENATE($G$3,"|",C$7,"|",$Q29,"|",$I$2,"|",$P29,"|",$J$2,"|",$J$3,"|",$K$2,"|",$K$3),'DATA MART_'!$F:$F,$G$2)) -> 479.0882995 | D29: =IF($G$2="TO",SUMIFS('DATA MART_'!$Q:$Q,'DATA MART_'!$G:$G,$G$3,'DATA MART_'!$A:$A,CONCATENATE($G$3,"|",D$7,"|",$Q29,"|",$I$2,"|",$P29,"|",$J$2,"|",$J$3,"|",$K$2,"|",$K$3)),SUMIFS('DATA MART_'!$Q:$Q,'DATA MART_'!$G:$G,$G$3,'DATA MART_'!$A:$A,CONCATENATE($G$3,"|",D$7,"|",$Q29,"|",$I$2,"|",$P29,"|",$J$2,"|",$J$3,"|",$K$2,"|",$K$3),'DATA MART_'!$F:$F,$G$2)) -> 1.02701162 | E29: =IF($G$2="TO",SUMIFS('DATA MART_'!$Q:$Q,'DATA MART_'!$G:$G,$G$3,'DATA MART_'!$A:$A,CONCATENATE($G$3,"|",E$7,"|",$Q29,"|",$I$2,"|",$P29,"|",$J$2,"|",$J$3,"|",$K$2,"|",$K$3)),SUMIFS('DATA MART_'!$Q:$Q,'DATA MART_'!$G:$G,$G$3,'DATA MART_'!$A:$A,CONCATENATE($G$3,"|",E$7,"|",$Q29,"|",$I$2,"|",$P29,"|",$J$2,"|",$J$3,"|",$K$2,"|",$K$3),'DATA MART_'!$F:$F,$G$2)) -> 478.3315875 | F29: =IF($G$2="TO",SUMIFS('DATA MART_'!$Q:$Q,'DATA MART_'!$G:$G,$G$3,'DATA MART_'!$A:$A,CONCATENATE($G$3,"|",F$7,"|",$Q29,"|",$I$2,"|",$P29,"|",$J$2,"|",$J$3,"|",$K$2,"|",$K$3)),SUMIFS('DATA MART_'!$Q:$Q,'DATA MART_'!$G:$G,$G$3,'DATA MART_'!$A:$A,CONCATENATE($G$3,"|",F$7,"|",$Q29,"|",$I$2,"|",$P29,"|",$J$2,"|",$J$3,"|",$K$2,"|",$K$3),'DATA MART_'!$F:$F,$G$2)) -> 226.0091259 | G29: =IF($G$2="TO",SUMIFS('DATA MART_'!$Q:$Q,'DATA MART_'!$G:$G,$G$3,'DATA MART_'!$A:$A,CONCATENATE($G$3,"|",G$7,"|",$Q29,"|",$I$2,"|",$P29,"|",$J$2,"|",$J$3,"|",$K$2,"|",$K$3)),SUMIFS('DATA MART_'!$Q:$Q,'DATA MART_'!$G:$G,$G$3,'DATA MART_'!$A:$A,CONCATENATE($G$3,"|",G$7,"|",$Q29,"|",$I$2,"|",$P29,"|",$J$2,"|",$J$3,"|",$K$2,"|",$K$3),'DATA MART_'!$F:$F,$G$2)) -> 1.90126291 | H29: =IF($G$2="TO",SUMIFS('DATA MART_'!$Q:$Q,'DATA MART_'!$G:$G,$G$3,'DATA MART_'!$A:$A,CONCATENATE($G$3,"|",H$7,"|",$Q29,"|",$I$2,"|",$P29,"|",$J$2,"|",$J$3,"|",$K$2,"|",$K$3)),SUMIFS('DATA MART_'!$Q:$Q,'DATA MART_'!$G:$G,$G$3,'DATA MART_'!$A:$A,CONCATENATE($G$3,"|",H$7,"|",$Q29,"|",$I$2,"|",$P29,"|",$J$2,"|",$J$3,"|",$K$2,"|",$K$3),'DATA MART_'!$F:$F,$G$2)) -> 25.78022942 | J29: =IF($G$2="TO",SUMIFS('DATA MART_'!$Q:$Q,'DATA MART_'!$G:$G,$G$3,'DATA MART_'!$A:$A,CONCATENATE($G$3,"|",J$7,"|",$Q29,"|",$I$2,"|",$P29,"|",$J$2,"|",$J$3,"|",$K$2,"|",$K$3)),SUMIFS('DATA MART_'!$Q:$Q,'DATA MART_'!$G:$G,$G$3,'DATA MART_'!$A:$A,CONCATENATE($G$3,"|",J$7,"|",$Q29,"|",$I$2,"|",$P29,"|",$J$2,"|",$J$3,"|",$K$2,"|",$K$3),'DATA MART_'!$F:$F,$G$2)) -> 0 | L29: =IF($G$2="TO",SUMIFS('DATA MART_'!$Q:$Q,'DATA MART_'!$G:$G,$G$3,'DATA MART_'!$A:$A,CONCATENATE($G$3,"|",L$7,"|",$Q29,"|",$I$2,"|",$P29,"|",$J$2,"|",$J$3,"|",$K$2,"|",$K$3)),SUMIFS('DATA MART_'!$Q:$Q,'DATA MART_'!$G:$G,$G$3,'DATA MART_'!$A:$A,CONCATENATE($G$3,"|",L$7,"|",$Q29,"|",$I$2,"|",$P29,"|",$J$2,"|",$J$3,"|",$K$2,"|",$K$3),'DATA MART_'!$F:$F,$G$2)) -> -4.630476265 | M29: 3 | N29: 4 | O29: 30010034 | P29: 4 | Q29: =VLOOKUP(B26,'DATA MART_'!$AO$4:$AP$242,2,0) -> 3
A30: [3Y - 5Y ] | C30: =IF($G$2="TO",SUMIFS('DATA MART_'!$Q:$Q,'DATA MART_'!$G:$G,$G$3,'DATA MART_'!$A:$A,CONCATENATE($G$3,"|",C$7,"|",$Q30,"|",$I$2,"|",$P30,"|",$J$2,"|",$J$3,"|",$K$2,"|",$K$3)),SUMIFS('DATA MART_'!$Q:$Q,'DATA MART_'!$G:$G,$G$3,'DATA MART_'!$A:$A,CONCATENATE($G$3,"|",C$7,"|",$Q30,"|",$I$2,"|",$P30,"|",$J$2,"|",$J$3,"|",$K$2,"|",$K$3),'DATA MART_'!$F:$F,$G$2)) -> 418.0672439 | D30: =IF($G$2="TO",SUMIFS('DATA MART_'!$Q:$Q,'DATA MART_'!$G:$G,$G$3,'DATA MART_'!$A:$A,CONCATENATE($G$3,"|",D$7,"|",$Q30,"|",$I$2,"|",$P30,"|",$J$2,"|",$J$3,"|",$K$2,"|",$K$3)),SUMIFS('DATA MART_'!$Q:$Q,'DATA MART_'!$G:$G,$G$3,'DATA MART_'!$A:$A,CONCATENATE($G$3,"|",D$7,"|",$Q30,"|",$I$2,"|",$P30,"|",$J$2,"|",$J$3,"|",$K$2,"|",$K$3),'DATA MART_'!$F:$F,$G$2)) -> 13.101626 | E30: =IF($G$2="TO",SUMIFS('DATA MART_'!$Q:$Q,'DATA MART_'!$G:$G,$G$3,'DATA MART_'!$A:$A,CONCATENATE($G$3,"|",E$7,"|",$Q30,"|",$I$2,"|",$P30,"|",$J$2,"|",$J$3,"|",$K$2,"|",$K$3)),SUMIFS('DATA MART_'!$Q:$Q,'DATA MART_'!$G:$G,$G$3,'DATA MART_'!$A:$A,CONCATENATE($G$3,"|",E$7,"|",$Q30,"|",$I$2,"|",$P30,"|",$J$2,"|",$J$3,"|",$K$2,"|",$K$3),'DATA MART_'!$F:$F,$G$2)) -> 416.2750685 | F30: =IF($G$2="TO",SUMIFS('DATA MART_'!$Q:$Q,'DATA MART_'!$G:$G,$G$3,'DATA MART_'!$A:$A,CONCATENATE($G$3,"|",F$7,"|",$Q30,"|",$I$2,"|",$P30,"|",$J$2,"|",$J$3,"|",$K$2,"|",$K$3)),SUMIFS('DATA MART_'!$Q:$Q,'DATA MART_'!$G:$G,$G$3,'DATA MART_'!$A:$A,CONCATENATE($G$3,"|",F$7,"|",$Q30,"|",$I$2,"|",$P30,"|",$J$2,"|",$J$3,"|",$K$2,"|",$K$3),'DATA MART_'!$F:$F,$G$2)) -> 256.0516604 | G30: =IF($G$2="TO",SUMIFS('DATA MART_'!$Q:$Q,'DATA MART_'!$G:$G,$G$3,'DATA MART_'!$A:$A,CONCATENATE($G$3,"|",G$7,"|",$Q30,"|",$I$2,"|",$P30,"|",$J$2,"|",$J$3,"|",$K$2,"|",$K$3)),SUMIFS('DATA MART_'!$Q:$Q,'DATA MART_'!$G:$G,$G$3,'DATA MART_'!$A:$A,CONCATENATE($G$3,"|",G$7,"|",$Q30,"|",$I$2,"|",$P30,"|",$J$2,"|",$J$3,"|",$K$2,"|",$K$3),'DATA MART_'!$F:$F,$G$2)) -> 17.3642255 | H30: =IF($G$2="TO",SUMIFS('DATA MART_'!$Q:$Q,'DATA MART_'!$G:$G,$G$3,'DATA MART_'!$A:$A,CONCATENATE($G$3,"|",H$7,"|",$Q30,"|",$I$2,"|",$P30,"|",$J$2,"|",$J$3,"|",$K$2,"|",$K$3)),SUMIFS('DATA MART_'!$Q:$Q,'DATA MART_'!$G:$G,$G$3,'DATA MART_'!$A:$A,CONCATENATE($G$3,"|",H$7,"|",$Q30,"|",$I$2,"|",$P30,"|",$J$2,"|",$J$3,"|",$K$2,"|",$K$3),'DATA MART_'!$F:$F,$G$2)) -> 101.9947028 | J30: =IF($G$2="TO",SUMIFS('DATA MART_'!$Q:$Q,'DATA MART_'!$G:$G,$G$3,'DATA MART_'!$A:$A,CONCATENATE($G$3,"|",J$7,"|",$Q30,"|",$I$2,"|",$P30,"|",$J$2,"|",$J$3,"|",$K$2,"|",$K$3)),SUMIFS('DATA MART_'!$Q:$Q,'DATA MART_'!$G:$G,$G$3,'DATA MART_'!$A:$A,CONCATENATE($G$3,"|",J$7,"|",$Q30,"|",$I$2,"|",$P30,"|",$J$2,"|",$J$3,"|",$K$2,"|",$K$3),'DATA MART_'!$F:$F,$G$2)) -> 0 | L30: =IF($G$2="TO",SUMIFS('DATA MART_'!$Q:$Q,'DATA MART_'!$G:$G,$G$3,'DATA MART_'!$A:$A,CONCATENATE($G$3,"|",L$7,"|",$Q30,"|",$I$2,"|",$P30,"|",$J$2,"|",$J$3,"|",$K$2,"|",$K$3)),SUMIFS('DATA MART_'!$Q:$Q,'DATA MART_'!$G:$G,$G$3,'DATA MART_'!$A:$A,CONCATENATE($G$3,"|",L$7,"|",$Q30,"|",$I$2,"|",$P30,"|",$J$2,"|",$J$3,"|",$K$2,"|",$K$3),'DATA MART_'!$F:$F,$G$2)) -> -13.06795484 | M30: 3 | N30: 5 | O30: 30010035 | P30: 5 | Q30: =VLOOKUP(B26,'DATA MART_'!$AO$4:$AP$242,2,0) -> 3
A31: [5Y - 10Y ] | C31: =IF($G$2="TO",SUMIFS('DATA MART_'!$Q:$Q,'DATA MART_'!$G:$G,$G$3,'DATA MART_'!$A:$A,CONCATENATE($G$3,"|",C$7,"|",$Q31,"|",$I$2,"|",$P31,"|",$J$2,"|",$J$3,"|",$K$2,"|",$K$3)),SUMIFS('DATA MART_'!$Q:$Q,'DATA MART_'!$G:$G,$G$3,'DATA MART_'!$A:$A,CONCATENATE($G$3,"|",C$7,"|",$Q31,"|",$I$2,"|",$P31,"|",$J$2,"|",$J$3,"|",$K$2,"|",$K$3),'DATA MART_'!$F:$F,$G$2)) -> 332.8209272 | D31: =IF($G$2="TO",SUMIFS('DATA MART_'!$Q:$Q,'DATA MART_'!$G:$G,$G$3,'DATA MART_'!$A:$A,CONCATENATE($G$3,"|",D$7,"|",$Q31,"|",$I$2,"|",$P31,"|",$J$2,"|",$J$3,"|",$K$2,"|",$K$3)),SUMIFS('DATA MART_'!$Q:$Q,'DATA MART_'!$G:$G,$G$3,'DATA MART_'!$A:$A,CONCATENATE($G$3,"|",D$7,"|",$Q31,"|",$I$2,"|",$P31,"|",$J$2,"|",$J$3,"|",$K$2,"|",$K$3),'DATA MART_'!$F:$F,$G$2)) -> 32.40208207 | E31: =IF($G$2="TO",SUMIFS('DATA MART_'!$Q:$Q,'DATA MART_'!$G:$G,$G$3,'DATA MART_'!$A:$A,CONCATENATE($G$3,"|",E$7,"|",$Q31,"|",$I$2,"|",$P31,"|",$J$2,"|",$J$3,"|",$K$2,"|",$K$3)),SUMIFS('DATA MART_'!$Q:$Q,'DATA MART_'!$G:$G,$G$3,'DATA MART_'!$A:$A,CONCATENATE($G$3,"|",E$7,"|",$Q31,"|",$I$2,"|",$P31,"|",$J$2,"|",$J$3,"|",$K$2,"|",$K$3),'DATA MART_'!$F:$F,$G$2)) -> 331.2660886 | F31: =IF($G$2="TO",SUMIFS('DATA MART_'!$Q:$Q,'DATA MART_'!$G:$G,$G$3,'DATA MART_'!$A:$A,CONCATENATE($G$3,"|",F$7,"|",$Q31,"|",$I$2,"|",$P31,"|",$J$2,"|",$J$3,"|",$K$2,"|",$K$3)),SUMIFS('DATA MART_'!$Q:$Q,'DATA MART_'!$G:$G,$G$3,'DATA MART_'!$A:$A,CONCATENATE($G$3,"|",F$7,"|",$Q31,"|",$I$2,"|",$P31,"|",$J$2,"|",$J$3,"|",$K$2,"|",$K$3),'DATA MART_'!$F:$F,$G$2)) -> 146.7439124 | G31: =IF($G$2="TO",SUMIFS('DATA MART_'!$Q:$Q,'DATA MART_'!$G:$G,$G$3,'DATA MART_'!$A:$A,CONCATENATE($G$3,"|",G$7,"|",$Q31,"|",$I$2,"|",$P31,"|",$J$2,"|",$J$3,"|",$K$2,"|",$K$3)),SUMIFS('DATA MART_'!$Q:$Q,'DATA MART_'!$G:$G,$G$3,'DATA MART_'!$A:$A,CONCATENATE($G$3,"|",G$7,"|",$Q31,"|",$I$2,"|",$P31,"|",$J$2,"|",$J$3,"|",$K$2,"|",$K$3),'DATA MART_'!$F:$F,$G$2)) -> 26.57366952 | H31: =IF($G$2="TO",SUMIFS('DATA MART_'!$Q:$Q,'DATA MART_'!$G:$G,$G$3,'DATA MART_'!$A:$A,CONCATENATE($G$3,"|",H$7,"|",$Q31,"|",$I$2,"|",$P31,"|",$J$2,"|",$J$3,"|",$K$2,"|",$K$3)),SUMIFS('DATA MART_'!$Q:$Q,'DATA MART_'!$G:$G,$G$3,'DATA MART_'!$A:$A,CONCATENATE($G$3,"|",H$7,"|",$Q31,"|",$I$2,"|",$P31,"|",$J$2,"|",$J$3,"|",$K$2,"|",$K$3),'DATA MART_'!$F:$F,$G$2)) -> 94.5662667 | J31: =IF($G$2="TO",SUMIFS('DATA MART_'!$Q:$Q,'DATA MART_'!$G:$G,$G$3,'DATA MART_'!$A:$A,CONCATENATE($G$3,"|",J$7,"|",$Q31,"|",$I$2,"|",$P31,"|",$J$2,"|",$J$3,"|",$K$2,"|",$K$3)),SUMIFS('DATA MART_'!$Q:$Q,'DATA MART_'!$G:$G,$G$3,'DATA MART_'!$A:$A,CONCATENATE($G$3,"|",J$7,"|",$Q31,"|",$I$2,"|",$P31,"|",$J$2,"|",$J$3,"|",$K$2,"|",$K$3),'DATA MART_'!$F:$F,$G$2)) -> 0 | L31: =IF($G$2="TO",SUMIFS('DATA MART_'!$Q:$Q,'DATA MART_'!$G:$G,$G$3,'DATA MART_'!$A:$A,CONCATENATE($G$3,"|",L$7,"|",$Q31,"|",$I$2,"|",$P31,"|",$J$2,"|",$J$3,"|",$K$2,"|",$K$3)),SUMIFS('DATA MART_'!$Q:$Q,'DATA MART_'!$G:$G,$G$3,'DATA MART_'!$A:$A,CONCATENATE($G$3,"|",L$7,"|",$Q31,"|",$I$2,"|",$P31,"|",$J$2,"|",$J$3,"|",$K$2,"|",$K$3),'DATA MART_'!$F:$F,$G$2)) -> 6.703502539 | M31: 3 | N31: 6 | O31: 30010036 | P31: 6 | Q31: =VLOOKUP(B26,'DATA MART_'!$AO$4:$AP$242,2,0) -> 3
A32: [10Y - more ] | C32: =IF($G$2="TO",SUMIFS('DATA MART_'!$Q:$Q,'DATA MART_'!$G:$G,$G$3,'DATA MART_'!$A:$A,CONCATENATE($G$3,"|",C$7,"|",$Q32,"|",$I$2,"|",$P32,"|",$J$2,"|",$J$3,"|",$K$2,"|",$K$3)),SUMIFS('DATA MART_'!$Q:$Q,'DATA MART_'!$G:$G,$G$3,'DATA MART_'!$A:$A,CONCATENATE($G$3,"|",C$7,"|",$Q32,"|",$I$2,"|",$P32,"|",$J$2,"|",$J$3,"|",$K$2,"|",$K$3),'DATA MART_'!$F:$F,$G$2)) -> 22.2524713 | D32: =IF($G$2="TO",SUMIFS('DATA MART_'!$Q:$Q,'DATA MART_'!$G:$G,$G$3,'DATA MART_'!$A:$A,CONCATENATE($G$3,"|",D$7,"|",$Q32,"|",$I$2,"|",$P32,"|",$J$2,"|",$J$3,"|",$K$2,"|",$K$3)),SUMIFS('DATA MART_'!$Q:$Q,'DATA MART_'!$G:$G,$G$3,'DATA MART_'!$A:$A,CONCATENATE($G$3,"|",D$7,"|",$Q32,"|",$I$2,"|",$P32,"|",$J$2,"|",$J$3,"|",$K$2,"|",$K$3),'DATA MART_'!$F:$F,$G$2)) -> 7.215515336 | E32: =IF($G$2="TO",SUMIFS('DATA MART_'!$Q:$Q,'DATA MART_'!$G:$G,$G$3,'DATA MART_'!$A:$A,CONCATENATE($G$3,"|",E$7,"|",$Q32,"|",$I$2,"|",$P32,"|",$J$2,"|",$J$3,"|",$K$2,"|",$K$3)),SUMIFS('DATA MART_'!$Q:$Q,'DATA MART_'!$G:$G,$G$3,'DATA MART_'!$A:$A,CONCATENATE($G$3,"|",E$7,"|",$Q32,"|",$I$2,"|",$P32,"|",$J$2,"|",$J$3,"|",$K$2,"|",$K$3),'DATA MART_'!$F:$F,$G$2)) -> 15.03695597 | F32: =IF($G$2="TO",SUMIFS('DATA MART_'!$Q:$Q,'DATA MART_'!$G:$G,$G$3,'DATA MART_'!$A:$A,CONCATENATE($G$3,"|",F$7,"|",$Q32,"|",$I$2,"|",$P32,"|",$J$2,"|",$J$3,"|",$K$2,"|",$K$3)),SUMIFS('DATA MART_'!$Q:$Q,'DATA MART_'!$G:$G,$G$3,'DATA MART_'!$A:$A,CONCATENATE($G$3,"|",F$7,"|",$Q32,"|",$I$2,"|",$P32,"|",$J$2,"|",$J$3,"|",$K$2,"|",$K$3),'DATA MART_'!$F:$F,$G$2)) -> 2.431816621 | G32: =IF($G$2="TO",SUMIFS('DATA MART_'!$Q:$Q,'DATA MART_'!$G:$G,$G$3,'DATA MART_'!$A:$A,CONCATENATE($G$3,"|",G$7,"|",$Q32,"|",$I$2,"|",$P32,"|",$J$2,"|",$J$3,"|",$K$2,"|",$K$3)),SUMIFS('DATA MART_'!$Q:$Q,'DATA MART_'!$G:$G,$G$3,'DATA MART_'!$A:$A,CONCATENATE($G$3,"|",G$7,"|",$Q32,"|",$I$2,"|",$P32,"|",$J$2,"|",$J$3,"|",$K$2,"|",$K$3),'DATA MART_'!$F:$F,$G$2)) -> 0 | H32: =IF($G$2="TO",SUMIFS('DATA MART_'!$Q:$Q,'DATA MART_'!$G:$G,$G$3,'DATA MART_'!$A:$A,CONCATENATE($G$3,"|",H$7,"|",$Q32,"|",$I$2,"|",$P32,"|",$J$2,"|",$J$3,"|",$K$2,"|",$K$3)),SUMIFS('DATA MART_'!$Q:$Q,'DATA MART_'!$G:$G,$G$3,'DATA MART_'!$A:$A,CONCATENATE($G$3,"|",H$7,"|",$Q32,"|",$I$2,"|",$P32,"|",$J$2,"|",$J$3,"|",$K$2,"|",$K$3),'DATA MART_'!$F:$F,$G$2)) -> 12.60513934 | J32: =IF($G$2="TO",SUMIFS('DATA MART_'!$Q:$Q,'DATA MART_'!$G:$G,$G$3,'DATA MART_'!$A:$A,CONCATENATE($G$3,"|",J$7,"|",$Q32,"|",$I$2,"|",$P32,"|",$J$2,"|",$J$3,"|",$K$2,"|",$K$3)),SUMIFS('DATA MART_'!$Q:$Q,'DATA MART_'!$G:$G,$G$3,'DATA MART_'!$A:$A,CONCATENATE($G$3,"|",J$7,"|",$Q32,"|",$I$2,"|",$P32,"|",$J$2,"|",$J$3,"|",$K$2,"|",$K$3),'DATA MART_'!$F:$F,$G$2)) -> 0 | L32: =IF($G$2="TO",SUMIFS('DATA MART_'!$Q:$Q,'DATA MART_'!$G:$G,$G$3,'DATA MART_'!$A:$A,CONCATENATE($G$3,"|",L$7,"|",$Q32,"|",$I$2,"|",$P32,"|",$J$2,"|",$J$3,"|",$K$2,"|",$K$3)),SUMIFS('DATA MART_'!$Q:$Q,'DATA MART_'!$G:$G,$G$3,'DATA MART_'!$A:$A,CONCATENATE($G$3,"|",L$7,"|",$Q32,"|",$I$2,"|",$P32,"|",$J$2,"|",$J$3,"|",$K$2,"|",$K$3),'DATA MART_'!$F:$F,$G$2)) -> 0 | M32: 3 | N32: 7 | O32: 30010037 | P32: 7 | Q32: =VLOOKUP(B26,'DATA MART_'!$AO$4:$AP$242,2,0) -> 3
A33: Total | C33: =IF($G$2="TO",SUMIFS('DATA MART_'!$Q:$Q,'DATA MART_'!$G:$G,$G$3,'DATA MART_'!$A:$A,CONCATENATE($G$3,"|",C$7,"|",$Q33,"|",$I$2,"|",$P33,"|",$J$2,"|",$J$3,"|",$K$2,"|",$K$3)),SUMIFS('DATA MART_'!$Q:$Q,'DATA MART_'!$G:$G,$G$3,'DATA MART_'!$A:$A,CONCATENATE($G$3,"|",C$7,"|",$Q33,"|",$I$2,"|",$P33,"|",$J$2,"|",$J$3,"|",$K$2,"|",$K$3),'DATA MART_'!$F:$F,$G$2)) -> 1809.498702 | D33: =IF($G$2="TO",SUMIFS('DATA MART_'!$Q:$Q,'DATA MART_'!$G:$G,$G$3,'DATA MART_'!$A:$A,CONCATENATE($G$3,"|",D$7,"|",$Q33,"|",$I$2,"|",$P33,"|",$J$2,"|",$J$3,"|",$K$2,"|",$K$3)),SUMIFS('DATA MART_'!$Q:$Q,'DATA MART_'!$G:$G,$G$3,'DATA MART_'!$A:$A,CONCATENATE($G$3,"|",D$7,"|",$Q33,"|",$I$2,"|",$P33,"|",$J$2,"|",$J$3,"|",$K$2,"|",$K$3),'DATA MART_'!$F:$F,$G$2)) -> 59.86279178 | E33: =IF($G$2="TO",SUMIFS('DATA MART_'!$Q:$Q,'DATA MART_'!$G:$G,$G$3,'DATA MART_'!$A:$A,CONCATENATE($G$3,"|",E$7,"|",$Q33,"|",$I$2,"|",$P33,"|",$J$2,"|",$J$3,"|",$K$2,"|",$K$3)),SUMIFS('DATA MART_'!$Q:$Q,'DATA MART_'!$G:$G,$G$3,'DATA MART_'!$A:$A,CONCATENATE($G$3,"|",E$7,"|",$Q33,"|",$I$2,"|",$P33,"|",$J$2,"|",$J$3,"|",$K$2,"|",$K$3),'DATA MART_'!$F:$F,$G$2)) -> 1801.399117 | F33: =IF($G$2="TO",SUMIFS('DATA MART_'!$Q:$Q,'DATA MART_'!$G:$G,$G$3,'DATA MART_'!$A:$A,CONCATENATE($G$3,"|",F$7,"|",$Q33,"|",$I$2,"|",$P33,"|",$J$2,"|",$J$3,"|",$K$2,"|",$K$3)),SUMIFS('DATA MART_'!$Q:$Q,'DATA MART_'!$G:$G,$G$3,'DATA MART_'!$A:$A,CONCATENATE($G$3,"|",F$7,"|",$Q33,"|",$I$2,"|",$P33,"|",$J$2,"|",$J$3,"|",$K$2,"|",$K$3),'DATA MART_'!$F:$F,$G$2)) -> 869.7646007 | G33: =IF($G$2="TO",SUMIFS('DATA MART_'!$Q:$Q,'DATA MART_'!$G:$G,$G$3,'DATA MART_'!$A:$A,CONCATENATE($G$3,"|",G$7,"|",$Q33,"|",$I$2,"|",$P33,"|",$J$2,"|",$J$3,"|",$K$2,"|",$K$3)),SUMIFS('DATA MART_'!$Q:$Q,'DATA MART_'!$G:$G,$G$3,'DATA MART_'!$A:$A,CONCATENATE($G$3,"|",G$7,"|",$Q33,"|",$I$2,"|",$P33,"|",$J$2,"|",$J$3,"|",$K$2,"|",$K$3),'DATA MART_'!$F:$F,$G$2)) -> 71.50832243 | H33: =IF($G$2="TO",SUMIFS('DATA MART_'!$Q:$Q,'DATA MART_'!$G:$G,$G$3,'DATA MART_'!$A:$A,CONCATENATE($G$3,"|",H$7,"|",$Q33,"|",$I$2,"|",$P33,"|",$J$2,"|",$J$3,"|",$K$2,"|",$K$3)),SUMIFS('DATA MART_'!$Q:$Q,'DATA MART_'!$G:$G,$G$3,'DATA MART_'!$A:$A,CONCATENATE($G$3,"|",H$7,"|",$Q33,"|",$I$2,"|",$P33,"|",$J$2,"|",$J$3,"|",$K$2,"|",$K$3),'DATA MART_'!$F:$F,$G$2)) -> 333.0313234 | J33: =IF($G$2="TO",SUMIFS('DATA MART_'!$Q:$Q,'DATA MART_'!$G:$G,$G$3,'DATA MART_'!$A:$A,CONCATENATE($G$3,"|",J$7,"|",$Q33,"|",$I$2,"|",$P33,"|",$J$2,"|",$J$3,"|",$K$2,"|",$K$3)),SUMIFS('DATA MART_'!$Q:$Q,'DATA MART_'!$G:$G,$G$3,'DATA MART_'!$A:$A,CONCATENATE($G$3,"|",J$7,"|",$Q33,"|",$I$2,"|",$P33,"|",$J$2,"|",$J$3,"|",$K$2,"|",$K$3),'DATA MART_'!$F:$F,$G$2)) -> 0.2489360569 | L33: =IF($G$2="TO",SUMIFS('DATA MART_'!$Q:$Q,'DATA MART_'!$G:$G,$G$3,'DATA MART_'!$A:$A,CONCATENATE($G$3,"|",L$7,"|",$Q33,"|",$I$2,"|",$P33,"|",$J$2,"|",$J$3,"|",$K$2,"|",$K$3)),SUMIFS('DATA MART_'!$Q:$Q,'DATA MART_'!$G:$G,$G$3,'DATA MART_'!$A:$A,CONCATENATE($G$3,"|",L$7,"|",$Q33,"|",$I$2,"|",$P33,"|",$J$2,"|",$J$3,"|",$K$2,"|",$K$3),'DATA MART_'!$F:$F,$G$2)) -> 22.34509377 | M33: 3 | N33: 8 | O33: 30010038 | P33: 8 | Q33: =VLOOKUP(B26,'DATA MART_'!$AO$4:$AP$242,2,0) -> 3
A34: [ 0 - 3M ] | B34: Cyprus | C34: =IF($G$2="TO",SUMIFS('DATA MART_'!$Q:$Q,'DATA MART_'!$G:$G,$G$3,'DATA MART_'!$A:$A,CONCATENATE($G$3,"|",C$7,"|",$Q34,"|",$I$2,"|",$P34,"|",$J$2,"|",$J$3,"|",$K$2,"|",$K$3)),SUMIFS('DATA MART_'!$Q:$Q,'DATA MART_'!$G:$G,$G$3,'DATA MART_'!$A:$A,CONCATENATE($G$3,"|",C$7,"|",$Q34,"|",$I$2,"|",$P34,"|",$J$2,"|",$J$3,"|",$K$2,"|",$K$3),'DATA MART_'!$F:$F,$G$2)) -> 279.9465083 | D34: =IF($G$2="TO",SUMIFS('DATA MART_'!$Q:$Q,'DATA MART_'!$G:$G,$G$3,'DATA MART_'!$A:$A,CONCATENATE($G$3,"|",D$7,"|",$Q34,"|",$I$2,"|",$P34,"|",$J$2,"|",$J$3,"|",$K$2,"|",$K$3)),SUMIFS('DATA MART_'!$Q:$Q,'DATA MART_'!$G:$G,$G$3,'DATA MART_'!$A:$A,CONCATENATE($G$3,"|",D$7,"|",$Q34,"|",$I$2,"|",$P34,"|",$J$2,"|",$J$3,"|",$K$2,"|",$K$3),'DATA MART_'!$F:$F,$G$2)) -> 10.00687626 | E34: =IF($G$2="TO",SUMIFS('DATA MART_'!$Q:$Q,'DATA MART_'!$G:$G,$G$3,'DATA MART_'!$A:$A,CONCATENATE($G$3,"|",E$7,"|",$Q34,"|",$I$2,"|",$P34,"|",$J$2,"|",$J$3,"|",$K$2,"|",$K$3)),SUMIFS('DATA MART_'!$Q:$Q,'DATA MART_'!$G:$G,$G$3,'DATA MART_'!$A:$A,CONCATENATE($G$3,"|",E$7,"|",$Q34,"|",$I$2,"|",$P34,"|",$J$2,"|",$J$3,"|",$K$2,"|",$K$3),'DATA MART_'!$F:$F,$G$2)) -> 263.8158374 | F34: =IF($G$2="TO",SUMIFS('DATA MART_'!$Q:$Q,'DATA MART_'!$G:$G,$G$3,'DATA MART_'!$A:$A,CONCATENATE($G$3,"|",F$7,"|",$Q34,"|",$I$2,"|",$P34,"|",$J$2,"|",$J$3,"|",$K$2,"|",$K$3)),SUMIFS('DATA MART_'!$Q:$Q,'DATA MART_'!$G:$G,$G$3,'DATA MART_'!$A:$A,CONCATENATE($G$3,"|",F$7,"|",$Q34,"|",$I$2,"|",$P34,"|",$J$2,"|",$J$3,"|",$K$2,"|",$K$3),'DATA MART_'!$F:$F,$G$2)) -> 19.954 | G34: =IF($G$2="TO",SUMIFS('DATA MART_'!$Q:$Q,'DATA MART_'!$G:$G,$G$3,'DATA MART_'!$A:$A,CONCATENATE($G$3,"|",G$7,"|",$Q34,"|",$I$2,"|",$P34,"|",$J$2,"|",$J$3,"|",$K$2,"|",$K$3)),SUMIFS('DATA MART_'!$Q:$Q,'DATA MART_'!$G:$G,$G$3,'DATA MART_'!$A:$A,CONCATENATE($G$3,"|",G$7,"|",$Q34,"|",$I$2,"|",$P34,"|",$J$2,"|",$J$3,"|",$K$2,"|",$K$3),'DATA MART_'!$F:$F,$G$2)) -> 0 | H34: =IF($G$2="TO",SUMIFS('DATA MART_'!$Q:$Q,'DATA MART_'!$G:$G,$G$3,'DATA MART_'!$A:$A,CONCATENATE($G$3,"|",H$7,"|",$Q34,"|",$I$2,"|",$P34,"|",$J$2,"|",$J$3,"|",$K$2,"|",$K$3)),SUMIFS('DATA MART_'!$Q:$Q,'DATA MART_'!$G:$G,$G$3,'DATA MART_'!$A:$A,CONCATENATE($G$3,"|",H$7,"|",$Q34,"|",$I$2,"|",$P34,"|",$J$2,"|",$J$3,"|",$K$2,"|",$K$3),'DATA MART_'!$F:$F,$G$2)) -> 0 | J34: =IF($G$2="TO",SUMIFS('DATA MART_'!$Q:$Q,'DATA MART_'!$G:$G,$G$3,'DATA MART_'!$A:$A,CONCATENATE($G$3,"|",J$7,"|",$Q34,"|",$I$2,"|",$P34,"|",$J$2,"|",$J$3,"|",$K$2,"|",$K$3)),SUMIFS('DATA MART_'!$Q:$Q,'DATA MART_'!$G:$G,$G$3,'DATA MART_'!$A:$A,CONCATENATE($G$3,"|",J$7,"|",$Q34,"|",$I$2,"|",$P34,"|",$J$2,"|",$J$3,"|",$K$2,"|",$K$3),'DATA MART_'!$F:$F,$G$2)) -> -0.111072 | L34: =IF($G$2="TO",SUMIFS('DATA MART_'!$Q:$Q,'DATA MART_'!$G:$G,$G$3,'DATA MART_'!$A:$A,CONCATENATE($G$3,"|",L$7,"|",$Q34,"|",$I$2,"|",$P34,"|",$J$2,"|",$J$3,"|",$K$2,"|",$K$3)),SUMIFS('DATA MART_'!$Q:$Q,'DATA MART_'!$G:$G,$G$3,'DATA MART_'!$A:$A,CONCATENATE($G$3,"|",L$7,"|",$Q34,"|",$I$2,"|",$P34,"|",$J$2,"|",$J$3,"|",$K$2,"|",$K$3),'DATA MART_'!$F:$F,$G$2)) -> 15 | M34: 4 | N34: 1 | O34: 30010041 | P34: 1 | Q34: =VLOOKUP(B34,'DATA MART_'!$AO$4:$AP$242,2,0) -> 4
A35: [ 3M - 1Y ] | C35: =IF($G$2="TO",SUMIFS('DATA MART_'!$Q:$Q,'DATA MART_'!$G:$G,$G$3,'DATA MART_'!$A:$A,CONCATENATE($G$3,"|",C$7,"|",$Q35,"|",$I$2,"|",$P35,"|",$J$2,"|",$J$3,"|",$K$2,"|",$K$3)),SUMIFS('DATA MART_'!$Q:$Q,'DATA MART_'!$G:$G,$G$3,'DATA MART_'!$A:$A,CONCATENATE($G$3,"|",C$7,"|",$Q35,"|",$I$2,"|",$P35,"|",$J$2,"|",$J$3,"|",$K$2,"|",$K$3),'DATA MART_'!$F:$F,$G$2)) -> 62.31034922 | D35: =IF($G$2="TO",SUMIFS('DATA MART_'!$Q:$Q,'DATA MART_'!$G:$G,$G$3,'DATA MART_'!$A:$A,CONCATENATE($G$3,"|",D$7,"|",$Q35,"|",$I$2,"|",$P35,"|",$J$2,"|",$J$3,"|",$K$2,"|",$K$3)),SUMIFS('DATA MART_'!$Q:$Q,'DATA MART_'!$G:$G,$G$3,'DATA MART_'!$A:$A,CONCATENATE($G$3,"|",D$7,"|",$Q35,"|",$I$2,"|",$P35,"|",$J$2,"|",$J$3,"|",$K$2,"|",$K$3),'DATA MART_'!$F:$F,$G$2)) -> 0 | E35: =IF($G$2="TO",SUMIFS('DATA MART_'!$Q:$Q,'DATA MART_'!$G:$G,$G$3,'DATA MART_'!$A:$A,CONCATENATE($G$3,"|",E$7,"|",$Q35,"|",$I$2,"|",$P35,"|",$J$2,"|",$J$3,"|",$K$2,"|",$K$3)),SUMIFS('DATA MART_'!$Q:$Q,'DATA MART_'!$G:$G,$G$3,'DATA MART_'!$A:$A,CONCATENATE($G$3,"|",E$7,"|",$Q35,"|",$I$2,"|",$P35,"|",$J$2,"|",$J$3,"|",$K$2,"|",$K$3),'DATA MART_'!$F:$F,$G$2)) -> 52.31034922 | F35: =IF($G$2="TO",SUMIFS('DATA MART_'!$Q:$Q,'DATA MART_'!$G:$G,$G$3,'DATA MART_'!$A:$A,CONCATENATE($G$3,"|",F$7,"|",$Q35,"|",$I$2,"|",$P35,"|",$J$2,"|",$J$3,"|",$K$2,"|",$K$3)),SUMIFS('DATA MART_'!$Q:$Q,'DATA MART_'!$G:$G,$G$3,'DATA MART_'!$A:$A,CONCATENATE($G$3,"|",F$7,"|",$Q35,"|",$I$2,"|",$P35,"|",$J$2,"|",$J$3,"|",$K$2,"|",$K$3),'DATA MART_'!$F:$F,$G$2)) -> 27.82730591 | G35: =IF($G$2="TO",SUMIFS('DATA MART_'!$Q:$Q,'DATA MART_'!$G:$G,$G$3,'DATA MART_'!$A:$A,CONCATENATE($G$3,"|",G$7,"|",$Q35,"|",$I$2,"|",$P35,"|",$J$2,"|",$J$3,"|",$K$2,"|",$K$3)),SUMIFS('DATA MART_'!$Q:$Q,'DATA MART_'!$G:$G,$G$3,'DATA MART_'!$A:$A,CONCATENATE($G$3,"|",G$7,"|",$Q35,"|",$I$2,"|",$P35,"|",$J$2,"|",$J$3,"|",$K$2,"|",$K$3),'DATA MART_'!$F:$F,$G$2)) -> 0 | H35: =IF($G$2="TO",SUMIFS('DATA MART_'!$Q:$Q,'DATA MART_'!$G:$G,$G$3,'DATA MART_'!$A:$A,CONCATENATE($G$3,"|",H$7,"|",$Q35,"|",$I$2,"|",$P35,"|",$J$2,"|",$J$3,"|",$K$2,"|",$K$3)),SUMIFS('DATA MART_'!$Q:$Q,'DATA MART_'!$G:$G,$G$3,'DATA MART_'!$A:$A,CONCATENATE($G$3,"|",H$7,"|",$Q35,"|",$I$2,"|",$P35,"|",$J$2,"|",$J$3,"|",$K$2,"|",$K$3),'DATA MART_'!$F:$F,$G$2)) -> 10.12670866 | J35: =IF($G$2="TO",SUMIFS('DATA MART_'!$Q:$Q,'DATA MART_'!$G:$G,$G$3,'DATA MART_'!$A:$A,CONCATENATE($G$3,"|",J$7,"|",$Q35,"|",$I$2,"|",$P35,"|",$J$2,"|",$J$3,"|",$K$2,"|",$K$3)),SUMIFS('DATA MART_'!$Q:$Q,'DATA MART_'!$G:$G,$G$3,'DATA MART_'!$A:$A,CONCATENATE($G$3,"|",J$7,"|",$Q35,"|",$I$2,"|",$P35,"|",$J$2,"|",$J$3,"|",$K$2,"|",$K$3),'DATA MART_'!$F:$F,$G$2)) -> 0 | L35: =IF($G$2="TO",SUMIFS('DATA MART_'!$Q:$Q,'DATA MART_'!$G:$G,$G$3,'DATA MART_'!$A:$A,CONCATENATE($G$3,"|",L$7,"|",$Q35,"|",$I$2,"|",$P35,"|",$J$2,"|",$J$3,"|",$K$2,"|",$K$3)),SUMIFS('DATA MART_'!$Q:$Q,'DATA MART_'!$G:$G,$G$3,'DATA MART_'!$A:$A,CONCATENATE($G$3,"|",L$7,"|",$Q35,"|",$I$2,"|",$P35,"|",$J$2,"|",$J$3,"|",$K$2,"|",$K$3),'DATA MART_'!$F:$F,$G$2)) -> -0.36604285 | M35: 4 | N35: 2 | O35: 30010042 | P35: 2 | Q35: =VLOOKUP(B34,'DATA MART_'!$AO$4:$AP$242,2,0) -> 4
A36: [ 1Y - 2Y ] | C36: =IF($G$2="TO",SUMIFS('DATA MART_'!$Q:$Q,'DATA MART_'!$G:$G,$G$3,'DATA MART_'!$A:$A,CONCATENATE($G$3,"|",C$7,"|",$Q36,"|",$I$2,"|",$P36,"|",$J$2,"|",$J$3,"|",$K$2,"|",$K$3)),SUMIFS('DATA MART_'!$Q:$Q,'DATA MART_'!$G:$G,$G$3,'DATA MART_'!$A:$A,CONCATENATE($G$3,"|",C$7,"|",$Q36,"|",$I$2,"|",$P36,"|",$J$2,"|",$J$3,"|",$K$2,"|",$K$3),'DATA MART_'!$F:$F,$G$2)) -> 269.3088745 | D36: =IF($G$2="TO",SUMIFS('DATA MART_'!$Q:$Q,'DATA MART_'!$G:$G,$G$3,'DATA MART_'!$A:$A,CONCATENATE($G$3,"|",D$7,"|",$Q36,"|",$I$2,"|",$P36,"|",$J$2,"|",$J$3,"|",$K$2,"|",$K$3)),SUMIFS('DATA MART_'!$Q:$Q,'DATA MART_'!$G:$G,$G$3,'DATA MART_'!$A:$A,CONCATENATE($G$3,"|",D$7,"|",$Q36,"|",$I$2,"|",$P36,"|",$J$2,"|",$J$3,"|",$K$2,"|",$K$3),'DATA MART_'!$F:$F,$G$2)) -> 0 | E36: =IF($G$2="TO",SUMIFS('DATA MART_'!$Q:$Q,'DATA MART_'!$G:$G,$G$3,'DATA MART_'!$A:$A,CONCATENATE($G$3,"|",E$7,"|",$Q36,"|",$I$2,"|",$P36,"|",$J$2,"|",$J$3,"|",$K$2,"|",$K$3)),SUMIFS('DATA MART_'!$Q:$Q,'DATA MART_'!$G:$G,$G$3,'DATA MART_'!$A:$A,CONCATENATE($G$3,"|",E$7,"|",$Q36,"|",$I$2,"|",$P36,"|",$J$2,"|",$J$3,"|",$K$2,"|",$K$3),'DATA MART_'!$F:$F,$G$2)) -> 259.4088745 | F36: =IF($G$2="TO",SUMIFS('DATA MART_'!$Q:$Q,'DATA MART_'!$G:$G,$G$3,'DATA MART_'!$A:$A,CONCATENATE($G$3,"|",F$7,"|",$Q36,"|",$I$2,"|",$P36,"|",$J$2,"|",$J$3,"|",$K$2,"|",$K$3)),SUMIFS('DATA MART_'!$Q:$Q,'DATA MART_'!$G:$G,$G$3,'DATA MART_'!$A:$A,CONCATENATE($G$3,"|",F$7,"|",$Q36,"|",$I$2,"|",$P36,"|",$J$2,"|",$J$3,"|",$K$2,"|",$K$3),'DATA MART_'!$F:$F,$G$2)) -> 41.94488503 | G36: =IF($G$2="TO",SUMIFS('DATA MART_'!$Q:$Q,'DATA MART_'!$G:$G,$G$3,'DATA MART_'!$A:$A,CONCATENATE($G$3,"|",G$7,"|",$Q36,"|",$I$2,"|",$P36,"|",$J$2,"|",$J$3,"|",$K$2,"|",$K$3)),SUMIFS('DATA MART_'!$Q:$Q,'DATA MART_'!$G:$G,$G$3,'DATA MART_'!$A:$A,CONCATENATE($G$3,"|",G$7,"|",$Q36,"|",$I$2,"|",$P36,"|",$J$2,"|",$J$3,"|",$K$2,"|",$K$3),'DATA MART_'!$F:$F,$G$2)) -> 0 | H36: =IF($G$2="TO",SUMIFS('DATA MART_'!$Q:$Q,'DATA MART_'!$G:$G,$G$3,'DATA MART_'!$A:$A,CONCATENATE($G$3,"|",H$7,"|",$Q36,"|",$I$2,"|",$P36,"|",$J$2,"|",$J$3,"|",$K$2,"|",$K$3)),SUMIFS('DATA MART_'!$Q:$Q,'DATA MART_'!$G:$G,$G$3,'DATA MART_'!$A:$A,CONCATENATE($G$3,"|",H$7,"|",$Q36,"|",$I$2,"|",$P36,"|",$J$2,"|",$J$3,"|",$K$2,"|",$K$3),'DATA MART_'!$F:$F,$G$2)) -> 4.31513363 | J36: =IF($G$2="TO",SUMIFS('DATA MART_'!$Q:$Q,'DATA MART_'!$G:$G,$G$3,'DATA MART_'!$A:$A,CONCATENATE($G$3,"|",J$7,"|",$Q36,"|",$I$2,"|",$P36,"|",$J$2,"|",$J$3,"|",$K$2,"|",$K$3)),SUMIFS('DATA MART_'!$Q:$Q,'DATA MART_'!$G:$G,$G$3,'DATA MART_'!$A:$A,CONCATENATE($G$3,"|",J$7,"|",$Q36,"|",$I$2,"|",$P36,"|",$J$2,"|",$J$3,"|",$K$2,"|",$K$3),'DATA MART_'!$F:$F,$G$2)) -> 0 | L36: =IF($G$2="TO",SUMIFS('DATA MART_'!$Q:$Q,'DATA MART_'!$G:$G,$G$3,'DATA MART_'!$A:$A,CONCATENATE($G$3,"|",L$7,"|",$Q36,"|",$I$2,"|",$P36,"|",$J$2,"|",$J$3,"|",$K$2,"|",$K$3)),SUMIFS('DATA MART_'!$Q:$Q,'DATA MART_'!$G:$G,$G$3,'DATA MART_'!$A:$A,CONCATENATE($G$3,"|",L$7,"|",$Q36,"|",$I$2,"|",$P36,"|",$J$2,"|",$J$3,"|",$K$2,"|",$K$3),'DATA MART_'!$F:$F,$G$2)) -> -3.010775762 | M36: 4 | N36: 3 | O36: 30010043 | P36: 3 | Q36: =VLOOKUP(B34,'DATA MART_'!$AO$4:$AP$242,2,0) -> 4
A37: [ 2Y - 3Y ] | C37: =IF($G$2="TO",SUMIFS('DATA MART_'!$Q:$Q,'DATA MART_'!$G:$G,$G$3,'DATA MART_'!$A:$A,CONCATENATE($G$3,"|",C$7,"|",$Q37,"|",$I$2,"|",$P37,"|",$J$2,"|",$J$3,"|",$K$2,"|",$K$3)),SUMIFS('DATA MART_'!$Q:$Q,'DATA MART_'!$G:$G,$G$3,'DATA MART_'!$A:$A,CONCATENATE($G$3,"|",C$7,"|",$Q37,"|",$I$2,"|",$P37,"|",$J$2,"|",$J$3,"|",$K$2,"|",$K$3),'DATA MART_'!$F:$F,$G$2)) -> 265.3332771 | D37: =IF($G$2="TO",SUMIFS('DATA MART_'!$Q:$Q,'DATA MART_'!$G:$G,$G$3,'DATA MART_'!$A:$A,CONCATENATE($G$3,"|",D$7,"|",$Q37,"|",$I$2,"|",$P37,"|",$J$2,"|",$J$3,"|",$K$2,"|",$K$3)),SUMIFS('DATA MART_'!$Q:$Q,'DATA MART_'!$G:$G,$G$3,'DATA MART_'!$A:$A,CONCATENATE($G$3,"|",D$7,"|",$Q37,"|",$I$2,"|",$P37,"|",$J$2,"|",$J$3,"|",$K$2,"|",$K$3),'DATA MART_'!$F:$F,$G$2)) -> 2.85651514 | E37: =IF($G$2="TO",SUMIFS('DATA MART_'!$Q:$Q,'DATA MART_'!$G:$G,$G$3,'DATA MART_'!$A:$A,CONCATENATE($G$3,"|",E$7,"|",$Q37,"|",$I$2,"|",$P37,"|",$J$2,"|",$J$3,"|",$K$2,"|",$K$3)),SUMIFS('DATA MART_'!$Q:$Q,'DATA MART_'!$G:$G,$G$3,'DATA MART_'!$A:$A,CONCATENATE($G$3,"|",E$7,"|",$Q37,"|",$I$2,"|",$P37,"|",$J$2,"|",$J$3,"|",$K$2,"|",$K$3),'DATA MART_'!$F:$F,$G$2)) -> 265.3332771 | F37: =IF($G$2="TO",SUMIFS('DATA MART_'!$Q:$Q,'DATA MART_'!$G:$G,$G$3,'DATA MART_'!$A:$A,CONCATENATE($G$3,"|",F$7,"|",$Q37,"|",$I$2,"|",$P37,"|",$J$2,"|",$J$3,"|",$K$2,"|",$K$3)),SUMIFS('DATA MART_'!$Q:$Q,'DATA MART_'!$G:$G,$G$3,'DATA MART_'!$A:$A,CONCATENATE($G$3,"|",F$7,"|",$Q37,"|",$I$2,"|",$P37,"|",$J$2,"|",$J$3,"|",$K$2,"|",$K$3),'DATA MART_'!$F:$F,$G$2)) -> 0.3062668084 | G37: =IF($G$2="TO",SUMIFS('DATA MART_'!$Q:$Q,'DATA MART_'!$G:$G,$G$3,'DATA MART_'!$A:$A,CONCATENATE($G$3,"|",G$7,"|",$Q37,"|",$I$2,"|",$P37,"|",$J$2,"|",$J$3,"|",$K$2,"|",$K$3)),SUMIFS('DATA MART_'!$Q:$Q,'DATA MART_'!$G:$G,$G$3,'DATA MART_'!$A:$A,CONCATENATE($G$3,"|",G$7,"|",$Q37,"|",$I$2,"|",$P37,"|",$J$2,"|",$J$3,"|",$K$2,"|",$K$3),'DATA MART_'!$F:$F,$G$2)) -> 0 | H37: =IF($G$2="TO",SUMIFS('DATA MART_'!$Q:$Q,'DATA MART_'!$G:$G,$G$3,'DATA MART_'!$A:$A,CONCATENATE($G$3,"|",H$7,"|",$Q37,"|",$I$2,"|",$P37,"|",$J$2,"|",$J$3,"|",$K$2,"|",$K$3)),SUMIFS('DATA MART_'!$Q:$Q,'DATA MART_'!$G:$G,$G$3,'DATA MART_'!$A:$A,CONCATENATE($G$3,"|",H$7,"|",$Q37,"|",$I$2,"|",$P37,"|",$J$2,"|",$J$3,"|",$K$2,"|",$K$3),'DATA MART_'!$F:$F,$G$2)) -> 26.9588917 | J37: =IF($G$2="TO",SUMIFS('DATA MART_'!$Q:$Q,'DATA MART_'!$G:$G,$G$3,'DATA MART_'!$A:$A,CONCATENATE($G$3,"|",J$7,"|",$Q37,"|",$I$2,"|",$P37,"|",$J$2,"|",$J$3,"|",$K$2,"|",$K$3)),SUMIFS('DATA MART_'!$Q:$Q,'DATA MART_'!$G:$G,$G$3,'DATA MART_'!$A:$A,CONCATENATE($G$3,"|",J$7,"|",$Q37,"|",$I$2,"|",$P37,"|",$J$2,"|",$J$3,"|",$K$2,"|",$K$3),'DATA MART_'!$F:$F,$G$2)) -> 0 | L37: =IF($G$2="TO",SUMIFS('DATA MART_'!$Q:$Q,'DATA MART_'!$G:$G,$G$3,'DATA MART_'!$A:$A,CONCATENATE($G$3,"|",L$7,"|",$Q37,"|",$I$2,"|",$P37,"|",$J$2,"|",$J$3,"|",$K$2,"|",$K$3)),SUMIFS('DATA MART_'!$Q:$Q,'DATA MART_'!$G:$G,$G$3,'DATA MART_'!$A:$A,CONCATENATE($G$3,"|",L$7,"|",$Q37,"|",$I$2,"|",$P37,"|",$J$2,"|",$J$3,"|",$K$2,"|",$K$3),'DATA MART_'!$F:$F,$G$2)) -> 9.592191506 | M37: 4 | N37: 4 | O37: 30010044 | P37: 4 | Q37: =VLOOKUP(B34,'DATA MART_'!$AO$4:$AP$242,2,0) -> 4
A38: [3Y - 5Y ] | C38: =IF($G$2="TO",SUMIFS('DATA MART_'!$Q:$Q,'DATA MART_'!$G:$G,$G$3,'DATA MART_'!$A:$A,CONCATENATE($G$3,"|",C$7,"|",$Q38,"|",$I$2,"|",$P38,"|",$J$2,"|",$J$3,"|",$K$2,"|",$K$3)),SUMIFS('DATA MART_'!$Q:$Q,'DATA MART_'!$G:$G,$G$3,'DATA MART_'!$A:$A,CONCATENATE($G$3,"|",C$7,"|",$Q38,"|",$I$2,"|",$P38,"|",$J$2,"|",$J$3,"|",$K$2,"|",$K$3),'DATA MART_'!$F:$F,$G$2)) -> 242.6240609 | D38: =IF($G$2="TO",SUMIFS('DATA MART_'!$Q:$Q,'DATA MART_'!$G:$G,$G$3,'DATA MART_'!$A:$A,CONCATENATE($G$3,"|",D$7,"|",$Q38,"|",$I$2,"|",$P38,"|",$J$2,"|",$J$3,"|",$K$2,"|",$K$3)),SUMIFS('DATA MART_'!$Q:$Q,'DATA MART_'!$G:$G,$G$3,'DATA MART_'!$A:$A,CONCATENATE($G$3,"|",D$7,"|",$Q38,"|",$I$2,"|",$P38,"|",$J$2,"|",$J$3,"|",$K$2,"|",$K$3),'DATA MART_'!$F:$F,$G$2)) -> 0.48731846 | E38: =IF($G$2="TO",SUMIFS('DATA MART_'!$Q:$Q,'DATA MART_'!$G:$G,$G$3,'DATA MART_'!$A:$A,CONCATENATE($G$3,"|",E$7,"|",$Q38,"|",$I$2,"|",$P38,"|",$J$2,"|",$J$3,"|",$K$2,"|",$K$3)),SUMIFS('DATA MART_'!$Q:$Q,'DATA MART_'!$G:$G,$G$3,'DATA MART_'!$A:$A,CONCATENATE($G$3,"|",E$7,"|",$Q38,"|",$I$2,"|",$P38,"|",$J$2,"|",$J$3,"|",$K$2,"|",$K$3),'DATA MART_'!$F:$F,$G$2)) -> 242.6240609 | F38: =IF($G$2="TO",SUMIFS('DATA MART_'!$Q:$Q,'DATA MART_'!$G:$G,$G$3,'DATA MART_'!$A:$A,CONCATENATE($G$3,"|",F$7,"|",$Q38,"|",$I$2,"|",$P38,"|",$J$2,"|",$J$3,"|",$K$2,"|",$K$3)),SUMIFS('DATA MART_'!$Q:$Q,'DATA MART_'!$G:$G,$G$3,'DATA MART_'!$A:$A,CONCATENATE($G$3,"|",F$7,"|",$Q38,"|",$I$2,"|",$P38,"|",$J$2,"|",$J$3,"|",$K$2,"|",$K$3),'DATA MART_'!$F:$F,$G$2)) -> 1.999390896 | G38: =IF($G$2="TO",SUMIFS('DATA MART_'!$Q:$Q,'DATA MART_'!$G:$G,$G$3,'DATA MART_'!$A:$A,CONCATENATE($G$3,"|",G$7,"|",$Q38,"|",$I$2,"|",$P38,"|",$J$2,"|",$J$3,"|",$K$2,"|",$K$3)),SUMIFS('DATA MART_'!$Q:$Q,'DATA MART_'!$G:$G,$G$3,'DATA MART_'!$A:$A,CONCATENATE($G$3,"|",G$7,"|",$Q38,"|",$I$2,"|",$P38,"|",$J$2,"|",$J$3,"|",$K$2,"|",$K$3),'DATA MART_'!$F:$F,$G$2)) -> 12.9182323 | H38: =IF($G$2="TO",SUMIFS('DATA MART_'!$Q:$Q,'DATA MART_'!$G:$G,$G$3,'DATA MART_'!$A:$A,CONCATENATE($G$3,"|",H$7,"|",$Q38,"|",$I$2,"|",$P38,"|",$J$2,"|",$J$3,"|",$K$2,"|",$K$3)),SUMIFS('DATA MART_'!$Q:$Q,'DATA MART_'!$G:$G,$G$3,'DATA MART_'!$A:$A,CONCATENATE($G$3,"|",H$7,"|",$Q38,"|",$I$2,"|",$P38,"|",$J$2,"|",$J$3,"|",$K$2,"|",$K$3),'DATA MART_'!$F:$F,$G$2)) -> 0 | J38: =IF($G$2="TO",SUMIFS('DATA MART_'!$Q:$Q,'DATA MART_'!$G:$G,$G$3,'DATA MART_'!$A:$A,CONCATENATE($G$3,"|",J$7,"|",$Q38,"|",$I$2,"|",$P38,"|",$J$2,"|",$J$3,"|",$K$2,"|",$K$3)),SUMIFS('DATA MART_'!$Q:$Q,'DATA MART_'!$G:$G,$G$3,'DATA MART_'!$A:$A,CONCATENATE($G$3,"|",J$7,"|",$Q38,"|",$I$2,"|",$P38,"|",$J$2,"|",$J$3,"|",$K$2,"|",$K$3),'DATA MART_'!$F:$F,$G$2)) -> 0 | L38: =IF($G$2="TO",SUMIFS('DATA MART_'!$Q:$Q,'DATA MART_'!$G:$G,$G$3,'DATA MART_'!$A:$A,CONCATENATE($G$3,"|",L$7,"|",$Q38,"|",$I$2,"|",$P38,"|",$J$2,"|",$J$3,"|",$K$2,"|",$K$3)),SUMIFS('DATA MART_'!$Q:$Q,'DATA MART_'!$G:$G,$G$3,'DATA MART_'!$A:$A,CONCATENATE($G$3,"|",L$7,"|",$Q38,"|",$I$2,"|",$P38,"|",$J$2,"|",$J$3,"|",$K$2,"|",$K$3),'DATA MART_'!$F:$F,$G$2)) -> 0.9003371472 | M38: 4 | N38: 5 | O38: 30010045 | P38: 5 | Q38: =VLOOKUP(B34,'DATA MART_'!$AO$4:$AP$242,2,0) -> 4
A39: [5Y - 10Y ] | C39: =IF($G$2="TO",SUMIFS('DATA MART_'!$Q:$Q,'DATA MART_'!$G:$G,$G$3,'DATA MART_'!$A:$A,CONCATENATE($G$3,"|",C$7,"|",$Q39,"|",$I$2,"|",$P39,"|",$J$2,"|",$J$3,"|",$K$2,"|",$K$3)),SUMIFS('DATA MART_'!$Q:$Q,'DATA MART_'!$G:$G,$G$3,'DATA MART_'!$A:$A,CONCATENATE($G$3,"|",C$7,"|",$Q39,"|",$I$2,"|",$P39,"|",$J$2,"|",$J$3,"|",$K$2,"|",$K$3),'DATA MART_'!$F:$F,$G$2)) -> 205.4152691 | D39: =IF($G$2="TO",SUMIFS('DATA MART_'!$Q:$Q,'DATA MART_'!$G:$G,$G$3,'DATA MART_'!$A:$A,CONCATENATE($G$3,"|",D$7,"|",$Q39,"|",$I$2,"|",$P39,"|",$J$2,"|",$J$3,"|",$K$2,"|",$K$3)),SUMIFS('DATA MART_'!$Q:$Q,'DATA MART_'!$G:$G,$G$3,'DATA MART_'!$A:$A,CONCATENATE($G$3,"|",D$7,"|",$Q39,"|",$I$2,"|",$P39,"|",$J$2,"|",$J$3,"|",$K$2,"|",$K$3),'DATA MART_'!$F:$F,$G$2)) -> 2.415 | E39: =IF($G$2="TO",SUMIFS('DATA MART_'!$Q:$Q,'DATA MART_'!$G:$G,$G$3,'DATA MART_'!$A:$A,CONCATENATE($G$3,"|",E$7,"|",$Q39,"|",$I$2,"|",$P39,"|",$J$2,"|",$J$3,"|",$K$2,"|",$K$3)),SUMIFS('DATA MART_'!$Q:$Q,'DATA MART_'!$G:$G,$G$3,'DATA MART_'!$A:$A,CONCATENATE($G$3,"|",E$7,"|",$Q39,"|",$I$2,"|",$P39,"|",$J$2,"|",$J$3,"|",$K$2,"|",$K$3),'DATA MART_'!$F:$F,$G$2)) -> 205.0152691 | F39: =IF($G$2="TO",SUMIFS('DATA MART_'!$Q:$Q,'DATA MART_'!$G:$G,$G$3,'DATA MART_'!$A:$A,CONCATENATE($G$3,"|",F$7,"|",$Q39,"|",$I$2,"|",$P39,"|",$J$2,"|",$J$3,"|",$K$2,"|",$K$3)),SUMIFS('DATA MART_'!$Q:$Q,'DATA MART_'!$G:$G,$G$3,'DATA MART_'!$A:$A,CONCATENATE($G$3,"|",F$7,"|",$Q39,"|",$I$2,"|",$P39,"|",$J$2,"|",$J$3,"|",$K$2,"|",$K$3),'DATA MART_'!$F:$F,$G$2)) -> 7.783915443 | G39: =IF($G$2="TO",SUMIFS('DATA MART_'!$Q:$Q,'DATA MART_'!$G:$G,$G$3,'DATA MART_'!$A:$A,CONCATENATE($G$3,"|",G$7,"|",$Q39,"|",$I$2,"|",$P39,"|",$J$2,"|",$J$3,"|",$K$2,"|",$K$3)),SUMIFS('DATA MART_'!$Q:$Q,'DATA MART_'!$G:$G,$G$3,'DATA MART_'!$A:$A,CONCATENATE($G$3,"|",G$7,"|",$Q39,"|",$I$2,"|",$P39,"|",$J$2,"|",$J$3,"|",$K$2,"|",$K$3),'DATA MART_'!$F:$F,$G$2)) -> 2.99995 | H39: =IF($G$2="TO",SUMIFS('DATA MART_'!$Q:$Q,'DATA MART_'!$G:$G,$G$3,'DATA MART_'!$A:$A,CONCATENATE($G$3,"|",H$7,"|",$Q39,"|",$I$2,"|",$P39,"|",$J$2,"|",$J$3,"|",$K$2,"|",$K$3)),SUMIFS('DATA MART_'!$Q:$Q,'DATA MART_'!$G:$G,$G$3,'DATA MART_'!$A:$A,CONCATENATE($G$3,"|",H$7,"|",$Q39,"|",$I$2,"|",$P39,"|",$J$2,"|",$J$3,"|",$K$2,"|",$K$3),'DATA MART_'!$F:$F,$G$2)) -> 4.933855191 | J39: =IF($G$2="TO",SUMIFS('DATA MART_'!$Q:$Q,'DATA MART_'!$G:$G,$G$3,'DATA MART_'!$A:$A,CONCATENATE($G$3,"|",J$7,"|",$Q39,"|",$I$2,"|",$P39,"|",$J$2,"|",$J$3,"|",$K$2,"|",$K$3)),SUMIFS('DATA MART_'!$Q:$Q,'DATA MART_'!$G:$G,$G$3,'DATA MART_'!$A:$A,CONCATENATE($G$3,"|",J$7,"|",$Q39,"|",$I$2,"|",$P39,"|",$J$2,"|",$J$3,"|",$K$2,"|",$K$3),'DATA MART_'!$F:$F,$G$2)) -> 0 | L39: =IF($G$2="TO",SUMIFS('DATA MART_'!$Q:$Q,'DATA MART_'!$G:$G,$G$3,'DATA MART_'!$A:$A,CONCATENATE($G$3,"|",L$7,"|",$Q39,"|",$I$2,"|",$P39,"|",$J$2,"|",$J$3,"|",$K$2,"|",$K$3)),SUMIFS('DATA MART_'!$Q:$Q,'DATA MART_'!$G:$G,$G$3,'DATA MART_'!$A:$A,CONCATENATE($G$3,"|",L$7,"|",$Q39,"|",$I$2,"|",$P39,"|",$J$2,"|",$J$3,"|",$K$2,"|",$K$3),'DATA MART_'!$F:$F,$G$2)) -> 12.9149003 | M39: 4 | N39: 6 | O39: 30010046 | P39: 6 | Q39: =VLOOKUP(B34,'DATA MART_'!$AO$4:$AP$242,2,0) -> 4
A40: [10Y - more ] | C40: =IF($G$2="TO",SUMIFS('DATA MART_'!$Q:$Q,'DATA MART_'!$G:$G,$G$3,'DATA MART_'!$A:$A,CONCATENATE($G$3,"|",C$7,"|",$Q40,"|",$I$2,"|",$P40,"|",$J$2,"|",$J$3,"|",$K$2,"|",$K$3)),SUMIFS('DATA MART_'!$Q:$Q,'DATA MART_'!$G:$G,$G$3,'DATA MART_'!$A:$A,CONCATENATE($G$3,"|",C$7,"|",$Q40,"|",$I$2,"|",$P40,"|",$J$2,"|",$J$3,"|",$K$2,"|",$K$3),'DATA MART_'!$F:$F,$G$2)) -> 6.59016549 | D40: =IF($G$2="TO",SUMIFS('DATA MART_'!$Q:$Q,'DATA MART_'!$G:$G,$G$3,'DATA MART_'!$A:$A,CONCATENATE($G$3,"|",D$7,"|",$Q40,"|",$I$2,"|",$P40,"|",$J$2,"|",$J$3,"|",$K$2,"|",$K$3)),SUMIFS('DATA MART_'!$Q:$Q,'DATA MART_'!$G:$G,$G$3,'DATA MART_'!$A:$A,CONCATENATE($G$3,"|",D$7,"|",$Q40,"|",$I$2,"|",$P40,"|",$J$2,"|",$J$3,"|",$K$2,"|",$K$3),'DATA MART_'!$F:$F,$G$2)) -> 6.56856549 | E40: =IF($G$2="TO",SUMIFS('DATA MART_'!$Q:$Q,'DATA MART_'!$G:$G,$G$3,'DATA MART_'!$A:$A,CONCATENATE($G$3,"|",E$7,"|",$Q40,"|",$I$2,"|",$P40,"|",$J$2,"|",$J$3,"|",$K$2,"|",$K$3)),SUMIFS('DATA MART_'!$Q:$Q,'DATA MART_'!$G:$G,$G$3,'DATA MART_'!$A:$A,CONCATENATE($G$3,"|",E$7,"|",$Q40,"|",$I$2,"|",$P40,"|",$J$2,"|",$J$3,"|",$K$2,"|",$K$3),'DATA MART_'!$F:$F,$G$2)) -> 6.590165413 | F40: =IF($G$2="TO",SUMIFS('DATA MART_'!$Q:$Q,'DATA MART_'!$G:$G,$G$3,'DATA MART_'!$A:$A,CONCATENATE($G$3,"|",F$7,"|",$Q40,"|",$I$2,"|",$P40,"|",$J$2,"|",$J$3,"|",$K$2,"|",$K$3)),SUMIFS('DATA MART_'!$Q:$Q,'DATA MART_'!$G:$G,$G$3,'DATA MART_'!$A:$A,CONCATENATE($G$3,"|",F$7,"|",$Q40,"|",$I$2,"|",$P40,"|",$J$2,"|",$J$3,"|",$K$2,"|",$K$3),'DATA MART_'!$F:$F,$G$2)) -> 0 | G40: =IF($G$2="TO",SUMIFS('DATA MART_'!$Q:$Q,'DATA MART_'!$G:$G,$G$3,'DATA MART_'!$A:$A,CONCATENATE($G$3,"|",G$7,"|",$Q40,"|",$I$2,"|",$P40,"|",$J$2,"|",$J$3,"|",$K$2,"|",$K$3)),SUMIFS('DATA MART_'!$Q:$Q,'DATA MART_'!$G:$G,$G$3,'DATA MART_'!$A:$A,CONCATENATE($G$3,"|",G$7,"|",$Q40,"|",$I$2,"|",$P40,"|",$J$2,"|",$J$3,"|",$K$2,"|",$K$3),'DATA MART_'!$F:$F,$G$2)) -> 0 | H40: =IF($G$2="TO",SUMIFS('DATA MART_'!$Q:$Q,'DATA MART_'!$G:$G,$G$3,'DATA MART_'!$A:$A,CONCATENATE($G$3,"|",H$7,"|",$Q40,"|",$I$2,"|",$P40,"|",$J$2,"|",$J$3,"|",$K$2,"|",$K$3)),SUMIFS('DATA MART_'!$Q:$Q,'DATA MART_'!$G:$G,$G$3,'DATA MART_'!$A:$A,CONCATENATE($G$3,"|",H$7,"|",$Q40,"|",$I$2,"|",$P40,"|",$J$2,"|",$J$3,"|",$K$2,"|",$K$3),'DATA MART_'!$F:$F,$G$2)) -> 0 | J40: =IF($G$2="TO",SUMIFS('DATA MART_'!$Q:$Q,'DATA MART_'!$G:$G,$G$3,'DATA MART_'!$A:$A,CONCATENATE($G$3,"|",J$7,"|",$Q40,"|",$I$2,"|",$P40,"|",$J$2,"|",$J$3,"|",$K$2,"|",$K$3)),SUMIFS('DATA MART_'!$Q:$Q,'DATA MART_'!$G:$G,$G$3,'DATA MART_'!$A:$A,CONCATENATE($G$3,"|",J$7,"|",$Q40,"|",$I$2,"|",$P40,"|",$J$2,"|",$J$3,"|",$K$2,"|",$K$3),'DATA MART_'!$F:$F,$G$2)) -> 0 | L40: =IF($G$2="TO",SUMIFS('DATA MART_'!$Q:$Q,'DATA MART_'!$G:$G,$G$3,'DATA MART_'!$A:$A,CONCATENATE($G$3,"|",L$7,"|",$Q40,"|",$I$2,"|",$P40,"|",$J$2,"|",$J$3,"|",$K$2,"|",$K$3)),SUMIFS('DATA MART_'!$Q:$Q,'DATA MART_'!$G:$G,$G$3,'DATA MART_'!$A:$A,CONCATENATE($G$3,"|",L$7,"|",$Q40,"|",$I$2,"|",$P40,"|",$J$2,"|",$J$3,"|",$K$2,"|",$K$3),'DATA MART_'!$F:$F,$G$2)) -> 0 | M40: 4 | N40: 7 | O40: 30010047 | P40: 7 | Q40: =VLOOKUP(B34,'DATA MART_'!$AO$4:$AP$242,2,0) -> 4
A41: Total | C41: =IF($G$2="TO",SUMIFS('DATA MART_'!$Q:$Q,'DATA MART_'!$G:$G,$G$3,'DATA MART_'!$A:$A,CONCATENATE($G$3,"|",C$7,"|",$Q41,"|",$I$2,"|",$P41,"|",$J$2,"|",$J$3,"|",$K$2,"|",$K$3)),SUMIFS('DATA MART_'!$Q:$Q,'DATA MART_'!$G:$G,$G$3,'DATA MART_'!$A:$A,CONCATENATE($G$3,"|",C$7,"|",$Q41,"|",$I$2,"|",$P41,"|",$J$2,"|",$J$3,"|",$K$2,"|",$K$3),'DATA MART_'!$F:$F,$G$2)) -> 1330.852484 | D41: =IF($G$2="TO",SUMIFS('DATA MART_'!$Q:$Q,'DATA MART_'!$G:$G,$G$3,'DATA MART_'!$A:$A,CONCATENATE($G$3,"|",D$7,"|",$Q41,"|",$I$2,"|",$P41,"|",$J$2,"|",$J$3,"|",$K$2,"|",$K$3)),SUMIFS('DATA MART_'!$Q:$Q,'DATA MART_'!$G:$G,$G$3,'DATA MART_'!$A:$A,CONCATENATE($G$3,"|",D$7,"|",$Q41,"|",$I$2,"|",$P41,"|",$J$2,"|",$J$3,"|",$K$2,"|",$K$3),'DATA MART_'!$F:$F,$G$2)) -> 22.33427535 | E41: =IF($G$2="TO",SUMIFS('DATA MART_'!$Q:$Q,'DATA MART_'!$G:$G,$G$3,'DATA MART_'!$A:$A,CONCATENATE($G$3,"|",E$7,"|",$Q41,"|",$I$2,"|",$P41,"|",$J$2,"|",$J$3,"|",$K$2,"|",$K$3)),SUMIFS('DATA MART_'!$Q:$Q,'DATA MART_'!$G:$G,$G$3,'DATA MART_'!$A:$A,CONCATENATE($G$3,"|",E$7,"|",$Q41,"|",$I$2,"|",$P41,"|",$J$2,"|",$J$3,"|",$K$2,"|",$K$3),'DATA MART_'!$F:$F,$G$2)) -> 1294.421813 | F41: =IF($G$2="TO",SUMIFS('DATA MART_'!$Q:$Q,'DATA MART_'!$G:$G,$G$3,'DATA MART_'!$A:$A,CONCATENATE($G$3,"|",F$7,"|",$Q41,"|",$I$2,"|",$P41,"|",$J$2,"|",$J$3,"|",$K$2,"|",$K$3)),SUMIFS('DATA MART_'!$Q:$Q,'DATA MART_'!$G:$G,$G$3,'DATA MART_'!$A:$A,CONCATENATE($G$3,"|",F$7,"|",$Q41,"|",$I$2,"|",$P41,"|",$J$2,"|",$J$3,"|",$K$2,"|",$K$3),'DATA MART_'!$F:$F,$G$2)) -> 99.8157641 | G41: =IF($G$2="TO",SUMIFS('DATA MART_'!$Q:$Q,'DATA MART_'!$G:$G,$G$3,'DATA MART_'!$A:$A,CONCATENATE($G$3,"|",G$7,"|",$Q41,"|",$I$2,"|",$P41,"|",$J$2,"|",$J$3,"|",$K$2,"|",$K$3)),SUMIFS('DATA MART_'!$Q:$Q,'DATA MART_'!$G:$G,$G$3,'DATA MART_'!$A:$A,CONCATENATE($G$3,"|",G$7,"|",$Q41,"|",$I$2,"|",$P41,"|",$J$2,"|",$J$3,"|",$K$2,"|",$K$3),'DATA MART_'!$F:$F,$G$2)) -> 15.9181823 | H41: =IF($G$2="TO",SUMIFS('DATA MART_'!$Q:$Q,'DATA MART_'!$G:$G,$G$3,'DATA MART_'!$A:$A,CONCATENATE($G$3,"|",H$7,"|",$Q41,"|",$I$2,"|",$P41,"|",$J$2,"|",$J$3,"|",$K$2,"|",$K$3)),SUMIFS('DATA MART_'!$Q:$Q,'DATA MART_'!$G:$G,$G$3,'DATA MART_'!$A:$A,CONCATENATE($G$3,"|",H$7,"|",$Q41,"|",$I$2,"|",$P41,"|",$J$2,"|",$J$3,"|",$K$2,"|",$K$3),'DATA MART_'!$F:$F,$G$2)) -> 45.65856909 | J41: =IF($G$2="TO",SUMIFS('DATA MART_'!$Q:$Q,'DATA MART_'!$G:$G,$G$3,'DATA MART_'!$A:$A,CONCATENATE($G$3,"|",J$7,"|",$Q41,"|",$I$2,"|",$P41,"|",$J$2,"|",$J$3,"|",$K$2,"|",$K$3)),SUMIFS('DATA MART_'!$Q:$Q,'DATA MART_'!$G:$G,$G$3,'DATA MART_'!$A:$A,CONCATENATE($G$3,"|",J$7,"|",$Q41,"|",$I$2,"|",$P41,"|",$J$2,"|",$J$3,"|",$K$2,"|",$K$3),'DATA MART_'!$F:$F,$G$2)) -> -0.111072 | L41: =IF($G$2="TO",SUMIFS('DATA MART_'!$Q:$Q,'DATA MART_'!$G:$G,$G$3,'DATA MART_'!$A:$A,CONCATENATE($G$3,"|",L$7,"|",$Q41,"|",$I$2,"|",$P41,"|",$J$2,"|",$J$3,"|",$K$2,"|",$K$3)),SUMIFS('DATA MART_'!$Q:$Q,'DATA MART_'!$G:$G,$G$3,'DATA MART_'!$A:$A,CONCATENATE($G$3,"|",L$7,"|",$Q41,"|",$I$2,"|",$P41,"|",$J$2,"|",$J$3,"|",$K$2,"|",$K$3),'DATA MART_'!$F:$F,$G$2)) -> 35.03061034 | M41: 4 | N41: 8 | O41: 30010048 | P41: 8 | Q41: =VLOOKUP(B34,'DATA MART_'!$AO$4:$AP$242,2,0) -> 4
A42: [ 0 - 3M ] | B42: Czech Republic | C42: =IF($G$2="TO",SUMIFS('DATA MART_'!$Q:$Q,'DATA MART_'!$G:$G,$G$3,'DATA MART_'!$A:$A,CONCATENATE($G$3,"|",C$7,"|",$Q42,"|",$I$2,"|",$P42,"|",$J$2,"|",$J$3,"|",$K$2,"|",$K$3)),SUMIFS('DATA MART_'!$Q:$Q,'DATA MART_'!$G:$G,$G$3,'DATA MART_'!$A:$A,CONCATENATE($G$3,"|",C$7,"|",$Q42,"|",$I$2,"|",$P42,"|",$J$2,"|",$J$3,"|",$K$2,"|",$K$3),'DATA MART_'!$F:$F,$G$2)) -> 2555.151743 | D42: =IF($G$2="TO",SUMIFS('DATA MART_'!$Q:$Q,'DATA MART_'!$G:$G,$G$3,'DATA MART_'!$A:$A,CONCATENATE($G$3,"|",D$7,"|",$Q42,"|",$I$2,"|",$P42,"|",$J$2,"|",$J$3,"|",$K$2,"|",$K$3)),SUMIFS('DATA MART_'!$Q:$Q,'DATA MART_'!$G:$G,$G$3,'DATA MART_'!$A:$A,CONCATENATE($G$3,"|",D$7,"|",$Q42,"|",$I$2,"|",$P42,"|",$J$2,"|",$J$3,"|",$K$2,"|",$K$3),'DATA MART_'!$F:$F,$G$2)) -> 58.54023041 | E42: =IF($G$2="TO",SUMIFS('DATA MART_'!$Q:$Q,'DATA MART_'!$G:$G,$G$3,'DATA MART_'!$A:$A,CONCATENATE($G$3,"|",E$7,"|",$Q42,"|",$I$2,"|",$P42,"|",$J$2,"|",$J$3,"|",$K$2,"|",$K$3)),SUMIFS('DATA MART_'!$Q:$Q,'DATA MART_'!$G:$G,$G$3,'DATA MART_'!$A:$A,CONCATENATE($G$3,"|",E$7,"|",$Q42,"|",$I$2,"|",$P42,"|",$J$2,"|",$J$3,"|",$K$2,"|",$K$3),'DATA MART_'!$F:$F,$G$2)) -> 2546.300924 | F42: =IF($G$2="TO",SUMIFS('DATA MART_'!$Q:$Q,'DATA MART_'!$G:$G,$G$3,'DATA MART_'!$A:$A,CONCATENATE($G$3,"|",F$7,"|",$Q42,"|",$I$2,"|",$P42,"|",$J$2,"|",$J$3,"|",$K$2,"|",$K$3)),SUMIFS('DATA MART_'!$Q:$Q,'DATA MART_'!$G:$G,$G$3,'DATA MART_'!$A:$A,CONCATENATE($G$3,"|",F$7,"|",$Q42,"|",$I$2,"|",$P42,"|",$J$2,"|",$J$3,"|",$K$2,"|",$K$3),'DATA MART_'!$F:$F,$G$2)) -> 736.880914 | G42: =IF($G$2="TO",SUMIFS('DATA MART_'!$Q:$Q,'DATA MART_'!$G:$G,$G$3,'DATA MART_'!$A:$A,CONCATENATE($G$3,"|",G$7,"|",$Q42,"|",$I$2,"|",$P42,"|",$J$2,"|",$J$3,"|",$K$2,"|",$K$3)),SUMIFS('DATA MART_'!$Q:$Q,'DATA MART_'!$G:$G,$G$3,'DATA MART_'!$A:$A,CONCATENATE($G$3,"|",G$7,"|",$Q42,"|",$I$2,"|",$P42,"|",$J$2,"|",$J$3,"|",$K$2,"|",$K$3),'DATA MART_'!$F:$F,$G$2)) -> 16.07605626 | H42: =IF($G$2="TO",SUMIFS('DATA MART_'!$Q:$Q,'DATA MART_'!$G:$G,$G$3,'DATA MART_'!$A:$A,CONCATENATE($G$3,"|",H$7,"|",$Q42,"|",$I$2,"|",$P42,"|",$J$2,"|",$J$3,"|",$K$2,"|",$K$3)),SUMIFS('DATA MART_'!$Q:$Q,'DATA MART_'!$G:$G,$G$3,'DATA MART_'!$A:$A,CONCATENATE($G$3,"|",H$7,"|",$Q42,"|",$I$2,"|",$P42,"|",$J$2,"|",$J$3,"|",$K$2,"|",$K$3),'DATA MART_'!$F:$F,$G$2)) -> 1033.224673 | J42: =IF($G$2="TO",SUMIFS('DATA MART_'!$Q:$Q,'DATA MART_'!$G:$G,$G$3,'DATA MART_'!$A:$A,CONCATENATE($G$3,"|",J$7,"|",$Q42,"|",$I$2,"|",$P42,"|",$J$2,"|",$J$3,"|",$K$2,"|",$K$3)),SUMIFS('DATA MART_'!$Q:$Q,'DATA MART_'!$G:$G,$G$3,'DATA MART_'!$A:$A,CONCATENATE($G$3,"|",J$7,"|",$Q42,"|",$I$2,"|",$P42,"|",$J$2,"|",$J$3,"|",$K$2,"|",$K$3),'DATA MART_'!$F:$F,$G$2)) -> -13.32978551 | L42: =IF($G$2="TO",SUMIFS('DATA MART_'!$Q:$Q,'DATA MART_'!$G:$G,$G$3,'DATA MART_'!$A:$A,CONCATENATE($G$3,"|",L$7,"|",$Q42,"|",$I$2,"|",$P42,"|",$J$2,"|",$J$3,"|",$K$2,"|",$K$3)),SUMIFS('DATA MART_'!$Q:$Q,'DATA MART_'!$G:$G,$G$3,'DATA MART_'!$A:$A,CONCATENATE($G$3,"|",L$7,"|",$Q42,"|",$I$2,"|",$P42,"|",$J$2,"|",$J$3,"|",$K$2,"|",$K$3),'DATA MART_'!$F:$F,$G$2)) -> 2.158615379 | M42: 5 | N42: 1 | O42: 30010051 | P42: 1 | Q42: =VLOOKUP(B42,'DATA MART_'!$AO$4:$AP$242,2,0) -> 5
A43: [ 3M - 1Y ] | C43: =IF($G$2="TO",SUMIFS('DATA MART_'!$Q:$Q,'DATA MART_'!$G:$G,$G$3,'DATA MART_'!$A:$A,CONCATENATE($G$3,"|",C$7,"|",$Q43,"|",$I$2,"|",$P43,"|",$J$2,"|",$J$3,"|",$K$2,"|",$K$3)),SUMIFS('DATA MART_'!$Q:$Q,'DATA MART_'!$G:$G,$G$3,'DATA MART_'!$A:$A,CONCATENATE($G$3,"|",C$7,"|",$Q43,"|",$I$2,"|",$P43,"|",$J$2,"|",$J$3,"|",$K$2,"|",$K$3),'DATA MART_'!$F:$F,$G$2)) -> 5176.732651 | D43: =IF($G$2="TO",SUMIFS('DATA MART_'!$Q:$Q,'DATA MART_'!$G:$G,$G$3,'DATA MART_'!$A:$A,CONCATENATE($G$3,"|",D$7,"|",$Q43,"|",$I$2,"|",$P43,"|",$J$2,"|",$J$3,"|",$K$2,"|",$K$3)),SUMIFS('DATA MART_'!$Q:$Q,'DATA MART_'!$G:$G,$G$3,'DATA MART_'!$A:$A,CONCATENATE($G$3,"|",D$7,"|",$Q43,"|",$I$2,"|",$P43,"|",$J$2,"|",$J$3,"|",$K$2,"|",$K$3),'DATA MART_'!$F:$F,$G$2)) -> 49.27482024 | E43: =IF($G$2="TO",SUMIFS('DATA MART_'!$Q:$Q,'DATA MART_'!$G:$G,$G$3,'DATA MART_'!$A:$A,CONCATENATE($G$3,"|",E$7,"|",$Q43,"|",$I$2,"|",$P43,"|",$J$2,"|",$J$3,"|",$K$2,"|",$K$3)),SUMIFS('DATA MART_'!$Q:$Q,'DATA MART_'!$G:$G,$G$3,'DATA MART_'!$A:$A,CONCATENATE($G$3,"|",E$7,"|",$Q43,"|",$I$2,"|",$P43,"|",$J$2,"|",$J$3,"|",$K$2,"|",$K$3),'DATA MART_'!$F:$F,$G$2)) -> 5174.970735 | F43: =IF($G$2="TO",SUMIFS('DATA MART_'!$Q:$Q,'DATA MART_'!$G:$G,$G$3,'DATA MART_'!$A:$A,CONCATENATE($G$3,"|",F$7,"|",$Q43,"|",$I$2,"|",$P43,"|",$J$2,"|",$J$3,"|",$K$2,"|",$K$3)),SUMIFS('DATA MART_'!$Q:$Q,'DATA MART_'!$G:$G,$G$3,'DATA MART_'!$A:$A,CONCATENATE($G$3,"|",F$7,"|",$Q43,"|",$I$2,"|",$P43,"|",$J$2,"|",$J$3,"|",$K$2,"|",$K$3),'DATA MART_'!$F:$F,$G$2)) -> 872.7834312 | G43: =IF($G$2="TO",SUMIFS('DATA MART_'!$Q:$Q,'DATA MART_'!$G:$G,$G$3,'DATA MART_'!$A:$A,CONCATENATE($G$3,"|",G$7,"|",$Q43,"|",$I$2,"|",$P43,"|",$J$2,"|",$J$3,"|",$K$2,"|",$K$3)),SUMIFS('DATA MART_'!$Q:$Q,'DATA MART_'!$G:$G,$G$3,'DATA MART_'!$A:$A,CONCATENATE($G$3,"|",G$7,"|",$Q43,"|",$I$2,"|",$P43,"|",$J$2,"|",$J$3,"|",$K$2,"|",$K$3),'DATA MART_'!$F:$F,$G$2)) -> 221.8670867 | H43: =IF($G$2="TO",SUMIFS('DATA MART_'!$Q:$Q,'DATA MART_'!$G:$G,$G$3,'DATA MART_'!$A:$A,CONCATENATE($G$3,"|",H$7,"|",$Q43,"|",$I$2,"|",$P43,"|",$J$2,"|",$J$3,"|",$K$2,"|",$K$3)),SUMIFS('DATA MART_'!$Q:$Q,'DATA MART_'!$G:$G,$G$3,'DATA MART_'!$A:$A,CONCATENATE($G$3,"|",H$7,"|",$Q43,"|",$I$2,"|",$P43,"|",$J$2,"|",$J$3,"|",$K$2,"|",$K$3),'DATA MART_'!$F:$F,$G$2)) -> 2424.42395 | J43: =IF($G$2="TO",SUMIFS('DATA MART_'!$Q:$Q,'DATA MART_'!$G:$G,$G$3,'DATA MART_'!$A:$A,CONCATENATE($G$3,"|",J$7,"|",$Q43,"|",$I$2,"|",$P43,"|",$J$2,"|",$J$3,"|",$K$2,"|",$K$3)),SUMIFS('DATA MART_'!$Q:$Q,'DATA MART_'!$G:$G,$G$3,'DATA MART_'!$A:$A,CONCATENATE($G$3,"|",J$7,"|",$Q43,"|",$I$2,"|",$P43,"|",$J$2,"|",$J$3,"|",$K$2,"|",$K$3),'DATA MART_'!$F:$F,$G$2)) -> 2.891194427 | L43: =IF($G$2="TO",SUMIFS('DATA MART_'!$Q:$Q,'DATA MART_'!$G:$G,$G$3,'DATA MART_'!$A:$A,CONCATENATE($G$3,"|",L$7,"|",$Q43,"|",$I$2,"|",$P43,"|",$J$2,"|",$J$3,"|",$K$2,"|",$K$3)),SUMIFS('DATA MART_'!$Q:$Q,'DATA MART_'!$G:$G,$G$3,'DATA MART_'!$A:$A,CONCATENATE($G$3,"|",L$7,"|",$Q43,"|",$I$2,"|",$P43,"|",$J$2,"|",$J$3,"|",$K$2,"|",$K$3),'DATA MART_'!$F:$F,$G$2)) -> -8.309234723 | M43: 5 | N43: 2 | O43: 30010052 | P43: 2 | Q43: =VLOOKUP(B42,'DATA MART_'!$AO$4:$AP$242,2,0) -> 5
A44: [ 1Y - 2Y ] | C44: =IF($G$2="TO",SUMIFS('DATA MART_'!$Q:$Q,'DATA MART_'!$G:$G,$G$3,'DATA MART_'!$A:$A,CONCATENATE($G$3,"|",C$7,"|",$Q44,"|",$I$2,"|",$P44,"|",$J$2,"|",$J$3,"|",$K$2,"|",$K$3)),SUMIFS('DATA MART_'!$Q:$Q,'DATA MART_'!$G:$G,$G$3,'DATA MART_'!$A:$A,CONCATENATE($G$3,"|",C$7,"|",$Q44,"|",$I$2,"|",$P44,"|",$J$2,"|",$J$3,"|",$K$2,"|",$K$3),'DATA MART_'!$F:$F,$G$2)) -> 1998.938931 | D44: =IF($G$2="TO",SUMIFS('DATA MART_'!$Q:$Q,'DATA MART_'!$G:$G,$G$3,'DATA MART_'!$A:$A,CONCATENATE($G$3,"|",D$7,"|",$Q44,"|",$I$2,"|",$P44,"|",$J$2,"|",$J$3,"|",$K$2,"|",$K$3)),SUMIFS('DATA MART_'!$Q:$Q,'DATA MART_'!$G:$G,$G$3,'DATA MART_'!$A:$A,CONCATENATE($G$3,"|",D$7,"|",$Q44,"|",$I$2,"|",$P44,"|",$J$2,"|",$J$3,"|",$K$2,"|",$K$3),'DATA MART_'!$F:$F,$G$2)) -> 52.59716235 | E44: =IF($G$2="TO",SUMIFS('DATA MART_'!$Q:$Q,'DATA MART_'!$G:$G,$G$3,'DATA MART_'!$A:$A,CONCATENATE($G$3,"|",E$7,"|",$Q44,"|",$I$2,"|",$P44,"|",$J$2,"|",$J$3,"|",$K$2,"|",$K$3)),SUMIFS('DATA MART_'!$Q:$Q,'DATA MART_'!$G:$G,$G$3,'DATA MART_'!$A:$A,CONCATENATE($G$3,"|",E$7,"|",$Q44,"|",$I$2,"|",$P44,"|",$J$2,"|",$J$3,"|",$K$2,"|",$K$3),'DATA MART_'!$F:$F,$G$2)) -> 1995.833622 | F44: =IF($G$2="TO",SUMIFS('DATA MART_'!$Q:$Q,'DATA MART_'!$G:$G,$G$3,'DATA MART_'!$A:$A,CONCATENATE($G$3,"|",F$7,"|",$Q44,"|",$I$2,"|",$P44,"|",$J$2,"|",$J$3,"|",$K$2,"|",$K$3)),SUMIFS('DATA MART_'!$Q:$Q,'DATA MART_'!$G:$G,$G$3,'DATA MART_'!$A:$A,CONCATENATE($G$3,"|",F$7,"|",$Q44,"|",$I$2,"|",$P44,"|",$J$2,"|",$J$3,"|",$K$2,"|",$K$3),'DATA MART_'!$F:$F,$G$2)) -> 1023.094201 | G44: =IF($G$2="TO",SUMIFS('DATA MART_'!$Q:$Q,'DATA MART_'!$G:$G,$G$3,'DATA MART_'!$A:$A,CONCATENATE($G$3,"|",G$7,"|",$Q44,"|",$I$2,"|",$P44,"|",$J$2,"|",$J$3,"|",$K$2,"|",$K$3)),SUMIFS('DATA MART_'!$Q:$Q,'DATA MART_'!$G:$G,$G$3,'DATA MART_'!$A:$A,CONCATENATE($G$3,"|",G$7,"|",$Q44,"|",$I$2,"|",$P44,"|",$J$2,"|",$J$3,"|",$K$2,"|",$K$3),'DATA MART_'!$F:$F,$G$2)) -> 51.07946293 | H44: =IF($G$2="TO",SUMIFS('DATA MART_'!$Q:$Q,'DATA MART_'!$G:$G,$G$3,'DATA MART_'!$A:$A,CONCATENATE($G$3,"|",H$7,"|",$Q44,"|",$I$2,"|",$P44,"|",$J$2,"|",$J$3,"|",$K$2,"|",$K$3)),SUMIFS('DATA MART_'!$Q:$Q,'DATA MART_'!$G:$G,$G$3,'DATA MART_'!$A:$A,CONCATENATE($G$3,"|",H$7,"|",$Q44,"|",$I$2,"|",$P44,"|",$J$2,"|",$J$3,"|",$K$2,"|",$K$3),'DATA MART_'!$F:$F,$G$2)) -> 308.6317193 | J44: =IF($G$2="TO",SUMIFS('DATA MART_'!$Q:$Q,'DATA MART_'!$G:$G,$G$3,'DATA MART_'!$A:$A,CONCATENATE($G$3,"|",J$7,"|",$Q44,"|",$I$2,"|",$P44,"|",$J$2,"|",$J$3,"|",$K$2,"|",$K$3)),SUMIFS('DATA MART_'!$Q:$Q,'DATA MART_'!$G:$G,$G$3,'DATA MART_'!$A:$A,CONCATENATE($G$3,"|",J$7,"|",$Q44,"|",$I$2,"|",$P44,"|",$J$2,"|",$J$3,"|",$K$2,"|",$K$3),'DATA MART_'!$F:$F,$G$2)) -> 86.7307737 | L44: =IF($G$2="TO",SUMIFS('DATA MART_'!$Q:$Q,'DATA MART_'!$G:$G,$G$3,'DATA MART_'!$A:$A,CONCATENATE($G$3,"|",L$7,"|",$Q44,"|",$I$2,"|",$P44,"|",$J$2,"|",$J$3,"|",$K$2,"|",$K$3)),SUMIFS('DATA MART_'!$Q:$Q,'DATA MART_'!$G:$G,$G$3,'DATA MART_'!$A:$A,CONCATENATE($G$3,"|",L$7,"|",$Q44,"|",$I$2,"|",$P44,"|",$J$2,"|",$J$3,"|",$K$2,"|",$K$3),'DATA MART_'!$F:$F,$G$2)) -> 11.387929 | M44: 5 | N44: 3 | O44: 30010053 | P44: 3 | Q44: =VLOOKUP(B42,'DATA MART_'!$AO$4:$AP$242,2,0) -> 5
A45: [ 2Y - 3Y ] | C45: =IF($G$2="TO",SUMIFS('DATA MART_'!$Q:$Q,'DATA MART_'!$G:$G,$G$3,'DATA MART_'!$A:$A,CONCATENATE($G$3,"|",C$7,"|",$Q45,"|",$I$2,"|",$P45,"|",$J$2,"|",$J$3,"|",$K$2,"|",$K$3)),SUMIFS('DATA MART_'!$Q:$Q,'DATA MART_'!$G:$G,$G$3,'DATA MART_'!$A:$A,CONCATENATE($G$3,"|",C$7,"|",$Q45,"|",$I$2,"|",$P45,"|",$J$2,"|",$J$3,"|",$K$2,"|",$K$3),'DATA MART_'!$F:$F,$G$2)) -> 2363.695509 | D45: =IF($G$2="TO",SUMIFS('DATA MART_'!$Q:$Q,'DATA MART_'!$G:$G,$G$3,'DATA MART_'!$A:$A,CONCATENATE($G$3,"|",D$7,"|",$Q45,"|",$I$2,"|",$P45,"|",$J$2,"|",$J$3,"|",$K$2,"|",$K$3)),SUMIFS('DATA MART_'!$Q:$Q,'DATA MART_'!$G:$G,$G$3,'DATA MART_'!$A:$A,CONCATENATE($G$3,"|",D$7,"|",$Q45,"|",$I$2,"|",$P45,"|",$J$2,"|",$J$3,"|",$K$2,"|",$K$3),'DATA MART_'!$F:$F,$G$2)) -> 32.19431476 | E45: =IF($G$2="TO",SUMIFS('DATA MART_'!$Q:$Q,'DATA MART_'!$G:$G,$G$3,'DATA MART_'!$A:$A,CONCATENATE($G$3,"|",E$7,"|",$Q45,"|",$I$2,"|",$P45,"|",$J$2,"|",$J$3,"|",$K$2,"|",$K$3)),SUMIFS('DATA MART_'!$Q:$Q,'DATA MART_'!$G:$G,$G$3,'DATA MART_'!$A:$A,CONCATENATE($G$3,"|",E$7,"|",$Q45,"|",$I$2,"|",$P45,"|",$J$2,"|",$J$3,"|",$K$2,"|",$K$3),'DATA MART_'!$F:$F,$G$2)) -> 2356.212781 | F45: =IF($G$2="TO",SUMIFS('DATA MART_'!$Q:$Q,'DATA MART_'!$G:$G,$G$3,'DATA MART_'!$A:$A,CONCATENATE($G$3,"|",F$7,"|",$Q45,"|",$I$2,"|",$P45,"|",$J$2,"|",$J$3,"|",$K$2,"|",$K$3)),SUMIFS('DATA MART_'!$Q:$Q,'DATA MART_'!$G:$G,$G$3,'DATA MART_'!$A:$A,CONCATENATE($G$3,"|",F$7,"|",$Q45,"|",$I$2,"|",$P45,"|",$J$2,"|",$J$3,"|",$K$2,"|",$K$3),'DATA MART_'!$F:$F,$G$2)) -> 1065.845427 | G45: =IF($G$2="TO",SUMIFS('DATA MART_'!$Q:$Q,'DATA MART_'!$G:$G,$G$3,'DATA MART_'!$A:$A,CONCATENATE($G$3,"|",G$7,"|",$Q45,"|",$I$2,"|",$P45,"|",$J$2,"|",$J$3,"|",$K$2,"|",$K$3)),SUMIFS('DATA MART_'!$Q:$Q,'DATA MART_'!$G:$G,$G$3,'DATA MART_'!$A:$A,CONCATENATE($G$3,"|",G$7,"|",$Q45,"|",$I$2,"|",$P45,"|",$J$2,"|",$J$3,"|",$K$2,"|",$K$3),'DATA MART_'!$F:$F,$G$2)) -> 26.67600109 | H45: =IF($G$2="TO",SUMIFS('DATA MART_'!$Q:$Q,'DATA MART_'!$G:$G,$G$3,'DATA MART_'!$A:$A,CONCATENATE($G$3,"|",H$7,"|",$Q45,"|",$I$2,"|",$P45,"|",$J$2,"|",$J$3,"|",$K$2,"|",$K$3)),SUMIFS('DATA MART_'!$Q:$Q,'DATA MART_'!$G:$G,$G$3,'DATA MART_'!$A:$A,CONCATENATE($G$3,"|",H$7,"|",$Q45,"|",$I$2,"|",$P45,"|",$J$2,"|",$J$3,"|",$K$2,"|",$K$3),'DATA MART_'!$F:$F,$G$2)) -> 157.2297289 | J45: =IF($G$2="TO",SUMIFS('DATA MART_'!$Q:$Q,'DATA MART_'!$G:$G,$G$3,'DATA MART_'!$A:$A,CONCATENATE($G$3,"|",J$7,"|",$Q45,"|",$I$2,"|",$P45,"|",$J$2,"|",$J$3,"|",$K$2,"|",$K$3)),SUMIFS('DATA MART_'!$Q:$Q,'DATA MART_'!$G:$G,$G$3,'DATA MART_'!$A:$A,CONCATENATE($G$3,"|",J$7,"|",$Q45,"|",$I$2,"|",$P45,"|",$J$2,"|",$J$3,"|",$K$2,"|",$K$3),'DATA MART_'!$F:$F,$G$2)) -> 104.9127451 | L45: =IF($G$2="TO",SUMIFS('DATA MART_'!$Q:$Q,'DATA MART_'!$G:$G,$G$3,'DATA MART_'!$A:$A,CONCATENATE($G$3,"|",L$7,"|",$Q45,"|",$I$2,"|",$P45,"|",$J$2,"|",$J$3,"|",$K$2,"|",$K$3)),SUMIFS('DATA MART_'!$Q:$Q,'DATA MART_'!$G:$G,$G$3,'DATA MART_'!$A:$A,CONCATENATE($G$3,"|",L$7,"|",$Q45,"|",$I$2,"|",$P45,"|",$J$2,"|",$J$3,"|",$K$2,"|",$K$3),'DATA MART_'!$F:$F,$G$2)) -> 0.1749345373 | M45: 5 | N45: 4 | O45: 30010054 | P45: 4 | Q45: =VLOOKUP(B42,'DATA MART_'!$AO$4:$AP$242,2,0) -> 5
A46: [3Y - 5Y ] | C46: =IF($G$2="TO",SUMIFS('DATA MART_'!$Q:$Q,'DATA MART_'!$G:$G,$G$3,'DATA MART_'!$A:$A,CONCATENATE($G$3,"|",C$7,"|",$Q46,"|",$I$2,"|",$P46,"|",$J$2,"|",$J$3,"|",$K$2,"|",$K$3)),SUMIFS('DATA MART_'!$Q:$Q,'DATA MART_'!$G:$G,$G$3,'DATA MART_'!$A:$A,CONCATENATE($G$3,"|",C$7,"|",$Q46,"|",$I$2,"|",$P46,"|",$J$2,"|",$J$3,"|",$K$2,"|",$K$3),'DATA MART_'!$F:$F,$G$2)) -> 4729.429532 | D46: =IF($G$2="TO",SUMIFS('DATA MART_'!$Q:$Q,'DATA MART_'!$G:$G,$G$3,'DATA MART_'!$A:$A,CONCATENATE($G$3,"|",D$7,"|",$Q46,"|",$I$2,"|",$P46,"|",$J$2,"|",$J$3,"|",$K$2,"|",$K$3)),SUMIFS('DATA MART_'!$Q:$Q,'DATA MART_'!$G:$G,$G$3,'DATA MART_'!$A:$A,CONCATENATE($G$3,"|",D$7,"|",$Q46,"|",$I$2,"|",$P46,"|",$J$2,"|",$J$3,"|",$K$2,"|",$K$3),'DATA MART_'!$F:$F,$G$2)) -> 99.1125664 | E46: =IF($G$2="TO",SUMIFS('DATA MART_'!$Q:$Q,'DATA MART_'!$G:$G,$G$3,'DATA MART_'!$A:$A,CONCATENATE($G$3,"|",E$7,"|",$Q46,"|",$I$2,"|",$P46,"|",$J$2,"|",$J$3,"|",$K$2,"|",$K$3)),SUMIFS('DATA MART_'!$Q:$Q,'DATA MART_'!$G:$G,$G$3,'DATA MART_'!$A:$A,CONCATENATE($G$3,"|",E$7,"|",$Q46,"|",$I$2,"|",$P46,"|",$J$2,"|",$J$3,"|",$K$2,"|",$K$3),'DATA MART_'!$F:$F,$G$2)) -> 4729.429532 | F46: =IF($G$2="TO",SUMIFS('DATA MART_'!$Q:$Q,'DATA MART_'!$G:$G,$G$3,'DATA MART_'!$A:$A,CONCATENATE($G$3,"|",F$7,"|",$Q46,"|",$I$2,"|",$P46,"|",$J$2,"|",$J$3,"|",$K$2,"|",$K$3)),SUMIFS('DATA MART_'!$Q:$Q,'DATA MART_'!$G:$G,$G$3,'DATA MART_'!$A:$A,CONCATENATE($G$3,"|",F$7,"|",$Q46,"|",$I$2,"|",$P46,"|",$J$2,"|",$J$3,"|",$K$2,"|",$K$3),'DATA MART_'!$F:$F,$G$2)) -> 2589.985167 | G46: =IF($G$2="TO",SUMIFS('DATA MART_'!$Q:$Q,'DATA MART_'!$G:$G,$G$3,'DATA MART_'!$A:$A,CONCATENATE($G$3,"|",G$7,"|",$Q46,"|",$I$2,"|",$P46,"|",$J$2,"|",$J$3,"|",$K$2,"|",$K$3)),SUMIFS('DATA MART_'!$Q:$Q,'DATA MART_'!$G:$G,$G$3,'DATA MART_'!$A:$A,CONCATENATE($G$3,"|",G$7,"|",$Q46,"|",$I$2,"|",$P46,"|",$J$2,"|",$J$3,"|",$K$2,"|",$K$3),'DATA MART_'!$F:$F,$G$2)) -> 0.1782131923 | H46: =IF($G$2="TO",SUMIFS('DATA MART_'!$Q:$Q,'DATA MART_'!$G:$G,$G$3,'DATA MART_'!$A:$A,CONCATENATE($G$3,"|",H$7,"|",$Q46,"|",$I$2,"|",$P46,"|",$J$2,"|",$J$3,"|",$K$2,"|",$K$3)),SUMIFS('DATA MART_'!$Q:$Q,'DATA MART_'!$G:$G,$G$3,'DATA MART_'!$A:$A,CONCATENATE($G$3,"|",H$7,"|",$Q46,"|",$I$2,"|",$P46,"|",$J$2,"|",$J$3,"|",$K$2,"|",$K$3),'DATA MART_'!$F:$F,$G$2)) -> 312.3536716 | J46: =IF($G$2="TO",SUMIFS('DATA MART_'!$Q:$Q,'DATA MART_'!$G:$G,$G$3,'DATA MART_'!$A:$A,CONCATENATE($G$3,"|",J$7,"|",$Q46,"|",$I$2,"|",$P46,"|",$J$2,"|",$J$3,"|",$K$2,"|",$K$3)),SUMIFS('DATA MART_'!$Q:$Q,'DATA MART_'!$G:$G,$G$3,'DATA MART_'!$A:$A,CONCATENATE($G$3,"|",J$7,"|",$Q46,"|",$I$2,"|",$P46,"|",$J$2,"|",$J$3,"|",$K$2,"|",$K$3),'DATA MART_'!$F:$F,$G$2)) -> 5.25209112 | L46: =IF($G$2="TO",SUMIFS('DATA MART_'!$Q:$Q,'DATA MART_'!$G:$G,$G$3,'DATA MART_'!$A:$A,CONCATENATE($G$3,"|",L$7,"|",$Q46,"|",$I$2,"|",$P46,"|",$J$2,"|",$J$3,"|",$K$2,"|",$K$3)),SUMIFS('DATA MART_'!$Q:$Q,'DATA MART_'!$G:$G,$G$3,'DATA MART_'!$A:$A,CONCATENATE($G$3,"|",L$7,"|",$Q46,"|",$I$2,"|",$P46,"|",$J$2,"|",$J$3,"|",$K$2,"|",$K$3),'DATA MART_'!$F:$F,$G$2)) -> -1.878810519 | M46: 5 | N46: 5 | O46: 30010055 | P46: 5 | Q46: =VLOOKUP(B42,'DATA MART_'!$AO$4:$AP$242,2,0) -> 5
A47: [5Y - 10Y ] | C47: =IF($G$2="TO",SUMIFS('DATA MART_'!$Q:$Q,'DATA MART_'!$G:$G,$G$3,'DATA MART_'!$A:$A,CONCATENATE($G$3,"|",C$7,"|",$Q47,"|",$I$2,"|",$P47,"|",$J$2,"|",$J$3,"|",$K$2,"|",$K$3)),SUMIFS('DATA MART_'!$Q:$Q,'DATA MART_'!$G:$G,$G$3,'DATA MART_'!$A:$A,CONCATENATE($G$3,"|",C$7,"|",$Q47,"|",$I$2,"|",$P47,"|",$J$2,"|",$J$3,"|",$K$2,"|",$K$3),'DATA MART_'!$F:$F,$G$2)) -> 9763.326055 | D47: =IF($G$2="TO",SUMIFS('DATA MART_'!$Q:$Q,'DATA MART_'!$G:$G,$G$3,'DATA MART_'!$A:$A,CONCATENATE($G$3,"|",D$7,"|",$Q47,"|",$I$2,"|",$P47,"|",$J$2,"|",$J$3,"|",$K$2,"|",$K$3)),SUMIFS('DATA MART_'!$Q:$Q,'DATA MART_'!$G:$G,$G$3,'DATA MART_'!$A:$A,CONCATENATE($G$3,"|",D$7,"|",$Q47,"|",$I$2,"|",$P47,"|",$J$2,"|",$J$3,"|",$K$2,"|",$K$3),'DATA MART_'!$F:$F,$G$2)) -> 271.7648358 | E47: =IF($G$2="TO",SUMIFS('DATA MART_'!$Q:$Q,'DATA MART_'!$G:$G,$G$3,'DATA MART_'!$A:$A,CONCATENATE($G$3,"|",E$7,"|",$Q47,"|",$I$2,"|",$P47,"|",$J$2,"|",$J$3,"|",$K$2,"|",$K$3)),SUMIFS('DATA MART_'!$Q:$Q,'DATA MART_'!$G:$G,$G$3,'DATA MART_'!$A:$A,CONCATENATE($G$3,"|",E$7,"|",$Q47,"|",$I$2,"|",$P47,"|",$J$2,"|",$J$3,"|",$K$2,"|",$K$3),'DATA MART_'!$F:$F,$G$2)) -> 9675.833047 | F47: =IF($G$2="TO",SUMIFS('DATA MART_'!$Q:$Q,'DATA MART_'!$G:$G,$G$3,'DATA MART_'!$A:$A,CONCATENATE($G$3,"|",F$7,"|",$Q47,"|",$I$2,"|",$P47,"|",$J$2,"|",$J$3,"|",$K$2,"|",$K$3)),SUMIFS('DATA MART_'!$Q:$Q,'DATA MART_'!$G:$G,$G$3,'DATA MART_'!$A:$A,CONCATENATE($G$3,"|",F$7,"|",$Q47,"|",$I$2,"|",$P47,"|",$J$2,"|",$J$3,"|",$K$2,"|",$K$3),'DATA MART_'!$F:$F,$G$2)) -> 3257.079831 | G47: =IF($G$2="TO",SUMIFS('DATA MART_'!$Q:$Q,'DATA MART_'!$G:$G,$G$3,'DATA MART_'!$A:$A,CONCATENATE($G$3,"|",G$7,"|",$Q47,"|",$I$2,"|",$P47,"|",$J$2,"|",$J$3,"|",$K$2,"|",$K$3)),SUMIFS('DATA MART_'!$Q:$Q,'DATA MART_'!$G:$G,$G$3,'DATA MART_'!$A:$A,CONCATENATE($G$3,"|",G$7,"|",$Q47,"|",$I$2,"|",$P47,"|",$J$2,"|",$J$3,"|",$K$2,"|",$K$3),'DATA MART_'!$F:$F,$G$2)) -> 0 | H47: =IF($G$2="TO",SUMIFS('DATA MART_'!$Q:$Q,'DATA MART_'!$G:$G,$G$3,'DATA MART_'!$A:$A,CONCATENATE($G$3,"|",H$7,"|",$Q47,"|",$I$2,"|",$P47,"|",$J$2,"|",$J$3,"|",$K$2,"|",$K$3)),SUMIFS('DATA MART_'!$Q:$Q,'DATA MART_'!$G:$G,$G$3,'DATA MART_'!$A:$A,CONCATENATE($G$3,"|",H$7,"|",$Q47,"|",$I$2,"|",$P47,"|",$J$2,"|",$J$3,"|",$K$2,"|",$K$3),'DATA MART_'!$F:$F,$G$2)) -> 290.9525086 | J47: =IF($G$2="TO",SUMIFS('DATA MART_'!$Q:$Q,'DATA MART_'!$G:$G,$G$3,'DATA MART_'!$A:$A,CONCATENATE($G$3,"|",J$7,"|",$Q47,"|",$I$2,"|",$P47,"|",$J$2,"|",$J$3,"|",$K$2,"|",$K$3)),SUMIFS('DATA MART_'!$Q:$Q,'DATA MART_'!$G:$G,$G$3,'DATA MART_'!$A:$A,CONCATENATE($G$3,"|",J$7,"|",$Q47,"|",$I$2,"|",$P47,"|",$J$2,"|",$J$3,"|",$K$2,"|",$K$3),'DATA MART_'!$F:$F,$G$2)) -> -31.08006666 | L47: =IF($G$2="TO",SUMIFS('DATA MART_'!$Q:$Q,'DATA MART_'!$G:$G,$G$3,'DATA MART_'!$A:$A,CONCATENATE($G$3,"|",L$7,"|",$Q47,"|",$I$2,"|",$P47,"|",$J$2,"|",$J$3,"|",$K$2,"|",$K$3)),SUMIFS('DATA MART_'!$Q:$Q,'DATA MART_'!$G:$G,$G$3,'DATA MART_'!$A:$A,CONCATENATE($G$3,"|",L$7,"|",$Q47,"|",$I$2,"|",$P47,"|",$J$2,"|",$J$3,"|",$K$2,"|",$K$3),'DATA MART_'!$F:$F,$G$2)) -> -8.093593611 | M47: 5 | N47: 6 | O47: 30010056 | P47: 6 | Q47: =VLOOKUP(B42,'DATA MART_'!$AO$4:$AP$242,2,0) -> 5
A48: [10Y - more ] | C48: =IF($G$2="TO",SUMIFS('DATA MART_'!$Q:$Q,'DATA MART_'!$G:$G,$G$3,'DATA MART_'!$A:$A,CONCATENATE($G$3,"|",C$7,"|",$Q48,"|",$I$2,"|",$P48,"|",$J$2,"|",$J$3,"|",$K$2,"|",$K$3)),SUMIFS('DATA MART_'!$Q:$Q,'DATA MART_'!$G:$G,$G$3,'DATA MART_'!$A:$A,CONCATENATE($G$3,"|",C$7,"|",$Q48,"|",$I$2,"|",$P48,"|",$J$2,"|",$J$3,"|",$K$2,"|",$K$3),'DATA MART_'!$F:$F,$G$2)) -> 3154.663553 | D48: =IF($G$2="TO",SUMIFS('DATA MART_'!$Q:$Q,'DATA MART_'!$G:$G,$G$3,'DATA MART_'!$A:$A,CONCATENATE($G$3,"|",D$7,"|",$Q48,"|",$I$2,"|",$P48,"|",$J$2,"|",$J$3,"|",$K$2,"|",$K$3)),SUMIFS('DATA MART_'!$Q:$Q,'DATA MART_'!$G:$G,$G$3,'DATA MART_'!$A:$A,CONCATENATE($G$3,"|",D$7,"|",$Q48,"|",$I$2,"|",$P48,"|",$J$2,"|",$J$3,"|",$K$2,"|",$K$3),'DATA MART_'!$F:$F,$G$2)) -> 557.3814099 | E48: =IF($G$2="TO",SUMIFS('DATA MART_'!$Q:$Q,'DATA MART_'!$G:$G,$G$3,'DATA MART_'!$A:$A,CONCATENATE($G$3,"|",E$7,"|",$Q48,"|",$I$2,"|",$P48,"|",$J$2,"|",$J$3,"|",$K$2,"|",$K$3)),SUMIFS('DATA MART_'!$Q:$Q,'DATA MART_'!$G:$G,$G$3,'DATA MART_'!$A:$A,CONCATENATE($G$3,"|",E$7,"|",$Q48,"|",$I$2,"|",$P48,"|",$J$2,"|",$J$3,"|",$K$2,"|",$K$3),'DATA MART_'!$F:$F,$G$2)) -> 2842.283309 | F48: =IF($G$2="TO",SUMIFS('DATA MART_'!$Q:$Q,'DATA MART_'!$G:$G,$G$3,'DATA MART_'!$A:$A,CONCATENATE($G$3,"|",F$7,"|",$Q48,"|",$I$2,"|",$P48,"|",$J$2,"|",$J$3,"|",$K$2,"|",$K$3)),SUMIFS('DATA MART_'!$Q:$Q,'DATA MART_'!$G:$G,$G$3,'DATA MART_'!$A:$A,CONCATENATE($G$3,"|",F$7,"|",$Q48,"|",$I$2,"|",$P48,"|",$J$2,"|",$J$3,"|",$K$2,"|",$K$3),'DATA MART_'!$F:$F,$G$2)) -> 1037.322993 | G48: =IF($G$2="TO",SUMIFS('DATA MART_'!$Q:$Q,'DATA MART_'!$G:$G,$G$3,'DATA MART_'!$A:$A,CONCATENATE($G$3,"|",G$7,"|",$Q48,"|",$I$2,"|",$P48,"|",$J$2,"|",$J$3,"|",$K$2,"|",$K$3)),SUMIFS('DATA MART_'!$Q:$Q,'DATA MART_'!$G:$G,$G$3,'DATA MART_'!$A:$A,CONCATENATE($G$3,"|",G$7,"|",$Q48,"|",$I$2,"|",$P48,"|",$J$2,"|",$J$3,"|",$K$2,"|",$K$3),'DATA MART_'!$F:$F,$G$2)) -> 26.11328798 | H48: =IF($G$2="TO",SUMIFS('DATA MART_'!$Q:$Q,'DATA MART_'!$G:$G,$G$3,'DATA MART_'!$A:$A,CONCATENATE($G$3,"|",H$7,"|",$Q48,"|",$I$2,"|",$P48,"|",$J$2,"|",$J$3,"|",$K$2,"|",$K$3)),SUMIFS('DATA MART_'!$Q:$Q,'DATA MART_'!$G:$G,$G$3,'DATA MART_'!$A:$A,CONCATENATE($G$3,"|",H$7,"|",$Q48,"|",$I$2,"|",$P48,"|",$J$2,"|",$J$3,"|",$K$2,"|",$K$3),'DATA MART_'!$F:$F,$G$2)) -> 72.60600724 | J48: =IF($G$2="TO",SUMIFS('DATA MART_'!$Q:$Q,'DATA MART_'!$G:$G,$G$3,'DATA MART_'!$A:$A,CONCATENATE($G$3,"|",J$7,"|",$Q48,"|",$I$2,"|",$P48,"|",$J$2,"|",$J$3,"|",$K$2,"|",$K$3)),SUMIFS('DATA MART_'!$Q:$Q,'DATA MART_'!$G:$G,$G$3,'DATA MART_'!$A:$A,CONCATENATE($G$3,"|",J$7,"|",$Q48,"|",$I$2,"|",$P48,"|",$J$2,"|",$J$3,"|",$K$2,"|",$K$3),'DATA MART_'!$F:$F,$G$2)) -> 1.20122141 | L48: =IF($G$2="TO",SUMIFS('DATA MART_'!$Q:$Q,'DATA MART_'!$G:$G,$G$3,'DATA MART_'!$A:$A,CONCATENATE($G$3,"|",L$7,"|",$Q48,"|",$I$2,"|",$P48,"|",$J$2,"|",$J$3,"|",$K$2,"|",$K$3)),SUMIFS('DATA MART_'!$Q:$Q,'DATA MART_'!$G:$G,$G$3,'DATA MART_'!$A:$A,CONCATENATE($G$3,"|",L$7,"|",$Q48,"|",$I$2,"|",$P48,"|",$J$2,"|",$J$3,"|",$K$2,"|",$K$3),'DATA MART_'!$F:$F,$G$2)) -> 0 | M48: 5 | N48: 7 | O48: 30010057 | P48: 7 | Q48: =VLOOKUP(B42,'DATA MART_'!$AO$4:$AP$242,2,0) -> 5
A49: Total | C49: =IF($G$2="TO",SUMIFS('DATA MART_'!$Q:$Q,'DATA MART_'!$G:$G,$G$3,'DATA MART_'!$A:$A,CONCATENATE($G$3,"|",C$7,"|",$Q49,"|",$I$2,"|",$P49,"|",$J$2,"|",$J$3,"|",$K$2,"|",$K$3)),SUMIFS('DATA MART_'!$Q:$Q,'DATA MART_'!$G:$G,$G$3,'DATA MART_'!$A:$A,CONCATENATE($G$3,"|",C$7,"|",$Q49,"|",$I$2,"|",$P49,"|",$J$2,"|",$J$3,"|",$K$2,"|",$K$3),'DATA MART_'!$F:$F,$G$2)) -> 29741.93797 | D49: =IF($G$2="TO",SUMIFS('DATA MART_'!$Q:$Q,'DATA MART_'!$G:$G,$G$3,'DATA MART_'!$A:$A,CONCATENATE($G$3,"|",D$7,"|",$Q49,"|",$I$2,"|",$P49,"|",$J$2,"|",$J$3,"|",$K$2,"|",$K$3)),SUMIFS('DATA MART_'!$Q:$Q,'DATA MART_'!$G:$G,$G$3,'DATA MART_'!$A:$A,CONCATENATE($G$3,"|",D$7,"|",$Q49,"|",$I$2,"|",$P49,"|",$J$2,"|",$J$3,"|",$K$2,"|",$K$3),'DATA MART_'!$F:$F,$G$2)) -> 1120.86534 | E49: =IF($G$2="TO",SUMIFS('DATA MART_'!$Q:$Q,'DATA MART_'!$G:$G,$G$3,'DATA MART_'!$A:$A,CONCATENATE($G$3,"|",E$7,"|",$Q49,"|",$I$2,"|",$P49,"|",$J$2,"|",$J$3,"|",$K$2,"|",$K$3)),SUMIFS('DATA MART_'!$Q:$Q,'DATA MART_'!$G:$G,$G$3,'DATA MART_'!$A:$A,CONCATENATE($G$3,"|",E$7,"|",$Q49,"|",$I$2,"|",$P49,"|",$J$2,"|",$J$3,"|",$K$2,"|",$K$3),'DATA MART_'!$F:$F,$G$2)) -> 29320.86395 | F49: =IF($G$2="TO",SUMIFS('DATA MART_'!$Q:$Q,'DATA MART_'!$G:$G,$G$3,'DATA MART_'!$A:$A,CONCATENATE($G$3,"|",F$7,"|",$Q49,"|",$I$2,"|",$P49,"|",$J$2,"|",$J$3,"|",$K$2,"|",$K$3)),SUMIFS('DATA MART_'!$Q:$Q,'DATA MART_'!$G:$G,$G$3,'DATA MART_'!$A:$A,CONCATENATE($G$3,"|",F$7,"|",$Q49,"|",$I$2,"|",$P49,"|",$J$2,"|",$J$3,"|",$K$2,"|",$K$3),'DATA MART_'!$F:$F,$G$2)) -> 10583.58552 | G49: =IF($G$2="TO",SUMIFS('DATA MART_'!$Q:$Q,'DATA MART_'!$G:$G,$G$3,'DATA MART_'!$A:$A,CONCATENATE($G$3,"|",G$7,"|",$Q49,"|",$I$2,"|",$P49,"|",$J$2,"|",$J$3,"|",$K$2,"|",$K$3)),SUMIFS('DATA MART_'!$Q:$Q,'DATA MART_'!$G:$G,$G$3,'DATA MART_'!$A:$A,CONCATENATE($G$3,"|",G$7,"|",$Q49,"|",$I$2,"|",$P49,"|",$J$2,"|",$J$3,"|",$K$2,"|",$K$3),'DATA MART_'!$F:$F,$G$2)) -> 341.9901082 | H49: =IF($G$2="TO",SUMIFS('DATA MART_'!$Q:$Q,'DATA MART_'!$G:$G,$G$3,'DATA MART_'!$A:$A,CONCATENATE($G$3,"|",H$7,"|",$Q49,"|",$I$2,"|",$P49,"|",$J$2,"|",$J$3,"|",$K$2,"|",$K$3)),SUMIFS('DATA MART_'!$Q:$Q,'DATA MART_'!$G:$G,$G$3,'DATA MART_'!$A:$A,CONCATENATE($G$3,"|",H$7,"|",$Q49,"|",$I$2,"|",$P49,"|",$J$2,"|",$J$3,"|",$K$2,"|",$K$3),'DATA MART_'!$F:$F,$G$2)) -> 4598.338078 | J49: =IF($G$2="TO",SUMIFS('DATA MART_'!$Q:$Q,'DATA MART_'!$G:$G,$G$3,'DATA MART_'!$A:$A,CONCATENATE($G$3,"|",J$7,"|",$Q49,"|",$I$2,"|",$P49,"|",$J$2,"|",$J$3,"|",$K$2,"|",$K$3)),SUMIFS('DATA MART_'!$Q:$Q,'DATA MART_'!$G:$G,$G$3,'DATA MART_'!$A:$A,CONCATENATE($G$3,"|",J$7,"|",$Q49,"|",$I$2,"|",$P49,"|",$J$2,"|",$J$3,"|",$K$2,"|",$K$3),'DATA MART_'!$F:$F,$G$2)) -> 157.1951773 | L49: =IF($G$2="TO",SUMIFS('DATA MART_'!$Q:$Q,'DATA MART_'!$G:$G,$G$3,'DATA MART_'!$A:$A,CONCATENATE($G$3,"|",L$7,"|",$Q49,"|",$I$2,"|",$P49,"|",$J$2,"|",$J$3,"|",$K$2,"|",$K$3)),SUMIFS('DATA MART_'!$Q:$Q,'DATA MART_'!$G:$G,$G$3,'DATA MART_'!$A:$A,CONCATENATE($G$3,"|",L$7,"|",$Q49,"|",$I$2,"|",$P49,"|",$J$2,"|",$J$3,"|",$K$2,"|",$K$3),'DATA MART_'!$F:$F,$G$2)) -> -4.560159934 | M49: 5 | N49: 8 | O49: 30010058 | P49: 8 | Q49: =VLOOKUP(B42,'DATA MART_'!$AO$4:$AP$242,2,0) -> 5
A50: [ 0 - 3M ] | B50: Denmark | C50: =IF($G$2="TO",SUMIFS('DATA MART_'!$Q:$Q,'DATA MART_'!$G:$G,$G$3,'DATA MART_'!$A:$A,CONCATENATE($G$3,"|",C$7,"|",$Q50,"|",$I$2,"|",$P50,"|",$J$2,"|",$J$3,"|",$K$2,"|",$K$3)),SUMIFS('DATA MART_'!$Q:$Q,'DATA MART_'!$G:$G,$G$3,'DATA MART_'!$A:$A,CONCATENATE($G$3,"|",C$7,"|",$Q50,"|",$I$2,"|",$P50,"|",$J$2,"|",$J$3,"|",$K$2,"|",$K$3),'DATA MART_'!$F:$F,$G$2)) -> 23990.66274 | D50: =IF($G$2="TO",SUMIFS('DATA MART_'!$Q:$Q,'DATA MART_'!$G:$G,$G$3,'DATA MART_'!$A:$A,CONCATENATE($G$3,"|",D$7,"|",$Q50,"|",$I$2,"|",$P50,"|",$J$2,"|",$J$3,"|",$K$2,"|",$K$3)),SUMIFS('DATA MART_'!$Q:$Q,'DATA MART_'!$G:$G,$G$3,'DATA MART_'!$A:$A,CONCATENATE($G$3,"|",D$7,"|",$Q50,"|",$I$2,"|",$P50,"|",$J$2,"|",$J$3,"|",$K$2,"|",$K$3),'DATA MART_'!$F:$F,$G$2)) -> 15427.06217 | E50: =IF($G$2="TO",SUMIFS('DATA MART_'!$Q:$Q,'DATA MART_'!$G:$G,$G$3,'DATA MART_'!$A:$A,CONCATENATE($G$3,"|",E$7,"|",$Q50,"|",$I$2,"|",$P50,"|",$J$2,"|",$J$3,"|",$K$2,"|",$K$3)),SUMIFS('DATA MART_'!$Q:$Q,'DATA MART_'!$G:$G,$G$3,'DATA MART_'!$A:$A,CONCATENATE($G$3,"|",E$7,"|",$Q50,"|",$I$2,"|",$P50,"|",$J$2,"|",$J$3,"|",$K$2,"|",$K$3),'DATA MART_'!$F:$F,$G$2)) -> 23322.15149 | F50: =IF($G$2="TO",SUMIFS('DATA MART_'!$Q:$Q,'DATA MART_'!$G:$G,$G$3,'DATA MART_'!$A:$A,CONCATENATE($G$3,"|",F$7,"|",$Q50,"|",$I$2,"|",$P50,"|",$J$2,"|",$J$3,"|",$K$2,"|",$K$3)),SUMIFS('DATA MART_'!$Q:$Q,'DATA MART_'!$G:$G,$G$3,'DATA MART_'!$A:$A,CONCATENATE($G$3,"|",F$7,"|",$Q50,"|",$I$2,"|",$P50,"|",$J$2,"|",$J$3,"|",$K$2,"|",$K$3),'DATA MART_'!$F:$F,$G$2)) -> 10501.80655 | G50: =IF($G$2="TO",SUMIFS('DATA MART_'!$Q:$Q,'DATA MART_'!$G:$G,$G$3,'DATA MART_'!$A:$A,CONCATENATE($G$3,"|",G$7,"|",$Q50,"|",$I$2,"|",$P50,"|",$J$2,"|",$J$3,"|",$K$2,"|",$K$3)),SUMIFS('DATA MART_'!$Q:$Q,'DATA MART_'!$G:$G,$G$3,'DATA MART_'!$A:$A,CONCATENATE($G$3,"|",G$7,"|",$Q50,"|",$I$2,"|",$P50,"|",$J$2,"|",$J$3,"|",$K$2,"|",$K$3),'DATA MART_'!$F:$F,$G$2)) -> 0 | H50: =IF($G$2="TO",SUMIFS('DATA MART_'!$Q:$Q,'DATA MART_'!$G:$G,$G$3,'DATA MART_'!$A:$A,CONCATENATE($G$3,"|",H$7,"|",$Q50,"|",$I$2,"|",$P50,"|",$J$2,"|",$J$3,"|",$K$2,"|",$K$3)),SUMIFS('DATA MART_'!$Q:$Q,'DATA MART_'!$G:$G,$G$3,'DATA MART_'!$A:$A,CONCATENATE($G$3,"|",H$7,"|",$Q50,"|",$I$2,"|",$P50,"|",$J$2,"|",$J$3,"|",$K$2,"|",$K$3),'DATA MART_'!$F:$F,$G$2)) -> 10091.41844 | J50: =IF($G$2="TO",SUMIFS('DATA MART_'!$Q:$Q,'DATA MART_'!$G:$G,$G$3,'DATA MART_'!$A:$A,CONCATENATE($G$3,"|",J$7,"|",$Q50,"|",$I$2,"|",$P50,"|",$J$2,"|",$J$3,"|",$K$2,"|",$K$3)),SUMIFS('DATA MART_'!$Q:$Q,'DATA MART_'!$G:$G,$G$3,'DATA MART_'!$A:$A,CONCATENATE($G$3,"|",J$7,"|",$Q50,"|",$I$2,"|",$P50,"|",$J$2,"|",$J$3,"|",$K$2,"|",$K$3),'DATA MART_'!$F:$F,$G$2)) -> -723.1311393 | L50: =IF($G$2="TO",SUMIFS('DATA MART_'!$Q:$Q,'DATA MART_'!$G:$G,$G$3,'DATA MART_'!$A:$A,CONCATENATE($G$3,"|",L$7,"|",$Q50,"|",$I$2,"|",$P50,"|",$J$2,"|",$J$3,"|",$K$2,"|",$K$3)),SUMIFS('DATA MART_'!$Q:$Q,'DATA MART_'!$G:$G,$G$3,'DATA MART_'!$A:$A,CONCATENATE($G$3,"|",L$7,"|",$Q50,"|",$I$2,"|",$P50,"|",$J$2,"|",$J$3,"|",$K$2,"|",$K$3),'DATA MART_'!$F:$F,$G$2)) -> 15 | M50: 6 | N50: 1 | O50: 30010061 | P50: 1 | Q50: =VLOOKUP(B50,'DATA MART_'!$AO$4:$AP$242,2,0) -> 6
A51: [ 3M - 1Y ] | C51: =IF($G$2="TO",SUMIFS('DATA MART_'!$Q:$Q,'DATA MART_'!$G:$G,$G$3,'DATA MART_'!$A:$A,CONCATENATE($G$3,"|",C$7,"|",$Q51,"|",$I$2,"|",$P51,"|",$J$2,"|",$J$3,"|",$K$2,"|",$K$3)),SUMIFS('DATA MART_'!$Q:$Q,'DATA MART_'!$G:$G,$G$3,'DATA MART_'!$A:$A,CONCATENATE($G$3,"|",C$7,"|",$Q51,"|",$I$2,"|",$P51,"|",$J$2,"|",$J$3,"|",$K$2,"|",$K$3),'DATA MART_'!$F:$F,$G$2)) -> 4843.064047 | D51: =IF($G$2="TO",SUMIFS('DATA MART_'!$Q:$Q,'DATA MART_'!$G:$G,$G$3,'DATA MART_'!$A:$A,CONCATENATE($G$3,"|",D$7,"|",$Q51,"|",$I$2,"|",$P51,"|",$J$2,"|",$J$3,"|",$K$2,"|",$K$3)),SUMIFS('DATA MART_'!$Q:$Q,'DATA MART_'!$G:$G,$G$3,'DATA MART_'!$A:$A,CONCATENATE($G$3,"|",D$7,"|",$Q51,"|",$I$2,"|",$P51,"|",$J$2,"|",$J$3,"|",$K$2,"|",$K$3),'DATA MART_'!$F:$F,$G$2)) -> 81.70432918 | E51: =IF($G$2="TO",SUMIFS('DATA MART_'!$Q:$Q,'DATA MART_'!$G:$G,$G$3,'DATA MART_'!$A:$A,CONCATENATE($G$3,"|",E$7,"|",$Q51,"|",$I$2,"|",$P51,"|",$J$2,"|",$J$3,"|",$K$2,"|",$K$3)),SUMIFS('DATA MART_'!$Q:$Q,'DATA MART_'!$G:$G,$G$3,'DATA MART_'!$A:$A,CONCATENATE($G$3,"|",E$7,"|",$Q51,"|",$I$2,"|",$P51,"|",$J$2,"|",$J$3,"|",$K$2,"|",$K$3),'DATA MART_'!$F:$F,$G$2)) -> 4807.947586 | F51: =IF($G$2="TO",SUMIFS('DATA MART_'!$Q:$Q,'DATA MART_'!$G:$G,$G$3,'DATA MART_'!$A:$A,CONCATENATE($G$3,"|",F$7,"|",$Q51,"|",$I$2,"|",$P51,"|",$J$2,"|",$J$3,"|",$K$2,"|",$K$3)),SUMIFS('DATA MART_'!$Q:$Q,'DATA MART_'!$G:$G,$G$3,'DATA MART_'!$A:$A,CONCATENATE($G$3,"|",F$7,"|",$Q51,"|",$I$2,"|",$P51,"|",$J$2,"|",$J$3,"|",$K$2,"|",$K$3),'DATA MART_'!$F:$F,$G$2)) -> 1241.269452 | G51: =IF($G$2="TO",SUMIFS('DATA MART_'!$Q:$Q,'DATA MART_'!$G:$G,$G$3,'DATA MART_'!$A:$A,CONCATENATE($G$3,"|",G$7,"|",$Q51,"|",$I$2,"|",$P51,"|",$J$2,"|",$J$3,"|",$K$2,"|",$K$3)),SUMIFS('DATA MART_'!$Q:$Q,'DATA MART_'!$G:$G,$G$3,'DATA MART_'!$A:$A,CONCATENATE($G$3,"|",G$7,"|",$Q51,"|",$I$2,"|",$P51,"|",$J$2,"|",$J$3,"|",$K$2,"|",$K$3),'DATA MART_'!$F:$F,$G$2)) -> 0 | H51: =IF($G$2="TO",SUMIFS('DATA MART_'!$Q:$Q,'DATA MART_'!$G:$G,$G$3,'DATA MART_'!$A:$A,CONCATENATE($G$3,"|",H$7,"|",$Q51,"|",$I$2,"|",$P51,"|",$J$2,"|",$J$3,"|",$K$2,"|",$K$3)),SUMIFS('DATA MART_'!$Q:$Q,'DATA MART_'!$G:$G,$G$3,'DATA MART_'!$A:$A,CONCATENATE($G$3,"|",H$7,"|",$Q51,"|",$I$2,"|",$P51,"|",$J$2,"|",$J$3,"|",$K$2,"|",$K$3),'DATA MART_'!$F:$F,$G$2)) -> 3530.677858 | J51: =IF($G$2="TO",SUMIFS('DATA MART_'!$Q:$Q,'DATA MART_'!$G:$G,$G$3,'DATA MART_'!$A:$A,CONCATENATE($G$3,"|",J$7,"|",$Q51,"|",$I$2,"|",$P51,"|",$J$2,"|",$J$3,"|",$K$2,"|",$K$3)),SUMIFS('DATA MART_'!$Q:$Q,'DATA MART_'!$G:$G,$G$3,'DATA MART_'!$A:$A,CONCATENATE($G$3,"|",J$7,"|",$Q51,"|",$I$2,"|",$P51,"|",$J$2,"|",$J$3,"|",$K$2,"|",$K$3),'DATA MART_'!$F:$F,$G$2)) -> 73.56357813 | L51: =IF($G$2="TO",SUMIFS('DATA MART_'!$Q:$Q,'DATA MART_'!$G:$G,$G$3,'DATA MART_'!$A:$A,CONCATENATE($G$3,"|",L$7,"|",$Q51,"|",$I$2,"|",$P51,"|",$J$2,"|",$J$3,"|",$K$2,"|",$K$3)),SUMIFS('DATA MART_'!$Q:$Q,'DATA MART_'!$G:$G,$G$3,'DATA MART_'!$A:$A,CONCATENATE($G$3,"|",L$7,"|",$Q51,"|",$I$2,"|",$P51,"|",$J$2,"|",$J$3,"|",$K$2,"|",$K$3),'DATA MART_'!$F:$F,$G$2)) -> 17.7807528 | M51: 6 | N51: 2 | O51: 30010062 | P51: 2 | Q51: =VLOOKUP(B50,'DATA MART_'!$AO$4:$AP$242,2,0) -> 6
A52: [ 1Y - 2Y ] | C52: =IF($G$2="TO",SUMIFS('DATA MART_'!$Q:$Q,'DATA MART_'!$G:$G,$G$3,'DATA MART_'!$A:$A,CONCATENATE($G$3,"|",C$7,"|",$Q52,"|",$I$2,"|",$P52,"|",$J$2,"|",$J$3,"|",$K$2,"|",$K$3)),SUMIFS('DATA MART_'!$Q:$Q,'DATA MART_'!$G:$G,$G$3,'DATA MART_'!$A:$A,CONCATENATE($G$3,"|",C$7,"|",$Q52,"|",$I$2,"|",$P52,"|",$J$2,"|",$J$3,"|",$K$2,"|",$K$3),'DATA MART_'!$F:$F,$G$2)) -> 2339.308719 | D52: =IF($G$2="TO",SUMIFS('DATA MART_'!$Q:$Q,'DATA MART_'!$G:$G,$G$3,'DATA MART_'!$A:$A,CONCATENATE($G$3,"|",D$7,"|",$Q52,"|",$I$2,"|",$P52,"|",$J$2,"|",$J$3,"|",$K$2,"|",$K$3)),SUMIFS('DATA MART_'!$Q:$Q,'DATA MART_'!$G:$G,$G$3,'DATA MART_'!$A:$A,CONCATENATE($G$3,"|",D$7,"|",$Q52,"|",$I$2,"|",$P52,"|",$J$2,"|",$J$3,"|",$K$2,"|",$K$3),'DATA MART_'!$F:$F,$G$2)) -> 294.5845061 | E52: =IF($G$2="TO",SUMIFS('DATA MART_'!$Q:$Q,'DATA MART_'!$G:$G,$G$3,'DATA MART_'!$A:$A,CONCATENATE($G$3,"|",E$7,"|",$Q52,"|",$I$2,"|",$P52,"|",$J$2,"|",$J$3,"|",$K$2,"|",$K$3)),SUMIFS('DATA MART_'!$Q:$Q,'DATA MART_'!$G:$G,$G$3,'DATA MART_'!$A:$A,CONCATENATE($G$3,"|",E$7,"|",$Q52,"|",$I$2,"|",$P52,"|",$J$2,"|",$J$3,"|",$K$2,"|",$K$3),'DATA MART_'!$F:$F,$G$2)) -> 1782.976695 | F52: =IF($G$2="TO",SUMIFS('DATA MART_'!$Q:$Q,'DATA MART_'!$G:$G,$G$3,'DATA MART_'!$A:$A,CONCATENATE($G$3,"|",F$7,"|",$Q52,"|",$I$2,"|",$P52,"|",$J$2,"|",$J$3,"|",$K$2,"|",$K$3)),SUMIFS('DATA MART_'!$Q:$Q,'DATA MART_'!$G:$G,$G$3,'DATA MART_'!$A:$A,CONCATENATE($G$3,"|",F$7,"|",$Q52,"|",$I$2,"|",$P52,"|",$J$2,"|",$J$3,"|",$K$2,"|",$K$3),'DATA MART_'!$F:$F,$G$2)) -> 206.9346075 | G52: =IF($G$2="TO",SUMIFS('DATA MART_'!$Q:$Q,'DATA MART_'!$G:$G,$G$3,'DATA MART_'!$A:$A,CONCATENATE($G$3,"|",G$7,"|",$Q52,"|",$I$2,"|",$P52,"|",$J$2,"|",$J$3,"|",$K$2,"|",$K$3)),SUMIFS('DATA MART_'!$Q:$Q,'DATA MART_'!$G:$G,$G$3,'DATA MART_'!$A:$A,CONCATENATE($G$3,"|",G$7,"|",$Q52,"|",$I$2,"|",$P52,"|",$J$2,"|",$J$3,"|",$K$2,"|",$K$3),'DATA MART_'!$F:$F,$G$2)) -> 0 | H52: =IF($G$2="TO",SUMIFS('DATA MART_'!$Q:$Q,'DATA MART_'!$G:$G,$G$3,'DATA MART_'!$A:$A,CONCATENATE($G$3,"|",H$7,"|",$Q52,"|",$I$2,"|",$P52,"|",$J$2,"|",$J$3,"|",$K$2,"|",$K$3)),SUMIFS('DATA MART_'!$Q:$Q,'DATA MART_'!$G:$G,$G$3,'DATA MART_'!$A:$A,CONCATENATE($G$3,"|",H$7,"|",$Q52,"|",$I$2,"|",$P52,"|",$J$2,"|",$J$3,"|",$K$2,"|",$K$3),'DATA MART_'!$F:$F,$G$2)) -> 1254.281845 | J52: =IF($G$2="TO",SUMIFS('DATA MART_'!$Q:$Q,'DATA MART_'!$G:$G,$G$3,'DATA MART_'!$A:$A,CONCATENATE($G$3,"|",J$7,"|",$Q52,"|",$I$2,"|",$P52,"|",$J$2,"|",$J$3,"|",$K$2,"|",$K$3)),SUMIFS('DATA MART_'!$Q:$Q,'DATA MART_'!$G:$G,$G$3,'DATA MART_'!$A:$A,CONCATENATE($G$3,"|",J$7,"|",$Q52,"|",$I$2,"|",$P52,"|",$J$2,"|",$J$3,"|",$K$2,"|",$K$3),'DATA MART_'!$F:$F,$G$2)) -> -307.4404569 | L52: =IF($G$2="TO",SUMIFS('DATA MART_'!$Q:$Q,'DATA MART_'!$G:$G,$G$3,'DATA MART_'!$A:$A,CONCATENATE($G$3,"|",L$7,"|",$Q52,"|",$I$2,"|",$P52,"|",$J$2,"|",$J$3,"|",$K$2,"|",$K$3)),SUMIFS('DATA MART_'!$Q:$Q,'DATA MART_'!$G:$G,$G$3,'DATA MART_'!$A:$A,CONCATENATE($G$3,"|",L$7,"|",$Q52,"|",$I$2,"|",$P52,"|",$J$2,"|",$J$3,"|",$K$2,"|",$K$3),'DATA MART_'!$F:$F,$G$2)) -> 4.889382134 | M52: 6 | N52: 3 | O52: 30010063 | P52: 3 | Q52: =VLOOKUP(B50,'DATA MART_'!$AO$4:$AP$242,2,0) -> 6
A53: [ 2Y - 3Y ] | C53: =IF($G$2="TO",SUMIFS('DATA MART_'!$Q:$Q,'DATA MART_'!$G:$G,$G$3,'DATA MART_'!$A:$A,CONCATENATE($G$3,"|",C$7,"|",$Q53,"|",$I$2,"|",$P53,"|",$J$2,"|",$J$3,"|",$K$2,"|",$K$3)),SUMIFS('DATA MART_'!$Q:$Q,'DATA MART_'!$G:$G,$G$3,'DATA MART_'!$A:$A,CONCATENATE($G$3,"|",C$7,"|",$Q53,"|",$I$2,"|",$P53,"|",$J$2,"|",$J$3,"|",$K$2,"|",$K$3),'DATA MART_'!$F:$F,$G$2)) -> 1209.228979 | D53: =IF($G$2="TO",SUMIFS('DATA MART_'!$Q:$Q,'DATA MART_'!$G:$G,$G$3,'DATA MART_'!$A:$A,CONCATENATE($G$3,"|",D$7,"|",$Q53,"|",$I$2,"|",$P53,"|",$J$2,"|",$J$3,"|",$K$2,"|",$K$3)),SUMIFS('DATA MART_'!$Q:$Q,'DATA MART_'!$G:$G,$G$3,'DATA MART_'!$A:$A,CONCATENATE($G$3,"|",D$7,"|",$Q53,"|",$I$2,"|",$P53,"|",$J$2,"|",$J$3,"|",$K$2,"|",$K$3),'DATA MART_'!$F:$F,$G$2)) -> 55.40490551 | E53: =IF($G$2="TO",SUMIFS('DATA MART_'!$Q:$Q,'DATA MART_'!$G:$G,$G$3,'DATA MART_'!$A:$A,CONCATENATE($G$3,"|",E$7,"|",$Q53,"|",$I$2,"|",$P53,"|",$J$2,"|",$J$3,"|",$K$2,"|",$K$3)),SUMIFS('DATA MART_'!$Q:$Q,'DATA MART_'!$G:$G,$G$3,'DATA MART_'!$A:$A,CONCATENATE($G$3,"|",E$7,"|",$Q53,"|",$I$2,"|",$P53,"|",$J$2,"|",$J$3,"|",$K$2,"|",$K$3),'DATA MART_'!$F:$F,$G$2)) -> 1190.598302 | F53: =IF($G$2="TO",SUMIFS('DATA MART_'!$Q:$Q,'DATA MART_'!$G:$G,$G$3,'DATA MART_'!$A:$A,CONCATENATE($G$3,"|",F$7,"|",$Q53,"|",$I$2,"|",$P53,"|",$J$2,"|",$J$3,"|",$K$2,"|",$K$3)),SUMIFS('DATA MART_'!$Q:$Q,'DATA MART_'!$G:$G,$G$3,'DATA MART_'!$A:$A,CONCATENATE($G$3,"|",F$7,"|",$Q53,"|",$I$2,"|",$P53,"|",$J$2,"|",$J$3,"|",$K$2,"|",$K$3),'DATA MART_'!$F:$F,$G$2)) -> 25.85234213 | G53: =IF($G$2="TO",SUMIFS('DATA MART_'!$Q:$Q,'DATA MART_'!$G:$G,$G$3,'DATA MART_'!$A:$A,CONCATENATE($G$3,"|",G$7,"|",$Q53,"|",$I$2,"|",$P53,"|",$J$2,"|",$J$3,"|",$K$2,"|",$K$3)),SUMIFS('DATA MART_'!$Q:$Q,'DATA MART_'!$G:$G,$G$3,'DATA MART_'!$A:$A,CONCATENATE($G$3,"|",G$7,"|",$Q53,"|",$I$2,"|",$P53,"|",$J$2,"|",$J$3,"|",$K$2,"|",$K$3),'DATA MART_'!$F:$F,$G$2)) -> 0 | H53: =IF($G$2="TO",SUMIFS('DATA MART_'!$Q:$Q,'DATA MART_'!$G:$G,$G$3,'DATA MART_'!$A:$A,CONCATENATE($G$3,"|",H$7,"|",$Q53,"|",$I$2,"|",$P53,"|",$J$2,"|",$J$3,"|",$K$2,"|",$K$3)),SUMIFS('DATA MART_'!$Q:$Q,'DATA MART_'!$G:$G,$G$3,'DATA MART_'!$A:$A,CONCATENATE($G$3,"|",H$7,"|",$Q53,"|",$I$2,"|",$P53,"|",$J$2,"|",$J$3,"|",$K$2,"|",$K$3),'DATA MART_'!$F:$F,$G$2)) -> 883.8135111 | J53: =IF($G$2="TO",SUMIFS('DATA MART_'!$Q:$Q,'DATA MART_'!$G:$G,$G$3,'DATA MART_'!$A:$A,CONCATENATE($G$3,"|",J$7,"|",$Q53,"|",$I$2,"|",$P53,"|",$J$2,"|",$J$3,"|",$K$2,"|",$K$3)),SUMIFS('DATA MART_'!$Q:$Q,'DATA MART_'!$G:$G,$G$3,'DATA MART_'!$A:$A,CONCATENATE($G$3,"|",J$7,"|",$Q53,"|",$I$2,"|",$P53,"|",$J$2,"|",$J$3,"|",$K$2,"|",$K$3),'DATA MART_'!$F:$F,$G$2)) -> -171.0519248 | L53: =IF($G$2="TO",SUMIFS('DATA MART_'!$Q:$Q,'DATA MART_'!$G:$G,$G$3,'DATA MART_'!$A:$A,CONCATENATE($G$3,"|",L$7,"|",$Q53,"|",$I$2,"|",$P53,"|",$J$2,"|",$J$3,"|",$K$2,"|",$K$3)),SUMIFS('DATA MART_'!$Q:$Q,'DATA MART_'!$G:$G,$G$3,'DATA MART_'!$A:$A,CONCATENATE($G$3,"|",L$7,"|",$Q53,"|",$I$2,"|",$P53,"|",$J$2,"|",$J$3,"|",$K$2,"|",$K$3),'DATA MART_'!$F:$F,$G$2)) -> -5.921397031 | M53: 6 | N53: 4 | O53: 30010064 | P53: 4 | Q53: =VLOOKUP(B50,'DATA MART_'!$AO$4:$AP$242,2,0) -> 6
A54: [3Y - 5Y ] | C54: =IF($G$2="TO",SUMIFS('DATA MART_'!$Q:$Q,'DATA MART_'!$G:$G,$G$3,'DATA MART_'!$A:$A,CONCATENATE($G$3,"|",C$7,"|",$Q54,"|",$I$2,"|",$P54,"|",$J$2,"|",$J$3,"|",$K$2,"|",$K$3)),SUMIFS('DATA MART_'!$Q:$Q,'DATA MART_'!$G:$G,$G$3,'DATA MART_'!$A:$A,CONCATENATE($G$3,"|",C$7,"|",$Q54,"|",$I$2,"|",$P54,"|",$J$2,"|",$J$3,"|",$K$2,"|",$K$3),'DATA MART_'!$F:$F,$G$2)) -> 1015.099999 | D54: =IF($G$2="TO",SUMIFS('DATA MART_'!$Q:$Q,'DATA MART_'!$G:$G,$G$3,'DATA MART_'!$A:$A,CONCATENATE($G$3,"|",D$7,"|",$Q54,"|",$I$2,"|",$P54,"|",$J$2,"|",$J$3,"|",$K$2,"|",$K$3)),SUMIFS('DATA MART_'!$Q:$Q,'DATA MART_'!$G:$G,$G$3,'DATA MART_'!$A:$A,CONCATENATE($G$3,"|",D$7,"|",$Q54,"|",$I$2,"|",$P54,"|",$J$2,"|",$J$3,"|",$K$2,"|",$K$3),'DATA MART_'!$F:$F,$G$2)) -> 103.4521221 | E54: =IF($G$2="TO",SUMIFS('DATA MART_'!$Q:$Q,'DATA MART_'!$G:$G,$G$3,'DATA MART_'!$A:$A,CONCATENATE($G$3,"|",E$7,"|",$Q54,"|",$I$2,"|",$P54,"|",$J$2,"|",$J$3,"|",$K$2,"|",$K$3)),SUMIFS('DATA MART_'!$Q:$Q,'DATA MART_'!$G:$G,$G$3,'DATA MART_'!$A:$A,CONCATENATE($G$3,"|",E$7,"|",$Q54,"|",$I$2,"|",$P54,"|",$J$2,"|",$J$3,"|",$K$2,"|",$K$3),'DATA MART_'!$F:$F,$G$2)) -> 508.3709355 | F54: =IF($G$2="TO",SUMIFS('DATA MART_'!$Q:$Q,'DATA MART_'!$G:$G,$G$3,'DATA MART_'!$A:$A,CONCATENATE($G$3,"|",F$7,"|",$Q54,"|",$I$2,"|",$P54,"|",$J$2,"|",$J$3,"|",$K$2,"|",$K$3)),SUMIFS('DATA MART_'!$Q:$Q,'DATA MART_'!$G:$G,$G$3,'DATA MART_'!$A:$A,CONCATENATE($G$3,"|",F$7,"|",$Q54,"|",$I$2,"|",$P54,"|",$J$2,"|",$J$3,"|",$K$2,"|",$K$3),'DATA MART_'!$F:$F,$G$2)) -> 16.58403554 | G54: =IF($G$2="TO",SUMIFS('DATA MART_'!$Q:$Q,'DATA MART_'!$G:$G,$G$3,'DATA MART_'!$A:$A,CONCATENATE($G$3,"|",G$7,"|",$Q54,"|",$I$2,"|",$P54,"|",$J$2,"|",$J$3,"|",$K$2,"|",$K$3)),SUMIFS('DATA MART_'!$Q:$Q,'DATA MART_'!$G:$G,$G$3,'DATA MART_'!$A:$A,CONCATENATE($G$3,"|",G$7,"|",$Q54,"|",$I$2,"|",$P54,"|",$J$2,"|",$J$3,"|",$K$2,"|",$K$3),'DATA MART_'!$F:$F,$G$2)) -> 0 | H54: =IF($G$2="TO",SUMIFS('DATA MART_'!$Q:$Q,'DATA MART_'!$G:$G,$G$3,'DATA MART_'!$A:$A,CONCATENATE($G$3,"|",H$7,"|",$Q54,"|",$I$2,"|",$P54,"|",$J$2,"|",$J$3,"|",$K$2,"|",$K$3)),SUMIFS('DATA MART_'!$Q:$Q,'DATA MART_'!$G:$G,$G$3,'DATA MART_'!$A:$A,CONCATENATE($G$3,"|",H$7,"|",$Q54,"|",$I$2,"|",$P54,"|",$J$2,"|",$J$3,"|",$K$2,"|",$K$3),'DATA MART_'!$F:$F,$G$2)) -> 384.6963778 | J54: =IF($G$2="TO",SUMIFS('DATA MART_'!$Q:$Q,'DATA MART_'!$G:$G,$G$3,'DATA MART_'!$A:$A,CONCATENATE($G$3,"|",J$7,"|",$Q54,"|",$I$2,"|",$P54,"|",$J$2,"|",$J$3,"|",$K$2,"|",$K$3)),SUMIFS('DATA MART_'!$Q:$Q,'DATA MART_'!$G:$G,$G$3,'DATA MART_'!$A:$A,CONCATENATE($G$3,"|",J$7,"|",$Q54,"|",$I$2,"|",$P54,"|",$J$2,"|",$J$3,"|",$K$2,"|",$K$3),'DATA MART_'!$F:$F,$G$2)) -> -315.7401857 | L54: =IF($G$2="TO",SUMIFS('DATA MART_'!$Q:$Q,'DATA MART_'!$G:$G,$G$3,'DATA MART_'!$A:$A,CONCATENATE($G$3,"|",L$7,"|",$Q54,"|",$I$2,"|",$P54,"|",$J$2,"|",$J$3,"|",$K$2,"|",$K$3)),SUMIFS('DATA MART_'!$Q:$Q,'DATA MART_'!$G:$G,$G$3,'DATA MART_'!$A:$A,CONCATENATE($G$3,"|",L$7,"|",$Q54,"|",$I$2,"|",$P54,"|",$J$2,"|",$J$3,"|",$K$2,"|",$K$3),'DATA MART_'!$F:$F,$G$2)) -> 10.09481276 | M54: 6 | N54: 5 | O54: 30010065 | P54: 5 | Q54: =VLOOKUP(B50,'DATA MART_'!$AO$4:$AP$242,2,0) -> 6
A55: [5Y - 10Y ] | C55: =IF($G$2="TO",SUMIFS('DATA MART_'!$Q:$Q,'DATA MART_'!$G:$G,$G$3,'DATA MART_'!$A:$A,CONCATENATE($G$3,"|",C$7,"|",$Q55,"|",$I$2,"|",$P55,"|",$J$2,"|",$J$3,"|",$K$2,"|",$K$3)),SUMIFS('DATA MART_'!$Q:$Q,'DATA MART_'!$G:$G,$G$3,'DATA MART_'!$A:$A,CONCATENATE($G$3,"|",C$7,"|",$Q55,"|",$I$2,"|",$P55,"|",$J$2,"|",$J$3,"|",$K$2,"|",$K$3),'DATA MART_'!$F:$F,$G$2)) -> 2434.203309 | D55: =IF($G$2="TO",SUMIFS('DATA MART_'!$Q:$Q,'DATA MART_'!$G:$G,$G$3,'DATA MART_'!$A:$A,CONCATENATE($G$3,"|",D$7,"|",$Q55,"|",$I$2,"|",$P55,"|",$J$2,"|",$J$3,"|",$K$2,"|",$K$3)),SUMIFS('DATA MART_'!$Q:$Q,'DATA MART_'!$G:$G,$G$3,'DATA MART_'!$A:$A,CONCATENATE($G$3,"|",D$7,"|",$Q55,"|",$I$2,"|",$P55,"|",$J$2,"|",$J$3,"|",$K$2,"|",$K$3),'DATA MART_'!$F:$F,$G$2)) -> 59.0969039 | E55: =IF($G$2="TO",SUMIFS('DATA MART_'!$Q:$Q,'DATA MART_'!$G:$G,$G$3,'DATA MART_'!$A:$A,CONCATENATE($G$3,"|",E$7,"|",$Q55,"|",$I$2,"|",$P55,"|",$J$2,"|",$J$3,"|",$K$2,"|",$K$3)),SUMIFS('DATA MART_'!$Q:$Q,'DATA MART_'!$G:$G,$G$3,'DATA MART_'!$A:$A,CONCATENATE($G$3,"|",E$7,"|",$Q55,"|",$I$2,"|",$P55,"|",$J$2,"|",$J$3,"|",$K$2,"|",$K$3),'DATA MART_'!$F:$F,$G$2)) -> 1485.141961 | F55: =IF($G$2="TO",SUMIFS('DATA MART_'!$Q:$Q,'DATA MART_'!$G:$G,$G$3,'DATA MART_'!$A:$A,CONCATENATE($G$3,"|",F$7,"|",$Q55,"|",$I$2,"|",$P55,"|",$J$2,"|",$J$3,"|",$K$2,"|",$K$3)),SUMIFS('DATA MART_'!$Q:$Q,'DATA MART_'!$G:$G,$G$3,'DATA MART_'!$A:$A,CONCATENATE($G$3,"|",F$7,"|",$Q55,"|",$I$2,"|",$P55,"|",$J$2,"|",$J$3,"|",$K$2,"|",$K$3),'DATA MART_'!$F:$F,$G$2)) -> 0 | G55: =IF($G$2="TO",SUMIFS('DATA MART_'!$Q:$Q,'DATA MART_'!$G:$G,$G$3,'DATA MART_'!$A:$A,CONCATENATE($G$3,"|",G$7,"|",$Q55,"|",$I$2,"|",$P55,"|",$J$2,"|",$J$3,"|",$K$2,"|",$K$3)),SUMIFS('DATA MART_'!$Q:$Q,'DATA MART_'!$G:$G,$G$3,'DATA MART_'!$A:$A,CONCATENATE($G$3,"|",G$7,"|",$Q55,"|",$I$2,"|",$P55,"|",$J$2,"|",$J$3,"|",$K$2,"|",$K$3),'DATA MART_'!$F:$F,$G$2)) -> 0 | H55: =IF($G$2="TO",SUMIFS('DATA MART_'!$Q:$Q,'DATA MART_'!$G:$G,$G$3,'DATA MART_'!$A:$A,CONCATENATE($G$3,"|",H$7,"|",$Q55,"|",$I$2,"|",$P55,"|",$J$2,"|",$J$3,"|",$K$2,"|",$K$3)),SUMIFS('DATA MART_'!$Q:$Q,'DATA MART_'!$G:$G,$G$3,'DATA MART_'!$A:$A,CONCATENATE($G$3,"|",H$7,"|",$Q55,"|",$I$2,"|",$P55,"|",$J$2,"|",$J$3,"|",$K$2,"|",$K$3),'DATA MART_'!$F:$F,$G$2)) -> 1322.145057 | J55: =IF($G$2="TO",SUMIFS('DATA MART_'!$Q:$Q,'DATA MART_'!$G:$G,$G$3,'DATA MART_'!$A:$A,CONCATENATE($G$3,"|",J$7,"|",$Q55,"|",$I$2,"|",$P55,"|",$J$2,"|",$J$3,"|",$K$2,"|",$K$3)),SUMIFS('DATA MART_'!$Q:$Q,'DATA MART_'!$G:$G,$G$3,'DATA MART_'!$A:$A,CONCATENATE($G$3,"|",J$7,"|",$Q55,"|",$I$2,"|",$P55,"|",$J$2,"|",$J$3,"|",$K$2,"|",$K$3),'DATA MART_'!$F:$F,$G$2)) -> -414.3090565 | L55: =IF($G$2="TO",SUMIFS('DATA MART_'!$Q:$Q,'DATA MART_'!$G:$G,$G$3,'DATA MART_'!$A:$A,CONCATENATE($G$3,"|",L$7,"|",$Q55,"|",$I$2,"|",$P55,"|",$J$2,"|",$J$3,"|",$K$2,"|",$K$3)),SUMIFS('DATA MART_'!$Q:$Q,'DATA MART_'!$G:$G,$G$3,'DATA MART_'!$A:$A,CONCATENATE($G$3,"|",L$7,"|",$Q55,"|",$I$2,"|",$P55,"|",$J$2,"|",$J$3,"|",$K$2,"|",$K$3),'DATA MART_'!$F:$F,$G$2)) -> -6.910751648 | M55: 6 | N55: 6 | O55: 30010066 | P55: 6 | Q55: =VLOOKUP(B50,'DATA MART_'!$AO$4:$AP$242,2,0) -> 6
A56: [10Y - more ] | C56: =IF($G$2="TO",SUMIFS('DATA MART_'!$Q:$Q,'DATA MART_'!$G:$G,$G$3,'DATA MART_'!$A:$A,CONCATENATE($G$3,"|",C$7,"|",$Q56,"|",$I$2,"|",$P56,"|",$J$2,"|",$J$3,"|",$K$2,"|",$K$3)),SUMIFS('DATA MART_'!$Q:$Q,'DATA MART_'!$G:$G,$G$3,'DATA MART_'!$A:$A,CONCATENATE($G$3,"|",C$7,"|",$Q56,"|",$I$2,"|",$P56,"|",$J$2,"|",$J$3,"|",$K$2,"|",$K$3),'DATA MART_'!$F:$F,$G$2)) -> 564.3155154 | D56: =IF($G$2="TO",SUMIFS('DATA MART_'!$Q:$Q,'DATA MART_'!$G:$G,$G$3,'DATA MART_'!$A:$A,CONCATENATE($G$3,"|",D$7,"|",$Q56,"|",$I$2,"|",$P56,"|",$J$2,"|",$J$3,"|",$K$2,"|",$K$3)),SUMIFS('DATA MART_'!$Q:$Q,'DATA MART_'!$G:$G,$G$3,'DATA MART_'!$A:$A,CONCATENATE($G$3,"|",D$7,"|",$Q56,"|",$I$2,"|",$P56,"|",$J$2,"|",$J$3,"|",$K$2,"|",$K$3),'DATA MART_'!$F:$F,$G$2)) -> 67.54081222 | E56: =IF($G$2="TO",SUMIFS('DATA MART_'!$Q:$Q,'DATA MART_'!$G:$G,$G$3,'DATA MART_'!$A:$A,CONCATENATE($G$3,"|",E$7,"|",$Q56,"|",$I$2,"|",$P56,"|",$J$2,"|",$J$3,"|",$K$2,"|",$K$3)),SUMIFS('DATA MART_'!$Q:$Q,'DATA MART_'!$G:$G,$G$3,'DATA MART_'!$A:$A,CONCATENATE($G$3,"|",E$7,"|",$Q56,"|",$I$2,"|",$P56,"|",$J$2,"|",$J$3,"|",$K$2,"|",$K$3),'DATA MART_'!$F:$F,$G$2)) -> -33.39039322 | F56: =IF($G$2="TO",SUMIFS('DATA MART_'!$Q:$Q,'DATA MART_'!$G:$G,$G$3,'DATA MART_'!$A:$A,CONCATENATE($G$3,"|",F$7,"|",$Q56,"|",$I$2,"|",$P56,"|",$J$2,"|",$J$3,"|",$K$2,"|",$K$3)),SUMIFS('DATA MART_'!$Q:$Q,'DATA MART_'!$G:$G,$G$3,'DATA MART_'!$A:$A,CONCATENATE($G$3,"|",F$7,"|",$Q56,"|",$I$2,"|",$P56,"|",$J$2,"|",$J$3,"|",$K$2,"|",$K$3),'DATA MART_'!$F:$F,$G$2)) -> 0 | G56: =IF($G$2="TO",SUMIFS('DATA MART_'!$Q:$Q,'DATA MART_'!$G:$G,$G$3,'DATA MART_'!$A:$A,CONCATENATE($G$3,"|",G$7,"|",$Q56,"|",$I$2,"|",$P56,"|",$J$2,"|",$J$3,"|",$K$2,"|",$K$3)),SUMIFS('DATA MART_'!$Q:$Q,'DATA MART_'!$G:$G,$G$3,'DATA MART_'!$A:$A,CONCATENATE($G$3,"|",G$7,"|",$Q56,"|",$I$2,"|",$P56,"|",$J$2,"|",$J$3,"|",$K$2,"|",$K$3),'DATA MART_'!$F:$F,$G$2)) -> 0 | H56: =IF($G$2="TO",SUMIFS('DATA MART_'!$Q:$Q,'DATA MART_'!$G:$G,$G$3,'DATA MART_'!$A:$A,CONCATENATE($G$3,"|",H$7,"|",$Q56,"|",$I$2,"|",$P56,"|",$J$2,"|",$J$3,"|",$K$2,"|",$K$3)),SUMIFS('DATA MART_'!$Q:$Q,'DATA MART_'!$G:$G,$G$3,'DATA MART_'!$A:$A,CONCATENATE($G$3,"|",H$7,"|",$Q56,"|",$I$2,"|",$P56,"|",$J$2,"|",$J$3,"|",$K$2,"|",$K$3),'DATA MART_'!$F:$F,$G$2)) -> -229.0641635 | J56: =IF($G$2="TO",SUMIFS('DATA MART_'!$Q:$Q,'DATA MART_'!$G:$G,$G$3,'DATA MART_'!$A:$A,CONCATENATE($G$3,"|",J$7,"|",$Q56,"|",$I$2,"|",$P56,"|",$J$2,"|",$J$3,"|",$K$2,"|",$K$3)),SUMIFS('DATA MART_'!$Q:$Q,'DATA MART_'!$G:$G,$G$3,'DATA MART_'!$A:$A,CONCATENATE($G$3,"|",J$7,"|",$Q56,"|",$I$2,"|",$P56,"|",$J$2,"|",$J$3,"|",$K$2,"|",$K$3),'DATA MART_'!$F:$F,$G$2)) -> 1013.00283 | L56: =IF($G$2="TO",SUMIFS('DATA MART_'!$Q:$Q,'DATA MART_'!$G:$G,$G$3,'DATA MART_'!$A:$A,CONCATENATE($G$3,"|",L$7,"|",$Q56,"|",$I$2,"|",$P56,"|",$J$2,"|",$J$3,"|",$K$2,"|",$K$3)),SUMIFS('DATA MART_'!$Q:$Q,'DATA MART_'!$G:$G,$G$3,'DATA MART_'!$A:$A,CONCATENATE($G$3,"|",L$7,"|",$Q56,"|",$I$2,"|",$P56,"|",$J$2,"|",$J$3,"|",$K$2,"|",$K$3),'DATA MART_'!$F:$F,$G$2)) -> -0.005160611523 | M56: 6 | N56: 7 | O56: 30010067 | P56: 7 | Q56: =VLOOKUP(B50,'DATA MART_'!$AO$4:$AP$242,2,0) -> 6
A57: Total | C57: =IF($G$2="TO",SUMIFS('DATA MART_'!$Q:$Q,'DATA MART_'!$G:$G,$G$3,'DATA MART_'!$A:$A,CONCATENATE($G$3,"|",C$7,"|",$Q57,"|",$I$2,"|",$P57,"|",$J$2,"|",$J$3,"|",$K$2,"|",$K$3)),SUMIFS('DATA MART_'!$Q:$Q,'DATA MART_'!$G:$G,$G$3,'DATA MART_'!$A:$A,CONCATENATE($G$3,"|",C$7,"|",$Q57,"|",$I$2,"|",$P57,"|",$J$2,"|",$J$3,"|",$K$2,"|",$K$3),'DATA MART_'!$F:$F,$G$2)) -> 36395.88331 | D57: =IF($G$2="TO",SUMIFS('DATA MART_'!$Q:$Q,'DATA MART_'!$G:$G,$G$3,'DATA MART_'!$A:$A,CONCATENATE($G$3,"|",D$7,"|",$Q57,"|",$I$2,"|",$P57,"|",$J$2,"|",$J$3,"|",$K$2,"|",$K$3)),SUMIFS('DATA MART_'!$Q:$Q,'DATA MART_'!$G:$G,$G$3,'DATA MART_'!$A:$A,CONCATENATE($G$3,"|",D$7,"|",$Q57,"|",$I$2,"|",$P57,"|",$J$2,"|",$J$3,"|",$K$2,"|",$K$3),'DATA MART_'!$F:$F,$G$2)) -> 16088.84602 | E57: =IF($G$2="TO",SUMIFS('DATA MART_'!$Q:$Q,'DATA MART_'!$G:$G,$G$3,'DATA MART_'!$A:$A,CONCATENATE($G$3,"|",E$7,"|",$Q57,"|",$I$2,"|",$P57,"|",$J$2,"|",$J$3,"|",$K$2,"|",$K$3)),SUMIFS('DATA MART_'!$Q:$Q,'DATA MART_'!$G:$G,$G$3,'DATA MART_'!$A:$A,CONCATENATE($G$3,"|",E$7,"|",$Q57,"|",$I$2,"|",$P57,"|",$J$2,"|",$J$3,"|",$K$2,"|",$K$3),'DATA MART_'!$F:$F,$G$2)) -> 33063.79658 | F57: =IF($G$2="TO",SUMIFS('DATA MART_'!$Q:$Q,'DATA MART_'!$G:$G,$G$3,'DATA MART_'!$A:$A,CONCATENATE($G$3,"|",F$7,"|",$Q57,"|",$I$2,"|",$P57,"|",$J$2,"|",$J$3,"|",$K$2,"|",$K$3)),SUMIFS('DATA MART_'!$Q:$Q,'DATA MART_'!$G:$G,$G$3,'DATA MART_'!$A:$A,CONCATENATE($G$3,"|",F$7,"|",$Q57,"|",$I$2,"|",$P57,"|",$J$2,"|",$J$3,"|",$K$2,"|",$K$3),'DATA MART_'!$F:$F,$G$2)) -> 11992.44699 | G57: =IF($G$2="TO",SUMIFS('DATA MART_'!$Q:$Q,'DATA MART_'!$G:$G,$G$3,'DATA MART_'!$A:$A,CONCATENATE($G$3,"|",G$7,"|",$Q57,"|",$I$2,"|",$P57,"|",$J$2,"|",$J$3,"|",$K$2,"|",$K$3)),SUMIFS('DATA MART_'!$Q:$Q,'DATA MART_'!$G:$G,$G$3,'DATA MART_'!$A:$A,CONCATENATE($G$3,"|",G$7,"|",$Q57,"|",$I$2,"|",$P57,"|",$J$2,"|",$J$3,"|",$K$2,"|",$K$3),'DATA MART_'!$F:$F,$G$2)) -> 0 | H57: =IF($G$2="TO",SUMIFS('DATA MART_'!$Q:$Q,'DATA MART_'!$G:$G,$G$3,'DATA MART_'!$A:$A,CONCATENATE($G$3,"|",H$7,"|",$Q57,"|",$I$2,"|",$P57,"|",$J$2,"|",$J$3,"|",$K$2,"|",$K$3)),SUMIFS('DATA MART_'!$Q:$Q,'DATA MART_'!$G:$G,$G$3,'DATA MART_'!$A:$A,CONCATENATE($G$3,"|",H$7,"|",$Q57,"|",$I$2,"|",$P57,"|",$J$2,"|",$J$3,"|",$K$2,"|",$K$3),'DATA MART_'!$F:$F,$G$2)) -> 17237.96893 | J57: =IF($G$2="TO",SUMIFS('DATA MART_'!$Q:$Q,'DATA MART_'!$G:$G,$G$3,'DATA MART_'!$A:$A,CONCATENATE($G$3,"|",J$7,"|",$Q57,"|",$I$2,"|",$P57,"|",$J$2,"|",$J$3,"|",$K$2,"|",$K$3)),SUMIFS('DATA MART_'!$Q:$Q,'DATA MART_'!$G:$G,$G$3,'DATA MART_'!$A:$A,CONCATENATE($G$3,"|",J$7,"|",$Q57,"|",$I$2,"|",$P57,"|",$J$2,"|",$J$3,"|",$K$2,"|",$K$3),'DATA MART_'!$F:$F,$G$2)) -> -845.1063554 | L57: =IF($G$2="TO",SUMIFS('DATA MART_'!$Q:$Q,'DATA MART_'!$G:$G,$G$3,'DATA MART_'!$A:$A,CONCATENATE($G$3,"|",L$7,"|",$Q57,"|",$I$2,"|",$P57,"|",$J$2,"|",$J$3,"|",$K$2,"|",$K$3)),SUMIFS('DATA MART_'!$Q:$Q,'DATA MART_'!$G:$G,$G$3,'DATA MART_'!$A:$A,CONCATENATE($G$3,"|",L$7,"|",$Q57,"|",$I$2,"|",$P57,"|",$J$2,"|",$J$3,"|",$K$2,"|",$K$3),'DATA MART_'!$F:$F,$G$2)) -> 34.9276384 | M57: 6 | N57: 8 | O57: 30010068 | P57: 8 | Q57: =VLOOKUP(B50,'DATA MART_'!$AO$4:$AP$242,2,0) -> 6
A58: [ 0 - 3M ] | B58: Estonia | C58: =IF($G$2="TO",SUMIFS('DATA MART_'!$Q:$Q,'DATA MART_'!$G:$G,$G$3,'DATA MART_'!$A:$A,CONCATENATE($G$3,"|",C$7,"|",$Q58,"|",$I$2,"|",$P58,"|",$J$2,"|",$J$3,"|",$K$2,"|",$K$3)),SUMIFS('DATA MART_'!$Q:$Q,'DATA MART_'!$G:$G,$G$3,'DATA MART_'!$A:$A,CONCATENATE($G$3,"|",C$7,"|",$Q58,"|",$I$2,"|",$P58,"|",$J$2,"|",$J$3,"|",$K$2,"|",$K$3),'DATA MART_'!$F:$F,$G$2)) -> 366.1635587 | D58: =IF($G$2="TO",SUMIFS('DATA MART_'!$Q:$Q,'DATA MART_'!$G:$G,$G$3,'DATA MART_'!$A:$A,CONCATENATE($G$3,"|",D$7,"|",$Q58,"|",$I$2,"|",$P58,"|",$J$2,"|",$J$3,"|",$K$2,"|",$K$3)),SUMIFS('DATA MART_'!$Q:$Q,'DATA MART_'!$G:$G,$G$3,'DATA MART_'!$A:$A,CONCATENATE($G$3,"|",D$7,"|",$Q58,"|",$I$2,"|",$P58,"|",$J$2,"|",$J$3,"|",$K$2,"|",$K$3),'DATA MART_'!$F:$F,$G$2)) -> 72.16355868 | E58: =IF($G$2="TO",SUMIFS('DATA MART_'!$Q:$Q,'DATA MART_'!$G:$G,$G$3,'DATA MART_'!$A:$A,CONCATENATE($G$3,"|",E$7,"|",$Q58,"|",$I$2,"|",$P58,"|",$J$2,"|",$J$3,"|",$K$2,"|",$K$3)),SUMIFS('DATA MART_'!$Q:$Q,'DATA MART_'!$G:$G,$G$3,'DATA MART_'!$A:$A,CONCATENATE($G$3,"|",E$7,"|",$Q58,"|",$I$2,"|",$P58,"|",$J$2,"|",$J$3,"|",$K$2,"|",$K$3),'DATA MART_'!$F:$F,$G$2)) -> 365.6301301 | F58: =IF($G$2="TO",SUMIFS('DATA MART_'!$Q:$Q,'DATA MART_'!$G:$G,$G$3,'DATA MART_'!$A:$A,CONCATENATE($G$3,"|",F$7,"|",$Q58,"|",$I$2,"|",$P58,"|",$J$2,"|",$J$3,"|",$K$2,"|",$K$3)),SUMIFS('DATA MART_'!$Q:$Q,'DATA MART_'!$G:$G,$G$3,'DATA MART_'!$A:$A,CONCATENATE($G$3,"|",F$7,"|",$Q58,"|",$I$2,"|",$P58,"|",$J$2,"|",$J$3,"|",$K$2,"|",$K$3),'DATA MART_'!$F:$F,$G$2)) -> 0 | G58: =IF($G$2="TO",SUMIFS('DATA MART_'!$Q:$Q,'DATA MART_'!$G:$G,$G$3,'DATA MART_'!$A:$A,CONCATENATE($G$3,"|",G$7,"|",$Q58,"|",$I$2,"|",$P58,"|",$J$2,"|",$J$3,"|",$K$2,"|",$K$3)),SUMIFS('DATA MART_'!$Q:$Q,'DATA MART_'!$G:$G,$G$3,'DATA MART_'!$A:$A,CONCATENATE($G$3,"|",G$7,"|",$Q58,"|",$I$2,"|",$P58,"|",$J$2,"|",$J$3,"|",$K$2,"|",$K$3),'DATA MART_'!$F:$F,$G$2)) -> 0 | H58: =IF($G$2="TO",SUMIFS('DATA MART_'!$Q:$Q,'DATA MART_'!$G:$G,$G$3,'DATA MART_'!$A:$A,CONCATENATE($G$3,"|",H$7,"|",$Q58,"|",$I$2,"|",$P58,"|",$J$2,"|",$J$3,"|",$K$2,"|",$K$3)),SUMIFS('DATA MART_'!$Q:$Q,'DATA MART_'!$G:$G,$G$3,'DATA MART_'!$A:$A,CONCATENATE($G$3,"|",H$7,"|",$Q58,"|",$I$2,"|",$P58,"|",$J$2,"|",$J$3,"|",$K$2,"|",$K$3),'DATA MART_'!$F:$F,$G$2)) -> 9.99994235 | J58: =IF($G$2="TO",SUMIFS('DATA MART_'!$Q:$Q,'DATA MART_'!$G:$G,$G$3,'DATA MART_'!$A:$A,CONCATENATE($G$3,"|",J$7,"|",$Q58,"|",$I$2,"|",$P58,"|",$J$2,"|",$J$3,"|",$K$2,"|",$K$3)),SUMIFS('DATA MART_'!$Q:$Q,'DATA MART_'!$G:$G,$G$3,'DATA MART_'!$A:$A,CONCATENATE($G$3,"|",J$7,"|",$Q58,"|",$I$2,"|",$P58,"|",$J$2,"|",$J$3,"|",$K$2,"|",$K$3),'DATA MART_'!$F:$F,$G$2)) -> 0.00447455 | L58: =IF($G$2="TO",SUMIFS('DATA MART_'!$Q:$Q,'DATA MART_'!$G:$G,$G$3,'DATA MART_'!$A:$A,CONCATENATE($G$3,"|",L$7,"|",$Q58,"|",$I$2,"|",$P58,"|",$J$2,"|",$J$3,"|",$K$2,"|",$K$3)),SUMIFS('DATA MART_'!$Q:$Q,'DATA MART_'!$G:$G,$G$3,'DATA MART_'!$A:$A,CONCATENATE($G$3,"|",L$7,"|",$Q58,"|",$I$2,"|",$P58,"|",$J$2,"|",$J$3,"|",$K$2,"|",$K$3),'DATA MART_'!$F:$F,$G$2)) -> 2.009080627 | M58: 7 | N58: 1 | O58: 30010071 | P58: 1 | Q58: =VLOOKUP(B58,'DATA MART_'!$AO$4:$AP$242,2,0) -> 7
A59: [ 3M - 1Y ] | C59: =IF($G$2="TO",SUMIFS('DATA MART_'!$Q:$Q,'DATA MART_'!$G:$G,$G$3,'DATA MART_'!$A:$A,CONCATENATE($G$3,"|",C$7,"|",$Q59,"|",$I$2,"|",$P59,"|",$J$2,"|",$J$3,"|",$K$2,"|",$K$3)),SUMIFS('DATA MART_'!$Q:$Q,'DATA MART_'!$G:$G,$G$3,'DATA MART_'!$A:$A,CONCATENATE($G$3,"|",C$7,"|",$Q59,"|",$I$2,"|",$P59,"|",$J$2,"|",$J$3,"|",$K$2,"|",$K$3),'DATA MART_'!$F:$F,$G$2)) -> 174.2514101 | D59: =IF($G$2="TO",SUMIFS('DATA MART_'!$Q:$Q,'DATA MART_'!$G:$G,$G$3,'DATA MART_'!$A:$A,CONCATENATE($G$3,"|",D$7,"|",$Q59,"|",$I$2,"|",$P59,"|",$J$2,"|",$J$3,"|",$K$2,"|",$K$3)),SUMIFS('DATA MART_'!$Q:$Q,'DATA MART_'!$G:$G,$G$3,'DATA MART_'!$A:$A,CONCATENATE($G$3,"|",D$7,"|",$Q59,"|",$I$2,"|",$P59,"|",$J$2,"|",$J$3,"|",$K$2,"|",$K$3),'DATA MART_'!$F:$F,$G$2)) -> 49.25141012 | E59: =IF($G$2="TO",SUMIFS('DATA MART_'!$Q:$Q,'DATA MART_'!$G:$G,$G$3,'DATA MART_'!$A:$A,CONCATENATE($G$3,"|",E$7,"|",$Q59,"|",$I$2,"|",$P59,"|",$J$2,"|",$J$3,"|",$K$2,"|",$K$3)),SUMIFS('DATA MART_'!$Q:$Q,'DATA MART_'!$G:$G,$G$3,'DATA MART_'!$A:$A,CONCATENATE($G$3,"|",E$7,"|",$Q59,"|",$I$2,"|",$P59,"|",$J$2,"|",$J$3,"|",$K$2,"|",$K$3),'DATA MART_'!$F:$F,$G$2)) -> 166.0348591 | F59: =IF($G$2="TO",SUMIFS('DATA MART_'!$Q:$Q,'DATA MART_'!$G:$G,$G$3,'DATA MART_'!$A:$A,CONCATENATE($G$3,"|",F$7,"|",$Q59,"|",$I$2,"|",$P59,"|",$J$2,"|",$J$3,"|",$K$2,"|",$K$3)),SUMIFS('DATA MART_'!$Q:$Q,'DATA MART_'!$G:$G,$G$3,'DATA MART_'!$A:$A,CONCATENATE($G$3,"|",F$7,"|",$Q59,"|",$I$2,"|",$P59,"|",$J$2,"|",$J$3,"|",$K$2,"|",$K$3),'DATA MART_'!$F:$F,$G$2)) -> 0 | G59: =IF($G$2="TO",SUMIFS('DATA MART_'!$Q:$Q,'DATA MART_'!$G:$G,$G$3,'DATA MART_'!$A:$A,CONCATENATE($G$3,"|",G$7,"|",$Q59,"|",$I$2,"|",$P59,"|",$J$2,"|",$J$3,"|",$K$2,"|",$K$3)),SUMIFS('DATA MART_'!$Q:$Q,'DATA MART_'!$G:$G,$G$3,'DATA MART_'!$A:$A,CONCATENATE($G$3,"|",G$7,"|",$Q59,"|",$I$2,"|",$P59,"|",$J$2,"|",$J$3,"|",$K$2,"|",$K$3),'DATA MART_'!$F:$F,$G$2)) -> 0 | H59: =IF($G$2="TO",SUMIFS('DATA MART_'!$Q:$Q,'DATA MART_'!$G:$G,$G$3,'DATA MART_'!$A:$A,CONCATENATE($G$3,"|",H$7,"|",$Q59,"|",$I$2,"|",$P59,"|",$J$2,"|",$J$3,"|",$K$2,"|",$K$3)),SUMIFS('DATA MART_'!$Q:$Q,'DATA MART_'!$G:$G,$G$3,'DATA MART_'!$A:$A,CONCATENATE($G$3,"|",H$7,"|",$Q59,"|",$I$2,"|",$P59,"|",$J$2,"|",$J$3,"|",$K$2,"|",$K$3),'DATA MART_'!$F:$F,$G$2)) -> 0 | J59: =IF($G$2="TO",SUMIFS('DATA MART_'!$Q:$Q,'DATA MART_'!$G:$G,$G$3,'DATA MART_'!$A:$A,CONCATENATE($G$3,"|",J$7,"|",$Q59,"|",$I$2,"|",$P59,"|",$J$2,"|",$J$3,"|",$K$2,"|",$K$3)),SUMIFS('DATA MART_'!$Q:$Q,'DATA MART_'!$G:$G,$G$3,'DATA MART_'!$A:$A,CONCATENATE($G$3,"|",J$7,"|",$Q59,"|",$I$2,"|",$P59,"|",$J$2,"|",$J$3,"|",$K$2,"|",$K$3),'DATA MART_'!$F:$F,$G$2)) -> 0 | L59: =IF($G$2="TO",SUMIFS('DATA MART_'!$Q:$Q,'DATA MART_'!$G:$G,$G$3,'DATA MART_'!$A:$A,CONCATENATE($G$3,"|",L$7,"|",$Q59,"|",$I$2,"|",$P59,"|",$J$2,"|",$J$3,"|",$K$2,"|",$K$3)),SUMIFS('DATA MART_'!$Q:$Q,'DATA MART_'!$G:$G,$G$3,'DATA MART_'!$A:$A,CONCATENATE($G$3,"|",L$7,"|",$Q59,"|",$I$2,"|",$P59,"|",$J$2,"|",$J$3,"|",$K$2,"|",$K$3),'DATA MART_'!$F:$F,$G$2)) -> 11.48210789 | M59: 7 | N59: 2 | O59: 30010072 | P59: 2 | Q59: =VLOOKUP(B58,'DATA MART_'!$AO$4:$AP$242,2,0) -> 7
A60: [ 1Y - 2Y ] | C60: =IF($G$2="TO",SUMIFS('DATA MART_'!$Q:$Q,'DATA MART_'!$G:$G,$G$3,'DATA MART_'!$A:$A,CONCATENATE($G$3,"|",C$7,"|",$Q60,"|",$I$2,"|",$P60,"|",$J$2,"|",$J$3,"|",$K$2,"|",$K$3)),SUMIFS('DATA MART_'!$Q:$Q,'DATA MART_'!$G:$G,$G$3,'DATA MART_'!$A:$A,CONCATENATE($G$3,"|",C$7,"|",$Q60,"|",$I$2,"|",$P60,"|",$J$2,"|",$J$3,"|",$K$2,"|",$K$3),'DATA MART_'!$F:$F,$G$2)) -> 117.5596718 | D60: =IF($G$2="TO",SUMIFS('DATA MART_'!$Q:$Q,'DATA MART_'!$G:$G,$G$3,'DATA MART_'!$A:$A,CONCATENATE($G$3,"|",D$7,"|",$Q60,"|",$I$2,"|",$P60,"|",$J$2,"|",$J$3,"|",$K$2,"|",$K$3)),SUMIFS('DATA MART_'!$Q:$Q,'DATA MART_'!$G:$G,$G$3,'DATA MART_'!$A:$A,CONCATENATE($G$3,"|",D$7,"|",$Q60,"|",$I$2,"|",$P60,"|",$J$2,"|",$J$3,"|",$K$2,"|",$K$3),'DATA MART_'!$F:$F,$G$2)) -> 95.86637181 | E60: =IF($G$2="TO",SUMIFS('DATA MART_'!$Q:$Q,'DATA MART_'!$G:$G,$G$3,'DATA MART_'!$A:$A,CONCATENATE($G$3,"|",E$7,"|",$Q60,"|",$I$2,"|",$P60,"|",$J$2,"|",$J$3,"|",$K$2,"|",$K$3)),SUMIFS('DATA MART_'!$Q:$Q,'DATA MART_'!$G:$G,$G$3,'DATA MART_'!$A:$A,CONCATENATE($G$3,"|",E$7,"|",$Q60,"|",$I$2,"|",$P60,"|",$J$2,"|",$J$3,"|",$K$2,"|",$K$3),'DATA MART_'!$F:$F,$G$2)) -> 96.10765981 | F60: =IF($G$2="TO",SUMIFS('DATA MART_'!$Q:$Q,'DATA MART_'!$G:$G,$G$3,'DATA MART_'!$A:$A,CONCATENATE($G$3,"|",F$7,"|",$Q60,"|",$I$2,"|",$P60,"|",$J$2,"|",$J$3,"|",$K$2,"|",$K$3)),SUMIFS('DATA MART_'!$Q:$Q,'DATA MART_'!$G:$G,$G$3,'DATA MART_'!$A:$A,CONCATENATE($G$3,"|",F$7,"|",$Q60,"|",$I$2,"|",$P60,"|",$J$2,"|",$J$3,"|",$K$2,"|",$K$3),'DATA MART_'!$F:$F,$G$2)) -> 0 | G60: =IF($G$2="TO",SUMIFS('DATA MART_'!$Q:$Q,'DATA MART_'!$G:$G,$G$3,'DATA MART_'!$A:$A,CONCATENATE($G$3,"|",G$7,"|",$Q60,"|",$I$2,"|",$P60,"|",$J$2,"|",$J$3,"|",$K$2,"|",$K$3)),SUMIFS('DATA MART_'!$Q:$Q,'DATA MART_'!$G:$G,$G$3,'DATA MART_'!$A:$A,CONCATENATE($G$3,"|",G$7,"|",$Q60,"|",$I$2,"|",$P60,"|",$J$2,"|",$J$3,"|",$K$2,"|",$K$3),'DATA MART_'!$F:$F,$G$2)) -> 0 | H60: =IF($G$2="TO",SUMIFS('DATA MART_'!$Q:$Q,'DATA MART_'!$G:$G,$G$3,'DATA MART_'!$A:$A,CONCATENATE($G$3,"|",H$7,"|",$Q60,"|",$I$2,"|",$P60,"|",$J$2,"|",$J$3,"|",$K$2,"|",$K$3)),SUMIFS('DATA MART_'!$Q:$Q,'DATA MART_'!$G:$G,$G$3,'DATA MART_'!$A:$A,CONCATENATE($G$3,"|",H$7,"|",$Q60,"|",$I$2,"|",$P60,"|",$J$2,"|",$J$3,"|",$K$2,"|",$K$3),'DATA MART_'!$F:$F,$G$2)) -> 14.6933 | J60: =IF($G$2="TO",SUMIFS('DATA MART_'!$Q:$Q,'DATA MART_'!$G:$G,$G$3,'DATA MART_'!$A:$A,CONCATENATE($G$3,"|",J$7,"|",$Q60,"|",$I$2,"|",$P60,"|",$J$2,"|",$J$3,"|",$K$2,"|",$K$3)),SUMIFS('DATA MART_'!$Q:$Q,'DATA MART_'!$G:$G,$G$3,'DATA MART_'!$A:$A,CONCATENATE($G$3,"|",J$7,"|",$Q60,"|",$I$2,"|",$P60,"|",$J$2,"|",$J$3,"|",$K$2,"|",$K$3),'DATA MART_'!$F:$F,$G$2)) -> 2.125115 | L60: =IF($G$2="TO",SUMIFS('DATA MART_'!$Q:$Q,'DATA MART_'!$G:$G,$G$3,'DATA MART_'!$A:$A,CONCATENATE($G$3,"|",L$7,"|",$Q60,"|",$I$2,"|",$P60,"|",$J$2,"|",$J$3,"|",$K$2,"|",$K$3)),SUMIFS('DATA MART_'!$Q:$Q,'DATA MART_'!$G:$G,$G$3,'DATA MART_'!$A:$A,CONCATENATE($G$3,"|",L$7,"|",$Q60,"|",$I$2,"|",$P60,"|",$J$2,"|",$J$3,"|",$K$2,"|",$K$3),'DATA MART_'!$F:$F,$G$2)) -> -9.931072584 | M60: 7 | N60: 3 | O60: 30010073 | P60: 3 | Q60: =VLOOKUP(B58,'DATA MART_'!$AO$4:$AP$242,2,0) -> 7
A61: [ 2Y - 3Y ] | C61: =IF($G$2="TO",SUMIFS('DATA MART_'!$Q:$Q,'DATA MART_'!$G:$G,$G$3,'DATA MART_'!$A:$A,CONCATENATE($G$3,"|",C$7,"|",$Q61,"|",$I$2,"|",$P61,"|",$J$2,"|",$J$3,"|",$K$2,"|",$K$3)),SUMIFS('DATA MART_'!$Q:$Q,'DATA MART_'!$G:$G,$G$3,'DATA MART_'!$A:$A,CONCATENATE($G$3,"|",C$7,"|",$Q61,"|",$I$2,"|",$P61,"|",$J$2,"|",$J$3,"|",$K$2,"|",$K$3),'DATA MART_'!$F:$F,$G$2)) -> 10.15491724 | D61: =IF($G$2="TO",SUMIFS('DATA MART_'!$Q:$Q,'DATA MART_'!$G:$G,$G$3,'DATA MART_'!$A:$A,CONCATENATE($G$3,"|",D$7,"|",$Q61,"|",$I$2,"|",$P61,"|",$J$2,"|",$J$3,"|",$K$2,"|",$K$3)),SUMIFS('DATA MART_'!$Q:$Q,'DATA MART_'!$G:$G,$G$3,'DATA MART_'!$A:$A,CONCATENATE($G$3,"|",D$7,"|",$Q61,"|",$I$2,"|",$P61,"|",$J$2,"|",$J$3,"|",$K$2,"|",$K$3),'DATA MART_'!$F:$F,$G$2)) -> 10.15491724 | E61: =IF($G$2="TO",SUMIFS('DATA MART_'!$Q:$Q,'DATA MART_'!$G:$G,$G$3,'DATA MART_'!$A:$A,CONCATENATE($G$3,"|",E$7,"|",$Q61,"|",$I$2,"|",$P61,"|",$J$2,"|",$J$3,"|",$K$2,"|",$K$3)),SUMIFS('DATA MART_'!$Q:$Q,'DATA MART_'!$G:$G,$G$3,'DATA MART_'!$A:$A,CONCATENATE($G$3,"|",E$7,"|",$Q61,"|",$I$2,"|",$P61,"|",$J$2,"|",$J$3,"|",$K$2,"|",$K$3),'DATA MART_'!$F:$F,$G$2)) -> 2.573770239 | F61: =IF($G$2="TO",SUMIFS('DATA MART_'!$Q:$Q,'DATA MART_'!$G:$G,$G$3,'DATA MART_'!$A:$A,CONCATENATE($G$3,"|",F$7,"|",$Q61,"|",$I$2,"|",$P61,"|",$J$2,"|",$J$3,"|",$K$2,"|",$K$3)),SUMIFS('DATA MART_'!$Q:$Q,'DATA MART_'!$G:$G,$G$3,'DATA MART_'!$A:$A,CONCATENATE($G$3,"|",F$7,"|",$Q61,"|",$I$2,"|",$P61,"|",$J$2,"|",$J$3,"|",$K$2,"|",$K$3),'DATA MART_'!$F:$F,$G$2)) -> 0 | G61: =IF($G$2="TO",SUMIFS('DATA MART_'!$Q:$Q,'DATA MART_'!$G:$G,$G$3,'DATA MART_'!$A:$A,CONCATENATE($G$3,"|",G$7,"|",$Q61,"|",$I$2,"|",$P61,"|",$J$2,"|",$J$3,"|",$K$2,"|",$K$3)),SUMIFS('DATA MART_'!$Q:$Q,'DATA MART_'!$G:$G,$G$3,'DATA MART_'!$A:$A,CONCATENATE($G$3,"|",G$7,"|",$Q61,"|",$I$2,"|",$P61,"|",$J$2,"|",$J$3,"|",$K$2,"|",$K$3),'DATA MART_'!$F:$F,$G$2)) -> 0 | H61: =IF($G$2="TO",SUMIFS('DATA MART_'!$Q:$Q,'DATA MART_'!$G:$G,$G$3,'DATA MART_'!$A:$A,CONCATENATE($G$3,"|",H$7,"|",$Q61,"|",$I$2,"|",$P61,"|",$J$2,"|",$J$3,"|",$K$2,"|",$K$3)),SUMIFS('DATA MART_'!$Q:$Q,'DATA MART_'!$G:$G,$G$3,'DATA MART_'!$A:$A,CONCATENATE($G$3,"|",H$7,"|",$Q61,"|",$I$2,"|",$P61,"|",$J$2,"|",$J$3,"|",$K$2,"|",$K$3),'DATA MART_'!$F:$F,$G$2)) -> 0 | J61: =IF($G$2="TO",SUMIFS('DATA MART_'!$Q:$Q,'DATA MART_'!$G:$G,$G$3,'DATA MART_'!$A:$A,CONCATENATE($G$3,"|",J$7,"|",$Q61,"|",$I$2,"|",$P61,"|",$J$2,"|",$J$3,"|",$K$2,"|",$K$3)),SUMIFS('DATA MART_'!$Q:$Q,'DATA MART_'!$G:$G,$G$3,'DATA MART_'!$A:$A,CONCATENATE($G$3,"|",J$7,"|",$Q61,"|",$I$2,"|",$P61,"|",$J$2,"|",$J$3,"|",$K$2,"|",$K$3),'DATA MART_'!$F:$F,$G$2)) -> 0 | L61: =IF($G$2="TO",SUMIFS('DATA MART_'!$Q:$Q,'DATA MART_'!$G:$G,$G$3,'DATA MART_'!$A:$A,CONCATENATE($G$3,"|",L$7,"|",$Q61,"|",$I$2,"|",$P61,"|",$J$2,"|",$J$3,"|",$K$2,"|",$K$3)),SUMIFS('DATA MART_'!$Q:$Q,'DATA MART_'!$G:$G,$G$3,'DATA MART_'!$A:$A,CONCATENATE($G$3,"|",L$7,"|",$Q61,"|",$I$2,"|",$P61,"|",$J$2,"|",$J$3,"|",$K$2,"|",$K$3),'DATA MART_'!$F:$F,$G$2)) -> -5.072500916 | M61: 7 | N61: 4 | O61: 30010074 | P61: 4 | Q61: =VLOOKUP(B58,'DATA MART_'!$AO$4:$AP$242,2,0) -> 7
A62: [3Y - 5Y ] | C62: =IF($G$2="TO",SUMIFS('DATA MART_'!$Q:$Q,'DATA MART_'!$G:$G,$G$3,'DATA MART_'!$A:$A,CONCATENATE($G$3,"|",C$7,"|",$Q62,"|",$I$2,"|",$P62,"|",$J$2,"|",$J$3,"|",$K$2,"|",$K$3)),SUMIFS('DATA MART_'!$Q:$Q,'DATA MART_'!$G:$G,$G$3,'DATA MART_'!$A:$A,CONCATENATE($G$3,"|",C$7,"|",$Q62,"|",$I$2,"|",$P62,"|",$J$2,"|",$J$3,"|",$K$2,"|",$K$3),'DATA MART_'!$F:$F,$G$2)) -> 91.88331057 | D62: =IF($G$2="TO",SUMIFS('DATA MART_'!$Q:$Q,'DATA MART_'!$G:$G,$G$3,'DATA MART_'!$A:$A,CONCATENATE($G$3,"|",D$7,"|",$Q62,"|",$I$2,"|",$P62,"|",$J$2,"|",$J$3,"|",$K$2,"|",$K$3)),SUMIFS('DATA MART_'!$Q:$Q,'DATA MART_'!$G:$G,$G$3,'DATA MART_'!$A:$A,CONCATENATE($G$3,"|",D$7,"|",$Q62,"|",$I$2,"|",$P62,"|",$J$2,"|",$J$3,"|",$K$2,"|",$K$3),'DATA MART_'!$F:$F,$G$2)) -> 91.88331057 | E62: =IF($G$2="TO",SUMIFS('DATA MART_'!$Q:$Q,'DATA MART_'!$G:$G,$G$3,'DATA MART_'!$A:$A,CONCATENATE($G$3,"|",E$7,"|",$Q62,"|",$I$2,"|",$P62,"|",$J$2,"|",$J$3,"|",$K$2,"|",$K$3)),SUMIFS('DATA MART_'!$Q:$Q,'DATA MART_'!$G:$G,$G$3,'DATA MART_'!$A:$A,CONCATENATE($G$3,"|",E$7,"|",$Q62,"|",$I$2,"|",$P62,"|",$J$2,"|",$J$3,"|",$K$2,"|",$K$3),'DATA MART_'!$F:$F,$G$2)) -> 64.81667057 | F62: =IF($G$2="TO",SUMIFS('DATA MART_'!$Q:$Q,'DATA MART_'!$G:$G,$G$3,'DATA MART_'!$A:$A,CONCATENATE($G$3,"|",F$7,"|",$Q62,"|",$I$2,"|",$P62,"|",$J$2,"|",$J$3,"|",$K$2,"|",$K$3)),SUMIFS('DATA MART_'!$Q:$Q,'DATA MART_'!$G:$G,$G$3,'DATA MART_'!$A:$A,CONCATENATE($G$3,"|",F$7,"|",$Q62,"|",$I$2,"|",$P62,"|",$J$2,"|",$J$3,"|",$K$2,"|",$K$3),'DATA MART_'!$F:$F,$G$2)) -> 0 | G62: =IF($G$2="TO",SUMIFS('DATA MART_'!$Q:$Q,'DATA MART_'!$G:$G,$G$3,'DATA MART_'!$A:$A,CONCATENATE($G$3,"|",G$7,"|",$Q62,"|",$I$2,"|",$P62,"|",$J$2,"|",$J$3,"|",$K$2,"|",$K$3)),SUMIFS('DATA MART_'!$Q:$Q,'DATA MART_'!$G:$G,$G$3,'DATA MART_'!$A:$A,CONCATENATE($G$3,"|",G$7,"|",$Q62,"|",$I$2,"|",$P62,"|",$J$2,"|",$J$3,"|",$K$2,"|",$K$3),'DATA MART_'!$F:$F,$G$2)) -> 0 | H62: =IF($G$2="TO",SUMIFS('DATA MART_'!$Q:$Q,'DATA MART_'!$G:$G,$G$3,'DATA MART_'!$A:$A,CONCATENATE($G$3,"|",H$7,"|",$Q62,"|",$I$2,"|",$P62,"|",$J$2,"|",$J$3,"|",$K$2,"|",$K$3)),SUMIFS('DATA MART_'!$Q:$Q,'DATA MART_'!$G:$G,$G$3,'DATA MART_'!$A:$A,CONCATENATE($G$3,"|",H$7,"|",$Q62,"|",$I$2,"|",$P62,"|",$J$2,"|",$J$3,"|",$K$2,"|",$K$3),'DATA MART_'!$F:$F,$G$2)) -> 0 | J62: =IF($G$2="TO",SUMIFS('DATA MART_'!$Q:$Q,'DATA MART_'!$G:$G,$G$3,'DATA MART_'!$A:$A,CONCATENATE($G$3,"|",J$7,"|",$Q62,"|",$I$2,"|",$P62,"|",$J$2,"|",$J$3,"|",$K$2,"|",$K$3)),SUMIFS('DATA MART_'!$Q:$Q,'DATA MART_'!$G:$G,$G$3,'DATA MART_'!$A:$A,CONCATENATE($G$3,"|",J$7,"|",$Q62,"|",$I$2,"|",$P62,"|",$J$2,"|",$J$3,"|",$K$2,"|",$K$3),'DATA MART_'!$F:$F,$G$2)) -> 0.159619 | L62: =IF($G$2="TO",SUMIFS('DATA MART_'!$Q:$Q,'DATA MART_'!$G:$G,$G$3,'DATA MART_'!$A:$A,CONCATENATE($G$3,"|",L$7,"|",$Q62,"|",$I$2,"|",$P62,"|",$J$2,"|",$J$3,"|",$K$2,"|",$K$3)),SUMIFS('DATA MART_'!$Q:$Q,'DATA MART_'!$G:$G,$G$3,'DATA MART_'!$A:$A,CONCATENATE($G$3,"|",L$7,"|",$Q62,"|",$I$2,"|",$P62,"|",$J$2,"|",$J$3,"|",$K$2,"|",$K$3),'DATA MART_'!$F:$F,$G$2)) -> -2.045865952 | M62: 7 | N62: 5 | O62: 30010075 | P62: 5 | Q62: =VLOOKUP(B58,'DATA MART_'!$AO$4:$AP$242,2,0) -> 7
A63: [5Y - 10Y ] | C63: =IF($G$2="TO",SUMIFS('DATA MART_'!$Q:$Q,'DATA MART_'!$G:$G,$G$3,'DATA MART_'!$A:$A,CONCATENATE($G$3,"|",C$7,"|",$Q63,"|",$I$2,"|",$P63,"|",$J$2,"|",$J$3,"|",$K$2,"|",$K$3)),SUMIFS('DATA MART_'!$Q:$Q,'DATA MART_'!$G:$G,$G$3,'DATA MART_'!$A:$A,CONCATENATE($G$3,"|",C$7,"|",$Q63,"|",$I$2,"|",$P63,"|",$J$2,"|",$J$3,"|",$K$2,"|",$K$3),'DATA MART_'!$F:$F,$G$2)) -> 213.4398008 | D63: =IF($G$2="TO",SUMIFS('DATA MART_'!$Q:$Q,'DATA MART_'!$G:$G,$G$3,'DATA MART_'!$A:$A,CONCATENATE($G$3,"|",D$7,"|",$Q63,"|",$I$2,"|",$P63,"|",$J$2,"|",$J$3,"|",$K$2,"|",$K$3)),SUMIFS('DATA MART_'!$Q:$Q,'DATA MART_'!$G:$G,$G$3,'DATA MART_'!$A:$A,CONCATENATE($G$3,"|",D$7,"|",$Q63,"|",$I$2,"|",$P63,"|",$J$2,"|",$J$3,"|",$K$2,"|",$K$3),'DATA MART_'!$F:$F,$G$2)) -> 205.4398008 | E63: =IF($G$2="TO",SUMIFS('DATA MART_'!$Q:$Q,'DATA MART_'!$G:$G,$G$3,'DATA MART_'!$A:$A,CONCATENATE($G$3,"|",E$7,"|",$Q63,"|",$I$2,"|",$P63,"|",$J$2,"|",$J$3,"|",$K$2,"|",$K$3)),SUMIFS('DATA MART_'!$Q:$Q,'DATA MART_'!$G:$G,$G$3,'DATA MART_'!$A:$A,CONCATENATE($G$3,"|",E$7,"|",$Q63,"|",$I$2,"|",$P63,"|",$J$2,"|",$J$3,"|",$K$2,"|",$K$3),'DATA MART_'!$F:$F,$G$2)) -> 115.6204648 | F63: =IF($G$2="TO",SUMIFS('DATA MART_'!$Q:$Q,'DATA MART_'!$G:$G,$G$3,'DATA MART_'!$A:$A,CONCATENATE($G$3,"|",F$7,"|",$Q63,"|",$I$2,"|",$P63,"|",$J$2,"|",$J$3,"|",$K$2,"|",$K$3)),SUMIFS('DATA MART_'!$Q:$Q,'DATA MART_'!$G:$G,$G$3,'DATA MART_'!$A:$A,CONCATENATE($G$3,"|",F$7,"|",$Q63,"|",$I$2,"|",$P63,"|",$J$2,"|",$J$3,"|",$K$2,"|",$K$3),'DATA MART_'!$F:$F,$G$2)) -> 0 | G63: =IF($G$2="TO",SUMIFS('DATA MART_'!$Q:$Q,'DATA MART_'!$G:$G,$G$3,'DATA MART_'!$A:$A,CONCATENATE($G$3,"|",G$7,"|",$Q63,"|",$I$2,"|",$P63,"|",$J$2,"|",$J$3,"|",$K$2,"|",$K$3)),SUMIFS('DATA MART_'!$Q:$Q,'DATA MART_'!$G:$G,$G$3,'DATA MART_'!$A:$A,CONCATENATE($G$3,"|",G$7,"|",$Q63,"|",$I$2,"|",$P63,"|",$J$2,"|",$J$3,"|",$K$2,"|",$K$3),'DATA MART_'!$F:$F,$G$2)) -> 0 | H63: =IF($G$2="TO",SUMIFS('DATA MART_'!$Q:$Q,'DATA MART_'!$G:$G,$G$3,'DATA MART_'!$A:$A,CONCATENATE($G$3,"|",H$7,"|",$Q63,"|",$I$2,"|",$P63,"|",$J$2,"|",$J$3,"|",$K$2,"|",$K$3)),SUMIFS('DATA MART_'!$Q:$Q,'DATA MART_'!$G:$G,$G$3,'DATA MART_'!$A:$A,CONCATENATE($G$3,"|",H$7,"|",$Q63,"|",$I$2,"|",$P63,"|",$J$2,"|",$J$3,"|",$K$2,"|",$K$3),'DATA MART_'!$F:$F,$G$2)) -> 0 | J63: =IF($G$2="TO",SUMIFS('DATA MART_'!$Q:$Q,'DATA MART_'!$G:$G,$G$3,'DATA MART_'!$A:$A,CONCATENATE($G$3,"|",J$7,"|",$Q63,"|",$I$2,"|",$P63,"|",$J$2,"|",$J$3,"|",$K$2,"|",$K$3)),SUMIFS('DATA MART_'!$Q:$Q,'DATA MART_'!$G:$G,$G$3,'DATA MART_'!$A:$A,CONCATENATE($G$3,"|",J$7,"|",$Q63,"|",$I$2,"|",$P63,"|",$J$2,"|",$J$3,"|",$K$2,"|",$K$3),'DATA MART_'!$F:$F,$G$2)) -> -0.53054 | L63: =IF($G$2="TO",SUMIFS('DATA MART_'!$Q:$Q,'DATA MART_'!$G:$G,$G$3,'DATA MART_'!$A:$A,CONCATENATE($G$3,"|",L$7,"|",$Q63,"|",$I$2,"|",$P63,"|",$J$2,"|",$J$3,"|",$K$2,"|",$K$3)),SUMIFS('DATA MART_'!$Q:$Q,'DATA MART_'!$G:$G,$G$3,'DATA MART_'!$A:$A,CONCATENATE($G$3,"|",L$7,"|",$Q63,"|",$I$2,"|",$P63,"|",$J$2,"|",$J$3,"|",$K$2,"|",$K$3),'DATA MART_'!$F:$F,$G$2)) -> 9.253382147 | M63: 7 | N63: 6 | O63: 30010076 | P63: 6 | Q63: =VLOOKUP(B58,'DATA MART_'!$AO$4:$AP$242,2,0) -> 7
A64: [10Y - more ] | C64: =IF($G$2="TO",SUMIFS('DATA MART_'!$Q:$Q,'DATA MART_'!$G:$G,$G$3,'DATA MART_'!$A:$A,CONCATENATE($G$3,"|",C$7,"|",$Q64,"|",$I$2,"|",$P64,"|",$J$2,"|",$J$3,"|",$K$2,"|",$K$3)),SUMIFS('DATA MART_'!$Q:$Q,'DATA MART_'!$G:$G,$G$3,'DATA MART_'!$A:$A,CONCATENATE($G$3,"|",C$7,"|",$Q64,"|",$I$2,"|",$P64,"|",$J$2,"|",$J$3,"|",$K$2,"|",$K$3),'DATA MART_'!$F:$F,$G$2)) -> 16.7390584 | D64: =IF($G$2="TO",SUMIFS('DATA MART_'!$Q:$Q,'DATA MART_'!$G:$G,$G$3,'DATA MART_'!$A:$A,CONCATENATE($G$3,"|",D$7,"|",$Q64,"|",$I$2,"|",$P64,"|",$J$2,"|",$J$3,"|",$K$2,"|",$K$3)),SUMIFS('DATA MART_'!$Q:$Q,'DATA MART_'!$G:$G,$G$3,'DATA MART_'!$A:$A,CONCATENATE($G$3,"|",D$7,"|",$Q64,"|",$I$2,"|",$P64,"|",$J$2,"|",$J$3,"|",$K$2,"|",$K$3),'DATA MART_'!$F:$F,$G$2)) -> 16.7390584 | E64: =IF($G$2="TO",SUMIFS('DATA MART_'!$Q:$Q,'DATA MART_'!$G:$G,$G$3,'DATA MART_'!$A:$A,CONCATENATE($G$3,"|",E$7,"|",$Q64,"|",$I$2,"|",$P64,"|",$J$2,"|",$J$3,"|",$K$2,"|",$K$3)),SUMIFS('DATA MART_'!$Q:$Q,'DATA MART_'!$G:$G,$G$3,'DATA MART_'!$A:$A,CONCATENATE($G$3,"|",E$7,"|",$Q64,"|",$I$2,"|",$P64,"|",$J$2,"|",$J$3,"|",$K$2,"|",$K$3),'DATA MART_'!$F:$F,$G$2)) -> 4.0591354 | F64: =IF($G$2="TO",SUMIFS('DATA MART_'!$Q:$Q,'DATA MART_'!$G:$G,$G$3,'DATA MART_'!$A:$A,CONCATENATE($G$3,"|",F$7,"|",$Q64,"|",$I$2,"|",$P64,"|",$J$2,"|",$J$3,"|",$K$2,"|",$K$3)),SUMIFS('DATA MART_'!$Q:$Q,'DATA MART_'!$G:$G,$G$3,'DATA MART_'!$A:$A,CONCATENATE($G$3,"|",F$7,"|",$Q64,"|",$I$2,"|",$P64,"|",$J$2,"|",$J$3,"|",$K$2,"|",$K$3),'DATA MART_'!$F:$F,$G$2)) -> 0 | G64: =IF($G$2="TO",SUMIFS('DATA MART_'!$Q:$Q,'DATA MART_'!$G:$G,$G$3,'DATA MART_'!$A:$A,CONCATENATE($G$3,"|",G$7,"|",$Q64,"|",$I$2,"|",$P64,"|",$J$2,"|",$J$3,"|",$K$2,"|",$K$3)),SUMIFS('DATA MART_'!$Q:$Q,'DATA MART_'!$G:$G,$G$3,'DATA MART_'!$A:$A,CONCATENATE($G$3,"|",G$7,"|",$Q64,"|",$I$2,"|",$P64,"|",$J$2,"|",$J$3,"|",$K$2,"|",$K$3),'DATA MART_'!$F:$F,$G$2)) -> 0 | H64: =IF($G$2="TO",SUMIFS('DATA MART_'!$Q:$Q,'DATA MART_'!$G:$G,$G$3,'DATA MART_'!$A:$A,CONCATENATE($G$3,"|",H$7,"|",$Q64,"|",$I$2,"|",$P64,"|",$J$2,"|",$J$3,"|",$K$2,"|",$K$3)),SUMIFS('DATA MART_'!$Q:$Q,'DATA MART_'!$G:$G,$G$3,'DATA MART_'!$A:$A,CONCATENATE($G$3,"|",H$7,"|",$Q64,"|",$I$2,"|",$P64,"|",$J$2,"|",$J$3,"|",$K$2,"|",$K$3),'DATA MART_'!$F:$F,$G$2)) -> 0 | J64: =IF($G$2="TO",SUMIFS('DATA MART_'!$Q:$Q,'DATA MART_'!$G:$G,$G$3,'DATA MART_'!$A:$A,CONCATENATE($G$3,"|",J$7,"|",$Q64,"|",$I$2,"|",$P64,"|",$J$2,"|",$J$3,"|",$K$2,"|",$K$3)),SUMIFS('DATA MART_'!$Q:$Q,'DATA MART_'!$G:$G,$G$3,'DATA MART_'!$A:$A,CONCATENATE($G$3,"|",J$7,"|",$Q64,"|",$I$2,"|",$P64,"|",$J$2,"|",$J$3,"|",$K$2,"|",$K$3),'DATA MART_'!$F:$F,$G$2)) -> 0 | L64: =IF($G$2="TO",SUMIFS('DATA MART_'!$Q:$Q,'DATA MART_'!$G:$G,$G$3,'DATA MART_'!$A:$A,CONCATENATE($G$3,"|",L$7,"|",$Q64,"|",$I$2,"|",$P64,"|",$J$2,"|",$J$3,"|",$K$2,"|",$K$3)),SUMIFS('DATA MART_'!$Q:$Q,'DATA MART_'!$G:$G,$G$3,'DATA MART_'!$A:$A,CONCATENATE($G$3,"|",L$7,"|",$Q64,"|",$I$2,"|",$P64,"|",$J$2,"|",$J$3,"|",$K$2,"|",$K$3),'DATA MART_'!$F:$F,$G$2)) -> 0 | M64: 7 | N64: 7 | O64: 30010077 | P64: 7 | Q64: =VLOOKUP(B58,'DATA MART_'!$AO$4:$AP$242,2,0) -> 7
A65: Total | C65: =IF($G$2="TO",SUMIFS('DATA MART_'!$Q:$Q,'DATA MART_'!$G:$G,$G$3,'DATA MART_'!$A:$A,CONCATENATE($G$3,"|",C$7,"|",$Q65,"|",$I$2,"|",$P65,"|",$J$2,"|",$J$3,"|",$K$2,"|",$K$3)),SUMIFS('DATA MART_'!$Q:$Q,'DATA MART_'!$G:$G,$G$3,'DATA MART_'!$A:$A,CONCATENATE($G$3,"|",C$7,"|",$Q65,"|",$I$2,"|",$P65,"|",$J$2,"|",$J$3,"|",$K$2,"|",$K$3),'DATA MART_'!$F:$F,$G$2)) -> 990.1917276 | D65: =IF($G$2="TO",SUMIFS('DATA MART_'!$Q:$Q,'DATA MART_'!$G:$G,$G$3,'DATA MART_'!$A:$A,CONCATENATE($G$3,"|",D$7,"|",$Q65,"|",$I$2,"|",$P65,"|",$J$2,"|",$J$3,"|",$K$2,"|",$K$3)),SUMIFS('DATA MART_'!$Q:$Q,'DATA MART_'!$G:$G,$G$3,'DATA MART_'!$A:$A,CONCATENATE($G$3,"|",D$7,"|",$Q65,"|",$I$2,"|",$P65,"|",$J$2,"|",$J$3,"|",$K$2,"|",$K$3),'DATA MART_'!$F:$F,$G$2)) -> 541.4984276 | E65: =IF($G$2="TO",SUMIFS('DATA MART_'!$Q:$Q,'DATA MART_'!$G:$G,$G$3,'DATA MART_'!$A:$A,CONCATENATE($G$3,"|",E$7,"|",$Q65,"|",$I$2,"|",$P65,"|",$J$2,"|",$J$3,"|",$K$2,"|",$K$3)),SUMIFS('DATA MART_'!$Q:$Q,'DATA MART_'!$G:$G,$G$3,'DATA MART_'!$A:$A,CONCATENATE($G$3,"|",E$7,"|",$Q65,"|",$I$2,"|",$P65,"|",$J$2,"|",$J$3,"|",$K$2,"|",$K$3),'DATA MART_'!$F:$F,$G$2)) -> 814.84269 | F65: =IF($G$2="TO",SUMIFS('DATA MART_'!$Q:$Q,'DATA MART_'!$G:$G,$G$3,'DATA MART_'!$A:$A,CONCATENATE($G$3,"|",F$7,"|",$Q65,"|",$I$2,"|",$P65,"|",$J$2,"|",$J$3,"|",$K$2,"|",$K$3)),SUMIFS('DATA MART_'!$Q:$Q,'DATA MART_'!$G:$G,$G$3,'DATA MART_'!$A:$A,CONCATENATE($G$3,"|",F$7,"|",$Q65,"|",$I$2,"|",$P65,"|",$J$2,"|",$J$3,"|",$K$2,"|",$K$3),'DATA MART_'!$F:$F,$G$2)) -> 0 | G65: =IF($G$2="TO",SUMIFS('DATA MART_'!$Q:$Q,'DATA MART_'!$G:$G,$G$3,'DATA MART_'!$A:$A,CONCATENATE($G$3,"|",G$7,"|",$Q65,"|",$I$2,"|",$P65,"|",$J$2,"|",$J$3,"|",$K$2,"|",$K$3)),SUMIFS('DATA MART_'!$Q:$Q,'DATA MART_'!$G:$G,$G$3,'DATA MART_'!$A:$A,CONCATENATE($G$3,"|",G$7,"|",$Q65,"|",$I$2,"|",$P65,"|",$J$2,"|",$J$3,"|",$K$2,"|",$K$3),'DATA MART_'!$F:$F,$G$2)) -> 0 | H65: =IF($G$2="TO",SUMIFS('DATA MART_'!$Q:$Q,'DATA MART_'!$G:$G,$G$3,'DATA MART_'!$A:$A,CONCATENATE($G$3,"|",H$7,"|",$Q65,"|",$I$2,"|",$P65,"|",$J$2,"|",$J$3,"|",$K$2,"|",$K$3)),SUMIFS('DATA MART_'!$Q:$Q,'DATA MART_'!$G:$G,$G$3,'DATA MART_'!$A:$A,CONCATENATE($G$3,"|",H$7,"|",$Q65,"|",$I$2,"|",$P65,"|",$J$2,"|",$J$3,"|",$K$2,"|",$K$3),'DATA MART_'!$F:$F,$G$2)) -> 24.69324235 | J65: =IF($G$2="TO",SUMIFS('DATA MART_'!$Q:$Q,'DATA MART_'!$G:$G,$G$3,'DATA MART_'!$A:$A,CONCATENATE($G$3,"|",J$7,"|",$Q65,"|",$I$2,"|",$P65,"|",$J$2,"|",$J$3,"|",$K$2,"|",$K$3)),SUMIFS('DATA MART_'!$Q:$Q,'DATA MART_'!$G:$G,$G$3,'DATA MART_'!$A:$A,CONCATENATE($G$3,"|",J$7,"|",$Q65,"|",$I$2,"|",$P65,"|",$J$2,"|",$J$3,"|",$K$2,"|",$K$3),'DATA MART_'!$F:$F,$G$2)) -> 1.75866855 | L65: =IF($G$2="TO",SUMIFS('DATA MART_'!$Q:$Q,'DATA MART_'!$G:$G,$G$3,'DATA MART_'!$A:$A,CONCATENATE($G$3,"|",L$7,"|",$Q65,"|",$I$2,"|",$P65,"|",$J$2,"|",$J$3,"|",$K$2,"|",$K$3)),SUMIFS('DATA MART_'!$Q:$Q,'DATA MART_'!$G:$G,$G$3,'DATA MART_'!$A:$A,CONCATENATE($G$3,"|",L$7,"|",$Q65,"|",$I$2,"|",$P65,"|",$J$2,"|",$J$3,"|",$K$2,"|",$K$3),'DATA MART_'!$F:$F,$G$2)) -> 5.695131209 | M65: 7 | N65: 8 | O65: 30010078 | P65: 8 | Q65: =VLOOKUP(B58,'DATA MART_'!$AO$4:$AP$242,2,0) -> 7
A66: [ 0 - 3M ] | B66: Finland | C66: =IF($G$2="TO",SUMIFS('DATA MART_'!$Q:$Q,'DATA MART_'!$G:$G,$G$3,'DATA MART_'!$A:$A,CONCATENATE($G$3,"|",C$7,"|",$Q66,"|",$I$2,"|",$P66,"|",$J$2,"|",$J$3,"|",$K$2,"|",$K$3)),SUMIFS('DATA MART_'!$Q:$Q,'DATA MART_'!$G:$G,$G$3,'DATA MART_'!$A:$A,CONCATENATE($G$3,"|",C$7,"|",$Q66,"|",$I$2,"|",$P66,"|",$J$2,"|",$J$3,"|",$K$2,"|",$K$3),'DATA MART_'!$F:$F,$G$2)) -> 22810.21678 | D66: =IF($G$2="TO",SUMIFS('DATA MART_'!$Q:$Q,'DATA MART_'!$G:$G,$G$3,'DATA MART_'!$A:$A,CONCATENATE($G$3,"|",D$7,"|",$Q66,"|",$I$2,"|",$P66,"|",$J$2,"|",$J$3,"|",$K$2,"|",$K$3)),SUMIFS('DATA MART_'!$Q:$Q,'DATA MART_'!$G:$G,$G$3,'DATA MART_'!$A:$A,CONCATENATE($G$3,"|",D$7,"|",$Q66,"|",$I$2,"|",$P66,"|",$J$2,"|",$J$3,"|",$K$2,"|",$K$3),'DATA MART_'!$F:$F,$G$2)) -> 21246.80525 | E66: =IF($G$2="TO",SUMIFS('DATA MART_'!$Q:$Q,'DATA MART_'!$G:$G,$G$3,'DATA MART_'!$A:$A,CONCATENATE($G$3,"|",E$7,"|",$Q66,"|",$I$2,"|",$P66,"|",$J$2,"|",$J$3,"|",$K$2,"|",$K$3)),SUMIFS('DATA MART_'!$Q:$Q,'DATA MART_'!$G:$G,$G$3,'DATA MART_'!$A:$A,CONCATENATE($G$3,"|",E$7,"|",$Q66,"|",$I$2,"|",$P66,"|",$J$2,"|",$J$3,"|",$K$2,"|",$K$3),'DATA MART_'!$F:$F,$G$2)) -> 22802.50682 | F66: =IF($G$2="TO",SUMIFS('DATA MART_'!$Q:$Q,'DATA MART_'!$G:$G,$G$3,'DATA MART_'!$A:$A,CONCATENATE($G$3,"|",F$7,"|",$Q66,"|",$I$2,"|",$P66,"|",$J$2,"|",$J$3,"|",$K$2,"|",$K$3)),SUMIFS('DATA MART_'!$Q:$Q,'DATA MART_'!$G:$G,$G$3,'DATA MART_'!$A:$A,CONCATENATE($G$3,"|",F$7,"|",$Q66,"|",$I$2,"|",$P66,"|",$J$2,"|",$J$3,"|",$K$2,"|",$K$3),'DATA MART_'!$F:$F,$G$2)) -> 0 | G66: =IF($G$2="TO",SUMIFS('DATA MART_'!$Q:$Q,'DATA MART_'!$G:$G,$G$3,'DATA MART_'!$A:$A,CONCATENATE($G$3,"|",G$7,"|",$Q66,"|",$I$2,"|",$P66,"|",$J$2,"|",$J$3,"|",$K$2,"|",$K$3)),SUMIFS('DATA MART_'!$Q:$Q,'DATA MART_'!$G:$G,$G$3,'DATA MART_'!$A:$A,CONCATENATE($G$3,"|",G$7,"|",$Q66,"|",$I$2,"|",$P66,"|",$J$2,"|",$J$3,"|",$K$2,"|",$K$3),'DATA MART_'!$F:$F,$G$2)) -> 0 | H66: =IF($G$2="TO",SUMIFS('DATA MART_'!$Q:$Q,'DATA MART_'!$G:$G,$G$3,'DATA MART_'!$A:$A,CONCATENATE($G$3,"|",H$7,"|",$Q66,"|",$I$2,"|",$P66,"|",$J$2,"|",$J$3,"|",$K$2,"|",$K$3)),SUMIFS('DATA MART_'!$Q:$Q,'DATA MART_'!$G:$G,$G$3,'DATA MART_'!$A:$A,CONCATENATE($G$3,"|",H$7,"|",$Q66,"|",$I$2,"|",$P66,"|",$J$2,"|",$J$3,"|",$K$2,"|",$K$3),'DATA MART_'!$F:$F,$G$2)) -> 14110.70977 | J66: =IF($G$2="TO",SUMIFS('DATA MART_'!$Q:$Q,'DATA MART_'!$G:$G,$G$3,'DATA MART_'!$A:$A,CONCATENATE($G$3,"|",J$7,"|",$Q66,"|",$I$2,"|",$P66,"|",$J$2,"|",$J$3,"|",$K$2,"|",$K$3)),SUMIFS('DATA MART_'!$Q:$Q,'DATA MART_'!$G:$G,$G$3,'DATA MART_'!$A:$A,CONCATENATE($G$3,"|",J$7,"|",$Q66,"|",$I$2,"|",$P66,"|",$J$2,"|",$J$3,"|",$K$2,"|",$K$3),'DATA MART_'!$F:$F,$G$2)) -> 157.0898615 | L66: =IF($G$2="TO",SUMIFS('DATA MART_'!$Q:$Q,'DATA MART_'!$G:$G,$G$3,'DATA MART_'!$A:$A,CONCATENATE($G$3,"|",L$7,"|",$Q66,"|",$I$2,"|",$P66,"|",$J$2,"|",$J$3,"|",$K$2,"|",$K$3)),SUMIFS('DATA MART_'!$Q:$Q,'DATA MART_'!$G:$G,$G$3,'DATA MART_'!$A:$A,CONCATENATE($G$3,"|",L$7,"|",$Q66,"|",$I$2,"|",$P66,"|",$J$2,"|",$J$3,"|",$K$2,"|",$K$3),'DATA MART_'!$F:$F,$G$2)) -> 7 | M66: 8 | N66: 1 | O66: 30010081 | P66: 1 | Q66: =VLOOKUP(B66,'DATA MART_'!$AO$4:$AP$242,2,0) -> 8
A67: [ 3M - 1Y ] | C67: =IF($G$2="TO",SUMIFS('DATA MART_'!$Q:$Q,'DATA MART_'!$G:$G,$G$3,'DATA MART_'!$A:$A,CONCATENATE($G$3,"|",C$7,"|",$Q67,"|",$I$2,"|",$P67,"|",$J$2,"|",$J$3,"|",$K$2,"|",$K$3)),SUMIFS('DATA MART_'!$Q:$Q,'DATA MART_'!$G:$G,$G$3,'DATA MART_'!$A:$A,CONCATENATE($G$3,"|",C$7,"|",$Q67,"|",$I$2,"|",$P67,"|",$J$2,"|",$J$3,"|",$K$2,"|",$K$3),'DATA MART_'!$F:$F,$G$2)) -> 1757.048293 | D67: =IF($G$2="TO",SUMIFS('DATA MART_'!$Q:$Q,'DATA MART_'!$G:$G,$G$3,'DATA MART_'!$A:$A,CONCATENATE($G$3,"|",D$7,"|",$Q67,"|",$I$2,"|",$P67,"|",$J$2,"|",$J$3,"|",$K$2,"|",$K$3)),SUMIFS('DATA MART_'!$Q:$Q,'DATA MART_'!$G:$G,$G$3,'DATA MART_'!$A:$A,CONCATENATE($G$3,"|",D$7,"|",$Q67,"|",$I$2,"|",$P67,"|",$J$2,"|",$J$3,"|",$K$2,"|",$K$3),'DATA MART_'!$F:$F,$G$2)) -> 315.5255516 | E67: =IF($G$2="TO",SUMIFS('DATA MART_'!$Q:$Q,'DATA MART_'!$G:$G,$G$3,'DATA MART_'!$A:$A,CONCATENATE($G$3,"|",E$7,"|",$Q67,"|",$I$2,"|",$P67,"|",$J$2,"|",$J$3,"|",$K$2,"|",$K$3)),SUMIFS('DATA MART_'!$Q:$Q,'DATA MART_'!$G:$G,$G$3,'DATA MART_'!$A:$A,CONCATENATE($G$3,"|",E$7,"|",$Q67,"|",$I$2,"|",$P67,"|",$J$2,"|",$J$3,"|",$K$2,"|",$K$3),'DATA MART_'!$F:$F,$G$2)) -> 1671.00671 | F67: =IF($G$2="TO",SUMIFS('DATA MART_'!$Q:$Q,'DATA MART_'!$G:$G,$G$3,'DATA MART_'!$A:$A,CONCATENATE($G$3,"|",F$7,"|",$Q67,"|",$I$2,"|",$P67,"|",$J$2,"|",$J$3,"|",$K$2,"|",$K$3)),SUMIFS('DATA MART_'!$Q:$Q,'DATA MART_'!$G:$G,$G$3,'DATA MART_'!$A:$A,CONCATENATE($G$3,"|",F$7,"|",$Q67,"|",$I$2,"|",$P67,"|",$J$2,"|",$J$3,"|",$K$2,"|",$K$3),'DATA MART_'!$F:$F,$G$2)) -> 140.0363715 | G67: =IF($G$2="TO",SUMIFS('DATA MART_'!$Q:$Q,'DATA MART_'!$G:$G,$G$3,'DATA MART_'!$A:$A,CONCATENATE($G$3,"|",G$7,"|",$Q67,"|",$I$2,"|",$P67,"|",$J$2,"|",$J$3,"|",$K$2,"|",$K$3)),SUMIFS('DATA MART_'!$Q:$Q,'DATA MART_'!$G:$G,$G$3,'DATA MART_'!$A:$A,CONCATENATE($G$3,"|",G$7,"|",$Q67,"|",$I$2,"|",$P67,"|",$J$2,"|",$J$3,"|",$K$2,"|",$K$3),'DATA MART_'!$F:$F,$G$2)) -> 57.33332524 | H67: =IF($G$2="TO",SUMIFS('DATA MART_'!$Q:$Q,'DATA MART_'!$G:$G,$G$3,'DATA MART_'!$A:$A,CONCATENATE($G$3,"|",H$7,"|",$Q67,"|",$I$2,"|",$P67,"|",$J$2,"|",$J$3,"|",$K$2,"|",$K$3)),SUMIFS('DATA MART_'!$Q:$Q,'DATA MART_'!$G:$G,$G$3,'DATA MART_'!$A:$A,CONCATENATE($G$3,"|",H$7,"|",$Q67,"|",$I$2,"|",$P67,"|",$J$2,"|",$J$3,"|",$K$2,"|",$K$3),'DATA MART_'!$F:$F,$G$2)) -> 1148.454088 | J67: =IF($G$2="TO",SUMIFS('DATA MART_'!$Q:$Q,'DATA MART_'!$G:$G,$G$3,'DATA MART_'!$A:$A,CONCATENATE($G$3,"|",J$7,"|",$Q67,"|",$I$2,"|",$P67,"|",$J$2,"|",$J$3,"|",$K$2,"|",$K$3)),SUMIFS('DATA MART_'!$Q:$Q,'DATA MART_'!$G:$G,$G$3,'DATA MART_'!$A:$A,CONCATENATE($G$3,"|",J$7,"|",$Q67,"|",$I$2,"|",$P67,"|",$J$2,"|",$J$3,"|",$K$2,"|",$K$3),'DATA MART_'!$F:$F,$G$2)) -> 12.66733577 | L67: =IF($G$2="TO",SUMIFS('DATA MART_'!$Q:$Q,'DATA MART_'!$G:$G,$G$3,'DATA MART_'!$A:$A,CONCATENATE($G$3,"|",L$7,"|",$Q67,"|",$I$2,"|",$P67,"|",$J$2,"|",$J$3,"|",$K$2,"|",$K$3)),SUMIFS('DATA MART_'!$Q:$Q,'DATA MART_'!$G:$G,$G$3,'DATA MART_'!$A:$A,CONCATENATE($G$3,"|",L$7,"|",$Q67,"|",$I$2,"|",$P67,"|",$J$2,"|",$J$3,"|",$K$2,"|",$K$3),'DATA MART_'!$F:$F,$G$2)) -> -19.05738438 | M67: 8 | N67: 2 | O67: 30010082 | P67: 2 | Q67: =VLOOKUP(B66,'DATA MART_'!$AO$4:$AP$242,2,0) -> 8
A68: [ 1Y - 2Y ] | C68: =IF($G$2="TO",SUMIFS('DATA MART_'!$Q:$Q,'DATA MART_'!$G:$G,$G$3,'DATA MART_'!$A:$A,CONCATENATE($G$3,"|",C$7,"|",$Q68,"|",$I$2,"|",$P68,"|",$J$2,"|",$J$3,"|",$K$2,"|",$K$3)),SUMIFS('DATA MART_'!$Q:$Q,'DATA MART_'!$G:$G,$G$3,'DATA MART_'!$A:$A,CONCATENATE($G$3,"|",C$7,"|",$Q68,"|",$I$2,"|",$P68,"|",$J$2,"|",$J$3,"|",$K$2,"|",$K$3),'DATA MART_'!$F:$F,$G$2)) -> 1751.778037 | D68: =IF($G$2="TO",SUMIFS('DATA MART_'!$Q:$Q,'DATA MART_'!$G:$G,$G$3,'DATA MART_'!$A:$A,CONCATENATE($G$3,"|",D$7,"|",$Q68,"|",$I$2,"|",$P68,"|",$J$2,"|",$J$3,"|",$K$2,"|",$K$3)),SUMIFS('DATA MART_'!$Q:$Q,'DATA MART_'!$G:$G,$G$3,'DATA MART_'!$A:$A,CONCATENATE($G$3,"|",D$7,"|",$Q68,"|",$I$2,"|",$P68,"|",$J$2,"|",$J$3,"|",$K$2,"|",$K$3),'DATA MART_'!$F:$F,$G$2)) -> 261.0399518 | E68: =IF($G$2="TO",SUMIFS('DATA MART_'!$Q:$Q,'DATA MART_'!$G:$G,$G$3,'DATA MART_'!$A:$A,CONCATENATE($G$3,"|",E$7,"|",$Q68,"|",$I$2,"|",$P68,"|",$J$2,"|",$J$3,"|",$K$2,"|",$K$3)),SUMIFS('DATA MART_'!$Q:$Q,'DATA MART_'!$G:$G,$G$3,'DATA MART_'!$A:$A,CONCATENATE($G$3,"|",E$7,"|",$Q68,"|",$I$2,"|",$P68,"|",$J$2,"|",$J$3,"|",$K$2,"|",$K$3),'DATA MART_'!$F:$F,$G$2)) -> 1581.564717 | F68: =IF($G$2="TO",SUMIFS('DATA MART_'!$Q:$Q,'DATA MART_'!$G:$G,$G$3,'DATA MART_'!$A:$A,CONCATENATE($G$3,"|",F$7,"|",$Q68,"|",$I$2,"|",$P68,"|",$J$2,"|",$J$3,"|",$K$2,"|",$K$3)),SUMIFS('DATA MART_'!$Q:$Q,'DATA MART_'!$G:$G,$G$3,'DATA MART_'!$A:$A,CONCATENATE($G$3,"|",F$7,"|",$Q68,"|",$I$2,"|",$P68,"|",$J$2,"|",$J$3,"|",$K$2,"|",$K$3),'DATA MART_'!$F:$F,$G$2)) -> 246.495867 | G68: =IF($G$2="TO",SUMIFS('DATA MART_'!$Q:$Q,'DATA MART_'!$G:$G,$G$3,'DATA MART_'!$A:$A,CONCATENATE($G$3,"|",G$7,"|",$Q68,"|",$I$2,"|",$P68,"|",$J$2,"|",$J$3,"|",$K$2,"|",$K$3)),SUMIFS('DATA MART_'!$Q:$Q,'DATA MART_'!$G:$G,$G$3,'DATA MART_'!$A:$A,CONCATENATE($G$3,"|",G$7,"|",$Q68,"|",$I$2,"|",$P68,"|",$J$2,"|",$J$3,"|",$K$2,"|",$K$3),'DATA MART_'!$F:$F,$G$2)) -> 105.2615344 | H68: =IF($G$2="TO",SUMIFS('DATA MART_'!$Q:$Q,'DATA MART_'!$G:$G,$G$3,'DATA MART_'!$A:$A,CONCATENATE($G$3,"|",H$7,"|",$Q68,"|",$I$2,"|",$P68,"|",$J$2,"|",$J$3,"|",$K$2,"|",$K$3)),SUMIFS('DATA MART_'!$Q:$Q,'DATA MART_'!$G:$G,$G$3,'DATA MART_'!$A:$A,CONCATENATE($G$3,"|",H$7,"|",$Q68,"|",$I$2,"|",$P68,"|",$J$2,"|",$J$3,"|",$K$2,"|",$K$3),'DATA MART_'!$F:$F,$G$2)) -> 898.7224025 | J68: =IF($G$2="TO",SUMIFS('DATA MART_'!$Q:$Q,'DATA MART_'!$G:$G,$G$3,'DATA MART_'!$A:$A,CONCATENATE($G$3,"|",J$7,"|",$Q68,"|",$I$2,"|",$P68,"|",$J$2,"|",$J$3,"|",$K$2,"|",$K$3)),SUMIFS('DATA MART_'!$Q:$Q,'DATA MART_'!$G:$G,$G$3,'DATA MART_'!$A:$A,CONCATENATE($G$3,"|",J$7,"|",$Q68,"|",$I$2,"|",$P68,"|",$J$2,"|",$J$3,"|",$K$2,"|",$K$3),'DATA MART_'!$F:$F,$G$2)) -> -99.59372951 | L68: =IF($G$2="TO",SUMIFS('DATA MART_'!$Q:$Q,'DATA MART_'!$G:$G,$G$3,'DATA MART_'!$A:$A,CONCATENATE($G$3,"|",L$7,"|",$Q68,"|",$I$2,"|",$P68,"|",$J$2,"|",$J$3,"|",$K$2,"|",$K$3)),SUMIFS('DATA MART_'!$Q:$Q,'DATA MART_'!$G:$G,$G$3,'DATA MART_'!$A:$A,CONCATENATE($G$3,"|",L$7,"|",$Q68,"|",$I$2,"|",$P68,"|",$J$2,"|",$J$3,"|",$K$2,"|",$K$3),'DATA MART_'!$F:$F,$G$2)) -> 7.575704597 | M68: 8 | N68: 3 | O68: 30010083 | P68: 3 | Q68: =VLOOKUP(B66,'DATA MART_'!$AO$4:$AP$242,2,0) -> 8
A69: [ 2Y - 3Y ] | C69: =IF($G$2="TO",SUMIFS('DATA MART_'!$Q:$Q,'DATA MART_'!$G:$G,$G$3,'DATA MART_'!$A:$A,CONCATENATE($G$3,"|",C$7,"|",$Q69,"|",$I$2,"|",$P69,"|",$J$2,"|",$J$3,"|",$K$2,"|",$K$3)),SUMIFS('DATA MART_'!$Q:$Q,'DATA MART_'!$G:$G,$G$3,'DATA MART_'!$A:$A,CONCATENATE($G$3,"|",C$7,"|",$Q69,"|",$I$2,"|",$P69,"|",$J$2,"|",$J$3,"|",$K$2,"|",$K$3),'DATA MART_'!$F:$F,$G$2)) -> 1157.240431 | D69: =IF($G$2="TO",SUMIFS('DATA MART_'!$Q:$Q,'DATA MART_'!$G:$G,$G$3,'DATA MART_'!$A:$A,CONCATENATE($G$3,"|",D$7,"|",$Q69,"|",$I$2,"|",$P69,"|",$J$2,"|",$J$3,"|",$K$2,"|",$K$3)),SUMIFS('DATA MART_'!$Q:$Q,'DATA MART_'!$G:$G,$G$3,'DATA MART_'!$A:$A,CONCATENATE($G$3,"|",D$7,"|",$Q69,"|",$I$2,"|",$P69,"|",$J$2,"|",$J$3,"|",$K$2,"|",$K$3),'DATA MART_'!$F:$F,$G$2)) -> 183.6026335 | E69: =IF($G$2="TO",SUMIFS('DATA MART_'!$Q:$Q,'DATA MART_'!$G:$G,$G$3,'DATA MART_'!$A:$A,CONCATENATE($G$3,"|",E$7,"|",$Q69,"|",$I$2,"|",$P69,"|",$J$2,"|",$J$3,"|",$K$2,"|",$K$3)),SUMIFS('DATA MART_'!$Q:$Q,'DATA MART_'!$G:$G,$G$3,'DATA MART_'!$A:$A,CONCATENATE($G$3,"|",E$7,"|",$Q69,"|",$I$2,"|",$P69,"|",$J$2,"|",$J$3,"|",$K$2,"|",$K$3),'DATA MART_'!$F:$F,$G$2)) -> 796.7651138 | F69: =IF($G$2="TO",SUMIFS('DATA MART_'!$Q:$Q,'DATA MART_'!$G:$G,$G$3,'DATA MART_'!$A:$A,CONCATENATE($G$3,"|",F$7,"|",$Q69,"|",$I$2,"|",$P69,"|",$J$2,"|",$J$3,"|",$K$2,"|",$K$3)),SUMIFS('DATA MART_'!$Q:$Q,'DATA MART_'!$G:$G,$G$3,'DATA MART_'!$A:$A,CONCATENATE($G$3,"|",F$7,"|",$Q69,"|",$I$2,"|",$P69,"|",$J$2,"|",$J$3,"|",$K$2,"|",$K$3),'DATA MART_'!$F:$F,$G$2)) -> 218.2445628 | G69: =IF($G$2="TO",SUMIFS('DATA MART_'!$Q:$Q,'DATA MART_'!$G:$G,$G$3,'DATA MART_'!$A:$A,CONCATENATE($G$3,"|",G$7,"|",$Q69,"|",$I$2,"|",$P69,"|",$J$2,"|",$J$3,"|",$K$2,"|",$K$3)),SUMIFS('DATA MART_'!$Q:$Q,'DATA MART_'!$G:$G,$G$3,'DATA MART_'!$A:$A,CONCATENATE($G$3,"|",G$7,"|",$Q69,"|",$I$2,"|",$P69,"|",$J$2,"|",$J$3,"|",$K$2,"|",$K$3),'DATA MART_'!$F:$F,$G$2)) -> 0 | H69: =IF($G$2="TO",SUMIFS('DATA MART_'!$Q:$Q,'DATA MART_'!$G:$G,$G$3,'DATA MART_'!$A:$A,CONCATENATE($G$3,"|",H$7,"|",$Q69,"|",$I$2,"|",$P69,"|",$J$2,"|",$J$3,"|",$K$2,"|",$K$3)),SUMIFS('DATA MART_'!$Q:$Q,'DATA MART_'!$G:$G,$G$3,'DATA MART_'!$A:$A,CONCATENATE($G$3,"|",H$7,"|",$Q69,"|",$I$2,"|",$P69,"|",$J$2,"|",$J$3,"|",$K$2,"|",$K$3),'DATA MART_'!$F:$F,$G$2)) -> 373.0613965 | J69: =IF($G$2="TO",SUMIFS('DATA MART_'!$Q:$Q,'DATA MART_'!$G:$G,$G$3,'DATA MART_'!$A:$A,CONCATENATE($G$3,"|",J$7,"|",$Q69,"|",$I$2,"|",$P69,"|",$J$2,"|",$J$3,"|",$K$2,"|",$K$3)),SUMIFS('DATA MART_'!$Q:$Q,'DATA MART_'!$G:$G,$G$3,'DATA MART_'!$A:$A,CONCATENATE($G$3,"|",J$7,"|",$Q69,"|",$I$2,"|",$P69,"|",$J$2,"|",$J$3,"|",$K$2,"|",$K$3),'DATA MART_'!$F:$F,$G$2)) -> -248.6053128 | L69: =IF($G$2="TO",SUMIFS('DATA MART_'!$Q:$Q,'DATA MART_'!$G:$G,$G$3,'DATA MART_'!$A:$A,CONCATENATE($G$3,"|",L$7,"|",$Q69,"|",$I$2,"|",$P69,"|",$J$2,"|",$J$3,"|",$K$2,"|",$K$3)),SUMIFS('DATA MART_'!$Q:$Q,'DATA MART_'!$G:$G,$G$3,'DATA MART_'!$A:$A,CONCATENATE($G$3,"|",L$7,"|",$Q69,"|",$I$2,"|",$P69,"|",$J$2,"|",$J$3,"|",$K$2,"|",$K$3),'DATA MART_'!$F:$F,$G$2)) -> 10.38080834 | M69: 8 | N69: 4 | O69: 30010084 | P69: 4 | Q69: =VLOOKUP(B66,'DATA MART_'!$AO$4:$AP$242,2,0) -> 8
A70: [3Y - 5Y ] | C70: =IF($G$2="TO",SUMIFS('DATA MART_'!$Q:$Q,'DATA MART_'!$G:$G,$G$3,'DATA MART_'!$A:$A,CONCATENATE($G$3,"|",C$7,"|",$Q70,"|",$I$2,"|",$P70,"|",$J$2,"|",$J$3,"|",$K$2,"|",$K$3)),SUMIFS('DATA MART_'!$Q:$Q,'DATA MART_'!$G:$G,$G$3,'DATA MART_'!$A:$A,CONCATENATE($G$3,"|",C$7,"|",$Q70,"|",$I$2,"|",$P70,"|",$J$2,"|",$J$3,"|",$K$2,"|",$K$3),'DATA MART_'!$F:$F,$G$2)) -> 3487.991746 | D70: =IF($G$2="TO",SUMIFS('DATA MART_'!$Q:$Q,'DATA MART_'!$G:$G,$G$3,'DATA MART_'!$A:$A,CONCATENATE($G$3,"|",D$7,"|",$Q70,"|",$I$2,"|",$P70,"|",$J$2,"|",$J$3,"|",$K$2,"|",$K$3)),SUMIFS('DATA MART_'!$Q:$Q,'DATA MART_'!$G:$G,$G$3,'DATA MART_'!$A:$A,CONCATENATE($G$3,"|",D$7,"|",$Q70,"|",$I$2,"|",$P70,"|",$J$2,"|",$J$3,"|",$K$2,"|",$K$3),'DATA MART_'!$F:$F,$G$2)) -> 394.382308 | E70: =IF($G$2="TO",SUMIFS('DATA MART_'!$Q:$Q,'DATA MART_'!$G:$G,$G$3,'DATA MART_'!$A:$A,CONCATENATE($G$3,"|",E$7,"|",$Q70,"|",$I$2,"|",$P70,"|",$J$2,"|",$J$3,"|",$K$2,"|",$K$3)),SUMIFS('DATA MART_'!$Q:$Q,'DATA MART_'!$G:$G,$G$3,'DATA MART_'!$A:$A,CONCATENATE($G$3,"|",E$7,"|",$Q70,"|",$I$2,"|",$P70,"|",$J$2,"|",$J$3,"|",$K$2,"|",$K$3),'DATA MART_'!$F:$F,$G$2)) -> 2466.119214 | F70: =IF($G$2="TO",SUMIFS('DATA MART_'!$Q:$Q,'DATA MART_'!$G:$G,$G$3,'DATA MART_'!$A:$A,CONCATENATE($G$3,"|",F$7,"|",$Q70,"|",$I$2,"|",$P70,"|",$J$2,"|",$J$3,"|",$K$2,"|",$K$3)),SUMIFS('DATA MART_'!$Q:$Q,'DATA MART_'!$G:$G,$G$3,'DATA MART_'!$A:$A,CONCATENATE($G$3,"|",F$7,"|",$Q70,"|",$I$2,"|",$P70,"|",$J$2,"|",$J$3,"|",$K$2,"|",$K$3),'DATA MART_'!$F:$F,$G$2)) -> 917.5208386 | G70: =IF($G$2="TO",SUMIFS('DATA MART_'!$Q:$Q,'DATA MART_'!$G:$G,$G$3,'DATA MART_'!$A:$A,CONCATENATE($G$3,"|",G$7,"|",$Q70,"|",$I$2,"|",$P70,"|",$J$2,"|",$J$3,"|",$K$2,"|",$K$3)),SUMIFS('DATA MART_'!$Q:$Q,'DATA MART_'!$G:$G,$G$3,'DATA MART_'!$A:$A,CONCATENATE($G$3,"|",G$7,"|",$Q70,"|",$I$2,"|",$P70,"|",$J$2,"|",$J$3,"|",$K$2,"|",$K$3),'DATA MART_'!$F:$F,$G$2)) -> 0.2107430505 | H70: =IF($G$2="TO",SUMIFS('DATA MART_'!$Q:$Q,'DATA MART_'!$G:$G,$G$3,'DATA MART_'!$A:$A,CONCATENATE($G$3,"|",H$7,"|",$Q70,"|",$I$2,"|",$P70,"|",$J$2,"|",$J$3,"|",$K$2,"|",$K$3)),SUMIFS('DATA MART_'!$Q:$Q,'DATA MART_'!$G:$G,$G$3,'DATA MART_'!$A:$A,CONCATENATE($G$3,"|",H$7,"|",$Q70,"|",$I$2,"|",$P70,"|",$J$2,"|",$J$3,"|",$K$2,"|",$K$3),'DATA MART_'!$F:$F,$G$2)) -> 1261.733922 | J70: =IF($G$2="TO",SUMIFS('DATA MART_'!$Q:$Q,'DATA MART_'!$G:$G,$G$3,'DATA MART_'!$A:$A,CONCATENATE($G$3,"|",J$7,"|",$Q70,"|",$I$2,"|",$P70,"|",$J$2,"|",$J$3,"|",$K$2,"|",$K$3)),SUMIFS('DATA MART_'!$Q:$Q,'DATA MART_'!$G:$G,$G$3,'DATA MART_'!$A:$A,CONCATENATE($G$3,"|",J$7,"|",$Q70,"|",$I$2,"|",$P70,"|",$J$2,"|",$J$3,"|",$K$2,"|",$K$3),'DATA MART_'!$F:$F,$G$2)) -> -53.2666208 | L70: =IF($G$2="TO",SUMIFS('DATA MART_'!$Q:$Q,'DATA MART_'!$G:$G,$G$3,'DATA MART_'!$A:$A,CONCATENATE($G$3,"|",L$7,"|",$Q70,"|",$I$2,"|",$P70,"|",$J$2,"|",$J$3,"|",$K$2,"|",$K$3)),SUMIFS('DATA MART_'!$Q:$Q,'DATA MART_'!$G:$G,$G$3,'DATA MART_'!$A:$A,CONCATENATE($G$3,"|",L$7,"|",$Q70,"|",$I$2,"|",$P70,"|",$J$2,"|",$J$3,"|",$K$2,"|",$K$3),'DATA MART_'!$F:$F,$G$2)) -> -2.609577129 | M70: 8 | N70: 5 | O70: 30010085 | P70: 5 | Q70: =VLOOKUP(B66,'DATA MART_'!$AO$4:$AP$242,2,0) -> 8
A71: [5Y - 10Y ] | C71: =IF($G$2="TO",SUMIFS('DATA MART_'!$Q:$Q,'DATA MART_'!$G:$G,$G$3,'DATA MART_'!$A:$A,CONCATENATE($G$3,"|",C$7,"|",$Q71,"|",$I$2,"|",$P71,"|",$J$2,"|",$J$3,"|",$K$2,"|",$K$3)),SUMIFS('DATA MART_'!$Q:$Q,'DATA MART_'!$G:$G,$G$3,'DATA MART_'!$A:$A,CONCATENATE($G$3,"|",C$7,"|",$Q71,"|",$I$2,"|",$P71,"|",$J$2,"|",$J$3,"|",$K$2,"|",$K$3),'DATA MART_'!$F:$F,$G$2)) -> 5418.013644 | D71: =IF($G$2="TO",SUMIFS('DATA MART_'!$Q:$Q,'DATA MART_'!$G:$G,$G$3,'DATA MART_'!$A:$A,CONCATENATE($G$3,"|",D$7,"|",$Q71,"|",$I$2,"|",$P71,"|",$J$2,"|",$J$3,"|",$K$2,"|",$K$3)),SUMIFS('DATA MART_'!$Q:$Q,'DATA MART_'!$G:$G,$G$3,'DATA MART_'!$A:$A,CONCATENATE($G$3,"|",D$7,"|",$Q71,"|",$I$2,"|",$P71,"|",$J$2,"|",$J$3,"|",$K$2,"|",$K$3),'DATA MART_'!$F:$F,$G$2)) -> 1129.590502 | E71: =IF($G$2="TO",SUMIFS('DATA MART_'!$Q:$Q,'DATA MART_'!$G:$G,$G$3,'DATA MART_'!$A:$A,CONCATENATE($G$3,"|",E$7,"|",$Q71,"|",$I$2,"|",$P71,"|",$J$2,"|",$J$3,"|",$K$2,"|",$K$3)),SUMIFS('DATA MART_'!$Q:$Q,'DATA MART_'!$G:$G,$G$3,'DATA MART_'!$A:$A,CONCATENATE($G$3,"|",E$7,"|",$Q71,"|",$I$2,"|",$P71,"|",$J$2,"|",$J$3,"|",$K$2,"|",$K$3),'DATA MART_'!$F:$F,$G$2)) -> 4007.039543 | F71: =IF($G$2="TO",SUMIFS('DATA MART_'!$Q:$Q,'DATA MART_'!$G:$G,$G$3,'DATA MART_'!$A:$A,CONCATENATE($G$3,"|",F$7,"|",$Q71,"|",$I$2,"|",$P71,"|",$J$2,"|",$J$3,"|",$K$2,"|",$K$3)),SUMIFS('DATA MART_'!$Q:$Q,'DATA MART_'!$G:$G,$G$3,'DATA MART_'!$A:$A,CONCATENATE($G$3,"|",F$7,"|",$Q71,"|",$I$2,"|",$P71,"|",$J$2,"|",$J$3,"|",$K$2,"|",$K$3),'DATA MART_'!$F:$F,$G$2)) -> 1834.875106 | G71: =IF($G$2="TO",SUMIFS('DATA MART_'!$Q:$Q,'DATA MART_'!$G:$G,$G$3,'DATA MART_'!$A:$A,CONCATENATE($G$3,"|",G$7,"|",$Q71,"|",$I$2,"|",$P71,"|",$J$2,"|",$J$3,"|",$K$2,"|",$K$3)),SUMIFS('DATA MART_'!$Q:$Q,'DATA MART_'!$G:$G,$G$3,'DATA MART_'!$A:$A,CONCATENATE($G$3,"|",G$7,"|",$Q71,"|",$I$2,"|",$P71,"|",$J$2,"|",$J$3,"|",$K$2,"|",$K$3),'DATA MART_'!$F:$F,$G$2)) -> 0 | H71: =IF($G$2="TO",SUMIFS('DATA MART_'!$Q:$Q,'DATA MART_'!$G:$G,$G$3,'DATA MART_'!$A:$A,CONCATENATE($G$3,"|",H$7,"|",$Q71,"|",$I$2,"|",$P71,"|",$J$2,"|",$J$3,"|",$K$2,"|",$K$3)),SUMIFS('DATA MART_'!$Q:$Q,'DATA MART_'!$G:$G,$G$3,'DATA MART_'!$A:$A,CONCATENATE($G$3,"|",H$7,"|",$Q71,"|",$I$2,"|",$P71,"|",$J$2,"|",$J$3,"|",$K$2,"|",$K$3),'DATA MART_'!$F:$F,$G$2)) -> 1106.576186 | J71: =IF($G$2="TO",SUMIFS('DATA MART_'!$Q:$Q,'DATA MART_'!$G:$G,$G$3,'DATA MART_'!$A:$A,CONCATENATE($G$3,"|",J$7,"|",$Q71,"|",$I$2,"|",$P71,"|",$J$2,"|",$J$3,"|",$K$2,"|",$K$3)),SUMIFS('DATA MART_'!$Q:$Q,'DATA MART_'!$G:$G,$G$3,'DATA MART_'!$A:$A,CONCATENATE($G$3,"|",J$7,"|",$Q71,"|",$I$2,"|",$P71,"|",$J$2,"|",$J$3,"|",$K$2,"|",$K$3),'DATA MART_'!$F:$F,$G$2)) -> -495.8781157 | L71: =IF($G$2="TO",SUMIFS('DATA MART_'!$Q:$Q,'DATA MART_'!$G:$G,$G$3,'DATA MART_'!$A:$A,CONCATENATE($G$3,"|",L$7,"|",$Q71,"|",$I$2,"|",$P71,"|",$J$2,"|",$J$3,"|",$K$2,"|",$K$3)),SUMIFS('DATA MART_'!$Q:$Q,'DATA MART_'!$G:$G,$G$3,'DATA MART_'!$A:$A,CONCATENATE($G$3,"|",L$7,"|",$Q71,"|",$I$2,"|",$P71,"|",$J$2,"|",$J$3,"|",$K$2,"|",$K$3),'DATA MART_'!$F:$F,$G$2)) -> 82.41746945 | M71: 8 | N71: 6 | O71: 30010086 | P71: 6 | Q71: =VLOOKUP(B66,'DATA MART_'!$AO$4:$AP$242,2,0) -> 8
A72: [10Y - more ] | C72: =IF($G$2="TO",SUMIFS('DATA MART_'!$Q:$Q,'DATA MART_'!$G:$G,$G$3,'DATA MART_'!$A:$A,CONCATENATE($G$3,"|",C$7,"|",$Q72,"|",$I$2,"|",$P72,"|",$J$2,"|",$J$3,"|",$K$2,"|",$K$3)),SUMIFS('DATA MART_'!$Q:$Q,'DATA MART_'!$G:$G,$G$3,'DATA MART_'!$A:$A,CONCATENATE($G$3,"|",C$7,"|",$Q72,"|",$I$2,"|",$P72,"|",$J$2,"|",$J$3,"|",$K$2,"|",$K$3),'DATA MART_'!$F:$F,$G$2)) -> 2483.905084 | D72: =IF($G$2="TO",SUMIFS('DATA MART_'!$Q:$Q,'DATA MART_'!$G:$G,$G$3,'DATA MART_'!$A:$A,CONCATENATE($G$3,"|",D$7,"|",$Q72,"|",$I$2,"|",$P72,"|",$J$2,"|",$J$3,"|",$K$2,"|",$K$3)),SUMIFS('DATA MART_'!$Q:$Q,'DATA MART_'!$G:$G,$G$3,'DATA MART_'!$A:$A,CONCATENATE($G$3,"|",D$7,"|",$Q72,"|",$I$2,"|",$P72,"|",$J$2,"|",$J$3,"|",$K$2,"|",$K$3),'DATA MART_'!$F:$F,$G$2)) -> 586.0910686 | E72: =IF($G$2="TO",SUMIFS('DATA MART_'!$Q:$Q,'DATA MART_'!$G:$G,$G$3,'DATA MART_'!$A:$A,CONCATENATE($G$3,"|",E$7,"|",$Q72,"|",$I$2,"|",$P72,"|",$J$2,"|",$J$3,"|",$K$2,"|",$K$3)),SUMIFS('DATA MART_'!$Q:$Q,'DATA MART_'!$G:$G,$G$3,'DATA MART_'!$A:$A,CONCATENATE($G$3,"|",E$7,"|",$Q72,"|",$I$2,"|",$P72,"|",$J$2,"|",$J$3,"|",$K$2,"|",$K$3),'DATA MART_'!$F:$F,$G$2)) -> 2046.482038 | F72: =IF($G$2="TO",SUMIFS('DATA MART_'!$Q:$Q,'DATA MART_'!$G:$G,$G$3,'DATA MART_'!$A:$A,CONCATENATE($G$3,"|",F$7,"|",$Q72,"|",$I$2,"|",$P72,"|",$J$2,"|",$J$3,"|",$K$2,"|",$K$3)),SUMIFS('DATA MART_'!$Q:$Q,'DATA MART_'!$G:$G,$G$3,'DATA MART_'!$A:$A,CONCATENATE($G$3,"|",F$7,"|",$Q72,"|",$I$2,"|",$P72,"|",$J$2,"|",$J$3,"|",$K$2,"|",$K$3),'DATA MART_'!$F:$F,$G$2)) -> 728.1749967 | G72: =IF($G$2="TO",SUMIFS('DATA MART_'!$Q:$Q,'DATA MART_'!$G:$G,$G$3,'DATA MART_'!$A:$A,CONCATENATE($G$3,"|",G$7,"|",$Q72,"|",$I$2,"|",$P72,"|",$J$2,"|",$J$3,"|",$K$2,"|",$K$3)),SUMIFS('DATA MART_'!$Q:$Q,'DATA MART_'!$G:$G,$G$3,'DATA MART_'!$A:$A,CONCATENATE($G$3,"|",G$7,"|",$Q72,"|",$I$2,"|",$P72,"|",$J$2,"|",$J$3,"|",$K$2,"|",$K$3),'DATA MART_'!$F:$F,$G$2)) -> 0 | H72: =IF($G$2="TO",SUMIFS('DATA MART_'!$Q:$Q,'DATA MART_'!$G:$G,$G$3,'DATA MART_'!$A:$A,CONCATENATE($G$3,"|",H$7,"|",$Q72,"|",$I$2,"|",$P72,"|",$J$2,"|",$J$3,"|",$K$2,"|",$K$3)),SUMIFS('DATA MART_'!$Q:$Q,'DATA MART_'!$G:$G,$G$3,'DATA MART_'!$A:$A,CONCATENATE($G$3,"|",H$7,"|",$Q72,"|",$I$2,"|",$P72,"|",$J$2,"|",$J$3,"|",$K$2,"|",$K$3),'DATA MART_'!$F:$F,$G$2)) -> 764.3751931 | J72: =IF($G$2="TO",SUMIFS('DATA MART_'!$Q:$Q,'DATA MART_'!$G:$G,$G$3,'DATA MART_'!$A:$A,CONCATENATE($G$3,"|",J$7,"|",$Q72,"|",$I$2,"|",$P72,"|",$J$2,"|",$J$3,"|",$K$2,"|",$K$3)),SUMIFS('DATA MART_'!$Q:$Q,'DATA MART_'!$G:$G,$G$3,'DATA MART_'!$A:$A,CONCATENATE($G$3,"|",J$7,"|",$Q72,"|",$I$2,"|",$P72,"|",$J$2,"|",$J$3,"|",$K$2,"|",$K$3),'DATA MART_'!$F:$F,$G$2)) -> -1191.120013 | L72: =IF($G$2="TO",SUMIFS('DATA MART_'!$Q:$Q,'DATA MART_'!$G:$G,$G$3,'DATA MART_'!$A:$A,CONCATENATE($G$3,"|",L$7,"|",$Q72,"|",$I$2,"|",$P72,"|",$J$2,"|",$J$3,"|",$K$2,"|",$K$3)),SUMIFS('DATA MART_'!$Q:$Q,'DATA MART_'!$G:$G,$G$3,'DATA MART_'!$A:$A,CONCATENATE($G$3,"|",L$7,"|",$Q72,"|",$I$2,"|",$P72,"|",$J$2,"|",$J$3,"|",$K$2,"|",$K$3),'DATA MART_'!$F:$F,$G$2)) -> 0 | M72: 8 | N72: 7 | O72: 30010087 | P72: 7 | Q72: =VLOOKUP(B66,'DATA MART_'!$AO$4:$AP$242,2,0) -> 8
A73: Total | C73: =IF($G$2="TO",SUMIFS('DATA MART_'!$Q:$Q,'DATA MART_'!$G:$G,$G$3,'DATA MART_'!$A:$A,CONCATENATE($G$3,"|",C$7,"|",$Q73,"|",$I$2,"|",$P73,"|",$J$2,"|",$J$3,"|",$K$2,"|",$K$3)),SUMIFS('DATA MART_'!$Q:$Q,'DATA MART_'!$G:$G,$G$3,'DATA MART_'!$A:$A,CONCATENATE($G$3,"|",C$7,"|",$Q73,"|",$I$2,"|",$P73,"|",$J$2,"|",$J$3,"|",$K$2,"|",$K$3),'DATA MART_'!$F:$F,$G$2)) -> 38864.62158 | D73: =IF($G$2="TO",SUMIFS('DATA MART_'!$Q:$Q,'DATA MART_'!$G:$G,$G$3,'DATA MART_'!$A:$A,CONCATENATE($G$3,"|",D$7,"|",$Q73,"|",$I$2,"|",$P73,"|",$J$2,"|",$J$3,"|",$K$2,"|",$K$3)),SUMIFS('DATA MART_'!$Q:$Q,'DATA MART_'!$G:$G,$G$3,'DATA MART_'!$A:$A,CONCATENATE($G$3,"|",D$7,"|",$Q73,"|",$I$2,"|",$P73,"|",$J$2,"|",$J$3,"|",$K$2,"|",$K$3),'DATA MART_'!$F:$F,$G$2)) -> 24117.85081 | E73: =IF($G$2="TO",SUMIFS('DATA MART_'!$Q:$Q,'DATA MART_'!$G:$G,$G$3,'DATA MART_'!$A:$A,CONCATENATE($G$3,"|",E$7,"|",$Q73,"|",$I$2,"|",$P73,"|",$J$2,"|",$J$3,"|",$K$2,"|",$K$3)),SUMIFS('DATA MART_'!$Q:$Q,'DATA MART_'!$G:$G,$G$3,'DATA MART_'!$A:$A,CONCATENATE($G$3,"|",E$7,"|",$Q73,"|",$I$2,"|",$P73,"|",$J$2,"|",$J$3,"|",$K$2,"|",$K$3),'DATA MART_'!$F:$F,$G$2)) -> 35371.48416 | F73: =IF($G$2="TO",SUMIFS('DATA MART_'!$Q:$Q,'DATA MART_'!$G:$G,$G$3,'DATA MART_'!$A:$A,CONCATENATE($G$3,"|",F$7,"|",$Q73,"|",$I$2,"|",$P73,"|",$J$2,"|",$J$3,"|",$K$2,"|",$K$3)),SUMIFS('DATA MART_'!$Q:$Q,'DATA MART_'!$G:$G,$G$3,'DATA MART_'!$A:$A,CONCATENATE($G$3,"|",F$7,"|",$Q73,"|",$I$2,"|",$P73,"|",$J$2,"|",$J$3,"|",$K$2,"|",$K$3),'DATA MART_'!$F:$F,$G$2)) -> 4085.347743 | G73: =IF($G$2="TO",SUMIFS('DATA MART_'!$Q:$Q,'DATA MART_'!$G:$G,$G$3,'DATA MART_'!$A:$A,CONCATENATE($G$3,"|",G$7,"|",$Q73,"|",$I$2,"|",$P73,"|",$J$2,"|",$J$3,"|",$K$2,"|",$K$3)),SUMIFS('DATA MART_'!$Q:$Q,'DATA MART_'!$G:$G,$G$3,'DATA MART_'!$A:$A,CONCATENATE($G$3,"|",G$7,"|",$Q73,"|",$I$2,"|",$P73,"|",$J$2,"|",$J$3,"|",$K$2,"|",$K$3),'DATA MART_'!$F:$F,$G$2)) -> 162.8056027 | H73: =IF($G$2="TO",SUMIFS('DATA MART_'!$Q:$Q,'DATA MART_'!$G:$G,$G$3,'DATA MART_'!$A:$A,CONCATENATE($G$3,"|",H$7,"|",$Q73,"|",$I$2,"|",$P73,"|",$J$2,"|",$J$3,"|",$K$2,"|",$K$3)),SUMIFS('DATA MART_'!$Q:$Q,'DATA MART_'!$G:$G,$G$3,'DATA MART_'!$A:$A,CONCATENATE($G$3,"|",H$7,"|",$Q73,"|",$I$2,"|",$P73,"|",$J$2,"|",$J$3,"|",$K$2,"|",$K$3),'DATA MART_'!$F:$F,$G$2)) -> 19661.52844 | J73: =IF($G$2="TO",SUMIFS('DATA MART_'!$Q:$Q,'DATA MART_'!$G:$G,$G$3,'DATA MART_'!$A:$A,CONCATENATE($G$3,"|",J$7,"|",$Q73,"|",$I$2,"|",$P73,"|",$J$2,"|",$J$3,"|",$K$2,"|",$K$3)),SUMIFS('DATA MART_'!$Q:$Q,'DATA MART_'!$G:$G,$G$3,'DATA MART_'!$A:$A,CONCATENATE($G$3,"|",J$7,"|",$Q73,"|",$I$2,"|",$P73,"|",$J$2,"|",$J$3,"|",$K$2,"|",$K$3),'DATA MART_'!$F:$F,$G$2)) -> -1918.706594 | L73: =IF($G$2="TO",SUMIFS('DATA MART_'!$Q:$Q,'DATA MART_'!$G:$G,$G$3,'DATA MART_'!$A:$A,CONCATENATE($G$3,"|",L$7,"|",$Q73,"|",$I$2,"|",$P73,"|",$J$2,"|",$J$3,"|",$K$2,"|",$K$3)),SUMIFS('DATA MART_'!$Q:$Q,'DATA MART_'!$G:$G,$G$3,'DATA MART_'!$A:$A,CONCATENATE($G$3,"|",L$7,"|",$Q73,"|",$I$2,"|",$P73,"|",$J$2,"|",$J$3,"|",$K$2,"|",$K$3),'DATA MART_'!$F:$F,$G$2)) -> 85.70702088 | M73: 8 | N73: 8 | O73: 30010088 | P73: 8 | Q73: =VLOOKUP(B66,'DATA MART_'!$AO$4:$AP$242,2,0) -> 8
A74: [ 0 - 3M ] | B74: France | C74: =IF($G$2="TO",SUMIFS('DATA MART_'!$Q:$Q,'DATA MART_'!$G:$G,$G$3,'DATA MART_'!$A:$A,CONCATENATE($G$3,"|",C$7,"|",$Q74,"|",$I$2,"|",$P74,"|",$J$2,"|",$J$3,"|",$K$2,"|",$K$3)),SUMIFS('DATA MART_'!$Q:$Q,'DATA MART_'!$G:$G,$G$3,'DATA MART_'!$A:$A,CONCATENATE($G$3,"|",C$7,"|",$Q74,"|",$I$2,"|",$P74,"|",$J$2,"|",$J$3,"|",$K$2,"|",$K$3),'DATA MART_'!$F:$F,$G$2)) -> 15937.50303 | D74: =IF($G$2="TO",SUMIFS('DATA MART_'!$Q:$Q,'DATA MART_'!$G:$G,$G$3,'DATA MART_'!$A:$A,CONCATENATE($G$3,"|",D$7,"|",$Q74,"|",$I$2,"|",$P74,"|",$J$2,"|",$J$3,"|",$K$2,"|",$K$3)),SUMIFS('DATA MART_'!$Q:$Q,'DATA MART_'!$G:$G,$G$3,'DATA MART_'!$A:$A,CONCATENATE($G$3,"|",D$7,"|",$Q74,"|",$I$2,"|",$P74,"|",$J$2,"|",$J$3,"|",$K$2,"|",$K$3),'DATA MART_'!$F:$F,$G$2)) -> 2300.536503 | E74: =IF($G$2="TO",SUMIFS('DATA MART_'!$Q:$Q,'DATA MART_'!$G:$G,$G$3,'DATA MART_'!$A:$A,CONCATENATE($G$3,"|",E$7,"|",$Q74,"|",$I$2,"|",$P74,"|",$J$2,"|",$J$3,"|",$K$2,"|",$K$3)),SUMIFS('DATA MART_'!$Q:$Q,'DATA MART_'!$G:$G,$G$3,'DATA MART_'!$A:$A,CONCATENATE($G$3,"|",E$7,"|",$Q74,"|",$I$2,"|",$P74,"|",$J$2,"|",$J$3,"|",$K$2,"|",$K$3),'DATA MART_'!$F:$F,$G$2)) -> 14738.02359 | F74: =IF($G$2="TO",SUMIFS('DATA MART_'!$Q:$Q,'DATA MART_'!$G:$G,$G$3,'DATA MART_'!$A:$A,CONCATENATE($G$3,"|",F$7,"|",$Q74,"|",$I$2,"|",$P74,"|",$J$2,"|",$J$3,"|",$K$2,"|",$K$3)),SUMIFS('DATA MART_'!$Q:$Q,'DATA MART_'!$G:$G,$G$3,'DATA MART_'!$A:$A,CONCATENATE($G$3,"|",F$7,"|",$Q74,"|",$I$2,"|",$P74,"|",$J$2,"|",$J$3,"|",$K$2,"|",$K$3),'DATA MART_'!$F:$F,$G$2)) -> 8126.49817 | G74: =IF($G$2="TO",SUMIFS('DATA MART_'!$Q:$Q,'DATA MART_'!$G:$G,$G$3,'DATA MART_'!$A:$A,CONCATENATE($G$3,"|",G$7,"|",$Q74,"|",$I$2,"|",$P74,"|",$J$2,"|",$J$3,"|",$K$2,"|",$K$3)),SUMIFS('DATA MART_'!$Q:$Q,'DATA MART_'!$G:$G,$G$3,'DATA MART_'!$A:$A,CONCATENATE($G$3,"|",G$7,"|",$Q74,"|",$I$2,"|",$P74,"|",$J$2,"|",$J$3,"|",$K$2,"|",$K$3),'DATA MART_'!$F:$F,$G$2)) -> 94.50581046 | H74: =IF($G$2="TO",SUMIFS('DATA MART_'!$Q:$Q,'DATA MART_'!$G:$G,$G$3,'DATA MART_'!$A:$A,CONCATENATE($G$3,"|",H$7,"|",$Q74,"|",$I$2,"|",$P74,"|",$J$2,"|",$J$3,"|",$K$2,"|",$K$3)),SUMIFS('DATA MART_'!$Q:$Q,'DATA MART_'!$G:$G,$G$3,'DATA MART_'!$A:$A,CONCATENATE($G$3,"|",H$7,"|",$Q74,"|",$I$2,"|",$P74,"|",$J$2,"|",$J$3,"|",$K$2,"|",$K$3),'DATA MART_'!$F:$F,$G$2)) -> 4548.253826 | J74: =IF($G$2="TO",SUMIFS('DATA MART_'!$Q:$Q,'DATA MART_'!$G:$G,$G$3,'DATA MART_'!$A:$A,CONCATENATE($G$3,"|",J$7,"|",$Q74,"|",$I$2,"|",$P74,"|",$J$2,"|",$J$3,"|",$K$2,"|",$K$3)),SUMIFS('DATA MART_'!$Q:$Q,'DATA MART_'!$G:$G,$G$3,'DATA MART_'!$A:$A,CONCATENATE($G$3,"|",J$7,"|",$Q74,"|",$I$2,"|",$P74,"|",$J$2,"|",$J$3,"|",$K$2,"|",$K$3),'DATA MART_'!$F:$F,$G$2)) -> -731.1170608 | L74: =IF($G$2="TO",SUMIFS('DATA MART_'!$Q:$Q,'DATA MART_'!$G:$G,$G$3,'DATA MART_'!$A:$A,CONCATENATE($G$3,"|",L$7,"|",$Q74,"|",$I$2,"|",$P74,"|",$J$2,"|",$J$3,"|",$K$2,"|",$K$3)),SUMIFS('DATA MART_'!$Q:$Q,'DATA MART_'!$G:$G,$G$3,'DATA MART_'!$A:$A,CONCATENATE($G$3,"|",L$7,"|",$Q74,"|",$I$2,"|",$P74,"|",$J$2,"|",$J$3,"|",$K$2,"|",$K$3),'DATA MART_'!$F:$F,$G$2)) -> -1.641682743 | M74: 9 | N74: 1 | O74: =+$L$4&C$6&$M74&$N74 -> 30010091 | P74: 1 | Q74: =VLOOKUP(B74,'DATA MART_'!$AO$4:$AP$242,2,0) -> 9
A75: [ 3M - 1Y ] | C75: =IF($G$2="TO",SUMIFS('DATA MART_'!$Q:$Q,'DATA MART_'!$G:$G,$G$3,'DATA MART_'!$A:$A,CONCATENATE($G$3,"|",C$7,"|",$Q75,"|",$I$2,"|",$P75,"|",$J$2,"|",$J$3,"|",$K$2,"|",$K$3)),SUMIFS('DATA MART_'!$Q:$Q,'DATA MART_'!$G:$G,$G$3,'DATA MART_'!$A:$A,CONCATENATE($G$3,"|",C$7,"|",$Q75,"|",$I$2,"|",$P75,"|",$J$2,"|",$J$3,"|",$K$2,"|",$K$3),'DATA MART_'!$F:$F,$G$2)) -> 26902.56755 | D75: =IF($G$2="TO",SUMIFS('DATA MART_'!$Q:$Q,'DATA MART_'!$G:$G,$G$3,'DATA MART_'!$A:$A,CONCATENATE($G$3,"|",D$7,"|",$Q75,"|",$I$2,"|",$P75,"|",$J$2,"|",$J$3,"|",$K$2,"|",$K$3)),SUMIFS('DATA MART_'!$Q:$Q,'DATA MART_'!$G:$G,$G$3,'DATA MART_'!$A:$A,CONCATENATE($G$3,"|",D$7,"|",$Q75,"|",$I$2,"|",$P75,"|",$J$2,"|",$J$3,"|",$K$2,"|",$K$3),'DATA MART_'!$F:$F,$G$2)) -> 934.7618544 | E75: =IF($G$2="TO",SUMIFS('DATA MART_'!$Q:$Q,'DATA MART_'!$G:$G,$G$3,'DATA MART_'!$A:$A,CONCATENATE($G$3,"|",E$7,"|",$Q75,"|",$I$2,"|",$P75,"|",$J$2,"|",$J$3,"|",$K$2,"|",$K$3)),SUMIFS('DATA MART_'!$Q:$Q,'DATA MART_'!$G:$G,$G$3,'DATA MART_'!$A:$A,CONCATENATE($G$3,"|",E$7,"|",$Q75,"|",$I$2,"|",$P75,"|",$J$2,"|",$J$3,"|",$K$2,"|",$K$3),'DATA MART_'!$F:$F,$G$2)) -> 24201.30834 | F75: =IF($G$2="TO",SUMIFS('DATA MART_'!$Q:$Q,'DATA MART_'!$G:$G,$G$3,'DATA MART_'!$A:$A,CONCATENATE($G$3,"|",F$7,"|",$Q75,"|",$I$2,"|",$P75,"|",$J$2,"|",$J$3,"|",$K$2,"|",$K$3)),SUMIFS('DATA MART_'!$Q:$Q,'DATA MART_'!$G:$G,$G$3,'DATA MART_'!$A:$A,CONCATENATE($G$3,"|",F$7,"|",$Q75,"|",$I$2,"|",$P75,"|",$J$2,"|",$J$3,"|",$K$2,"|",$K$3),'DATA MART_'!$F:$F,$G$2)) -> 12444.63003 | G75: =IF($G$2="TO",SUMIFS('DATA MART_'!$Q:$Q,'DATA MART_'!$G:$G,$G$3,'DATA MART_'!$A:$A,CONCATENATE($G$3,"|",G$7,"|",$Q75,"|",$I$2,"|",$P75,"|",$J$2,"|",$J$3,"|",$K$2,"|",$K$3)),SUMIFS('DATA MART_'!$Q:$Q,'DATA MART_'!$G:$G,$G$3,'DATA MART_'!$A:$A,CONCATENATE($G$3,"|",G$7,"|",$Q75,"|",$I$2,"|",$P75,"|",$J$2,"|",$J$3,"|",$K$2,"|",$K$3),'DATA MART_'!$F:$F,$G$2)) -> 10.4 | H75: =IF($G$2="TO",SUMIFS('DATA MART_'!$Q:$Q,'DATA MART_'!$G:$G,$G$3,'DATA MART_'!$A:$A,CONCATENATE($G$3,"|",H$7,"|",$Q75,"|",$I$2,"|",$P75,"|",$J$2,"|",$J$3,"|",$K$2,"|",$K$3)),SUMIFS('DATA MART_'!$Q:$Q,'DATA MART_'!$G:$G,$G$3,'DATA MART_'!$A:$A,CONCATENATE($G$3,"|",H$7,"|",$Q75,"|",$I$2,"|",$P75,"|",$J$2,"|",$J$3,"|",$K$2,"|",$K$3),'DATA MART_'!$F:$F,$G$2)) -> 10437.15894 | J75: =IF($G$2="TO",SUMIFS('DATA MART_'!$Q:$Q,'DATA MART_'!$G:$G,$G$3,'DATA MART_'!$A:$A,CONCATENATE($G$3,"|",J$7,"|",$Q75,"|",$I$2,"|",$P75,"|",$J$2,"|",$J$3,"|",$K$2,"|",$K$3)),SUMIFS('DATA MART_'!$Q:$Q,'DATA MART_'!$G:$G,$G$3,'DATA MART_'!$A:$A,CONCATENATE($G$3,"|",J$7,"|",$Q75,"|",$I$2,"|",$P75,"|",$J$2,"|",$J$3,"|",$K$2,"|",$K$3),'DATA MART_'!$F:$F,$G$2)) -> -122.5675937 | L75: =IF($G$2="TO",SUMIFS('DATA MART_'!$Q:$Q,'DATA MART_'!$G:$G,$G$3,'DATA MART_'!$A:$A,CONCATENATE($G$3,"|",L$7,"|",$Q75,"|",$I$2,"|",$P75,"|",$J$2,"|",$J$3,"|",$K$2,"|",$K$3)),SUMIFS('DATA MART_'!$Q:$Q,'DATA MART_'!$G:$G,$G$3,'DATA MART_'!$A:$A,CONCATENATE($G$3,"|",L$7,"|",$Q75,"|",$I$2,"|",$P75,"|",$J$2,"|",$J$3,"|",$K$2,"|",$K$3),'DATA MART_'!$F:$F,$G$2)) -> -22.90384891 | M75: 9 | N75: 2 | O75: 30010092 | P75: 2 | Q75: =VLOOKUP(B74,'DATA MART_'!$AO$4:$AP$242,2,0) -> 9
A76: [ 1Y - 2Y ] | C76: =IF($G$2="TO",SUMIFS('DATA MART_'!$Q:$Q,'DATA MART_'!$G:$G,$G$3,'DATA MART_'!$A:$A,CONCATENATE($G$3,"|",C$7,"|",$Q76,"|",$I$2,"|",$P76,"|",$J$2,"|",$J$3,"|",$K$2,"|",$K$3)),SUMIFS('DATA MART_'!$Q:$Q,'DATA MART_'!$G:$G,$G$3,'DATA MART_'!$A:$A,CONCATENATE($G$3,"|",C$7,"|",$Q76,"|",$I$2,"|",$P76,"|",$J$2,"|",$J$3,"|",$K$2,"|",$K$3),'DATA MART_'!$F:$F,$G$2)) -> 14553.56722 | D76: =IF($G$2="TO",SUMIFS('DATA MART_'!$Q:$Q,'DATA MART_'!$G:$G,$G$3,'DATA MART_'!$A:$A,CONCATENATE($G$3,"|",D$7,"|",$Q76,"|",$I$2,"|",$P76,"|",$J$2,"|",$J$3,"|",$K$2,"|",$K$3)),SUMIFS('DATA MART_'!$Q:$Q,'DATA MART_'!$G:$G,$G$3,'DATA MART_'!$A:$A,CONCATENATE($G$3,"|",D$7,"|",$Q76,"|",$I$2,"|",$P76,"|",$J$2,"|",$J$3,"|",$K$2,"|",$K$3),'DATA MART_'!$F:$F,$G$2)) -> 405.4496053 | E76: =IF($G$2="TO",SUMIFS('DATA MART_'!$Q:$Q,'DATA MART_'!$G:$G,$G$3,'DATA MART_'!$A:$A,CONCATENATE($G$3,"|",E$7,"|",$Q76,"|",$I$2,"|",$P76,"|",$J$2,"|",$J$3,"|",$K$2,"|",$K$3)),SUMIFS('DATA MART_'!$Q:$Q,'DATA MART_'!$G:$G,$G$3,'DATA MART_'!$A:$A,CONCATENATE($G$3,"|",E$7,"|",$Q76,"|",$I$2,"|",$P76,"|",$J$2,"|",$J$3,"|",$K$2,"|",$K$3),'DATA MART_'!$F:$F,$G$2)) -> 11206.28919 | F76: =IF($G$2="TO",SUMIFS('DATA MART_'!$Q:$Q,'DATA MART_'!$G:$G,$G$3,'DATA MART_'!$A:$A,CONCATENATE($G$3,"|",F$7,"|",$Q76,"|",$I$2,"|",$P76,"|",$J$2,"|",$J$3,"|",$K$2,"|",$K$3)),SUMIFS('DATA MART_'!$Q:$Q,'DATA MART_'!$G:$G,$G$3,'DATA MART_'!$A:$A,CONCATENATE($G$3,"|",F$7,"|",$Q76,"|",$I$2,"|",$P76,"|",$J$2,"|",$J$3,"|",$K$2,"|",$K$3),'DATA MART_'!$F:$F,$G$2)) -> 10597.63968 | G76: =IF($G$2="TO",SUMIFS('DATA MART_'!$Q:$Q,'DATA MART_'!$G:$G,$G$3,'DATA MART_'!$A:$A,CONCATENATE($G$3,"|",G$7,"|",$Q76,"|",$I$2,"|",$P76,"|",$J$2,"|",$J$3,"|",$K$2,"|",$K$3)),SUMIFS('DATA MART_'!$Q:$Q,'DATA MART_'!$G:$G,$G$3,'DATA MART_'!$A:$A,CONCATENATE($G$3,"|",G$7,"|",$Q76,"|",$I$2,"|",$P76,"|",$J$2,"|",$J$3,"|",$K$2,"|",$K$3),'DATA MART_'!$F:$F,$G$2)) -> 74.7414887 | H76: =IF($G$2="TO",SUMIFS('DATA MART_'!$Q:$Q,'DATA MART_'!$G:$G,$G$3,'DATA MART_'!$A:$A,CONCATENATE($G$3,"|",H$7,"|",$Q76,"|",$I$2,"|",$P76,"|",$J$2,"|",$J$3,"|",$K$2,"|",$K$3)),SUMIFS('DATA MART_'!$Q:$Q,'DATA MART_'!$G:$G,$G$3,'DATA MART_'!$A:$A,CONCATENATE($G$3,"|",H$7,"|",$Q76,"|",$I$2,"|",$P76,"|",$J$2,"|",$J$3,"|",$K$2,"|",$K$3),'DATA MART_'!$F:$F,$G$2)) -> -332.2269178 | J76: =IF($G$2="TO",SUMIFS('DATA MART_'!$Q:$Q,'DATA MART_'!$G:$G,$G$3,'DATA MART_'!$A:$A,CONCATENATE($G$3,"|",J$7,"|",$Q76,"|",$I$2,"|",$P76,"|",$J$2,"|",$J$3,"|",$K$2,"|",$K$3)),SUMIFS('DATA MART_'!$Q:$Q,'DATA MART_'!$G:$G,$G$3,'DATA MART_'!$A:$A,CONCATENATE($G$3,"|",J$7,"|",$Q76,"|",$I$2,"|",$P76,"|",$J$2,"|",$J$3,"|",$K$2,"|",$K$3),'DATA MART_'!$F:$F,$G$2)) -> -53.24753674 | L76: =IF($G$2="TO",SUMIFS('DATA MART_'!$Q:$Q,'DATA MART_'!$G:$G,$G$3,'DATA MART_'!$A:$A,CONCATENATE($G$3,"|",L$7,"|",$Q76,"|",$I$2,"|",$P76,"|",$J$2,"|",$J$3,"|",$K$2,"|",$K$3)),SUMIFS('DATA MART_'!$Q:$Q,'DATA MART_'!$G:$G,$G$3,'DATA MART_'!$A:$A,CONCATENATE($G$3,"|",L$7,"|",$Q76,"|",$I$2,"|",$P76,"|",$J$2,"|",$J$3,"|",$K$2,"|",$K$3),'DATA MART_'!$F:$F,$G$2)) -> 8.267930811 | M76: 9 | N76: 3 | O76: 30010093 | P76: 3 | Q76: =VLOOKUP(B74,'DATA MART_'!$AO$4:$AP$242,2,0) -> 9
A77: [ 2Y - 3Y ] | C77: =IF($G$2="TO",SUMIFS('DATA MART_'!$Q:$Q,'DATA MART_'!$G:$G,$G$3,'DATA MART_'!$A:$A,CONCATENATE($G$3,"|",C$7,"|",$Q77,"|",$I$2,"|",$P77,"|",$J$2,"|",$J$3,"|",$K$2,"|",$K$3)),SUMIFS('DATA MART_'!$Q:$Q,'DATA MART_'!$G:$G,$G$3,'DATA MART_'!$A:$A,CONCATENATE($G$3,"|",C$7,"|",$Q77,"|",$I$2,"|",$P77,"|",$J$2,"|",$J$3,"|",$K$2,"|",$K$3),'DATA MART_'!$F:$F,$G$2)) -> 17800.93125 | D77: =IF($G$2="TO",SUMIFS('DATA MART_'!$Q:$Q,'DATA MART_'!$G:$G,$G$3,'DATA MART_'!$A:$A,CONCATENATE($G$3,"|",D$7,"|",$Q77,"|",$I$2,"|",$P77,"|",$J$2,"|",$J$3,"|",$K$2,"|",$K$3)),SUMIFS('DATA MART_'!$Q:$Q,'DATA MART_'!$G:$G,$G$3,'DATA MART_'!$A:$A,CONCATENATE($G$3,"|",D$7,"|",$Q77,"|",$I$2,"|",$P77,"|",$J$2,"|",$J$3,"|",$K$2,"|",$K$3),'DATA MART_'!$F:$F,$G$2)) -> 3300.860573 | E77: =IF($G$2="TO",SUMIFS('DATA MART_'!$Q:$Q,'DATA MART_'!$G:$G,$G$3,'DATA MART_'!$A:$A,CONCATENATE($G$3,"|",E$7,"|",$Q77,"|",$I$2,"|",$P77,"|",$J$2,"|",$J$3,"|",$K$2,"|",$K$3)),SUMIFS('DATA MART_'!$Q:$Q,'DATA MART_'!$G:$G,$G$3,'DATA MART_'!$A:$A,CONCATENATE($G$3,"|",E$7,"|",$Q77,"|",$I$2,"|",$P77,"|",$J$2,"|",$J$3,"|",$K$2,"|",$K$3),'DATA MART_'!$F:$F,$G$2)) -> 9632.282632 | F77: =IF($G$2="TO",SUMIFS('DATA MART_'!$Q:$Q,'DATA MART_'!$G:$G,$G$3,'DATA MART_'!$A:$A,CONCATENATE($G$3,"|",F$7,"|",$Q77,"|",$I$2,"|",$P77,"|",$J$2,"|",$J$3,"|",$K$2,"|",$K$3)),SUMIFS('DATA MART_'!$Q:$Q,'DATA MART_'!$G:$G,$G$3,'DATA MART_'!$A:$A,CONCATENATE($G$3,"|",F$7,"|",$Q77,"|",$I$2,"|",$P77,"|",$J$2,"|",$J$3,"|",$K$2,"|",$K$3),'DATA MART_'!$F:$F,$G$2)) -> 8855.732693 | G77: =IF($G$2="TO",SUMIFS('DATA MART_'!$Q:$Q,'DATA MART_'!$G:$G,$G$3,'DATA MART_'!$A:$A,CONCATENATE($G$3,"|",G$7,"|",$Q77,"|",$I$2,"|",$P77,"|",$J$2,"|",$J$3,"|",$K$2,"|",$K$3)),SUMIFS('DATA MART_'!$Q:$Q,'DATA MART_'!$G:$G,$G$3,'DATA MART_'!$A:$A,CONCATENATE($G$3,"|",G$7,"|",$Q77,"|",$I$2,"|",$P77,"|",$J$2,"|",$J$3,"|",$K$2,"|",$K$3),'DATA MART_'!$F:$F,$G$2)) -> 101.7088016 | H77: =IF($G$2="TO",SUMIFS('DATA MART_'!$Q:$Q,'DATA MART_'!$G:$G,$G$3,'DATA MART_'!$A:$A,CONCATENATE($G$3,"|",H$7,"|",$Q77,"|",$I$2,"|",$P77,"|",$J$2,"|",$J$3,"|",$K$2,"|",$K$3)),SUMIFS('DATA MART_'!$Q:$Q,'DATA MART_'!$G:$G,$G$3,'DATA MART_'!$A:$A,CONCATENATE($G$3,"|",H$7,"|",$Q77,"|",$I$2,"|",$P77,"|",$J$2,"|",$J$3,"|",$K$2,"|",$K$3),'DATA MART_'!$F:$F,$G$2)) -> -1064.961169 | J77: =IF($G$2="TO",SUMIFS('DATA MART_'!$Q:$Q,'DATA MART_'!$G:$G,$G$3,'DATA MART_'!$A:$A,CONCATENATE($G$3,"|",J$7,"|",$Q77,"|",$I$2,"|",$P77,"|",$J$2,"|",$J$3,"|",$K$2,"|",$K$3)),SUMIFS('DATA MART_'!$Q:$Q,'DATA MART_'!$G:$G,$G$3,'DATA MART_'!$A:$A,CONCATENATE($G$3,"|",J$7,"|",$Q77,"|",$I$2,"|",$P77,"|",$J$2,"|",$J$3,"|",$K$2,"|",$K$3),'DATA MART_'!$F:$F,$G$2)) -> 21.94061585 | L77: =IF($G$2="TO",SUMIFS('DATA MART_'!$Q:$Q,'DATA MART_'!$G:$G,$G$3,'DATA MART_'!$A:$A,CONCATENATE($G$3,"|",L$7,"|",$Q77,"|",$I$2,"|",$P77,"|",$J$2,"|",$J$3,"|",$K$2,"|",$K$3)),SUMIFS('DATA MART_'!$Q:$Q,'DATA MART_'!$G:$G,$G$3,'DATA MART_'!$A:$A,CONCATENATE($G$3,"|",L$7,"|",$Q77,"|",$I$2,"|",$P77,"|",$J$2,"|",$J$3,"|",$K$2,"|",$K$3),'DATA MART_'!$F:$F,$G$2)) -> 6.099166701 | M77: 9 | N77: 4 | O77: 30010094 | P77: 4 | Q77: =VLOOKUP(B74,'DATA MART_'!$AO$4:$AP$242,2,0) -> 9
A78: [3Y - 5Y ] | C78: =IF($G$2="TO",SUMIFS('DATA MART_'!$Q:$Q,'DATA MART_'!$G:$G,$G$3,'DATA MART_'!$A:$A,CONCATENATE($G$3,"|",C$7,"|",$Q78,"|",$I$2,"|",$P78,"|",$J$2,"|",$J$3,"|",$K$2,"|",$K$3)),SUMIFS('DATA MART_'!$Q:$Q,'DATA MART_'!$G:$G,$G$3,'DATA MART_'!$A:$A,CONCATENATE($G$3,"|",C$7,"|",$Q78,"|",$I$2,"|",$P78,"|",$J$2,"|",$J$3,"|",$K$2,"|",$K$3),'DATA MART_'!$F:$F,$G$2)) -> 42294.2085 | D78: =IF($G$2="TO",SUMIFS('DATA MART_'!$Q:$Q,'DATA MART_'!$G:$G,$G$3,'DATA MART_'!$A:$A,CONCATENATE($G$3,"|",D$7,"|",$Q78,"|",$I$2,"|",$P78,"|",$J$2,"|",$J$3,"|",$K$2,"|",$K$3)),SUMIFS('DATA MART_'!$Q:$Q,'DATA MART_'!$G:$G,$G$3,'DATA MART_'!$A:$A,CONCATENATE($G$3,"|",D$7,"|",$Q78,"|",$I$2,"|",$P78,"|",$J$2,"|",$J$3,"|",$K$2,"|",$K$3),'DATA MART_'!$F:$F,$G$2)) -> 491.6315122 | E78: =IF($G$2="TO",SUMIFS('DATA MART_'!$Q:$Q,'DATA MART_'!$G:$G,$G$3,'DATA MART_'!$A:$A,CONCATENATE($G$3,"|",E$7,"|",$Q78,"|",$I$2,"|",$P78,"|",$J$2,"|",$J$3,"|",$K$2,"|",$K$3)),SUMIFS('DATA MART_'!$Q:$Q,'DATA MART_'!$G:$G,$G$3,'DATA MART_'!$A:$A,CONCATENATE($G$3,"|",E$7,"|",$Q78,"|",$I$2,"|",$P78,"|",$J$2,"|",$J$3,"|",$K$2,"|",$K$3),'DATA MART_'!$F:$F,$G$2)) -> 31692.04538 | F78: =IF($G$2="TO",SUMIFS('DATA MART_'!$Q:$Q,'DATA MART_'!$G:$G,$G$3,'DATA MART_'!$A:$A,CONCATENATE($G$3,"|",F$7,"|",$Q78,"|",$I$2,"|",$P78,"|",$J$2,"|",$J$3,"|",$K$2,"|",$K$3)),SUMIFS('DATA MART_'!$Q:$Q,'DATA MART_'!$G:$G,$G$3,'DATA MART_'!$A:$A,CONCATENATE($G$3,"|",F$7,"|",$Q78,"|",$I$2,"|",$P78,"|",$J$2,"|",$J$3,"|",$K$2,"|",$K$3),'DATA MART_'!$F:$F,$G$2)) -> 26898.96348 | G78: =IF($G$2="TO",SUMIFS('DATA MART_'!$Q:$Q,'DATA MART_'!$G:$G,$G$3,'DATA MART_'!$A:$A,CONCATENATE($G$3,"|",G$7,"|",$Q78,"|",$I$2,"|",$P78,"|",$J$2,"|",$J$3,"|",$K$2,"|",$K$3)),SUMIFS('DATA MART_'!$Q:$Q,'DATA MART_'!$G:$G,$G$3,'DATA MART_'!$A:$A,CONCATENATE($G$3,"|",G$7,"|",$Q78,"|",$I$2,"|",$P78,"|",$J$2,"|",$J$3,"|",$K$2,"|",$K$3),'DATA MART_'!$F:$F,$G$2)) -> 275.8763195 | H78: =IF($G$2="TO",SUMIFS('DATA MART_'!$Q:$Q,'DATA MART_'!$G:$G,$G$3,'DATA MART_'!$A:$A,CONCATENATE($G$3,"|",H$7,"|",$Q78,"|",$I$2,"|",$P78,"|",$J$2,"|",$J$3,"|",$K$2,"|",$K$3)),SUMIFS('DATA MART_'!$Q:$Q,'DATA MART_'!$G:$G,$G$3,'DATA MART_'!$A:$A,CONCATENATE($G$3,"|",H$7,"|",$Q78,"|",$I$2,"|",$P78,"|",$J$2,"|",$J$3,"|",$K$2,"|",$K$3),'DATA MART_'!$F:$F,$G$2)) -> 1538.836301 | J78: =IF($G$2="TO",SUMIFS('DATA MART_'!$Q:$Q,'DATA MART_'!$G:$G,$G$3,'DATA MART_'!$A:$A,CONCATENATE($G$3,"|",J$7,"|",$Q78,"|",$I$2,"|",$P78,"|",$J$2,"|",$J$3,"|",$K$2,"|",$K$3)),SUMIFS('DATA MART_'!$Q:$Q,'DATA MART_'!$G:$G,$G$3,'DATA MART_'!$A:$A,CONCATENATE($G$3,"|",J$7,"|",$Q78,"|",$I$2,"|",$P78,"|",$J$2,"|",$J$3,"|",$K$2,"|",$K$3),'DATA MART_'!$F:$F,$G$2)) -> 311.5698063 | L78: =IF($G$2="TO",SUMIFS('DATA MART_'!$Q:$Q,'DATA MART_'!$G:$G,$G$3,'DATA MART_'!$A:$A,CONCATENATE($G$3,"|",L$7,"|",$Q78,"|",$I$2,"|",$P78,"|",$J$2,"|",$J$3,"|",$K$2,"|",$K$3)),SUMIFS('DATA MART_'!$Q:$Q,'DATA MART_'!$G:$G,$G$3,'DATA MART_'!$A:$A,CONCATENATE($G$3,"|",L$7,"|",$Q78,"|",$I$2,"|",$P78,"|",$J$2,"|",$J$3,"|",$K$2,"|",$K$3),'DATA MART_'!$F:$F,$G$2)) -> -70.36714521 | M78: 9 | N78: 5 | O78: 30010095 | P78: 5 | Q78: =VLOOKUP(B74,'DATA MART_'!$AO$4:$AP$242,2,0) -> 9
A79: [5Y - 10Y ] | C79: =IF($G$2="TO",SUMIFS('DATA MART_'!$Q:$Q,'DATA MART_'!$G:$G,$G$3,'DATA MART_'!$A:$A,CONCATENATE($G$3,"|",C$7,"|",$Q79,"|",$I$2,"|",$P79,"|",$J$2,"|",$J$3,"|",$K$2,"|",$K$3)),SUMIFS('DATA MART_'!$Q:$Q,'DATA MART_'!$G:$G,$G$3,'DATA MART_'!$A:$A,CONCATENATE($G$3,"|",C$7,"|",$Q79,"|",$I$2,"|",$P79,"|",$J$2,"|",$J$3,"|",$K$2,"|",$K$3),'DATA MART_'!$F:$F,$G$2)) -> 51605.97781 | D79: =IF($G$2="TO",SUMIFS('DATA MART_'!$Q:$Q,'DATA MART_'!$G:$G,$G$3,'DATA MART_'!$A:$A,CONCATENATE($G$3,"|",D$7,"|",$Q79,"|",$I$2,"|",$P79,"|",$J$2,"|",$J$3,"|",$K$2,"|",$K$3)),SUMIFS('DATA MART_'!$Q:$Q,'DATA MART_'!$G:$G,$G$3,'DATA MART_'!$A:$A,CONCATENATE($G$3,"|",D$7,"|",$Q79,"|",$I$2,"|",$P79,"|",$J$2,"|",$J$3,"|",$K$2,"|",$K$3),'DATA MART_'!$F:$F,$G$2)) -> 2524.610106 | E79: =IF($G$2="TO",SUMIFS('DATA MART_'!$Q:$Q,'DATA MART_'!$G:$G,$G$3,'DATA MART_'!$A:$A,CONCATENATE($G$3,"|",E$7,"|",$Q79,"|",$I$2,"|",$P79,"|",$J$2,"|",$J$3,"|",$K$2,"|",$K$3)),SUMIFS('DATA MART_'!$Q:$Q,'DATA MART_'!$G:$G,$G$3,'DATA MART_'!$A:$A,CONCATENATE($G$3,"|",E$7,"|",$Q79,"|",$I$2,"|",$P79,"|",$J$2,"|",$J$3,"|",$K$2,"|",$K$3),'DATA MART_'!$F:$F,$G$2)) -> 23612.73714 | F79: =IF($G$2="TO",SUMIFS('DATA MART_'!$Q:$Q,'DATA MART_'!$G:$G,$G$3,'DATA MART_'!$A:$A,CONCATENATE($G$3,"|",F$7,"|",$Q79,"|",$I$2,"|",$P79,"|",$J$2,"|",$J$3,"|",$K$2,"|",$K$3)),SUMIFS('DATA MART_'!$Q:$Q,'DATA MART_'!$G:$G,$G$3,'DATA MART_'!$A:$A,CONCATENATE($G$3,"|",F$7,"|",$Q79,"|",$I$2,"|",$P79,"|",$J$2,"|",$J$3,"|",$K$2,"|",$K$3),'DATA MART_'!$F:$F,$G$2)) -> 35214.57259 | G79: =IF($G$2="TO",SUMIFS('DATA MART_'!$Q:$Q,'DATA MART_'!$G:$G,$G$3,'DATA MART_'!$A:$A,CONCATENATE($G$3,"|",G$7,"|",$Q79,"|",$I$2,"|",$P79,"|",$J$2,"|",$J$3,"|",$K$2,"|",$K$3)),SUMIFS('DATA MART_'!$Q:$Q,'DATA MART_'!$G:$G,$G$3,'DATA MART_'!$A:$A,CONCATENATE($G$3,"|",G$7,"|",$Q79,"|",$I$2,"|",$P79,"|",$J$2,"|",$J$3,"|",$K$2,"|",$K$3),'DATA MART_'!$F:$F,$G$2)) -> 110.7889471 | H79: =IF($G$2="TO",SUMIFS('DATA MART_'!$Q:$Q,'DATA MART_'!$G:$G,$G$3,'DATA MART_'!$A:$A,CONCATENATE($G$3,"|",H$7,"|",$Q79,"|",$I$2,"|",$P79,"|",$J$2,"|",$J$3,"|",$K$2,"|",$K$3)),SUMIFS('DATA MART_'!$Q:$Q,'DATA MART_'!$G:$G,$G$3,'DATA MART_'!$A:$A,CONCATENATE($G$3,"|",H$7,"|",$Q79,"|",$I$2,"|",$P79,"|",$J$2,"|",$J$3,"|",$K$2,"|",$K$3),'DATA MART_'!$F:$F,$G$2)) -> -17993.74091 | J79: =IF($G$2="TO",SUMIFS('DATA MART_'!$Q:$Q,'DATA MART_'!$G:$G,$G$3,'DATA MART_'!$A:$A,CONCATENATE($G$3,"|",J$7,"|",$Q79,"|",$I$2,"|",$P79,"|",$J$2,"|",$J$3,"|",$K$2,"|",$K$3)),SUMIFS('DATA MART_'!$Q:$Q,'DATA MART_'!$G:$G,$G$3,'DATA MART_'!$A:$A,CONCATENATE($G$3,"|",J$7,"|",$Q79,"|",$I$2,"|",$P79,"|",$J$2,"|",$J$3,"|",$K$2,"|",$K$3),'DATA MART_'!$F:$F,$G$2)) -> 428.2453879 | L79: =IF($G$2="TO",SUMIFS('DATA MART_'!$Q:$Q,'DATA MART_'!$G:$G,$G$3,'DATA MART_'!$A:$A,CONCATENATE($G$3,"|",L$7,"|",$Q79,"|",$I$2,"|",$P79,"|",$J$2,"|",$J$3,"|",$K$2,"|",$K$3)),SUMIFS('DATA MART_'!$Q:$Q,'DATA MART_'!$G:$G,$G$3,'DATA MART_'!$A:$A,CONCATENATE($G$3,"|",L$7,"|",$Q79,"|",$I$2,"|",$P79,"|",$J$2,"|",$J$3,"|",$K$2,"|",$K$3),'DATA MART_'!$F:$F,$G$2)) -> -119.497014 | M79: 9 | N79: 6 | O79: 30010096 | P79: 6 | Q79: =VLOOKUP(B74,'DATA MART_'!$AO$4:$AP$242,2,0) -> 9
A80: [10Y - more ] | C80: =IF($G$2="TO",SUMIFS('DATA MART_'!$Q:$Q,'DATA MART_'!$G:$G,$G$3,'DATA MART_'!$A:$A,CONCATENATE($G$3,"|",C$7,"|",$Q80,"|",$I$2,"|",$P80,"|",$J$2,"|",$J$3,"|",$K$2,"|",$K$3)),SUMIFS('DATA MART_'!$Q:$Q,'DATA MART_'!$G:$G,$G$3,'DATA MART_'!$A:$A,CONCATENATE($G$3,"|",C$7,"|",$Q80,"|",$I$2,"|",$P80,"|",$J$2,"|",$J$3,"|",$K$2,"|",$K$3),'DATA MART_'!$F:$F,$G$2)) -> 42301.00036 | D80: =IF($G$2="TO",SUMIFS('DATA MART_'!$Q:$Q,'DATA MART_'!$G:$G,$G$3,'DATA MART_'!$A:$A,CONCATENATE($G$3,"|",D$7,"|",$Q80,"|",$I$2,"|",$P80,"|",$J$2,"|",$J$3,"|",$K$2,"|",$K$3)),SUMIFS('DATA MART_'!$Q:$Q,'DATA MART_'!$G:$G,$G$3,'DATA MART_'!$A:$A,CONCATENATE($G$3,"|",D$7,"|",$Q80,"|",$I$2,"|",$P80,"|",$J$2,"|",$J$3,"|",$K$2,"|",$K$3),'DATA MART_'!$F:$F,$G$2)) -> 10310.42404 | E80: =IF($G$2="TO",SUMIFS('DATA MART_'!$Q:$Q,'DATA MART_'!$G:$G,$G$3,'DATA MART_'!$A:$A,CONCATENATE($G$3,"|",E$7,"|",$Q80,"|",$I$2,"|",$P80,"|",$J$2,"|",$J$3,"|",$K$2,"|",$K$3)),SUMIFS('DATA MART_'!$Q:$Q,'DATA MART_'!$G:$G,$G$3,'DATA MART_'!$A:$A,CONCATENATE($G$3,"|",E$7,"|",$Q80,"|",$I$2,"|",$P80,"|",$J$2,"|",$J$3,"|",$K$2,"|",$K$3),'DATA MART_'!$F:$F,$G$2)) -> 27487.91156 | F80: =IF($G$2="TO",SUMIFS('DATA MART_'!$Q:$Q,'DATA MART_'!$G:$G,$G$3,'DATA MART_'!$A:$A,CONCATENATE($G$3,"|",F$7,"|",$Q80,"|",$I$2,"|",$P80,"|",$J$2,"|",$J$3,"|",$K$2,"|",$K$3)),SUMIFS('DATA MART_'!$Q:$Q,'DATA MART_'!$G:$G,$G$3,'DATA MART_'!$A:$A,CONCATENATE($G$3,"|",F$7,"|",$Q80,"|",$I$2,"|",$P80,"|",$J$2,"|",$J$3,"|",$K$2,"|",$K$3),'DATA MART_'!$F:$F,$G$2)) -> 13323.047 | G80: =IF($G$2="TO",SUMIFS('DATA MART_'!$Q:$Q,'DATA MART_'!$G:$G,$G$3,'DATA MART_'!$A:$A,CONCATENATE($G$3,"|",G$7,"|",$Q80,"|",$I$2,"|",$P80,"|",$J$2,"|",$J$3,"|",$K$2,"|",$K$3)),SUMIFS('DATA MART_'!$Q:$Q,'DATA MART_'!$G:$G,$G$3,'DATA MART_'!$A:$A,CONCATENATE($G$3,"|",G$7,"|",$Q80,"|",$I$2,"|",$P80,"|",$J$2,"|",$J$3,"|",$K$2,"|",$K$3),'DATA MART_'!$F:$F,$G$2)) -> 399.7482512 | H80: =IF($G$2="TO",SUMIFS('DATA MART_'!$Q:$Q,'DATA MART_'!$G:$G,$G$3,'DATA MART_'!$A:$A,CONCATENATE($G$3,"|",H$7,"|",$Q80,"|",$I$2,"|",$P80,"|",$J$2,"|",$J$3,"|",$K$2,"|",$K$3)),SUMIFS('DATA MART_'!$Q:$Q,'DATA MART_'!$G:$G,$G$3,'DATA MART_'!$A:$A,CONCATENATE($G$3,"|",H$7,"|",$Q80,"|",$I$2,"|",$P80,"|",$J$2,"|",$J$3,"|",$K$2,"|",$K$3),'DATA MART_'!$F:$F,$G$2)) -> 2689.514814 | J80: =IF($G$2="TO",SUMIFS('DATA MART_'!$Q:$Q,'DATA MART_'!$G:$G,$G$3,'DATA MART_'!$A:$A,CONCATENATE($G$3,"|",J$7,"|",$Q80,"|",$I$2,"|",$P80,"|",$J$2,"|",$J$3,"|",$K$2,"|",$K$3)),SUMIFS('DATA MART_'!$Q:$Q,'DATA MART_'!$G:$G,$G$3,'DATA MART_'!$A:$A,CONCATENATE($G$3,"|",J$7,"|",$Q80,"|",$I$2,"|",$P80,"|",$J$2,"|",$J$3,"|",$K$2,"|",$K$3),'DATA MART_'!$F:$F,$G$2)) -> 275.7138725 | L80: =IF($G$2="TO",SUMIFS('DATA MART_'!$Q:$Q,'DATA MART_'!$G:$G,$G$3,'DATA MART_'!$A:$A,CONCATENATE($G$3,"|",L$7,"|",$Q80,"|",$I$2,"|",$P80,"|",$J$2,"|",$J$3,"|",$K$2,"|",$K$3)),SUMIFS('DATA MART_'!$Q:$Q,'DATA MART_'!$G:$G,$G$3,'DATA MART_'!$A:$A,CONCATENATE($G$3,"|",L$7,"|",$Q80,"|",$I$2,"|",$P80,"|",$J$2,"|",$J$3,"|",$K$2,"|",$K$3),'DATA MART_'!$F:$F,$G$2)) -> 858.7216992 | M80: 9 | N80: 7 | O80: 30010097 | P80: 7 | Q80: =VLOOKUP(B74,'DATA MART_'!$AO$4:$AP$242,2,0) -> 9
A81: Total | C81: =IF($G$2="TO",SUMIFS('DATA MART_'!$Q:$Q,'DATA MART_'!$G:$G,$G$3,'DATA MART_'!$A:$A,CONCATENATE($G$3,"|",C$7,"|",$Q81,"|",$I$2,"|",$P81,"|",$J$2,"|",$J$3,"|",$K$2,"|",$K$3)),SUMIFS('DATA MART_'!$Q:$Q,'DATA MART_'!$G:$G,$G$3,'DATA MART_'!$A:$A,CONCATENATE($G$3,"|",C$7,"|",$Q81,"|",$I$2,"|",$P81,"|",$J$2,"|",$J$3,"|",$K$2,"|",$K$3),'DATA MART_'!$F:$F,$G$2)) -> 211395.7557 | D81: =IF($G$2="TO",SUMIFS('DATA MART_'!$Q:$Q,'DATA MART_'!$G:$G,$G$3,'DATA MART_'!$A:$A,CONCATENATE($G$3,"|",D$7,"|",$Q81,"|",$I$2,"|",$P81,"|",$J$2,"|",$J$3,"|",$K$2,"|",$K$3)),SUMIFS('DATA MART_'!$Q:$Q,'DATA MART_'!$G:$G,$G$3,'DATA MART_'!$A:$A,CONCATENATE($G$3,"|",D$7,"|",$Q81,"|",$I$2,"|",$P81,"|",$J$2,"|",$J$3,"|",$K$2,"|",$K$3),'DATA MART_'!$F:$F,$G$2)) -> 20268.2742 | E81: =IF($G$2="TO",SUMIFS('DATA MART_'!$Q:$Q,'DATA MART_'!$G:$G,$G$3,'DATA MART_'!$A:$A,CONCATENATE($G$3,"|",E$7,"|",$Q81,"|",$I$2,"|",$P81,"|",$J$2,"|",$J$3,"|",$K$2,"|",$K$3)),SUMIFS('DATA MART_'!$Q:$Q,'DATA MART_'!$G:$G,$G$3,'DATA MART_'!$A:$A,CONCATENATE($G$3,"|",E$7,"|",$Q81,"|",$I$2,"|",$P81,"|",$J$2,"|",$J$3,"|",$K$2,"|",$K$3),'DATA MART_'!$F:$F,$G$2)) -> 142570.5978 | F81: =IF($G$2="TO",SUMIFS('DATA MART_'!$Q:$Q,'DATA MART_'!$G:$G,$G$3,'DATA MART_'!$A:$A,CONCATENATE($G$3,"|",F$7,"|",$Q81,"|",$I$2,"|",$P81,"|",$J$2,"|",$J$3,"|",$K$2,"|",$K$3)),SUMIFS('DATA MART_'!$Q:$Q,'DATA MART_'!$G:$G,$G$3,'DATA MART_'!$A:$A,CONCATENATE($G$3,"|",F$7,"|",$Q81,"|",$I$2,"|",$P81,"|",$J$2,"|",$J$3,"|",$K$2,"|",$K$3),'DATA MART_'!$F:$F,$G$2)) -> 115461.0836 | G81: =IF($G$2="TO",SUMIFS('DATA MART_'!$Q:$Q,'DATA MART_'!$G:$G,$G$3,'DATA MART_'!$A:$A,CONCATENATE($G$3,"|",G$7,"|",$Q81,"|",$I$2,"|",$P81,"|",$J$2,"|",$J$3,"|",$K$2,"|",$K$3)),SUMIFS('DATA MART_'!$Q:$Q,'DATA MART_'!$G:$G,$G$3,'DATA MART_'!$A:$A,CONCATENATE($G$3,"|",G$7,"|",$Q81,"|",$I$2,"|",$P81,"|",$J$2,"|",$J$3,"|",$K$2,"|",$K$3),'DATA MART_'!$F:$F,$G$2)) -> 1067.769618 | H81: =IF($G$2="TO",SUMIFS('DATA MART_'!$Q:$Q,'DATA MART_'!$G:$G,$G$3,'DATA MART_'!$A:$A,CONCATENATE($G$3,"|",H$7,"|",$Q81,"|",$I$2,"|",$P81,"|",$J$2,"|",$J$3,"|",$K$2,"|",$K$3)),SUMIFS('DATA MART_'!$Q:$Q,'DATA MART_'!$G:$G,$G$3,'DATA MART_'!$A:$A,CONCATENATE($G$3,"|",H$7,"|",$Q81,"|",$I$2,"|",$P81,"|",$J$2,"|",$J$3,"|",$K$2,"|",$K$3),'DATA MART_'!$F:$F,$G$2)) -> -177.9189404 | J81: =IF($G$2="TO",SUMIFS('DATA MART_'!$Q:$Q,'DATA MART_'!$G:$G,$G$3,'DATA MART_'!$A:$A,CONCATENATE($G$3,"|",J$7,"|",$Q81,"|",$I$2,"|",$P81,"|",$J$2,"|",$J$3,"|",$K$2,"|",$K$3)),SUMIFS('DATA MART_'!$Q:$Q,'DATA MART_'!$G:$G,$G$3,'DATA MART_'!$A:$A,CONCATENATE($G$3,"|",J$7,"|",$Q81,"|",$I$2,"|",$P81,"|",$J$2,"|",$J$3,"|",$K$2,"|",$K$3),'DATA MART_'!$F:$F,$G$2)) -> 130.5374914 | L81: =IF($G$2="TO",SUMIFS('DATA MART_'!$Q:$Q,'DATA MART_'!$G:$G,$G$3,'DATA MART_'!$A:$A,CONCATENATE($G$3,"|",L$7,"|",$Q81,"|",$I$2,"|",$P81,"|",$J$2,"|",$J$3,"|",$K$2,"|",$K$3)),SUMIFS('DATA MART_'!$Q:$Q,'DATA MART_'!$G:$G,$G$3,'DATA MART_'!$A:$A,CONCATENATE($G$3,"|",L$7,"|",$Q81,"|",$I$2,"|",$P81,"|",$J$2,"|",$J$3,"|",$K$2,"|",$K$3),'DATA MART_'!$F:$F,$G$2)) -> 659.3198911 | M81: 9 | N81: 8 | O81: 30010098 | P81: 8 | Q81: =VLOOKUP(B74,'DATA MART_'!$AO$4:$AP$242,2,0) -> 9
A82: [ 0 - 3M ] | B82: Germany | C82: =IF($G$2="TO",SUMIFS('DATA MART_'!$Q:$Q,'DATA MART_'!$G:$G,$G$3,'DATA MART_'!$A:$A,CONCATENATE($G$3,"|",C$7,"|",$Q82,"|",$I$2,"|",$P82,"|",$J$2,"|",$J$3,"|",$K$2,"|",$K$3)),SUMIFS('DATA MART_'!$Q:$Q,'DATA MART_'!$G:$G,$G$3,'DATA MART_'!$A:$A,CONCATENATE($G$3,"|",C$7,"|",$Q82,"|",$I$2,"|",$P82,"|",$J$2,"|",$J$3,"|",$K$2,"|",$K$3),'DATA MART_'!$F:$F,$G$2)) -> 61285.86597 | D82: =IF($G$2="TO",SUMIFS('DATA MART_'!$Q:$Q,'DATA MART_'!$G:$G,$G$3,'DATA MART_'!$A:$A,CONCATENATE($G$3,"|",D$7,"|",$Q82,"|",$I$2,"|",$P82,"|",$J$2,"|",$J$3,"|",$K$2,"|",$K$3)),SUMIFS('DATA MART_'!$Q:$Q,'DATA MART_'!$G:$G,$G$3,'DATA MART_'!$A:$A,CONCATENATE($G$3,"|",D$7,"|",$Q82,"|",$I$2,"|",$P82,"|",$J$2,"|",$J$3,"|",$K$2,"|",$K$3),'DATA MART_'!$F:$F,$G$2)) -> 29768.4336 | E82: =IF($G$2="TO",SUMIFS('DATA MART_'!$Q:$Q,'DATA MART_'!$G:$G,$G$3,'DATA MART_'!$A:$A,CONCATENATE($G$3,"|",E$7,"|",$Q82,"|",$I$2,"|",$P82,"|",$J$2,"|",$J$3,"|",$K$2,"|",$K$3)),SUMIFS('DATA MART_'!$Q:$Q,'DATA MART_'!$G:$G,$G$3,'DATA MART_'!$A:$A,CONCATENATE($G$3,"|",E$7,"|",$Q82,"|",$I$2,"|",$P82,"|",$J$2,"|",$J$3,"|",$K$2,"|",$K$3),'DATA MART_'!$F:$F,$G$2)) -> 55918.12967 | F82: =IF($G$2="TO",SUMIFS('DATA MART_'!$Q:$Q,'DATA MART_'!$G:$G,$G$3,'DATA MART_'!$A:$A,CONCATENATE($G$3,"|",F$7,"|",$Q82,"|",$I$2,"|",$P82,"|",$J$2,"|",$J$3,"|",$K$2,"|",$K$3)),SUMIFS('DATA MART_'!$Q:$Q,'DATA MART_'!$G:$G,$G$3,'DATA MART_'!$A:$A,CONCATENATE($G$3,"|",F$7,"|",$Q82,"|",$I$2,"|",$P82,"|",$J$2,"|",$J$3,"|",$K$2,"|",$K$3),'DATA MART_'!$F:$F,$G$2)) -> 3553.472885 | G82: =IF($G$2="TO",SUMIFS('DATA MART_'!$Q:$Q,'DATA MART_'!$G:$G,$G$3,'DATA MART_'!$A:$A,CONCATENATE($G$3,"|",G$7,"|",$Q82,"|",$I$2,"|",$P82,"|",$J$2,"|",$J$3,"|",$K$2,"|",$K$3)),SUMIFS('DATA MART_'!$Q:$Q,'DATA MART_'!$G:$G,$G$3,'DATA MART_'!$A:$A,CONCATENATE($G$3,"|",G$7,"|",$Q82,"|",$I$2,"|",$P82,"|",$J$2,"|",$J$3,"|",$K$2,"|",$K$3),'DATA MART_'!$F:$F,$G$2)) -> 1626.517609 | H82: =IF($G$2="TO",SUMIFS('DATA MART_'!$Q:$Q,'DATA MART_'!$G:$G,$G$3,'DATA MART_'!$A:$A,CONCATENATE($G$3,"|",H$7,"|",$Q82,"|",$I$2,"|",$P82,"|",$J$2,"|",$J$3,"|",$K$2,"|",$K$3)),SUMIFS('DATA MART_'!$Q:$Q,'DATA MART_'!$G:$G,$G$3,'DATA MART_'!$A:$A,CONCATENATE($G$3,"|",H$7,"|",$Q82,"|",$I$2,"|",$P82,"|",$J$2,"|",$J$3,"|",$K$2,"|",$K$3),'DATA MART_'!$F:$F,$G$2)) -> 11083.9194 | J82: =IF($G$2="TO",SUMIFS('DATA MART_'!$Q:$Q,'DATA MART_'!$G:$G,$G$3,'DATA MART_'!$A:$A,CONCATENATE($G$3,"|",J$7,"|",$Q82,"|",$I$2,"|",$P82,"|",$J$2,"|",$J$3,"|",$K$2,"|",$K$3)),SUMIFS('DATA MART_'!$Q:$Q,'DATA MART_'!$G:$G,$G$3,'DATA MART_'!$A:$A,CONCATENATE($G$3,"|",J$7,"|",$Q82,"|",$I$2,"|",$P82,"|",$J$2,"|",$J$3,"|",$K$2,"|",$K$3),'DATA MART_'!$F:$F,$G$2)) -> -71.32589621 | L82: =IF($G$2="TO",SUMIFS('DATA MART_'!$Q:$Q,'DATA MART_'!$G:$G,$G$3,'DATA MART_'!$A:$A,CONCATENATE($G$3,"|",L$7,"|",$Q82,"|",$I$2,"|",$P82,"|",$J$2,"|",$J$3,"|",$K$2,"|",$K$3)),SUMIFS('DATA MART_'!$Q:$Q,'DATA MART_'!$G:$G,$G$3,'DATA MART_'!$A:$A,CONCATENATE($G$3,"|",L$7,"|",$Q82,"|",$I$2,"|",$P82,"|",$J$2,"|",$J$3,"|",$K$2,"|",$K$3),'DATA MART_'!$F:$F,$G$2)) -> 57.64726794 | M82: 10 | N82: 1 | O82: 300100101 | P82: 1 | Q82: =VLOOKUP(B82,'DATA MART_'!$AO$4:$AP$242,2,0) -> 10
A83: [ 3M - 1Y ] | C83: =IF($G$2="TO",SUMIFS('DATA MART_'!$Q:$Q,'DATA MART_'!$G:$G,$G$3,'DATA MART_'!$A:$A,CONCATENATE($G$3,"|",C$7,"|",$Q83,"|",$I$2,"|",$P83,"|",$J$2,"|",$J$3,"|",$K$2,"|",$K$3)),SUMIFS('DATA MART_'!$Q:$Q,'DATA MART_'!$G:$G,$G$3,'DATA MART_'!$A:$A,CONCATENATE($G$3,"|",C$7,"|",$Q83,"|",$I$2,"|",$P83,"|",$J$2,"|",$J$3,"|",$K$2,"|",$K$3),'DATA MART_'!$F:$F,$G$2)) -> 56546.42013 | D83: =IF($G$2="TO",SUMIFS('DATA MART_'!$Q:$Q,'DATA MART_'!$G:$G,$G$3,'DATA MART_'!$A:$A,CONCATENATE($G$3,"|",D$7,"|",$Q83,"|",$I$2,"|",$P83,"|",$J$2,"|",$J$3,"|",$K$2,"|",$K$3)),SUMIFS('DATA MART_'!$Q:$Q,'DATA MART_'!$G:$G,$G$3,'DATA MART_'!$A:$A,CONCATENATE($G$3,"|",D$7,"|",$Q83,"|",$I$2,"|",$P83,"|",$J$2,"|",$J$3,"|",$K$2,"|",$K$3),'DATA MART_'!$F:$F,$G$2)) -> 15567.36529 | E83: =IF($G$2="TO",SUMIFS('DATA MART_'!$Q:$Q,'DATA MART_'!$G:$G,$G$3,'DATA MART_'!$A:$A,CONCATENATE($G$3,"|",E$7,"|",$Q83,"|",$I$2,"|",$P83,"|",$J$2,"|",$J$3,"|",$K$2,"|",$K$3)),SUMIFS('DATA MART_'!$Q:$Q,'DATA MART_'!$G:$G,$G$3,'DATA MART_'!$A:$A,CONCATENATE($G$3,"|",E$7,"|",$Q83,"|",$I$2,"|",$P83,"|",$J$2,"|",$J$3,"|",$K$2,"|",$K$3),'DATA MART_'!$F:$F,$G$2)) -> 54811.04946 | F83: =IF($G$2="TO",SUMIFS('DATA MART_'!$Q:$Q,'DATA MART_'!$G:$G,$G$3,'DATA MART_'!$A:$A,CONCATENATE($G$3,"|",F$7,"|",$Q83,"|",$I$2,"|",$P83,"|",$J$2,"|",$J$3,"|",$K$2,"|",$K$3)),SUMIFS('DATA MART_'!$Q:$Q,'DATA MART_'!$G:$G,$G$3,'DATA MART_'!$A:$A,CONCATENATE($G$3,"|",F$7,"|",$Q83,"|",$I$2,"|",$P83,"|",$J$2,"|",$J$3,"|",$K$2,"|",$K$3),'DATA MART_'!$F:$F,$G$2)) -> 9631.51705 | G83: =IF($G$2="TO",SUMIFS('DATA MART_'!$Q:$Q,'DATA MART_'!$G:$G,$G$3,'DATA MART_'!$A:$A,CONCATENATE($G$3,"|",G$7,"|",$Q83,"|",$I$2,"|",$P83,"|",$J$2,"|",$J$3,"|",$K$2,"|",$K$3)),SUMIFS('DATA MART_'!$Q:$Q,'DATA MART_'!$G:$G,$G$3,'DATA MART_'!$A:$A,CONCATENATE($G$3,"|",G$7,"|",$Q83,"|",$I$2,"|",$P83,"|",$J$2,"|",$J$3,"|",$K$2,"|",$K$3),'DATA MART_'!$F:$F,$G$2)) -> 2220.715917 | H83: =IF($G$2="TO",SUMIFS('DATA MART_'!$Q:$Q,'DATA MART_'!$G:$G,$G$3,'DATA MART_'!$A:$A,CONCATENATE($G$3,"|",H$7,"|",$Q83,"|",$I$2,"|",$P83,"|",$J$2,"|",$J$3,"|",$K$2,"|",$K$3)),SUMIFS('DATA MART_'!$Q:$Q,'DATA MART_'!$G:$G,$G$3,'DATA MART_'!$A:$A,CONCATENATE($G$3,"|",H$7,"|",$Q83,"|",$I$2,"|",$P83,"|",$J$2,"|",$J$3,"|",$K$2,"|",$K$3),'DATA MART_'!$F:$F,$G$2)) -> 21165.42998 | J83: =IF($G$2="TO",SUMIFS('DATA MART_'!$Q:$Q,'DATA MART_'!$G:$G,$G$3,'DATA MART_'!$A:$A,CONCATENATE($G$3,"|",J$7,"|",$Q83,"|",$I$2,"|",$P83,"|",$J$2,"|",$J$3,"|",$K$2,"|",$K$3)),SUMIFS('DATA MART_'!$Q:$Q,'DATA MART_'!$G:$G,$G$3,'DATA MART_'!$A:$A,CONCATENATE($G$3,"|",J$7,"|",$Q83,"|",$I$2,"|",$P83,"|",$J$2,"|",$J$3,"|",$K$2,"|",$K$3),'DATA MART_'!$F:$F,$G$2)) -> 42.1661304 | L83: =IF($G$2="TO",SUMIFS('DATA MART_'!$Q:$Q,'DATA MART_'!$G:$G,$G$3,'DATA MART_'!$A:$A,CONCATENATE($G$3,"|",L$7,"|",$Q83,"|",$I$2,"|",$P83,"|",$J$2,"|",$J$3,"|",$K$2,"|",$K$3)),SUMIFS('DATA MART_'!$Q:$Q,'DATA MART_'!$G:$G,$G$3,'DATA MART_'!$A:$A,CONCATENATE($G$3,"|",L$7,"|",$Q83,"|",$I$2,"|",$P83,"|",$J$2,"|",$J$3,"|",$K$2,"|",$K$3),'DATA MART_'!$F:$F,$G$2)) -> 9.663063183 | M83: 10 | N83: 2 | O83: 300100102 | P83: 2 | Q83: =VLOOKUP(B82,'DATA MART_'!$AO$4:$AP$242,2,0) -> 10
A84: [ 1Y - 2Y ] | C84: =IF($G$2="TO",SUMIFS('DATA MART_'!$Q:$Q,'DATA MART_'!$G:$G,$G$3,'DATA MART_'!$A:$A,CONCATENATE($G$3,"|",C$7,"|",$Q84,"|",$I$2,"|",$P84,"|",$J$2,"|",$J$3,"|",$K$2,"|",$K$3)),SUMIFS('DATA MART_'!$Q:$Q,'DATA MART_'!$G:$G,$G$3,'DATA MART_'!$A:$A,CONCATENATE($G$3,"|",C$7,"|",$Q84,"|",$I$2,"|",$P84,"|",$J$2,"|",$J$3,"|",$K$2,"|",$K$3),'DATA MART_'!$F:$F,$G$2)) -> 63202.67891 | D84: =IF($G$2="TO",SUMIFS('DATA MART_'!$Q:$Q,'DATA MART_'!$G:$G,$G$3,'DATA MART_'!$A:$A,CONCATENATE($G$3,"|",D$7,"|",$Q84,"|",$I$2,"|",$P84,"|",$J$2,"|",$J$3,"|",$K$2,"|",$K$3)),SUMIFS('DATA MART_'!$Q:$Q,'DATA MART_'!$G:$G,$G$3,'DATA MART_'!$A:$A,CONCATENATE($G$3,"|",D$7,"|",$Q84,"|",$I$2,"|",$P84,"|",$J$2,"|",$J$3,"|",$K$2,"|",$K$3),'DATA MART_'!$F:$F,$G$2)) -> 9412.234463 | E84: =IF($G$2="TO",SUMIFS('DATA MART_'!$Q:$Q,'DATA MART_'!$G:$G,$G$3,'DATA MART_'!$A:$A,CONCATENATE($G$3,"|",E$7,"|",$Q84,"|",$I$2,"|",$P84,"|",$J$2,"|",$J$3,"|",$K$2,"|",$K$3)),SUMIFS('DATA MART_'!$Q:$Q,'DATA MART_'!$G:$G,$G$3,'DATA MART_'!$A:$A,CONCATENATE($G$3,"|",E$7,"|",$Q84,"|",$I$2,"|",$P84,"|",$J$2,"|",$J$3,"|",$K$2,"|",$K$3),'DATA MART_'!$F:$F,$G$2)) -> 57954.94742 | F84: =IF($G$2="TO",SUMIFS('DATA MART_'!$Q:$Q,'DATA MART_'!$G:$G,$G$3,'DATA MART_'!$A:$A,CONCATENATE($G$3,"|",F$7,"|",$Q84,"|",$I$2,"|",$P84,"|",$J$2,"|",$J$3,"|",$K$2,"|",$K$3)),SUMIFS('DATA MART_'!$Q:$Q,'DATA MART_'!$G:$G,$G$3,'DATA MART_'!$A:$A,CONCATENATE($G$3,"|",F$7,"|",$Q84,"|",$I$2,"|",$P84,"|",$J$2,"|",$J$3,"|",$K$2,"|",$K$3),'DATA MART_'!$F:$F,$G$2)) -> 7525.711833 | G84: =IF($G$2="TO",SUMIFS('DATA MART_'!$Q:$Q,'DATA MART_'!$G:$G,$G$3,'DATA MART_'!$A:$A,CONCATENATE($G$3,"|",G$7,"|",$Q84,"|",$I$2,"|",$P84,"|",$J$2,"|",$J$3,"|",$K$2,"|",$K$3)),SUMIFS('DATA MART_'!$Q:$Q,'DATA MART_'!$G:$G,$G$3,'DATA MART_'!$A:$A,CONCATENATE($G$3,"|",G$7,"|",$Q84,"|",$I$2,"|",$P84,"|",$J$2,"|",$J$3,"|",$K$2,"|",$K$3),'DATA MART_'!$F:$F,$G$2)) -> 9095.432794 | H84: =IF($G$2="TO",SUMIFS('DATA MART_'!$Q:$Q,'DATA MART_'!$G:$G,$G$3,'DATA MART_'!$A:$A,CONCATENATE($G$3,"|",H$7,"|",$Q84,"|",$I$2,"|",$P84,"|",$J$2,"|",$J$3,"|",$K$2,"|",$K$3)),SUMIFS('DATA MART_'!$Q:$Q,'DATA MART_'!$G:$G,$G$3,'DATA MART_'!$A:$A,CONCATENATE($G$3,"|",H$7,"|",$Q84,"|",$I$2,"|",$P84,"|",$J$2,"|",$J$3,"|",$K$2,"|",$K$3),'DATA MART_'!$F:$F,$G$2)) -> 14619.7387 | J84: =IF($G$2="TO",SUMIFS('DATA MART_'!$Q:$Q,'DATA MART_'!$G:$G,$G$3,'DATA MART_'!$A:$A,CONCATENATE($G$3,"|",J$7,"|",$Q84,"|",$I$2,"|",$P84,"|",$J$2,"|",$J$3,"|",$K$2,"|",$K$3)),SUMIFS('DATA MART_'!$Q:$Q,'DATA MART_'!$G:$G,$G$3,'DATA MART_'!$A:$A,CONCATENATE($G$3,"|",J$7,"|",$Q84,"|",$I$2,"|",$P84,"|",$J$2,"|",$J$3,"|",$K$2,"|",$K$3),'DATA MART_'!$F:$F,$G$2)) -> 209.9814858 | L84: =IF($G$2="TO",SUMIFS('DATA MART_'!$Q:$Q,'DATA MART_'!$G:$G,$G$3,'DATA MART_'!$A:$A,CONCATENATE($G$3,"|",L$7,"|",$Q84,"|",$I$2,"|",$P84,"|",$J$2,"|",$J$3,"|",$K$2,"|",$K$3)),SUMIFS('DATA MART_'!$Q:$Q,'DATA MART_'!$G:$G,$G$3,'DATA MART_'!$A:$A,CONCATENATE($G$3,"|",L$7,"|",$Q84,"|",$I$2,"|",$P84,"|",$J$2,"|",$J$3,"|",$K$2,"|",$K$3),'DATA MART_'!$F:$F,$G$2)) -> -528.4526689 | M84: 10 | N84: 3 | O84: 300100103 | P84: 3 | Q84: =VLOOKUP(B82,'DATA MART_'!$AO$4:$AP$242,2,0) -> 10
A85: [ 2Y - 3Y ] | C85: =IF($G$2="TO",SUMIFS('DATA MART_'!$Q:$Q,'DATA MART_'!$G:$G,$G$3,'DATA MART_'!$A:$A,CONCATENATE($G$3,"|",C$7,"|",$Q85,"|",$I$2,"|",$P85,"|",$J$2,"|",$J$3,"|",$K$2,"|",$K$3)),SUMIFS('DATA MART_'!$Q:$Q,'DATA MART_'!$G:$G,$G$3,'DATA MART_'!$A:$A,CONCATENATE($G$3,"|",C$7,"|",$Q85,"|",$I$2,"|",$P85,"|",$J$2,"|",$J$3,"|",$K$2,"|",$K$3),'DATA MART_'!$F:$F,$G$2)) -> 42808.96991 | D85: =IF($G$2="TO",SUMIFS('DATA MART_'!$Q:$Q,'DATA MART_'!$G:$G,$G$3,'DATA MART_'!$A:$A,CONCATENATE($G$3,"|",D$7,"|",$Q85,"|",$I$2,"|",$P85,"|",$J$2,"|",$J$3,"|",$K$2,"|",$K$3)),SUMIFS('DATA MART_'!$Q:$Q,'DATA MART_'!$G:$G,$G$3,'DATA MART_'!$A:$A,CONCATENATE($G$3,"|",D$7,"|",$Q85,"|",$I$2,"|",$P85,"|",$J$2,"|",$J$3,"|",$K$2,"|",$K$3),'DATA MART_'!$F:$F,$G$2)) -> 7663.8144 | E85: =IF($G$2="TO",SUMIFS('DATA MART_'!$Q:$Q,'DATA MART_'!$G:$G,$G$3,'DATA MART_'!$A:$A,CONCATENATE($G$3,"|",E$7,"|",$Q85,"|",$I$2,"|",$P85,"|",$J$2,"|",$J$3,"|",$K$2,"|",$K$3)),SUMIFS('DATA MART_'!$Q:$Q,'DATA MART_'!$G:$G,$G$3,'DATA MART_'!$A:$A,CONCATENATE($G$3,"|",E$7,"|",$Q85,"|",$I$2,"|",$P85,"|",$J$2,"|",$J$3,"|",$K$2,"|",$K$3),'DATA MART_'!$F:$F,$G$2)) -> 35354.638 | F85: =IF($G$2="TO",SUMIFS('DATA MART_'!$Q:$Q,'DATA MART_'!$G:$G,$G$3,'DATA MART_'!$A:$A,CONCATENATE($G$3,"|",F$7,"|",$Q85,"|",$I$2,"|",$P85,"|",$J$2,"|",$J$3,"|",$K$2,"|",$K$3)),SUMIFS('DATA MART_'!$Q:$Q,'DATA MART_'!$G:$G,$G$3,'DATA MART_'!$A:$A,CONCATENATE($G$3,"|",F$7,"|",$Q85,"|",$I$2,"|",$P85,"|",$J$2,"|",$J$3,"|",$K$2,"|",$K$3),'DATA MART_'!$F:$F,$G$2)) -> 8512.229823 | G85: =IF($G$2="TO",SUMIFS('DATA MART_'!$Q:$Q,'DATA MART_'!$G:$G,$G$3,'DATA MART_'!$A:$A,CONCATENATE($G$3,"|",G$7,"|",$Q85,"|",$I$2,"|",$P85,"|",$J$2,"|",$J$3,"|",$K$2,"|",$K$3)),SUMIFS('DATA MART_'!$Q:$Q,'DATA MART_'!$G:$G,$G$3,'DATA MART_'!$A:$A,CONCATENATE($G$3,"|",G$7,"|",$Q85,"|",$I$2,"|",$P85,"|",$J$2,"|",$J$3,"|",$K$2,"|",$K$3),'DATA MART_'!$F:$F,$G$2)) -> 5607.583872 | H85: =IF($G$2="TO",SUMIFS('DATA MART_'!$Q:$Q,'DATA MART_'!$G:$G,$G$3,'DATA MART_'!$A:$A,CONCATENATE($G$3,"|",H$7,"|",$Q85,"|",$I$2,"|",$P85,"|",$J$2,"|",$J$3,"|",$K$2,"|",$K$3)),SUMIFS('DATA MART_'!$Q:$Q,'DATA MART_'!$G:$G,$G$3,'DATA MART_'!$A:$A,CONCATENATE($G$3,"|",H$7,"|",$Q85,"|",$I$2,"|",$P85,"|",$J$2,"|",$J$3,"|",$K$2,"|",$K$3),'DATA MART_'!$F:$F,$G$2)) -> 3491.379791 | J85: =IF($G$2="TO",SUMIFS('DATA MART_'!$Q:$Q,'DATA MART_'!$G:$G,$G$3,'DATA MART_'!$A:$A,CONCATENATE($G$3,"|",J$7,"|",$Q85,"|",$I$2,"|",$P85,"|",$J$2,"|",$J$3,"|",$K$2,"|",$K$3)),SUMIFS('DATA MART_'!$Q:$Q,'DATA MART_'!$G:$G,$G$3,'DATA MART_'!$A:$A,CONCATENATE($G$3,"|",J$7,"|",$Q85,"|",$I$2,"|",$P85,"|",$J$2,"|",$J$3,"|",$K$2,"|",$K$3),'DATA MART_'!$F:$F,$G$2)) -> 47.68114909 | L85: =IF($G$2="TO",SUMIFS('DATA MART_'!$Q:$Q,'DATA MART_'!$G:$G,$G$3,'DATA MART_'!$A:$A,CONCATENATE($G$3,"|",L$7,"|",$Q85,"|",$I$2,"|",$P85,"|",$J$2,"|",$J$3,"|",$K$2,"|",$K$3)),SUMIFS('DATA MART_'!$Q:$Q,'DATA MART_'!$G:$G,$G$3,'DATA MART_'!$A:$A,CONCATENATE($G$3,"|",L$7,"|",$Q85,"|",$I$2,"|",$P85,"|",$J$2,"|",$J$3,"|",$K$2,"|",$K$3),'DATA MART_'!$F:$F,$G$2)) -> 422.7055366 | M85: 10 | N85: 4 | O85: 300100104 | P85: 4 | Q85: =VLOOKUP(B82,'DATA MART_'!$AO$4:$AP$242,2,0) -> 10
A86: [3Y - 5Y ] | C86: =IF($G$2="TO",SUMIFS('DATA MART_'!$Q:$Q,'DATA MART_'!$G:$G,$G$3,'DATA MART_'!$A:$A,CONCATENATE($G$3,"|",C$7,"|",$Q86,"|",$I$2,"|",$P86,"|",$J$2,"|",$J$3,"|",$K$2,"|",$K$3)),SUMIFS('DATA MART_'!$Q:$Q,'DATA MART_'!$G:$G,$G$3,'DATA MART_'!$A:$A,CONCATENATE($G$3,"|",C$7,"|",$Q86,"|",$I$2,"|",$P86,"|",$J$2,"|",$J$3,"|",$K$2,"|",$K$3),'DATA MART_'!$F:$F,$G$2)) -> 80566.72473 | D86: =IF($G$2="TO",SUMIFS('DATA MART_'!$Q:$Q,'DATA MART_'!$G:$G,$G$3,'DATA MART_'!$A:$A,CONCATENATE($G$3,"|",D$7,"|",$Q86,"|",$I$2,"|",$P86,"|",$J$2,"|",$J$3,"|",$K$2,"|",$K$3)),SUMIFS('DATA MART_'!$Q:$Q,'DATA MART_'!$G:$G,$G$3,'DATA MART_'!$A:$A,CONCATENATE($G$3,"|",D$7,"|",$Q86,"|",$I$2,"|",$P86,"|",$J$2,"|",$J$3,"|",$K$2,"|",$K$3),'DATA MART_'!$F:$F,$G$2)) -> 20848.13051 | E86: =IF($G$2="TO",SUMIFS('DATA MART_'!$Q:$Q,'DATA MART_'!$G:$G,$G$3,'DATA MART_'!$A:$A,CONCATENATE($G$3,"|",E$7,"|",$Q86,"|",$I$2,"|",$P86,"|",$J$2,"|",$J$3,"|",$K$2,"|",$K$3)),SUMIFS('DATA MART_'!$Q:$Q,'DATA MART_'!$G:$G,$G$3,'DATA MART_'!$A:$A,CONCATENATE($G$3,"|",E$7,"|",$Q86,"|",$I$2,"|",$P86,"|",$J$2,"|",$J$3,"|",$K$2,"|",$K$3),'DATA MART_'!$F:$F,$G$2)) -> 62050.63191 | F86: =IF($G$2="TO",SUMIFS('DATA MART_'!$Q:$Q,'DATA MART_'!$G:$G,$G$3,'DATA MART_'!$A:$A,CONCATENATE($G$3,"|",F$7,"|",$Q86,"|",$I$2,"|",$P86,"|",$J$2,"|",$J$3,"|",$K$2,"|",$K$3)),SUMIFS('DATA MART_'!$Q:$Q,'DATA MART_'!$G:$G,$G$3,'DATA MART_'!$A:$A,CONCATENATE($G$3,"|",F$7,"|",$Q86,"|",$I$2,"|",$P86,"|",$J$2,"|",$J$3,"|",$K$2,"|",$K$3),'DATA MART_'!$F:$F,$G$2)) -> 20468.7255 | G86: =IF($G$2="TO",SUMIFS('DATA MART_'!$Q:$Q,'DATA MART_'!$G:$G,$G$3,'DATA MART_'!$A:$A,CONCATENATE($G$3,"|",G$7,"|",$Q86,"|",$I$2,"|",$P86,"|",$J$2,"|",$J$3,"|",$K$2,"|",$K$3)),SUMIFS('DATA MART_'!$Q:$Q,'DATA MART_'!$G:$G,$G$3,'DATA MART_'!$A:$A,CONCATENATE($G$3,"|",G$7,"|",$Q86,"|",$I$2,"|",$P86,"|",$J$2,"|",$J$3,"|",$K$2,"|",$K$3),'DATA MART_'!$F:$F,$G$2)) -> 7465.898015 | H86: =IF($G$2="TO",SUMIFS('DATA MART_'!$Q:$Q,'DATA MART_'!$G:$G,$G$3,'DATA MART_'!$A:$A,CONCATENATE($G$3,"|",H$7,"|",$Q86,"|",$I$2,"|",$P86,"|",$J$2,"|",$J$3,"|",$K$2,"|",$K$3)),SUMIFS('DATA MART_'!$Q:$Q,'DATA MART_'!$G:$G,$G$3,'DATA MART_'!$A:$A,CONCATENATE($G$3,"|",H$7,"|",$Q86,"|",$I$2,"|",$P86,"|",$J$2,"|",$J$3,"|",$K$2,"|",$K$3),'DATA MART_'!$F:$F,$G$2)) -> 2054.978233 | J86: =IF($G$2="TO",SUMIFS('DATA MART_'!$Q:$Q,'DATA MART_'!$G:$G,$G$3,'DATA MART_'!$A:$A,CONCATENATE($G$3,"|",J$7,"|",$Q86,"|",$I$2,"|",$P86,"|",$J$2,"|",$J$3,"|",$K$2,"|",$K$3)),SUMIFS('DATA MART_'!$Q:$Q,'DATA MART_'!$G:$G,$G$3,'DATA MART_'!$A:$A,CONCATENATE($G$3,"|",J$7,"|",$Q86,"|",$I$2,"|",$P86,"|",$J$2,"|",$J$3,"|",$K$2,"|",$K$3),'DATA MART_'!$F:$F,$G$2)) -> 2451.792351 | L86: =IF($G$2="TO",SUMIFS('DATA MART_'!$Q:$Q,'DATA MART_'!$G:$G,$G$3,'DATA MART_'!$A:$A,CONCATENATE($G$3,"|",L$7,"|",$Q86,"|",$I$2,"|",$P86,"|",$J$2,"|",$J$3,"|",$K$2,"|",$K$3)),SUMIFS('DATA MART_'!$Q:$Q,'DATA MART_'!$G:$G,$G$3,'DATA MART_'!$A:$A,CONCATENATE($G$3,"|",L$7,"|",$Q86,"|",$I$2,"|",$P86,"|",$J$2,"|",$J$3,"|",$K$2,"|",$K$3),'DATA MART_'!$F:$F,$G$2)) -> 711.3799636 | M86: 10 | N86: 5 | O86: 300100105 | P86: 5 | Q86: =VLOOKUP(B82,'DATA MART_'!$AO$4:$AP$242,2,0) -> 10
A87: [5Y - 10Y ] | C87: =IF($G$2="TO",SUMIFS('DATA MART_'!$Q:$Q,'DATA MART_'!$G:$G,$G$3,'DATA MART_'!$A:$A,CONCATENATE($G$3,"|",C$7,"|",$Q87,"|",$I$2,"|",$P87,"|",$J$2,"|",$J$3,"|",$K$2,"|",$K$3)),SUMIFS('DATA MART_'!$Q:$Q,'DATA MART_'!$G:$G,$G$3,'DATA MART_'!$A:$A,CONCATENATE($G$3,"|",C$7,"|",$Q87,"|",$I$2,"|",$P87,"|",$J$2,"|",$J$3,"|",$K$2,"|",$K$3),'DATA MART_'!$F:$F,$G$2)) -> 93680.6295 | D87: =IF($G$2="TO",SUMIFS('DATA MART_'!$Q:$Q,'DATA MART_'!$G:$G,$G$3,'DATA MART_'!$A:$A,CONCATENATE($G$3,"|",D$7,"|",$Q87,"|",$I$2,"|",$P87,"|",$J$2,"|",$J$3,"|",$K$2,"|",$K$3)),SUMIFS('DATA MART_'!$Q:$Q,'DATA MART_'!$G:$G,$G$3,'DATA MART_'!$A:$A,CONCATENATE($G$3,"|",D$7,"|",$Q87,"|",$I$2,"|",$P87,"|",$J$2,"|",$J$3,"|",$K$2,"|",$K$3),'DATA MART_'!$F:$F,$G$2)) -> 34404.51645 | E87: =IF($G$2="TO",SUMIFS('DATA MART_'!$Q:$Q,'DATA MART_'!$G:$G,$G$3,'DATA MART_'!$A:$A,CONCATENATE($G$3,"|",E$7,"|",$Q87,"|",$I$2,"|",$P87,"|",$J$2,"|",$J$3,"|",$K$2,"|",$K$3)),SUMIFS('DATA MART_'!$Q:$Q,'DATA MART_'!$G:$G,$G$3,'DATA MART_'!$A:$A,CONCATENATE($G$3,"|",E$7,"|",$Q87,"|",$I$2,"|",$P87,"|",$J$2,"|",$J$3,"|",$K$2,"|",$K$3),'DATA MART_'!$F:$F,$G$2)) -> 74038.66241 | F87: =IF($G$2="TO",SUMIFS('DATA MART_'!$Q:$Q,'DATA MART_'!$G:$G,$G$3,'DATA MART_'!$A:$A,CONCATENATE($G$3,"|",F$7,"|",$Q87,"|",$I$2,"|",$P87,"|",$J$2,"|",$J$3,"|",$K$2,"|",$K$3)),SUMIFS('DATA MART_'!$Q:$Q,'DATA MART_'!$G:$G,$G$3,'DATA MART_'!$A:$A,CONCATENATE($G$3,"|",F$7,"|",$Q87,"|",$I$2,"|",$P87,"|",$J$2,"|",$J$3,"|",$K$2,"|",$K$3),'DATA MART_'!$F:$F,$G$2)) -> 24525.32423 | G87: =IF($G$2="TO",SUMIFS('DATA MART_'!$Q:$Q,'DATA MART_'!$G:$G,$G$3,'DATA MART_'!$A:$A,CONCATENATE($G$3,"|",G$7,"|",$Q87,"|",$I$2,"|",$P87,"|",$J$2,"|",$J$3,"|",$K$2,"|",$K$3)),SUMIFS('DATA MART_'!$Q:$Q,'DATA MART_'!$G:$G,$G$3,'DATA MART_'!$A:$A,CONCATENATE($G$3,"|",G$7,"|",$Q87,"|",$I$2,"|",$P87,"|",$J$2,"|",$J$3,"|",$K$2,"|",$K$3),'DATA MART_'!$F:$F,$G$2)) -> 3349.695407 | H87: =IF($G$2="TO",SUMIFS('DATA MART_'!$Q:$Q,'DATA MART_'!$G:$G,$G$3,'DATA MART_'!$A:$A,CONCATENATE($G$3,"|",H$7,"|",$Q87,"|",$I$2,"|",$P87,"|",$J$2,"|",$J$3,"|",$K$2,"|",$K$3)),SUMIFS('DATA MART_'!$Q:$Q,'DATA MART_'!$G:$G,$G$3,'DATA MART_'!$A:$A,CONCATENATE($G$3,"|",H$7,"|",$Q87,"|",$I$2,"|",$P87,"|",$J$2,"|",$J$3,"|",$K$2,"|",$K$3),'DATA MART_'!$F:$F,$G$2)) -> 4328.783638 | J87: =IF($G$2="TO",SUMIFS('DATA MART_'!$Q:$Q,'DATA MART_'!$G:$G,$G$3,'DATA MART_'!$A:$A,CONCATENATE($G$3,"|",J$7,"|",$Q87,"|",$I$2,"|",$P87,"|",$J$2,"|",$J$3,"|",$K$2,"|",$K$3)),SUMIFS('DATA MART_'!$Q:$Q,'DATA MART_'!$G:$G,$G$3,'DATA MART_'!$A:$A,CONCATENATE($G$3,"|",J$7,"|",$Q87,"|",$I$2,"|",$P87,"|",$J$2,"|",$J$3,"|",$K$2,"|",$K$3),'DATA MART_'!$F:$F,$G$2)) -> 5976.616529 | L87: =IF($G$2="TO",SUMIFS('DATA MART_'!$Q:$Q,'DATA MART_'!$G:$G,$G$3,'DATA MART_'!$A:$A,CONCATENATE($G$3,"|",L$7,"|",$Q87,"|",$I$2,"|",$P87,"|",$J$2,"|",$J$3,"|",$K$2,"|",$K$3)),SUMIFS('DATA MART_'!$Q:$Q,'DATA MART_'!$G:$G,$G$3,'DATA MART_'!$A:$A,CONCATENATE($G$3,"|",L$7,"|",$Q87,"|",$I$2,"|",$P87,"|",$J$2,"|",$J$3,"|",$K$2,"|",$K$3),'DATA MART_'!$F:$F,$G$2)) -> -943.236196 | M87: 10 | N87: 6 | O87: 300100106 | P87: 6 | Q87: =VLOOKUP(B82,'DATA MART_'!$AO$4:$AP$242,2,0) -> 10
A88: [10Y - more ] | C88: =IF($G$2="TO",SUMIFS('DATA MART_'!$Q:$Q,'DATA MART_'!$G:$G,$G$3,'DATA MART_'!$A:$A,CONCATENATE($G$3,"|",C$7,"|",$Q88,"|",$I$2,"|",$P88,"|",$J$2,"|",$J$3,"|",$K$2,"|",$K$3)),SUMIFS('DATA MART_'!$Q:$Q,'DATA MART_'!$G:$G,$G$3,'DATA MART_'!$A:$A,CONCATENATE($G$3,"|",C$7,"|",$Q88,"|",$I$2,"|",$P88,"|",$J$2,"|",$J$3,"|",$K$2,"|",$K$3),'DATA MART_'!$F:$F,$G$2)) -> 92073.56723 | D88: =IF($G$2="TO",SUMIFS('DATA MART_'!$Q:$Q,'DATA MART_'!$G:$G,$G$3,'DATA MART_'!$A:$A,CONCATENATE($G$3,"|",D$7,"|",$Q88,"|",$I$2,"|",$P88,"|",$J$2,"|",$J$3,"|",$K$2,"|",$K$3)),SUMIFS('DATA MART_'!$Q:$Q,'DATA MART_'!$G:$G,$G$3,'DATA MART_'!$A:$A,CONCATENATE($G$3,"|",D$7,"|",$Q88,"|",$I$2,"|",$P88,"|",$J$2,"|",$J$3,"|",$K$2,"|",$K$3),'DATA MART_'!$F:$F,$G$2)) -> 54445.29893 | E88: =IF($G$2="TO",SUMIFS('DATA MART_'!$Q:$Q,'DATA MART_'!$G:$G,$G$3,'DATA MART_'!$A:$A,CONCATENATE($G$3,"|",E$7,"|",$Q88,"|",$I$2,"|",$P88,"|",$J$2,"|",$J$3,"|",$K$2,"|",$K$3)),SUMIFS('DATA MART_'!$Q:$Q,'DATA MART_'!$G:$G,$G$3,'DATA MART_'!$A:$A,CONCATENATE($G$3,"|",E$7,"|",$Q88,"|",$I$2,"|",$P88,"|",$J$2,"|",$J$3,"|",$K$2,"|",$K$3),'DATA MART_'!$F:$F,$G$2)) -> 79034.54116 | F88: =IF($G$2="TO",SUMIFS('DATA MART_'!$Q:$Q,'DATA MART_'!$G:$G,$G$3,'DATA MART_'!$A:$A,CONCATENATE($G$3,"|",F$7,"|",$Q88,"|",$I$2,"|",$P88,"|",$J$2,"|",$J$3,"|",$K$2,"|",$K$3)),SUMIFS('DATA MART_'!$Q:$Q,'DATA MART_'!$G:$G,$G$3,'DATA MART_'!$A:$A,CONCATENATE($G$3,"|",F$7,"|",$Q88,"|",$I$2,"|",$P88,"|",$J$2,"|",$J$3,"|",$K$2,"|",$K$3),'DATA MART_'!$F:$F,$G$2)) -> 10949.62197 | G88: =IF($G$2="TO",SUMIFS('DATA MART_'!$Q:$Q,'DATA MART_'!$G:$G,$G$3,'DATA MART_'!$A:$A,CONCATENATE($G$3,"|",G$7,"|",$Q88,"|",$I$2,"|",$P88,"|",$J$2,"|",$J$3,"|",$K$2,"|",$K$3)),SUMIFS('DATA MART_'!$Q:$Q,'DATA MART_'!$G:$G,$G$3,'DATA MART_'!$A:$A,CONCATENATE($G$3,"|",G$7,"|",$Q88,"|",$I$2,"|",$P88,"|",$J$2,"|",$J$3,"|",$K$2,"|",$K$3),'DATA MART_'!$F:$F,$G$2)) -> 6336.89971 | H88: =IF($G$2="TO",SUMIFS('DATA MART_'!$Q:$Q,'DATA MART_'!$G:$G,$G$3,'DATA MART_'!$A:$A,CONCATENATE($G$3,"|",H$7,"|",$Q88,"|",$I$2,"|",$P88,"|",$J$2,"|",$J$3,"|",$K$2,"|",$K$3)),SUMIFS('DATA MART_'!$Q:$Q,'DATA MART_'!$G:$G,$G$3,'DATA MART_'!$A:$A,CONCATENATE($G$3,"|",H$7,"|",$Q88,"|",$I$2,"|",$P88,"|",$J$2,"|",$J$3,"|",$K$2,"|",$K$3),'DATA MART_'!$F:$F,$G$2)) -> 5927.644473 | J88: =IF($G$2="TO",SUMIFS('DATA MART_'!$Q:$Q,'DATA MART_'!$G:$G,$G$3,'DATA MART_'!$A:$A,CONCATENATE($G$3,"|",J$7,"|",$Q88,"|",$I$2,"|",$P88,"|",$J$2,"|",$J$3,"|",$K$2,"|",$K$3)),SUMIFS('DATA MART_'!$Q:$Q,'DATA MART_'!$G:$G,$G$3,'DATA MART_'!$A:$A,CONCATENATE($G$3,"|",J$7,"|",$Q88,"|",$I$2,"|",$P88,"|",$J$2,"|",$J$3,"|",$K$2,"|",$K$3),'DATA MART_'!$F:$F,$G$2)) -> 5709.201168 | L88: =IF($G$2="TO",SUMIFS('DATA MART_'!$Q:$Q,'DATA MART_'!$G:$G,$G$3,'DATA MART_'!$A:$A,CONCATENATE($G$3,"|",L$7,"|",$Q88,"|",$I$2,"|",$P88,"|",$J$2,"|",$J$3,"|",$K$2,"|",$K$3)),SUMIFS('DATA MART_'!$Q:$Q,'DATA MART_'!$G:$G,$G$3,'DATA MART_'!$A:$A,CONCATENATE($G$3,"|",L$7,"|",$Q88,"|",$I$2,"|",$P88,"|",$J$2,"|",$J$3,"|",$K$2,"|",$K$3),'DATA MART_'!$F:$F,$G$2)) -> -45.77985963 | M88: 10 | N88: 7 | O88: 300100107 | P88: 7 | Q88: =VLOOKUP(B82,'DATA MART_'!$AO$4:$AP$242,2,0) -> 10
A89: Total | C89: =IF($G$2="TO",SUMIFS('DATA MART_'!$Q:$Q,'DATA MART_'!$G:$G,$G$3,'DATA MART_'!$A:$A,CONCATENATE($G$3,"|",C$7,"|",$Q89,"|",$I$2,"|",$P89,"|",$J$2,"|",$J$3,"|",$K$2,"|",$K$3)),SUMIFS('DATA MART_'!$Q:$Q,'DATA MART_'!$G:$G,$G$3,'DATA MART_'!$A:$A,CONCATENATE($G$3,"|",C$7,"|",$Q89,"|",$I$2,"|",$P89,"|",$J$2,"|",$J$3,"|",$K$2,"|",$K$3),'DATA MART_'!$F:$F,$G$2)) -> 490165.4521 | D89: =IF($G$2="TO",SUMIFS('DATA MART_'!$Q:$Q,'DATA MART_'!$G:$G,$G$3,'DATA MART_'!$A:$A,CONCATENATE($G$3,"|",D$7,"|",$Q89,"|",$I$2,"|",$P89,"|",$J$2,"|",$J$3,"|",$K$2,"|",$K$3)),SUMIFS('DATA MART_'!$Q:$Q,'DATA MART_'!$G:$G,$G$3,'DATA MART_'!$A:$A,CONCATENATE($G$3,"|",D$7,"|",$Q89,"|",$I$2,"|",$P89,"|",$J$2,"|",$J$3,"|",$K$2,"|",$K$3),'DATA MART_'!$F:$F,$G$2)) -> 172109.7936 | E89: =IF($G$2="TO",SUMIFS('DATA MART_'!$Q:$Q,'DATA MART_'!$G:$G,$G$3,'DATA MART_'!$A:$A,CONCATENATE($G$3,"|",E$7,"|",$Q89,"|",$I$2,"|",$P89,"|",$J$2,"|",$J$3,"|",$K$2,"|",$K$3)),SUMIFS('DATA MART_'!$Q:$Q,'DATA MART_'!$G:$G,$G$3,'DATA MART_'!$A:$A,CONCATENATE($G$3,"|",E$7,"|",$Q89,"|",$I$2,"|",$P89,"|",$J$2,"|",$J$3,"|",$K$2,"|",$K$3),'DATA MART_'!$F:$F,$G$2)) -> 419161.7747 | F89: =IF($G$2="TO",SUMIFS('DATA MART_'!$Q:$Q,'DATA MART_'!$G:$G,$G$3,'DATA MART_'!$A:$A,CONCATENATE($G$3,"|",F$7,"|",$Q89,"|",$I$2,"|",$P89,"|",$J$2,"|",$J$3,"|",$K$2,"|",$K$3)),SUMIFS('DATA MART_'!$Q:$Q,'DATA MART_'!$G:$G,$G$3,'DATA MART_'!$A:$A,CONCATENATE($G$3,"|",F$7,"|",$Q89,"|",$I$2,"|",$P89,"|",$J$2,"|",$J$3,"|",$K$2,"|",$K$3),'DATA MART_'!$F:$F,$G$2)) -> 85166.60329 | G89: =IF($G$2="TO",SUMIFS('DATA MART_'!$Q:$Q,'DATA MART_'!$G:$G,$G$3,'DATA MART_'!$A:$A,CONCATENATE($G$3,"|",G$7,"|",$Q89,"|",$I$2,"|",$P89,"|",$J$2,"|",$J$3,"|",$K$2,"|",$K$3)),SUMIFS('DATA MART_'!$Q:$Q,'DATA MART_'!$G:$G,$G$3,'DATA MART_'!$A:$A,CONCATENATE($G$3,"|",G$7,"|",$Q89,"|",$I$2,"|",$P89,"|",$J$2,"|",$J$3,"|",$K$2,"|",$K$3),'DATA MART_'!$F:$F,$G$2)) -> 35702.74332 | H89: =IF($G$2="TO",SUMIFS('DATA MART_'!$Q:$Q,'DATA MART_'!$G:$G,$G$3,'DATA MART_'!$A:$A,CONCATENATE($G$3,"|",H$7,"|",$Q89,"|",$I$2,"|",$P89,"|",$J$2,"|",$J$3,"|",$K$2,"|",$K$3)),SUMIFS('DATA MART_'!$Q:$Q,'DATA MART_'!$G:$G,$G$3,'DATA MART_'!$A:$A,CONCATENATE($G$3,"|",H$7,"|",$Q89,"|",$I$2,"|",$P89,"|",$J$2,"|",$J$3,"|",$K$2,"|",$K$3),'DATA MART_'!$F:$F,$G$2)) -> 62671.87421 | J89: =IF($G$2="TO",SUMIFS('DATA MART_'!$Q:$Q,'DATA MART_'!$G:$G,$G$3,'DATA MART_'!$A:$A,CONCATENATE($G$3,"|",J$7,"|",$Q89,"|",$I$2,"|",$P89,"|",$J$2,"|",$J$3,"|",$K$2,"|",$K$3)),SUMIFS('DATA MART_'!$Q:$Q,'DATA MART_'!$G:$G,$G$3,'DATA MART_'!$A:$A,CONCATENATE($G$3,"|",J$7,"|",$Q89,"|",$I$2,"|",$P89,"|",$J$2,"|",$J$3,"|",$K$2,"|",$K$3),'DATA MART_'!$F:$F,$G$2)) -> 14366.11292 | L89: =IF($G$2="TO",SUMIFS('DATA MART_'!$Q:$Q,'DATA MART_'!$G:$G,$G$3,'DATA MART_'!$A:$A,CONCATENATE($G$3,"|",L$7,"|",$Q89,"|",$I$2,"|",$P89,"|",$J$2,"|",$J$3,"|",$K$2,"|",$K$3)),SUMIFS('DATA MART_'!$Q:$Q,'DATA MART_'!$G:$G,$G$3,'DATA MART_'!$A:$A,CONCATENATE($G$3,"|",L$7,"|",$Q89,"|",$I$2,"|",$P89,"|",$J$2,"|",$J$3,"|",$K$2,"|",$K$3),'DATA MART_'!$F:$F,$G$2)) -> -316.0728932 | M89: 10 | N89: 8 | O89: 300100108 | P89: 8 | Q89: =VLOOKUP(B82,'DATA MART_'!$AO$4:$AP$242,2,0) -> 10
A90: [ 0 - 3M ] | B90: Greece | C90: =IF($G$2="TO",SUMIFS('DATA MART_'!$Q:$Q,'DATA MART_'!$G:$G,$G$3,'DATA MART_'!$A:$A,CONCATENATE($G$3,"|",C$7,"|",$Q90,"|",$I$2,"|",$P90,"|",$J$2,"|",$J$3,"|",$K$2,"|",$K$3)),SUMIFS('DATA MART_'!$Q:$Q,'DATA MART_'!$G:$G,$G$3,'DATA MART_'!$A:$A,CONCATENATE($G$3,"|",C$7,"|",$Q90,"|",$I$2,"|",$P90,"|",$J$2,"|",$J$3,"|",$K$2,"|",$K$3),'DATA MART_'!$F:$F,$G$2)) -> 9251.204218 | D90: =IF($G$2="TO",SUMIFS('DATA MART_'!$Q:$Q,'DATA MART_'!$G:$G,$G$3,'DATA MART_'!$A:$A,CONCATENATE($G$3,"|",D$7,"|",$Q90,"|",$I$2,"|",$P90,"|",$J$2,"|",$J$3,"|",$K$2,"|",$K$3)),SUMIFS('DATA MART_'!$Q:$Q,'DATA MART_'!$G:$G,$G$3,'DATA MART_'!$A:$A,CONCATENATE($G$3,"|",D$7,"|",$Q90,"|",$I$2,"|",$P90,"|",$J$2,"|",$J$3,"|",$K$2,"|",$K$3),'DATA MART_'!$F:$F,$G$2)) -> 457.2680403 | E90: =IF($G$2="TO",SUMIFS('DATA MART_'!$Q:$Q,'DATA MART_'!$G:$G,$G$3,'DATA MART_'!$A:$A,CONCATENATE($G$3,"|",E$7,"|",$Q90,"|",$I$2,"|",$P90,"|",$J$2,"|",$J$3,"|",$K$2,"|",$K$3)),SUMIFS('DATA MART_'!$Q:$Q,'DATA MART_'!$G:$G,$G$3,'DATA MART_'!$A:$A,CONCATENATE($G$3,"|",E$7,"|",$Q90,"|",$I$2,"|",$P90,"|",$J$2,"|",$J$3,"|",$K$2,"|",$K$3),'DATA MART_'!$F:$F,$G$2)) -> 9147.482301 | F90: =IF($G$2="TO",SUMIFS('DATA MART_'!$Q:$Q,'DATA MART_'!$G:$G,$G$3,'DATA MART_'!$A:$A,CONCATENATE($G$3,"|",F$7,"|",$Q90,"|",$I$2,"|",$P90,"|",$J$2,"|",$J$3,"|",$K$2,"|",$K$3)),SUMIFS('DATA MART_'!$Q:$Q,'DATA MART_'!$G:$G,$G$3,'DATA MART_'!$A:$A,CONCATENATE($G$3,"|",F$7,"|",$Q90,"|",$I$2,"|",$P90,"|",$J$2,"|",$J$3,"|",$K$2,"|",$K$3),'DATA MART_'!$F:$F,$G$2)) -> 4150.54938 | G90: =IF($G$2="TO",SUMIFS('DATA MART_'!$Q:$Q,'DATA MART_'!$G:$G,$G$3,'DATA MART_'!$A:$A,CONCATENATE($G$3,"|",G$7,"|",$Q90,"|",$I$2,"|",$P90,"|",$J$2,"|",$J$3,"|",$K$2,"|",$K$3)),SUMIFS('DATA MART_'!$Q:$Q,'DATA MART_'!$G:$G,$G$3,'DATA MART_'!$A:$A,CONCATENATE($G$3,"|",G$7,"|",$Q90,"|",$I$2,"|",$P90,"|",$J$2,"|",$J$3,"|",$K$2,"|",$K$3),'DATA MART_'!$F:$F,$G$2)) -> 0 | H90: =IF($G$2="TO",SUMIFS('DATA MART_'!$Q:$Q,'DATA MART_'!$G:$G,$G$3,'DATA MART_'!$A:$A,CONCATENATE($G$3,"|",H$7,"|",$Q90,"|",$I$2,"|",$P90,"|",$J$2,"|",$J$3,"|",$K$2,"|",$K$3)),SUMIFS('DATA MART_'!$Q:$Q,'DATA MART_'!$G:$G,$G$3,'DATA MART_'!$A:$A,CONCATENATE($G$3,"|",H$7,"|",$Q90,"|",$I$2,"|",$P90,"|",$J$2,"|",$J$3,"|",$K$2,"|",$K$3),'DATA MART_'!$F:$F,$G$2)) -> 2590.798959 | J90: =IF($G$2="TO",SUMIFS('DATA MART_'!$Q:$Q,'DATA MART_'!$G:$G,$G$3,'DATA MART_'!$A:$A,CONCATENATE($G$3,"|",J$7,"|",$Q90,"|",$I$2,"|",$P90,"|",$J$2,"|",$J$3,"|",$K$2,"|",$K$3)),SUMIFS('DATA MART_'!$Q:$Q,'DATA MART_'!$G:$G,$G$3,'DATA MART_'!$A:$A,CONCATENATE($G$3,"|",J$7,"|",$Q90,"|",$I$2,"|",$P90,"|",$J$2,"|",$J$3,"|",$K$2,"|",$K$3),'DATA MART_'!$F:$F,$G$2)) -> 0 | L90: =IF($G$2="TO",SUMIFS('DATA MART_'!$Q:$Q,'DATA MART_'!$G:$G,$G$3,'DATA MART_'!$A:$A,CONCATENATE($G$3,"|",L$7,"|",$Q90,"|",$I$2,"|",$P90,"|",$J$2,"|",$J$3,"|",$K$2,"|",$K$3)),SUMIFS('DATA MART_'!$Q:$Q,'DATA MART_'!$G:$G,$G$3,'DATA MART_'!$A:$A,CONCATENATE($G$3,"|",L$7,"|",$Q90,"|",$I$2,"|",$P90,"|",$J$2,"|",$J$3,"|",$K$2,"|",$K$3),'DATA MART_'!$F:$F,$G$2)) -> 0 | M90: 11 | N90: 1 | O90: 300100111 | P90: 1 | Q90: 11
A91: [ 3M - 1Y ] | C91: =IF($G$2="TO",SUMIFS('DATA MART_'!$Q:$Q,'DATA MART_'!$G:$G,$G$3,'DATA MART_'!$A:$A,CONCATENATE($G$3,"|",C$7,"|",$Q91,"|",$I$2,"|",$P91,"|",$J$2,"|",$J$3,"|",$K$2,"|",$K$3)),SUMIFS('DATA MART_'!$Q:$Q,'DATA MART_'!$G:$G,$G$3,'DATA MART_'!$A:$A,CONCATENATE($G$3,"|",C$7,"|",$Q91,"|",$I$2,"|",$P91,"|",$J$2,"|",$J$3,"|",$K$2,"|",$K$3),'DATA MART_'!$F:$F,$G$2)) -> 2905.24702 | D91: =IF($G$2="TO",SUMIFS('DATA MART_'!$Q:$Q,'DATA MART_'!$G:$G,$G$3,'DATA MART_'!$A:$A,CONCATENATE($G$3,"|",D$7,"|",$Q91,"|",$I$2,"|",$P91,"|",$J$2,"|",$J$3,"|",$K$2,"|",$K$3)),SUMIFS('DATA MART_'!$Q:$Q,'DATA MART_'!$G:$G,$G$3,'DATA MART_'!$A:$A,CONCATENATE($G$3,"|",D$7,"|",$Q91,"|",$I$2,"|",$P91,"|",$J$2,"|",$J$3,"|",$K$2,"|",$K$3),'DATA MART_'!$F:$F,$G$2)) -> 71.15288635 | E91: =IF($G$2="TO",SUMIFS('DATA MART_'!$Q:$Q,'DATA MART_'!$G:$G,$G$3,'DATA MART_'!$A:$A,CONCATENATE($G$3,"|",E$7,"|",$Q91,"|",$I$2,"|",$P91,"|",$J$2,"|",$J$3,"|",$K$2,"|",$K$3)),SUMIFS('DATA MART_'!$Q:$Q,'DATA MART_'!$G:$G,$G$3,'DATA MART_'!$A:$A,CONCATENATE($G$3,"|",E$7,"|",$Q91,"|",$I$2,"|",$P91,"|",$J$2,"|",$J$3,"|",$K$2,"|",$K$3),'DATA MART_'!$F:$F,$G$2)) -> 2893.570785 | F91: =IF($G$2="TO",SUMIFS('DATA MART_'!$Q:$Q,'DATA MART_'!$G:$G,$G$3,'DATA MART_'!$A:$A,CONCATENATE($G$3,"|",F$7,"|",$Q91,"|",$I$2,"|",$P91,"|",$J$2,"|",$J$3,"|",$K$2,"|",$K$3)),SUMIFS('DATA MART_'!$Q:$Q,'DATA MART_'!$G:$G,$G$3,'DATA MART_'!$A:$A,CONCATENATE($G$3,"|",F$7,"|",$Q91,"|",$I$2,"|",$P91,"|",$J$2,"|",$J$3,"|",$K$2,"|",$K$3),'DATA MART_'!$F:$F,$G$2)) -> 1766.503032 | G91: =IF($G$2="TO",SUMIFS('DATA MART_'!$Q:$Q,'DATA MART_'!$G:$G,$G$3,'DATA MART_'!$A:$A,CONCATENATE($G$3,"|",G$7,"|",$Q91,"|",$I$2,"|",$P91,"|",$J$2,"|",$J$3,"|",$K$2,"|",$K$3)),SUMIFS('DATA MART_'!$Q:$Q,'DATA MART_'!$G:$G,$G$3,'DATA MART_'!$A:$A,CONCATENATE($G$3,"|",G$7,"|",$Q91,"|",$I$2,"|",$P91,"|",$J$2,"|",$J$3,"|",$K$2,"|",$K$3),'DATA MART_'!$F:$F,$G$2)) -> 0 | H91: =IF($G$2="TO",SUMIFS('DATA MART_'!$Q:$Q,'DATA MART_'!$G:$G,$G$3,'DATA MART_'!$A:$A,CONCATENATE($G$3,"|",H$7,"|",$Q91,"|",$I$2,"|",$P91,"|",$J$2,"|",$J$3,"|",$K$2,"|",$K$3)),SUMIFS('DATA MART_'!$Q:$Q,'DATA MART_'!$G:$G,$G$3,'DATA MART_'!$A:$A,CONCATENATE($G$3,"|",H$7,"|",$Q91,"|",$I$2,"|",$P91,"|",$J$2,"|",$J$3,"|",$K$2,"|",$K$3),'DATA MART_'!$F:$F,$G$2)) -> 645.2074655 | J91: =IF($G$2="TO",SUMIFS('DATA MART_'!$Q:$Q,'DATA MART_'!$G:$G,$G$3,'DATA MART_'!$A:$A,CONCATENATE($G$3,"|",J$7,"|",$Q91,"|",$I$2,"|",$P91,"|",$J$2,"|",$J$3,"|",$K$2,"|",$K$3)),SUMIFS('DATA MART_'!$Q:$Q,'DATA MART_'!$G:$G,$G$3,'DATA MART_'!$A:$A,CONCATENATE($G$3,"|",J$7,"|",$Q91,"|",$I$2,"|",$P91,"|",$J$2,"|",$J$3,"|",$K$2,"|",$K$3),'DATA MART_'!$F:$F,$G$2)) -> 0 | L91: =IF($G$2="TO",SUMIFS('DATA MART_'!$Q:$Q,'DATA MART_'!$G:$G,$G$3,'DATA MART_'!$A:$A,CONCATENATE($G$3,"|",L$7,"|",$Q91,"|",$I$2,"|",$P91,"|",$J$2,"|",$J$3,"|",$K$2,"|",$K$3)),SUMIFS('DATA MART_'!$Q:$Q,'DATA MART_'!$G:$G,$G$3,'DATA MART_'!$A:$A,CONCATENATE($G$3,"|",L$7,"|",$Q91,"|",$I$2,"|",$P91,"|",$J$2,"|",$J$3,"|",$K$2,"|",$K$3),'DATA MART_'!$F:$F,$G$2)) -> 0 | M91: 11 | N91: 2 | O91: 300100112 | P91: 2 | Q91: 11
A92: [ 1Y - 2Y ] | C92: =IF($G$2="TO",SUMIFS('DATA MART_'!$Q:$Q,'DATA MART_'!$G:$G,$G$3,'DATA MART_'!$A:$A,CONCATENATE($G$3,"|",C$7,"|",$Q92,"|",$I$2,"|",$P92,"|",$J$2,"|",$J$3,"|",$K$2,"|",$K$3)),SUMIFS('DATA MART_'!$Q:$Q,'DATA MART_'!$G:$G,$G$3,'DATA MART_'!$A:$A,CONCATENATE($G$3,"|",C$7,"|",$Q92,"|",$I$2,"|",$P92,"|",$J$2,"|",$J$3,"|",$K$2,"|",$K$3),'DATA MART_'!$F:$F,$G$2)) -> 4861.196404 | D92: =IF($G$2="TO",SUMIFS('DATA MART_'!$Q:$Q,'DATA MART_'!$G:$G,$G$3,'DATA MART_'!$A:$A,CONCATENATE($G$3,"|",D$7,"|",$Q92,"|",$I$2,"|",$P92,"|",$J$2,"|",$J$3,"|",$K$2,"|",$K$3)),SUMIFS('DATA MART_'!$Q:$Q,'DATA MART_'!$G:$G,$G$3,'DATA MART_'!$A:$A,CONCATENATE($G$3,"|",D$7,"|",$Q92,"|",$I$2,"|",$P92,"|",$J$2,"|",$J$3,"|",$K$2,"|",$K$3),'DATA MART_'!$F:$F,$G$2)) -> 1535.983633 | E92: =IF($G$2="TO",SUMIFS('DATA MART_'!$Q:$Q,'DATA MART_'!$G:$G,$G$3,'DATA MART_'!$A:$A,CONCATENATE($G$3,"|",E$7,"|",$Q92,"|",$I$2,"|",$P92,"|",$J$2,"|",$J$3,"|",$K$2,"|",$K$3)),SUMIFS('DATA MART_'!$Q:$Q,'DATA MART_'!$G:$G,$G$3,'DATA MART_'!$A:$A,CONCATENATE($G$3,"|",E$7,"|",$Q92,"|",$I$2,"|",$P92,"|",$J$2,"|",$J$3,"|",$K$2,"|",$K$3),'DATA MART_'!$F:$F,$G$2)) -> 4861.196404 | F92: =IF($G$2="TO",SUMIFS('DATA MART_'!$Q:$Q,'DATA MART_'!$G:$G,$G$3,'DATA MART_'!$A:$A,CONCATENATE($G$3,"|",F$7,"|",$Q92,"|",$I$2,"|",$P92,"|",$J$2,"|",$J$3,"|",$K$2,"|",$K$3)),SUMIFS('DATA MART_'!$Q:$Q,'DATA MART_'!$G:$G,$G$3,'DATA MART_'!$A:$A,CONCATENATE($G$3,"|",F$7,"|",$Q92,"|",$I$2,"|",$P92,"|",$J$2,"|",$J$3,"|",$K$2,"|",$K$3),'DATA MART_'!$F:$F,$G$2)) -> 83.04128546 | G92: =IF($G$2="TO",SUMIFS('DATA MART_'!$Q:$Q,'DATA MART_'!$G:$G,$G$3,'DATA MART_'!$A:$A,CONCATENATE($G$3,"|",G$7,"|",$Q92,"|",$I$2,"|",$P92,"|",$J$2,"|",$J$3,"|",$K$2,"|",$K$3)),SUMIFS('DATA MART_'!$Q:$Q,'DATA MART_'!$G:$G,$G$3,'DATA MART_'!$A:$A,CONCATENATE($G$3,"|",G$7,"|",$Q92,"|",$I$2,"|",$P92,"|",$J$2,"|",$J$3,"|",$K$2,"|",$K$3),'DATA MART_'!$F:$F,$G$2)) -> 0 | H92: =IF($G$2="TO",SUMIFS('DATA MART_'!$Q:$Q,'DATA MART_'!$G:$G,$G$3,'DATA MART_'!$A:$A,CONCATENATE($G$3,"|",H$7,"|",$Q92,"|",$I$2,"|",$P92,"|",$J$2,"|",$J$3,"|",$K$2,"|",$K$3)),SUMIFS('DATA MART_'!$Q:$Q,'DATA MART_'!$G:$G,$G$3,'DATA MART_'!$A:$A,CONCATENATE($G$3,"|",H$7,"|",$Q92,"|",$I$2,"|",$P92,"|",$J$2,"|",$J$3,"|",$K$2,"|",$K$3),'DATA MART_'!$F:$F,$G$2)) -> 4.43874442 | J92: =IF($G$2="TO",SUMIFS('DATA MART_'!$Q:$Q,'DATA MART_'!$G:$G,$G$3,'DATA MART_'!$A:$A,CONCATENATE($G$3,"|",J$7,"|",$Q92,"|",$I$2,"|",$P92,"|",$J$2,"|",$J$3,"|",$K$2,"|",$K$3)),SUMIFS('DATA MART_'!$Q:$Q,'DATA MART_'!$G:$G,$G$3,'DATA MART_'!$A:$A,CONCATENATE($G$3,"|",J$7,"|",$Q92,"|",$I$2,"|",$P92,"|",$J$2,"|",$J$3,"|",$K$2,"|",$K$3),'DATA MART_'!$F:$F,$G$2)) -> 42.918932 | L92: =IF($G$2="TO",SUMIFS('DATA MART_'!$Q:$Q,'DATA MART_'!$G:$G,$G$3,'DATA MART_'!$A:$A,CONCATENATE($G$3,"|",L$7,"|",$Q92,"|",$I$2,"|",$P92,"|",$J$2,"|",$J$3,"|",$K$2,"|",$K$3)),SUMIFS('DATA MART_'!$Q:$Q,'DATA MART_'!$G:$G,$G$3,'DATA MART_'!$A:$A,CONCATENATE($G$3,"|",L$7,"|",$Q92,"|",$I$2,"|",$P92,"|",$J$2,"|",$J$3,"|",$K$2,"|",$K$3),'DATA MART_'!$F:$F,$G$2)) -> 0 | M92: 11 | N92: 3 | O92: 300100113 | P92: 3 | Q92: 11
A93: [ 2Y - 3Y ] | C93: =IF($G$2="TO",SUMIFS('DATA MART_'!$Q:$Q,'DATA MART_'!$G:$G,$G$3,'DATA MART_'!$A:$A,CONCATENATE($G$3,"|",C$7,"|",$Q93,"|",$I$2,"|",$P93,"|",$J$2,"|",$J$3,"|",$K$2,"|",$K$3)),SUMIFS('DATA MART_'!$Q:$Q,'DATA MART_'!$G:$G,$G$3,'DATA MART_'!$A:$A,CONCATENATE($G$3,"|",C$7,"|",$Q93,"|",$I$2,"|",$P93,"|",$J$2,"|",$J$3,"|",$K$2,"|",$K$3),'DATA MART_'!$F:$F,$G$2)) -> 151.0676749 | D93: =IF($G$2="TO",SUMIFS('DATA MART_'!$Q:$Q,'DATA MART_'!$G:$G,$G$3,'DATA MART_'!$A:$A,CONCATENATE($G$3,"|",D$7,"|",$Q93,"|",$I$2,"|",$P93,"|",$J$2,"|",$J$3,"|",$K$2,"|",$K$3)),SUMIFS('DATA MART_'!$Q:$Q,'DATA MART_'!$G:$G,$G$3,'DATA MART_'!$A:$A,CONCATENATE($G$3,"|",D$7,"|",$Q93,"|",$I$2,"|",$P93,"|",$J$2,"|",$J$3,"|",$K$2,"|",$K$3),'DATA MART_'!$F:$F,$G$2)) -> 79.29948747 | E93: =IF($G$2="TO",SUMIFS('DATA MART_'!$Q:$Q,'DATA MART_'!$G:$G,$G$3,'DATA MART_'!$A:$A,CONCATENATE($G$3,"|",E$7,"|",$Q93,"|",$I$2,"|",$P93,"|",$J$2,"|",$J$3,"|",$K$2,"|",$K$3)),SUMIFS('DATA MART_'!$Q:$Q,'DATA MART_'!$G:$G,$G$3,'DATA MART_'!$A:$A,CONCATENATE($G$3,"|",E$7,"|",$Q93,"|",$I$2,"|",$P93,"|",$J$2,"|",$J$3,"|",$K$2,"|",$K$3),'DATA MART_'!$F:$F,$G$2)) -> 146.0676749 | F93: =IF($G$2="TO",SUMIFS('DATA MART_'!$Q:$Q,'DATA MART_'!$G:$G,$G$3,'DATA MART_'!$A:$A,CONCATENATE($G$3,"|",F$7,"|",$Q93,"|",$I$2,"|",$P93,"|",$J$2,"|",$J$3,"|",$K$2,"|",$K$3)),SUMIFS('DATA MART_'!$Q:$Q,'DATA MART_'!$G:$G,$G$3,'DATA MART_'!$A:$A,CONCATENATE($G$3,"|",F$7,"|",$Q93,"|",$I$2,"|",$P93,"|",$J$2,"|",$J$3,"|",$K$2,"|",$K$3),'DATA MART_'!$F:$F,$G$2)) -> 2 | G93: =IF($G$2="TO",SUMIFS('DATA MART_'!$Q:$Q,'DATA MART_'!$G:$G,$G$3,'DATA MART_'!$A:$A,CONCATENATE($G$3,"|",G$7,"|",$Q93,"|",$I$2,"|",$P93,"|",$J$2,"|",$J$3,"|",$K$2,"|",$K$3)),SUMIFS('DATA MART_'!$Q:$Q,'DATA MART_'!$G:$G,$G$3,'DATA MART_'!$A:$A,CONCATENATE($G$3,"|",G$7,"|",$Q93,"|",$I$2,"|",$P93,"|",$J$2,"|",$J$3,"|",$K$2,"|",$K$3),'DATA MART_'!$F:$F,$G$2)) -> 0 | H93: =IF($G$2="TO",SUMIFS('DATA MART_'!$Q:$Q,'DATA MART_'!$G:$G,$G$3,'DATA MART_'!$A:$A,CONCATENATE($G$3,"|",H$7,"|",$Q93,"|",$I$2,"|",$P93,"|",$J$2,"|",$J$3,"|",$K$2,"|",$K$3)),SUMIFS('DATA MART_'!$Q:$Q,'DATA MART_'!$G:$G,$G$3,'DATA MART_'!$A:$A,CONCATENATE($G$3,"|",H$7,"|",$Q93,"|",$I$2,"|",$P93,"|",$J$2,"|",$J$3,"|",$K$2,"|",$K$3),'DATA MART_'!$F:$F,$G$2)) -> 10.10272025 | J93: =IF($G$2="TO",SUMIFS('DATA MART_'!$Q:$Q,'DATA MART_'!$G:$G,$G$3,'DATA MART_'!$A:$A,CONCATENATE($G$3,"|",J$7,"|",$Q93,"|",$I$2,"|",$P93,"|",$J$2,"|",$J$3,"|",$K$2,"|",$K$3)),SUMIFS('DATA MART_'!$Q:$Q,'DATA MART_'!$G:$G,$G$3,'DATA MART_'!$A:$A,CONCATENATE($G$3,"|",J$7,"|",$Q93,"|",$I$2,"|",$P93,"|",$J$2,"|",$J$3,"|",$K$2,"|",$K$3),'DATA MART_'!$F:$F,$G$2)) -> 53.28688288 | L93: =IF($G$2="TO",SUMIFS('DATA MART_'!$Q:$Q,'DATA MART_'!$G:$G,$G$3,'DATA MART_'!$A:$A,CONCATENATE($G$3,"|",L$7,"|",$Q93,"|",$I$2,"|",$P93,"|",$J$2,"|",$J$3,"|",$K$2,"|",$K$3)),SUMIFS('DATA MART_'!$Q:$Q,'DATA MART_'!$G:$G,$G$3,'DATA MART_'!$A:$A,CONCATENATE($G$3,"|",L$7,"|",$Q93,"|",$I$2,"|",$P93,"|",$J$2,"|",$J$3,"|",$K$2,"|",$K$3),'DATA MART_'!$F:$F,$G$2)) -> -0.1900118797 | M93: 11 | N93: 4 | O93: 300100114 | P93: 4 | Q93: 11
A94: [3Y - 5Y ] | C94: =IF($G$2="TO",SUMIFS('DATA MART_'!$Q:$Q,'DATA MART_'!$G:$G,$G$3,'DATA MART_'!$A:$A,CONCATENATE($G$3,"|",C$7,"|",$Q94,"|",$I$2,"|",$P94,"|",$J$2,"|",$J$3,"|",$K$2,"|",$K$3)),SUMIFS('DATA MART_'!$Q:$Q,'DATA MART_'!$G:$G,$G$3,'DATA MART_'!$A:$A,CONCATENATE($G$3,"|",C$7,"|",$Q94,"|",$I$2,"|",$P94,"|",$J$2,"|",$J$3,"|",$K$2,"|",$K$3),'DATA MART_'!$F:$F,$G$2)) -> 178.4343771 | D94: =IF($G$2="TO",SUMIFS('DATA MART_'!$Q:$Q,'DATA MART_'!$G:$G,$G$3,'DATA MART_'!$A:$A,CONCATENATE($G$3,"|",D$7,"|",$Q94,"|",$I$2,"|",$P94,"|",$J$2,"|",$J$3,"|",$K$2,"|",$K$3)),SUMIFS('DATA MART_'!$Q:$Q,'DATA MART_'!$G:$G,$G$3,'DATA MART_'!$A:$A,CONCATENATE($G$3,"|",D$7,"|",$Q94,"|",$I$2,"|",$P94,"|",$J$2,"|",$J$3,"|",$K$2,"|",$K$3),'DATA MART_'!$F:$F,$G$2)) -> 133.5496277 | E94: =IF($G$2="TO",SUMIFS('DATA MART_'!$Q:$Q,'DATA MART_'!$G:$G,$G$3,'DATA MART_'!$A:$A,CONCATENATE($G$3,"|",E$7,"|",$Q94,"|",$I$2,"|",$P94,"|",$J$2,"|",$J$3,"|",$K$2,"|",$K$3)),SUMIFS('DATA MART_'!$Q:$Q,'DATA MART_'!$G:$G,$G$3,'DATA MART_'!$A:$A,CONCATENATE($G$3,"|",E$7,"|",$Q94,"|",$I$2,"|",$P94,"|",$J$2,"|",$J$3,"|",$K$2,"|",$K$3),'DATA MART_'!$F:$F,$G$2)) -> 178.4343771 | F94: =IF($G$2="TO",SUMIFS('DATA MART_'!$Q:$Q,'DATA MART_'!$G:$G,$G$3,'DATA MART_'!$A:$A,CONCATENATE($G$3,"|",F$7,"|",$Q94,"|",$I$2,"|",$P94,"|",$J$2,"|",$J$3,"|",$K$2,"|",$K$3)),SUMIFS('DATA MART_'!$Q:$Q,'DATA MART_'!$G:$G,$G$3,'DATA MART_'!$A:$A,CONCATENATE($G$3,"|",F$7,"|",$Q94,"|",$I$2,"|",$P94,"|",$J$2,"|",$J$3,"|",$K$2,"|",$K$3),'DATA MART_'!$F:$F,$G$2)) -> 0 | G94: =IF($G$2="TO",SUMIFS('DATA MART_'!$Q:$Q,'DATA MART_'!$G:$G,$G$3,'DATA MART_'!$A:$A,CONCATENATE($G$3,"|",G$7,"|",$Q94,"|",$I$2,"|",$P94,"|",$J$2,"|",$J$3,"|",$K$2,"|",$K$3)),SUMIFS('DATA MART_'!$Q:$Q,'DATA MART_'!$G:$G,$G$3,'DATA MART_'!$A:$A,CONCATENATE($G$3,"|",G$7,"|",$Q94,"|",$I$2,"|",$P94,"|",$J$2,"|",$J$3,"|",$K$2,"|",$K$3),'DATA MART_'!$F:$F,$G$2)) -> 0 | H94: =IF($G$2="TO",SUMIFS('DATA MART_'!$Q:$Q,'DATA MART_'!$G:$G,$G$3,'DATA MART_'!$A:$A,CONCATENATE($G$3,"|",H$7,"|",$Q94,"|",$I$2,"|",$P94,"|",$J$2,"|",$J$3,"|",$K$2,"|",$K$3)),SUMIFS('DATA MART_'!$Q:$Q,'DATA MART_'!$G:$G,$G$3,'DATA MART_'!$A:$A,CONCATENATE($G$3,"|",H$7,"|",$Q94,"|",$I$2,"|",$P94,"|",$J$2,"|",$J$3,"|",$K$2,"|",$K$3),'DATA MART_'!$F:$F,$G$2)) -> 0 | J94: =IF($G$2="TO",SUMIFS('DATA MART_'!$Q:$Q,'DATA MART_'!$G:$G,$G$3,'DATA MART_'!$A:$A,CONCATENATE($G$3,"|",J$7,"|",$Q94,"|",$I$2,"|",$P94,"|",$J$2,"|",$J$3,"|",$K$2,"|",$K$3)),SUMIFS('DATA MART_'!$Q:$Q,'DATA MART_'!$G:$G,$G$3,'DATA MART_'!$A:$A,CONCATENATE($G$3,"|",J$7,"|",$Q94,"|",$I$2,"|",$P94,"|",$J$2,"|",$J$3,"|",$K$2,"|",$K$3),'DATA MART_'!$F:$F,$G$2)) -> 14.78551517 | L94: =IF($G$2="TO",SUMIFS('DATA MART_'!$Q:$Q,'DATA MART_'!$G:$G,$G$3,'DATA MART_'!$A:$A,CONCATENATE($G$3,"|",L$7,"|",$Q94,"|",$I$2,"|",$P94,"|",$J$2,"|",$J$3,"|",$K$2,"|",$K$3)),SUMIFS('DATA MART_'!$Q:$Q,'DATA MART_'!$G:$G,$G$3,'DATA MART_'!$A:$A,CONCATENATE($G$3,"|",L$7,"|",$Q94,"|",$I$2,"|",$P94,"|",$J$2,"|",$J$3,"|",$K$2,"|",$K$3),'DATA MART_'!$F:$F,$G$2)) -> -0.4754185962 | M94: 11 | N94: 5 | O94: 300100115 | P94: 5 | Q94: 11
A95: [5Y - 10Y ] | C95: =IF($G$2="TO",SUMIFS('DATA MART_'!$Q:$Q,'DATA MART_'!$G:$G,$G$3,'DATA MART_'!$A:$A,CONCATENATE($G$3,"|",C$7,"|",$Q95,"|",$I$2,"|",$P95,"|",$J$2,"|",$J$3,"|",$K$2,"|",$K$3)),SUMIFS('DATA MART_'!$Q:$Q,'DATA MART_'!$G:$G,$G$3,'DATA MART_'!$A:$A,CONCATENATE($G$3,"|",C$7,"|",$Q95,"|",$I$2,"|",$P95,"|",$J$2,"|",$J$3,"|",$K$2,"|",$K$3),'DATA MART_'!$F:$F,$G$2)) -> 346.6427182 | D95: =IF($G$2="TO",SUMIFS('DATA MART_'!$Q:$Q,'DATA MART_'!$G:$G,$G$3,'DATA MART_'!$A:$A,CONCATENATE($G$3,"|",D$7,"|",$Q95,"|",$I$2,"|",$P95,"|",$J$2,"|",$J$3,"|",$K$2,"|",$K$3)),SUMIFS('DATA MART_'!$Q:$Q,'DATA MART_'!$G:$G,$G$3,'DATA MART_'!$A:$A,CONCATENATE($G$3,"|",D$7,"|",$Q95,"|",$I$2,"|",$P95,"|",$J$2,"|",$J$3,"|",$K$2,"|",$K$3),'DATA MART_'!$F:$F,$G$2)) -> 279.9765578 | E95: =IF($G$2="TO",SUMIFS('DATA MART_'!$Q:$Q,'DATA MART_'!$G:$G,$G$3,'DATA MART_'!$A:$A,CONCATENATE($G$3,"|",E$7,"|",$Q95,"|",$I$2,"|",$P95,"|",$J$2,"|",$J$3,"|",$K$2,"|",$K$3)),SUMIFS('DATA MART_'!$Q:$Q,'DATA MART_'!$G:$G,$G$3,'DATA MART_'!$A:$A,CONCATENATE($G$3,"|",E$7,"|",$Q95,"|",$I$2,"|",$P95,"|",$J$2,"|",$J$3,"|",$K$2,"|",$K$3),'DATA MART_'!$F:$F,$G$2)) -> 312.4828231 | F95: =IF($G$2="TO",SUMIFS('DATA MART_'!$Q:$Q,'DATA MART_'!$G:$G,$G$3,'DATA MART_'!$A:$A,CONCATENATE($G$3,"|",F$7,"|",$Q95,"|",$I$2,"|",$P95,"|",$J$2,"|",$J$3,"|",$K$2,"|",$K$3)),SUMIFS('DATA MART_'!$Q:$Q,'DATA MART_'!$G:$G,$G$3,'DATA MART_'!$A:$A,CONCATENATE($G$3,"|",F$7,"|",$Q95,"|",$I$2,"|",$P95,"|",$J$2,"|",$J$3,"|",$K$2,"|",$K$3),'DATA MART_'!$F:$F,$G$2)) -> 10.79810013 | G95: =IF($G$2="TO",SUMIFS('DATA MART_'!$Q:$Q,'DATA MART_'!$G:$G,$G$3,'DATA MART_'!$A:$A,CONCATENATE($G$3,"|",G$7,"|",$Q95,"|",$I$2,"|",$P95,"|",$J$2,"|",$J$3,"|",$K$2,"|",$K$3)),SUMIFS('DATA MART_'!$Q:$Q,'DATA MART_'!$G:$G,$G$3,'DATA MART_'!$A:$A,CONCATENATE($G$3,"|",G$7,"|",$Q95,"|",$I$2,"|",$P95,"|",$J$2,"|",$J$3,"|",$K$2,"|",$K$3),'DATA MART_'!$F:$F,$G$2)) -> 4.892194 | H95: =IF($G$2="TO",SUMIFS('DATA MART_'!$Q:$Q,'DATA MART_'!$G:$G,$G$3,'DATA MART_'!$A:$A,CONCATENATE($G$3,"|",H$7,"|",$Q95,"|",$I$2,"|",$P95,"|",$J$2,"|",$J$3,"|",$K$2,"|",$K$3)),SUMIFS('DATA MART_'!$Q:$Q,'DATA MART_'!$G:$G,$G$3,'DATA MART_'!$A:$A,CONCATENATE($G$3,"|",H$7,"|",$Q95,"|",$I$2,"|",$P95,"|",$J$2,"|",$J$3,"|",$K$2,"|",$K$3),'DATA MART_'!$F:$F,$G$2)) -> -13.95638337 | J95: =IF($G$2="TO",SUMIFS('DATA MART_'!$Q:$Q,'DATA MART_'!$G:$G,$G$3,'DATA MART_'!$A:$A,CONCATENATE($G$3,"|",J$7,"|",$Q95,"|",$I$2,"|",$P95,"|",$J$2,"|",$J$3,"|",$K$2,"|",$K$3)),SUMIFS('DATA MART_'!$Q:$Q,'DATA MART_'!$G:$G,$G$3,'DATA MART_'!$A:$A,CONCATENATE($G$3,"|",J$7,"|",$Q95,"|",$I$2,"|",$P95,"|",$J$2,"|",$J$3,"|",$K$2,"|",$K$3),'DATA MART_'!$F:$F,$G$2)) -> 172.1479185 | L95: =IF($G$2="TO",SUMIFS('DATA MART_'!$Q:$Q,'DATA MART_'!$G:$G,$G$3,'DATA MART_'!$A:$A,CONCATENATE($G$3,"|",L$7,"|",$Q95,"|",$I$2,"|",$P95,"|",$J$2,"|",$J$3,"|",$K$2,"|",$K$3)),SUMIFS('DATA MART_'!$Q:$Q,'DATA MART_'!$G:$G,$G$3,'DATA MART_'!$A:$A,CONCATENATE($G$3,"|",L$7,"|",$Q95,"|",$I$2,"|",$P95,"|",$J$2,"|",$J$3,"|",$K$2,"|",$K$3),'DATA MART_'!$F:$F,$G$2)) -> 0 | M95: 11 | N95: 6 | O95: 300100116 | P95: 6 | Q95: 11
